Workbook

Sheet SimulaciónV2
NHF3: Dimensionamiento de Flota T2 CDs
NIJ4: Consultado:
NIJ5: =TODAY() -> 2025-05-02
NHH7: AV04 | NHN7: Centro de Distribución | NHT7: =IFERROR(VLOOKUP(NHH7,CDs_ANAPLAN!A:D,4,FALSE),"") -> Tibasosa | NIE7: Regional | NIJ7: =IF(NHH7<>"","Centro","") -> Centro
NJI13: =IFERROR(G60001,"Colombia") -> Centro
NJJ18: Plan | NJS18: Real
NJI20: Tipo Camión [Estibas] | NJJ20: Flota [# Camiones] | NJK20: Flota Spot [# Camiones] | NJL20: CO [Hl/Cam] | NJM20: Recargas [%] | NJN20: FTE | NJO20: Utilización de Flota [%] | NJP20: Capacidad [Hl] | NJQ20: Costo COP | NJR20: Costo USD | NJS20: Flota [# Camiones] | NJT20: Flota Spot [# Camiones] | NJU20: CO [Hl/Cam] | NJV20: Recargas [%] | NJW20: FTE Personas Total | NJX20: Utilización de Flota [%] | NJY20: Capacidad [Hl] | NJZ20: Costo COP | NKA20: Costo USD | NKC20: Volumen Plan [Hl] | NKD20: Volumen Real [Hl]
NJI21: 6 | NJJ21: =IFERROR(VLOOKUP("Total general",$A$20000:$NHI$29000,2,FALSE)/VLOOKUP("Total Dias",$A$100000:$B$120000,2,FALSE),"") -> 6 | NJK21: 0 | NJL21: =IFERROR(VLOOKUP("Total Mostrar",$A$80000:$NHI$99999,3,FALSE),"") -> 15.50 | NJM21: =IFERROR(VLOOKUP("Total Mostrar",$A$80000:$NHI$99999,11,FALSE),"") -> 70% | NJN21: 2.00 | NJO21: 95% | NJP21: =IFERROR(((NJJ21+NJK21)*(NJL21)*(1+NJM21))*(VLOOKUP("Total Dias",$A$100000:$B$120000,2,FALSE)+$NJL$44+VLOOKUP("Total Dias",$A$100000:$C$120000,3,FALSE))*NJO21,"") -> 4,055 | NJQ21: =IFERROR((NJK21*8000000/26)*VLOOKUP("Total Dias",$A$100000:$B$120000,2,FALSE),"") -> 0 | NJR21: =IF(NJQ21<>"",NJQ21/3832.2727,"") -> 0 | NJS21: =NJJ21 -> 6 | NJT21: 0 | NJU21: =IFERROR(VLOOKUP("Total Mostrar",$A$80000:$NHI$99999,15,FALSE),"") ->  | NJV21: =IFERROR(VLOOKUP("Total Mostrar",$A$80000:$NHI$99999,19,FALSE),"") -> En ejecución | NJW21: =ROUNDUP(IF(NHY61="No",NJN21*NJS21,(NJN21*NJS21)*(1+(1/7))),0) -> 12.00 | NJX21: =IFERROR(VLOOKUP("Total general",$A$20000:$NHI$29000,7,FALSE)/(VLOOKUP("Total Dias",$A$100000:$B$120000,2,FALSE)*VLOOKUP("Total",$A$79000:$B$79000,2,FALSE)),"") ->  | NJY21: =IFERROR(((NJS21+NJT21)*(NJU21)*(1+NJV21))*(VLOOKUP("Total Dias",$A$100000:$B$120000,2,FALSE))*NJX21,"") ->  | NJZ21: =IFERROR((NJT21*8000000/26)*VLOOKUP("Total Dias",$A$100000:$B$120000,2,FALSE),"") -> 0 | NKA21: =IF(NJZ21<>"",NJZ21/3832.2727,"") -> 0 | NKC21: =IFERROR(INT(VLOOKUP("Total general",A300000:G310000,3,FALSE)),"") -> 53,431 | NKD21: =IFERROR(INT(VLOOKUP("Total general",A300000:G310000,4,FALSE)),"") -> 53,431
NHD22: < | NIT22: < | NJI22: 10 | NJJ22: =IFERROR(VLOOKUP("Total general",$A$20000:$NHI$29000,3,FALSE)/VLOOKUP("Total Dias",$A$100000:$B$120000,2,FALSE),"") -> 30 | NJK22: =IFERROR(ROUNDUP(VLOOKUP("Total general",$A$20000:$NHI$29000,8,FALSE)/VLOOKUP("Total Dias",$A$100000:$B$120000,2,FALSE),0),"") -> 0 | NJL22: =IFERROR(VLOOKUP("Total Mostrar",$A$80000:$NHI$99999,5,FALSE),"") -> 44.00 | NJM22: =IFERROR(VLOOKUP("Total Mostrar",$A$80000:$NHI$99999,12,FALSE),"") -> 10% | NJN22: 3.00 | NJO22: 95% | NJP22: =IFERROR(((NJJ22+NJK22)*(NJL22)*(1+NJM22))*(VLOOKUP("Total Dias",$A$100000:$B$120000,2,FALSE)+$NJL$44+VLOOKUP("Total Dias",$A$100000:$C$120000,3,FALSE))*NJO22,"") -> 37,244 | NJQ22: =IFERROR((NJK22*8000000/26)*VLOOKUP("Total Dias",$A$100000:$B$120000,2,FALSE),"") -> 0 | NJR22: =IF(NJQ22<>"",NJQ22/3832.2727,"") -> 0 | NJS22: =NJJ22 -> 30 | NJT22: =IFERROR(ROUNDUP(VLOOKUP("Total general",$A$20000:$NHI$29000,8,FALSE)/VLOOKUP("Total Dias",$A$100000:$B$120000,2,FALSE),0),"") -> 0 | NJU22: =IFERROR(VLOOKUP("Total Mostrar",$A$80000:$NHI$99999,16,FALSE),"") ->  | NJV22: =IFERROR(VLOOKUP("Total Mostrar",$A$80000:$NHI$99999,20,FALSE),"") -> En ejecución | NJW22: =ROUNDUP(IF(NIA62="No",NJN22*NJS22,(NJN22*NJS22)*(1+(1/7))),0) -> 103.00 | NJX22: =IFERROR(VLOOKUP("Total general",$A$20000:$NHI$29000,7,FALSE)/(VLOOKUP("Total Dias",$A$100000:$B$120000,2,FALSE)*VLOOKUP("Total",$A$79000:$B$79000,2,FALSE)),"") ->  | NJY22: =IFERROR(((NJS22+NJT22)*(NJU22)*(1+NJV22))*(VLOOKUP("Total Dias",$A$100000:$B$120000,2,FALSE))*NJX22,"") ->  | NJZ22: =IFERROR((NJT22*8000000/26)*VLOOKUP("Total Dias",$A$100000:$B$120000,2,FALSE),"") -> 0 | NKA22: =IF(NJZ22<>"",NJZ22/3832.2727,"") -> 0
NHP23: Simulación | NJI23: 12 | NJJ23: =IFERROR(VLOOKUP("Total general",$A$20000:$NHI$29000,4,FALSE)/VLOOKUP("Total Dias",$A$100000:$B$120000,2,FALSE),"") -> 21 | NJK23: 0 | NJL23: =IFERROR(VLOOKUP("Total Mostrar",$A$80000:$NHI$99999,7,FALSE),"") -> 46.00 | NJM23: =IFERROR(VLOOKUP("Total Mostrar",$A$80000:$NHI$99999,13,FALSE),"") -> 10% | NJN23: 3.00 | NJO23: 95% | NJP23: =IFERROR(((NJJ23+NJK23)*(NJL23)*(1+NJM23))*(VLOOKUP("Total Dias",$A$100000:$B$120000,2,FALSE)+$NJL$44+VLOOKUP("Total Dias",$A$100000:$C$120000,3,FALSE))*NJO23,"") -> 27,256 | NJQ23: =IFERROR((NJK23*8000000/26)*VLOOKUP("Total Dias",$A$100000:$B$120000,2,FALSE),"") -> 0 | NJR23: =IF(NJQ23<>"",NJQ23/3832.2727,"") -> 0 | NJS23: =NJJ23 -> 21 | NJT23: 0 | NJU23: =IFERROR(VLOOKUP("Total Mostrar",$A$80000:$NHI$99999,17,FALSE),"") ->  | NJV23: =IFERROR(VLOOKUP("Total Mostrar",$A$80000:$NHI$99999,21,FALSE),"") -> En ejecución | NJW23: =ROUNDUP(IF(NHT94="No",NJN23*NJS23,(NJN23*NJS23)*(1+(1/7))),0) -> 72.00 | NJX23: =IFERROR(VLOOKUP("Total general",$A$20000:$NHI$29000,7,FALSE)/(VLOOKUP("Total Dias",$A$100000:$B$120000,2,FALSE)*VLOOKUP("Total",$A$79000:$B$79000,2,FALSE)),"") ->  | NJY23: =IFERROR(((NJS23+NJT23)*(NJU23)*(1+NJV23))*(VLOOKUP("Total Dias",$A$100000:$B$120000,2,FALSE))*NJX23,"") ->  | NJZ23: =IFERROR((NJT23*8000000/26)*VLOOKUP("Total Dias",$A$100000:$B$120000,2,FALSE),"") -> 0 | NKA23: =IF(NJZ23<>"",NJZ23/3832.2727,"") -> 0 | NKC23: FTE Plan
NJI24: 10 CB | NJJ24: =IFERROR(VLOOKUP("Total general",$A$20000:$NHI$29000,5,FALSE)/VLOOKUP("Total Dias",$A$100000:$B$120000,2,FALSE),"") -> 0 | NJK24: 0 | NJL24: =IFERROR(VLOOKUP("Total Mostrar",$A$80000:$NHI$99999,9,FALSE),"") ->  | NJM24: =IFERROR(VLOOKUP("Total Mostrar",$A$80000:$NHI$99999,14,FALSE),"") ->  | NJN24: 2.00 | NJO24: 95% | NJP24: =IFERROR(((NJJ24+NJK24)*(NJL24)*(1+NJM24))*(VLOOKUP("Total Dias",$A$100000:$B$120000,2,FALSE)+$NJL$44+VLOOKUP("Total Dias",$A$100000:$C$120000,3,FALSE))*NJO24,"") ->  | NJQ24: =IFERROR((NJK24*8000000/26)*VLOOKUP("Total Dias",$A$100000:$B$120000,2,FALSE),"") -> 0 | NJR24: =IF(NJQ24<>"",NJQ24/3832.2727,"") -> 0 | NJS24: =NJJ24 -> 0 | NJT24: 0 | NJU24: =IFERROR(VLOOKUP("Total Mostrar",$A$80000:$NHI$99999,18,FALSE),"") ->  | NJV24: =IFERROR(VLOOKUP("Total Mostrar",$A$80000:$NHI$99999,22,FALSE),"") -> En ejecución | NJW24: =ROUNDUP(IF(NHZ95="No",NJN24*NJS24,(NJN24*NJS24)*(1+(1/7))),0) -> 0 | NJX24: =IFERROR(VLOOKUP("Total general",$A$20000:$NHI$29000,7,FALSE)/(VLOOKUP("Total Dias",$A$100000:$B$120000,2,FALSE)*VLOOKUP("Total",$A$79000:$B$79000,2,FALSE)),"") ->  | NJY24: =IFERROR(((NJS24+NJT24)*(NJU24)*(1+NJV24))*(VLOOKUP("Total Dias",$A$100000:$B$120000,2,FALSE))*NJX24,"") ->  | NJZ24: =IFERROR((NJT24*8000000/26)*VLOOKUP("Total Dias",$A$100000:$B$120000,2,FALSE),"") -> 0 | NKA24: =IF(NJZ24<>"",NJZ24/3832.2727,"") -> 0 | NKC24: Conductores | NKD24: =IFERROR(NJJ26,"") -> 57
NJI25: T4 | NJJ25: =IFERROR(VLOOKUP("Total general",$A$20000:$NHI$29000,6,FALSE)/VLOOKUP("Total Dias",$A$100000:$B$120000,2,FALSE),"") -> 0 | NJK25: 0 | NJN25: 2.00 | NJO25: 95% | NJP25: =IFERROR(((NJJ25+NJK25)*(NJL25)*(1+NJM25))*(VLOOKUP("Total Dias",$A$100000:$B$120000,2,FALSE)+$NJL$44+VLOOKUP("Total Dias",$A$100000:$C$120000,3,FALSE))*NJO25,"") -> 0 | NJQ25: =IFERROR((NJK25*8000000/26)*VLOOKUP("Total Dias",$A$100000:$B$120000,2,FALSE),"") -> 0 | NJR25: =IF(NJQ25<>"",NJQ25/3832.2727,"") -> 0 | NJS25: =NJJ25 -> 0 | NJT25: 0 | NJW25: =ROUNDUP(IF(NHZ96="No",NJN25*NJS25,(NJN25*NJS25)*(1+(1/7))),0) -> 0 | NJX25: =IFERROR(VLOOKUP("Total general",$A$20000:$NHI$29000,7,FALSE)/(VLOOKUP("Total Dias",$A$100000:$B$120000,2,FALSE)*VLOOKUP("Total",$A$79000:$B$79000,2,FALSE)),"") ->  | NJY25: =IFERROR(((NJS25+NJT25)*(NJU25)*(1+NJV25))*(VLOOKUP("Total Dias",$A$100000:$B$120000,2,FALSE))*NJX25,"") ->  | NJZ25: =IFERROR((NJT25*8000000/26)*VLOOKUP("Total Dias",$A$100000:$B$120000,2,FALSE),"") -> 0 | NKA25: =IF(NJZ25<>"",NJZ25/3832.2727,"") -> 0 | NKC25: Auxiliares | NKD25: =IFERROR(ROUNDUP((NJN21-1)*(NJJ21+NJK21)+(NJN22-1)*(NJJ22+NJK22)+(NJN23-1)*(NJJ23+NJK23)+(NJN24-1)*(NJJ24+NJK24),0),"") -> 108
NHQ26: Volumen Planning [Hl] | NHV26: Volumen Last Year [Hl] | NIA26: Trend Crec/Decrec [Últ 3 meses] | NIK26: Volumen Sugerido LE [Hl] | NJI26: Total | NJJ26: =SUM(NJJ21:NJJ25) -> 57 | NJK26: =SUM(NJK21:NJK25) -> 0 | NJL26: =SUMPRODUCT(NJJ21:NJJ25,NJL21:NJL25)/SUM(NJJ21:NJJ25) -> 41.74 | NJM26: =SUMPRODUCT(NJJ21:NJJ25,NJM21:NJM25)/SUM(NJJ21:NJJ25) -> 16% | NJN26: =IFERROR(SUMPRODUCT(NJJ21:NJJ25,NJN21:NJN25)/SUM(NJJ21:NJJ25),"") -> 2.89 | NJO26: =IFERROR(SUMPRODUCT(NJO21:NJO25,NJJ21:NJJ25)/SUM(NJJ21:NJJ25),"") -> 95% | NJP26: =IFERROR(SUM(NJP21:NJP25),"") -> 68,555 | NJQ26: =SUM(NJQ21:NJQ25) -> 0 | NJR26: =IFERROR(SUM(NJR21:NJR25),"") -> 0 | NJS26: =SUM(NJS21:NJS25) -> 57 | NJT26: =SUM(NJT21:NJT25) -> 0 | NJU26: =SUMPRODUCT(NJS21:NJS25,NJU21:NJU25)/SUM(NJS21:NJS25) -> 0 | NJV26: =SUMPRODUCT(NJS21:NJS25,NJV21:NJV25)/SUM(NJS21:NJS25) -> 0% | NJW26: =IFERROR(ROUNDUP(SUM(NJW21:NJW25),0),"") -> 187 | NJX26: =IFERROR(SUMPRODUCT(NJX21:NJX25,NJS21:NJS25)/SUM(NJS21:NJS25),"") -> 0% | NJY26: =IFERROR(SUM(NJY21:NJY25),"") -> 0 | NJZ26: =SUM(NJZ21:NJZ25) -> 0 | NKA26: =SUM(NKA21:NKA25) -> 0
NID29: % | NIK29: 53,607 | NJJ29: Simulación | NLF29: =(330/1000/100)*30 -> 0.099
NJI30: Tipo Camión [Estibas] | NJJ30: Flota Inicial [# Camiones] | NJK30: Flota +/- | NJL30: Flota +/- Mostrar | NJM30: Flota Final | NJN30: Flota Final Mostrar | NJO30: Flota Spot Inicial [# Camiones] | NJP30: Flota Spot +/- | NJQ30: Flota Spot +/- Mostrar | NJR30: Flota Spot Final | NJS30: Flota Spot Final Mostrar | NJT30: CO [Hl/Cam] | NJU30: CO +/- | NJV30: CO +/- Mostrar | NJW30: CO Final | NJX30: CO Final Mostrar | NJY30: Recargas [%] | NJZ30: Rec +/- | NKA30: Rec +/- Mostrar | NKB30: Rec Final | NKC30: Rec Final Mostrar | NKD30: FTE | NKE30: FTE +/- | NKF30: FTE +/- Mostrar | NKG30: FTE Final | NKH30: FTE Final Mostrar | NKI30: Utilización de Flota [%] | NKJ30: Utl Flota +/- | NKK30: Utl Flota +/- Mostrar | NKL30: Utl Flota Final | NKM30: Utl Flota Final Mostrar | NKN30: Capacidad [Hl] | NKO30: GAP | NKP30: GAP Mostrar | NKQ30: Costo Spot + Personas COP | NKR30: Costo Spot + Personas USD | NKT30: Flota Final Mostrar | NKU30: CO Final Mostrar | NKV30: Rec Final Mostrar | NKX30: FTE AM / PM | NLA30: GAP | NLB30: GAP Mostrar | NLC30: Costo Spot + Personas COP | NLD30: Costo Spot + Personas USD | NLF30: Cajas Por Viaje Promedio | NLG30: Trend Volumen ult 3 meses | NLH30: Tiempo Almuerzo [min] | NLI30: Tiempo Recargue [min] | NLK30: Tiempo Laboral [min]
NJI31: 6 | NJJ31: =IFERROR(IF($NJJ$40=1,NJJ21,IF($NJJ$40=2,NJS21,IF(AND($NJJ$40=3,NHQ42<>""),NHQ42,NJJ21))),"") -> 6 | NJK31: 100 | NJL31: =IFERROR(IF(AND($NJJ$40=3,NHQ42<>""),"",IF(NJK31-100>=0,CONCATENATE("+",NJK31-100),NJK31-100)),"") -> +0 | NJM31: =IFERROR(IF(NJJ31+NJK31-100<0,0,IF(AND($NJJ$40=3,NHQ42<>""),NHQ42,NJJ31+NJK31-100)),"") -> 6 | NJN31: =IFERROR(CONCATENATE("= ",NJM31),"") -> = 6 | NJT31: =IFERROR(IF($NJJ$40=1,NJL21,IF($NJJ$40=2,NJU21,IF(AND($NJJ$40=3,NHY42<>""),NHY42,NJL21))),"") -> 16.00 | NJU31: 80 | NJV31: =IFERROR(IF(AND(NHY42<>"",$NJJ$40=3),"",IF(NJU31/4-20>=0,CONCATENATE("+",NJU31/4-20),NJU31/4-20)),"") ->  | NJW31: =IFERROR(IF((IF(AND(NHY42<>"",$NJJ$40=3),NHY42,ROUND(NJT31+(NJU31/4)-20,2)))="",0,IF(AND(NHY42<>"",$NJJ$40=3),NHY42,ROUND(NJT31+(NJU31/4)-20,2))),0) -> 16 | NJX31: =IFERROR(CONCATENATE("= ",NJW31),"") -> = 16 | NJY31: =IFERROR(IF($NJJ$40=1,NJM21,IF($NJJ$40=2,NJV21,IF(AND($NJJ$40=3,NIC42<>""),NIC42/100,NJM21))),"") -> 70.0% | NJZ31: 20 | NKA31: =IFERROR(IF(AND(NIC42<>"",$NJJ$40=3),"",IF(NJZ31/2-10>=0,CONCATENATE("+",NJZ31/2-10," %"),CONCATENATE(NJZ31/2-10," %")))," %") -> +0 % | NKB31: =IFERROR((IF(AND($NJJ$40=3,NIC42<>""),NIC42/100,IF(ROUND(((NJY31*100)+NJZ31/2)-10,3)<0,0,ROUND(((NJY31*100)+NJZ31/2)-10,3))/100)),0) -> 70.0% | NKC31: =IFERROR(CONCATENATE("= ",ROUND(NKB31,3)*100,"%"),"") -> = 70% | NKD31: =IFERROR(IF($NJJ$40=1,NJN21,IF($NJJ$40=2,NJN21,IF(AND($NJJ$40=3,NHQ55<>""),NHQ55,NJN21))),"") -> 2.00 | NKE31: 20 | NKF31: =IFERROR(IF(AND(NHQ55<>"",$NJJ$40=3),"",IF(NKE31/10-2>=0,CONCATENATE("+",NKE31/10-2),NKE31/10-2)),"") -> +0 | NKG31: =IF(AND(NHQ55<>"",$NJJ$40=3),NHQ55,ROUND(NKD31+(NKE31/10)-2,2)) -> 2.0 | NKH31: =IFERROR(CONCATENATE("= ",NKG31),"") -> = 2 | NKI31: =IFERROR(IF($NJJ$40=1,NJO21,IF($NJJ$40=2,NJX21,IF(AND($NJJ$40=3,$NIG$36<>""),$NIG$36/100,NJO21))),"") -> 100.0% | NKJ31: 20 | NKN31: =IFERROR(((((NJM31+NJR31)*NJW31*(1+NKB31))*$NKL$36)*(VLOOKUP("Total Dias",$A$100000:$B$120000,2,FALSE)+VLOOKUP("Total Dias",$A$100000:$C$120000,3,FALSE)+$NJL$44))*(1+$NJS$40),"") -> 4,406 | NKT31: =IFERROR(IF(NJM31<>0,NJM31,"-0-"),"") -> 6 | NKU31: =IFERROR(IF(NJW31<>0,NJW31,"-0-"),"") -> 16 | NKV31: =IFERROR(IF(NKB31<>0,NKB31,"-0-"),"") -> 70.0% | NKX31: Conductores | NKY31: =IFERROR(NKL36*ROUNDUP(IF($NHY$61="No",NJM36,(NJM36)*(1+(1/7))),0),"") -> 57 | NLF31: =IFERROR(NJT36/NLF29,"") -> 427.43 | NLG31: =IFERROR(IF(NIA29="",E359993,NIA29/100),0) -> 5.4% | NLH31: 30 | NLI31: =IFERROR(IF(#REF!="",45,#REF!),"") ->  | NLK31: =8*60-NLH31-NLI31 -> 
NJI32: 10 | NJJ32: =IFERROR(IF($NJJ$40=1,NJJ22,IF($NJJ$40=2,NJS22,IF(AND($NJJ$40=3,NHQ39<>""),NHQ39,NJJ22))),"") -> 30 | NJK32: 100 | NJL32: =IFERROR(IF(AND($NJJ$40=3,NHQ39<>""),"",IF(NJK32-100>=0,CONCATENATE("+",NJK32-100),NJK32-100)),"") -> +0 | NJM32: =IFERROR(IF(NJJ32+NJK32-100<0,0,IF(AND($NJJ$40=3,NHQ39<>""),NHQ39,NJJ32+NJK32-100)),"") -> 30 | NJN32: =IFERROR(CONCATENATE("= ",NJM32),"") -> = 30 | NJO32: =IFERROR(IF($NJJ$40=1,NJK22,IF($NJJ$40=2,NJT22,IF(AND($NJJ$40=3,NHU36<>""),NHU36,NJK22))),"") -> 0 | NJP32: 100 | NJQ32: =IFERROR(IF(AND(NHU36<>"",NJJ40=3),"",IF(NJP32-100>=0,CONCATENATE("+",NJP32-100),NJP32-100)),"") -> +0 | NJR32: =IFERROR(IF(NJO32+NJP32-100<0,0,IF(AND($NJJ$40=3,NHU36<>""),NHU36,NJO32+NJP32-100)),"") -> 0 | NJS32: =IFERROR(CONCATENATE("= ",NJR32),"") -> = 0 | NJT32: =IFERROR(IF($NJJ$40=1,NJL22,IF($NJJ$40=2,NJU22,IF(AND($NJJ$40=3,NHY39<>""),NHY39,NJL22))),"") -> 45.00 | NJU32: 80 | NJV32: =IFERROR(IF(AND(NHY39<>"",$NJJ$40=3),"",IF(NJU32/4-20>=0,CONCATENATE("+",NJU32/4-20),NJU32/4-20)),"") ->  | NJW32: =IFERROR(IF((IF(AND(NHY39<>"",$NJJ$40=3),NHY39,ROUND(NJT32+(NJU32/4)-20,2)))="",0,IF(AND(NHY39<>"",$NJJ$40=3),NHY39,ROUND(NJT32+(NJU32/4)-20,2))),0) -> 45 | NJX32: =IFERROR(CONCATENATE("= ",NJW32),"") -> = 45 | NJY32: =IFERROR(IF($NJJ$40=1,NJM22,IF($NJJ$40=2,NJV22,IF(AND($NJJ$40=3,NIC39<>""),NIC39/100,NJM22))),"") -> 10.0% | NJZ32: 20 | NKA32: =IFERROR(IF(AND(NIC39<>"",$NJJ$40=3),"",IF(NJZ32/2-10>=0,CONCATENATE("+",NJZ32/2-10," %"),CONCATENATE(NJZ32/2-10," %")))," %") -> +0 % | NKB32: =IFERROR((IF(AND($NJJ$40=3,NIC39<>""),NIC39/100,IF(ROUND(((NJY32*100)+NJZ32/2)-10,3)<0,0,ROUND(((NJY32*100)+NJZ32/2)-10,3))/100)),0) -> 10.0% | NKC32: =IFERROR(CONCATENATE("= ",ROUND(NKB32,3)*100,"%"),"") -> = 10% | NKD32: =IFERROR(IF($NJJ$40=1,NJN22,IF($NJJ$40=2,NJN22,IF(AND($NJJ$40=3,NHQ52<>""),NHQ52,NJN22))),"") -> 3.00 | NKE32: 20 | NKF32: =IFERROR(IF(AND(NHQ52<>"",$NJJ$40=3),"",IF(NKE32/10-2>=0,CONCATENATE("+",NKE32/10-2),NKE32/10-2)),"") -> +0 | NKG32: =IF(AND(NHQ52<>"",$NJJ$40=3),NHQ52,ROUND(NKD32+(NKE32/10)-2,2)) -> 3.0 | NKH32: =IFERROR(CONCATENATE("= ",NKG32),"") -> = 3 | NKI32: =IFERROR(IF($NJJ$40=1,NJO22,IF($NJJ$40=2,NJX22,IF(AND($NJJ$40=3,$NIG$36<>""),$NIG$36/100,NJO22))),"") -> 100.0% | NKN32: =IFERROR(((((NJM32+NJR32)*NJW32*(1+NKB32))*$NKL$36)*(VLOOKUP("Total Dias",$A$100000:$B$120000,2,FALSE)+VLOOKUP("Total Dias",$A$100000:$C$120000,3,FALSE)+$NJL$44))*(1+$NJS$40),"") -> 40,095 | NKT32: =IFERROR(IF(NJM32<>0,NJM32,"-0-"),"") -> 30 | NKU32: =IFERROR(IF(NJW32<>0,NJW32,"-0-"),"") -> 45 | NKV32: =IFERROR(IF(NKB32<>0,NKB32,"-0-"),"") -> 10.0% | NKX32: Auxiliares Total | NKY32: =IFERROR(NKL36*ROUNDUP(IF($NHY$61="No",(NJM31+NJR31)*(NKD31-1)+(NJM32+NJR32)*(NKD32-1)+(NJM33+NJR33)*(NKD33-1)+(NJM34+NJR34)*(NKD34-1)+(NJM35+NJR35)*(NKD35-1),((NJM31+NJR31)*(NKD31-1)+(NJM32+NJR32)*(NKD32-1)+(NJM33+NJR33)*(NKD33-1)+(NJM34+NJR34)*(NKD34-1)+(NJM35+NJR35)*(NKD35-1))*(1+(1/7))),0)+NKY36*(NKG36-1),"") -> 108
NHQ33: Flota Propia [Cam] | NHU33: Fl. Spot (10 Est) [Cam] | NHY33: Capacity Occupation [Hl/Viaje] | NIC33: Recargas [%] | NIG33: Disponibilidad Flota [%] | NJI33: 12 | NJJ33: =IFERROR(IF($NJJ$40=1,NJJ23,IF($NJJ$40=2,NJS23,IF(AND($NJJ$40=3,NHQ36<>""),NHQ36,NJJ23))),"") -> 21 | NJK33: 100 | NJL33: =IFERROR(IF(AND($NJJ$40=3,NHQ36<>""),"",IF(NJK33-100>=0,CONCATENATE("+",NJK33-100),NJK33-100)),"") -> +0 | NJM33: =IFERROR(IF(NJJ33+NJK33-100<0,0,IF(AND(NHQ36<>"",$NJJ$40=3),NHQ36,NJJ33+NJK33-100)),"") -> 21 | NJN33: =IFERROR(CONCATENATE("= ",NJM33),"") -> = 21 | NJT33: =IFERROR(IF($NJJ$40=1,NJL23,IF($NJJ$40=2,NJU23,IF(AND($NJJ$40=3,NHY36<>""),NHY36,NJL23))),"") -> 46.00 | NJU33: 80 | NJV33: =IFERROR(IF(AND(NHY36<>"",$NJJ$40=3),"",IF(NJU33/4-20>=0,CONCATENATE("+",NJU33/4-20),NJU33/4-20)),"") -> +0 | NJW33: =IFERROR(IF((IF(AND(NHY36<>"",$NJJ$40=3),NHY36,ROUND(NJT33+(NJU33/4)-20,2)))="",0,IF(AND(NHY36<>"",$NJJ$40=3),NHY36,ROUND(NJT33+(NJU33/4)-20,2))),0) -> 46 | NJX33: =IFERROR(CONCATENATE("= ",NJW33),"") -> = 46 | NJY33: =IFERROR(IF($NJJ$40=1,NJM23,IF($NJJ$40=2,NJV23,IF(AND($NJJ$40=3,NIC36<>""),NIC36/100,NJM23))),"") -> 10.0% | NJZ33: 20 | NKA33: =IFERROR(IF(AND(NIC36<>"",$NJJ$40=3),"",IF(NJZ33/2-10>=0,CONCATENATE("+",NJZ33/2-10," %"),CONCATENATE(NJZ33/2-10," %")))," %") -> +0 % | NKB33: =IFERROR((IF(AND($NJJ$40=3,NIC36<>""),NIC36/100,IF(ROUND(((NJY33*100)+NJZ33/2)-10,3)<0,0,ROUND(((NJY33*100)+NJZ33/2)-10,3))/100)),0) -> 10.0% | NKC33: =IFERROR(CONCATENATE("= ",ROUND(NKB33,3)*100,"%"),"") -> = 10% | NKD33: =IFERROR(IF($NJJ$40=1,NJN23,IF($NJJ$40=2,NJN23,IF(AND($NJJ$40=3,NHQ49<>""),NHQ49,NJN23))),"") -> 3.00 | NKE33: 20 | NKF33: =IFERROR(IF(AND(NHQ49<>"",$NJJ$40=3),"",IF(NKE33/10-2>=0,CONCATENATE("+",NKE33/10-2),NKE33/10-2)),"") -> +0 | NKG33: =IF(AND(NHQ49<>"",$NJJ$40=3),NHQ49,ROUND(NKD33+(NKE33/10)-2,2)) -> 3.0 | NKH33: =IFERROR(CONCATENATE("= ",NKG33),"") -> = 3 | NKI33: =IFERROR(IF($NJJ$40=1,NJO23,IF($NJJ$40=2,NJX23,IF(AND($NJJ$40=3,$NIG$36<>""),$NIG$36/100,NJO23))),"") -> 100.0% | NKN33: =IFERROR(((((NJM33+NJR33)*NJW33*(1+NKB33))*$NKL$36)*(VLOOKUP("Total Dias",$A$100000:$B$120000,2,FALSE)+VLOOKUP("Total Dias",$A$100000:$C$120000,3,FALSE)+$NJL$44))*(1+$NJS$40),"") -> 28,690 | NKT33: =IFERROR(IF(NJM33<>0,NJM33,"-0-"),"") -> 21 | NKU33: =IFERROR(IF(NJW33<>0,NJW33,"-0-"),"") -> 46 | NKV33: =IFERROR(IF(NKB33<>0,NKB33,"-0-"),"") -> 10.0% | NKX33: Auxiliar RR Spot | NKY33: =IFERROR(IF(NHY61="No",NJR36,NJR36*(1+(1/7))),"") -> -0-
NJI34: 10 CB | NJJ34: =IFERROR(IF($NJJ$40=1,NJJ24,IF($NJJ$40=2,NJS24,IF(AND($NJJ$40=3,NHQ40<>""),NHQ40,NJJ24))),"") -> 0 | NJK34: 100 | NJL34: =IFERROR(IF(AND($NJJ$40=3,NHQ40<>""),"",IF(NJK34-100>=0,CONCATENATE("+",NJK34-100),NJK34-100)),"") -> +0 | NJM34: 0 | NJN34: =IFERROR(CONCATENATE("= ",NJM34),"") -> = 0 | NJT34: =IFERROR(IF($NJJ$40=1,NJL24,IF($NJJ$40=2,NJU24,IF(AND($NJJ$40=3,#REF!<>""),#REF!,NJL24))),"") ->  | NJU34: 80 | NJV34: =IFERROR(IF(AND(#REF!<>"",$NJJ$40=3),"",IF(NJU34/4-20>=0,CONCATENATE("+",NJU34/4-20),NJU34/4-20)),"") ->  | NJW34: =IFERROR(IF((IF(AND(#REF!<>"",$NJJ$40=3),#REF!,ROUND(NJT34+(NJU34/4)-20,2)))="",0,IF(AND(#REF!<>"",$NJJ$40=3),#REF!,ROUND(NJT34+(NJU34/4)-20,2))),0) -> 0 | NJX34: =IFERROR(CONCATENATE("= ",NJW34),"") -> = 0 | NJY34: =IFERROR(IF($NJJ$40=1,NJM24,IF($NJJ$40=2,NJV24,IF(AND($NJJ$40=3,#REF!<>""),#REF!/100,NJM24))),"") ->  | NJZ34: 20 | NKA34: =IFERROR(IF(AND(#REF!<>"",$NJJ$40=3),"",IF(NJZ34/2-10>=0,CONCATENATE("+",NJZ34/2-10," %"),CONCATENATE(NJZ34/2-10," %")))," %") -> % | NKB34: =IFERROR((IF(AND($NJJ$40=3,#REF!<>""),#REF!/100,IF(ROUND(((NJY34*100)+NJZ34/2)-10,3)<0,0,ROUND(((NJY34*100)+NJZ34/2)-10,3))/100)),0) -> 0.0% | NKC34: =IFERROR(CONCATENATE("= ",ROUND(NKB34,3)*100,"%"),"") -> = 0% | NKD34: 0 | NKE34: 20 | NKF34: =IFERROR(IF(AND(#REF!<>"",$NJJ$40=3),"",IF(NKE34/10-2>=0,CONCATENATE("+",NKE34/10-2),NKE34/10-2)),"") ->  | NKH34: =IFERROR(CONCATENATE("= ",NKG34),"") -> = | NKI34: =IFERROR(IF($NJJ$40=1,NJO24,IF($NJJ$40=2,NJX24,IF(AND($NJJ$40=3,$NIG$36<>""),$NIG$36/100,NJO24))),"") -> 100.0% | NKN34: =IFERROR(((((NJM34+NJR34)*NJW34*(1+NKB34))*$NKL$36)*(VLOOKUP("Total Dias",$A$100000:$B$120000,2,FALSE)+VLOOKUP("Total Dias",$A$100000:$C$120000,3,FALSE)+$NJL$44))*(1+$NJS$40),"") -> 0 | NKT34: =IFERROR(IF(NJM34<>0,NJM34,"-0-"),"") -> -0- | NKU34: =IFERROR(IF(NJW34<>0,NJW34,"-0-"),"") -> -0- | NKV34: =IFERROR(IF(NKB34<>0,NKB34,"-0-"),"") -> -0- | NKX34: Auxiliar Spot | NKY34: =IFERROR(IF(NHY61="No",NJR32*(NKD32-2),(NJR32*(NKD32-2))*(1+(1/7))),"") -> 0 | NLF34: Drop Size [Cajas / Entrega] | NLG34: Distancia Prom entre clientes [Km] | NLH34: Velocidad Promedio [Km/h] | NLR34: Tiempo Recargue [min]
NHV35: No | NJI35: T4 | NJM35: 0 | NKD35: 0 | NKN35: =IFERROR(((((NJM35+NJR35)*NJW35*(1+NKB35))*$NKL$36)*(VLOOKUP("Total Dias",$A$100000:$B$120000,2,FALSE)+VLOOKUP("Total Dias",$A$100000:$C$120000,3,FALSE)+$NJL$44))*(1+$NJS$40),"") -> 0 | NKX35: Conductores Movilizador | NKY35: =IFERROR(NHU49,"") -> 0
NIE36: % | NIG36: 100 | NII36: % | NJI36: Total | NJM36: =IFERROR(SUM(NJM31:NJM35)+NJR32,"") -> 57 | NJR36: =IFERROR(IF(SUM(NJR31:NJR35)=0,"-0-",SUM(NJR31:NJR35)),0) -> -0- | NJT36: =IFERROR(SUMPRODUCT(NJT31:NJT34,$NJM$31:$NJM$34)/SUM($NJM$31:$NJM$34),"") -> 42.32 | NJW36: =IFERROR(SUMPRODUCT(NJW31:NJW34,$NJM$31:$NJM$34)/SUM($NJM$31:$NJM$34),"") -> 42.32 | NJY36: =IFERROR(SUMPRODUCT(NJY31:NJY34,$NJM$31:$NJM$34)/SUM($NJM$31:$NJM$34),"") -> 16.3% | NKB36: =IFERROR(SUMPRODUCT(NKB31:NKB34,$NJM$31:$NJM$34)/SUM($NJM$31:$NJM$34),"") -> 16.3% | NKF36: FTE Spot | NKG36: =IFERROR(SUMPRODUCT(NJM31:NJM35,$NKG$31:$NKG$35)/SUM(NJM31:NJM35),"") -> 2.89 | NKH36: =IFERROR(ROUNDUP(NKG36*(NJR36+NJM36),0),"") ->  | NKI36: =IFERROR(SUMPRODUCT(NKI31:NKI35,NJM31:NJM35)/SUM(NJM31:NJM35),"") -> 100.0% | NKJ36: 20 | NKK36: =IFERROR(IF(AND(NIG36<>"",$NJJ$40=3),"",IF(NKJ36/2-10>=0,CONCATENATE("+",NKJ36/2-10," %"),CONCATENATE(NKJ36/2-10," %")))," %") ->  | NKL36: =IFERROR((IF(AND($NJJ$40=3,NIG36<>""),NIG36/100,IF(ROUND(((NKI36*100)+NKJ36/2)-10,3)<0,0,ROUND(((NKI36*100)+NKJ36/2)-10,3))/100)),"") -> 100.0% | NKM36: =IFERROR(CONCATENATE("= ",ROUND(NKL36*100,2)," %"),"") -> = 100 % | NKN36: =IFERROR(SUM($NKN$31:$NKN$35),"") -> 73,192 | NKO36: =IFERROR(ABS(NKN36-NJO40),"") -> 19,585 | NKP36: =IFERROR(IF(NKN36-NJL40<0,"Falta","Sobra"),"") -> Sobra | NKQ36: =IFERROR(ROUND(IF(NKG36>=2,NJR36*(VLOOKUP("Total Dias",$A$100000:$B$120000,2,FALSE)),"Error FTE")* ((8000000/26)+((450*3832.2727)/26)+(((320*3832.2727)*(NKG36-2))/26)),0),"") ->  | NKR36: =IFERROR(ROUND(NKQ36/3832.2727,0),"") ->  | NKX36: Tripulaciones Relevo | NKY36: =IFERROR(NHY49,"") -> 0 | NLA36: =IFERROR(ABS(NKZ36-NKA40),"") -> 0 | NLB36: =IFERROR(IF(NKZ36-NJX40<0,"Falta","Sobra"),"") -> Sobra | NLC36: =IFERROR(ROUND(IF(NKS36>=2,NKD36*(VLOOKUP("Total Dias",$A$100000:$B$120000,2,FALSE)),"Error FTE")* ((8000000/26)+((450*3832.2727)/26)+(((320*3832.2727)*(NKS36-2))/26)),0),"") ->  | NLD36: =IFERROR(ROUND(NLC36/3832.2727,0),"") -> 
NJK37: 100 para 0 | NJP37: 100 para 0 | NJU37: 80 para 0 | NJZ37: 20 para 0 | NKE37: 20 para 0 | NKJ37: 20 para 0 | NKX37: % Ausentismo | NKY37: =IFERROR(IF(NIC49<>"",NIC49/100,1%),"") -> 0.0%
NJV38: Meta CO | NJW38: =ROUND(VLOOKUP(NHH7,Bottom_Up_Champions!$A$19:$N$35,SimulaciónV2!L100001+2,FALSE),1) -> 41.6 | NJX38: =IFERROR(IF(NJW38<=NJW36,"g",""),"") -> g | NKX38: Total conductores | NKY38: =IFERROR(ROUNDUP((NKY31+NKY35)*(1+NKY37),0),"") -> 57
NHY39: 45.00 | NIE39: % | NJI39: Activadores | NJK39: Volumen Inicial [Hl] | NJL39: Volumen Simulación[Hl] | NJM39: Volumen +/- | NJN39: Volumen +/- Mostrar | NJO39: Volumen Final | NJP39: Volumen Final Mostrar | NJQ39: Volumen Last Year | NJR39: Salidas 7AM | NJS39: Rutas AM / PM | NJV39: Meta IR | NJW39: =ROUND(VLOOKUP(NHH7,Bottom_Up_Champions!$A$19:$AB$35,SimulaciónV2!L100001+16,FALSE),3) -> 14.2% | NJX39: =IFERROR(IF(NJW39<=NJY36,"g",""),"") -> g | NKX39: Total Auxiliares | NKY39: =IFERROR(ROUNDUP((1+NKY37)*(NKY32+(NKY36)/NKG36),0),"") -> 108
NJI40: Valores iniciales simulación | NJJ40: 3 | NJK40: =IFERROR(IF($NJJ$40=1,NKC21,IF($NJJ$40=2,NKD21,IF(AND($NJJ$40=3,NIK29<>""),NIK29,NKC21))),"") -> 53,607 | NJL40: =IFERROR(IF($NJJ$40=1,NKC21*(1+(NIA29/100)),IF($NJJ$40=2,NKD21,IF(AND($NJJ$40=3,NIK29<>""),NIK29,IF(NIA29="",(1+NLG31)*NKC21,NKC21*(1+(NIA29/100)))))),"") -> 53,607 | NJM40: 2400 | NJN40: =IFERROR(IF(AND(NIK29<>"",NJJ40=3),"",IF(NJM40-2400>=0,CONCATENATE("+",NJM40-2400),NJM40-2400)),"") ->  | NJO40: =IFERROR(IF(NJL40+NJM40-2400<0,0,IF(AND($NJJ$40=3,NIK29<>""),NIK29,NJL40+NJM40-2400)),"") -> 53,607 | NJP40: =IFERROR(CONCATENATE("= ",ROUND(NJO40,0)),"") -> = 53607 | NJQ40: =IFERROR(ROUND(A380001,0),"") -> 83,675 | NJS40: =IF(AND(NHQ62<>"",NHQ61="Si"),NHQ62/100,IF(D320100=0,0,D320100)) -> 0% | NKX40: Total Personas | NKY40: =IFERROR(NKY39+NKY38,"") -> 165
NJM41: 2400 para 0
NHY42: 16.00 | NIE42: % | NJI42: Media Vh. | NJJ42: =IFERROR(CONCATENATE(ROUND(AVERAGE($I$40001:$I$59999),2)," vehículos"),"") -> 42,41 vehículos
NJI43: Desviación Estandar Vh | NJJ43: =IFERROR(CONCATENATE(ROUND(_xlfn.STDEV.S($I$40001:$I$59999),2)," vehículos"),"") -> 10,27 vehículos | NJL43: Domingos Laborales | NJM43: Maximo numero de domingos | NJO43: Viajes T1 | NJP43: Capacidad Prom T1 | NKE43: =VLOOKUP("Total Dias",$A$100000:$B$120000,2,FALSE) -> 27
NJI44: Moda Vh | NJJ44: =IFERROR(CONCATENATE(ROUND(MODE($I$40001:$I$59999),2)," vehículos"),"") -> 41 vehículos | NJL44: =IF(AND(NHY61="No",NHU61="Si"),NHU62,0) -> 0 | NJM44: =B100000 -> 4 | NJO44: =IFERROR((NJL40/NJP44)/((VLOOKUP("Total Dias",$A$100000:$B$120000,2,FALSE)+VLOOKUP("Total Dias",$A$100000:$C$120000,3,FALSE)+$NJL$44)*(1+$NJS$40)),"") -> 11.7 | NJP44: 170
NHQ46: FTE [Per/Cam] | NHU46: Conductores JL | NHY46: Tripulaciones de relevo | NIC46: Ausentismo
NJH48: Activador | NJI48: Activador y/o cambio | NJJ48: =IF(NJV56<>0,0,1) -> 0
NIC49: 0 | NIE49: % | NJA49: =IF(NKN36=NJU56,1,0) -> 0 | NJH49: =IF(NJV58="No",-1,0) -> -1 | NJI49: 1 | NJJ49: Optimización | NJZ49: Redondeo
NJI50: Tipo Camión [Estibas] | NJJ50: Volumen Simular | NJK50: Flota Final | NJL50: Flota Final Mostrar | NJM50: Flota Spot Optima | NJN50: CO Final | NJO50: CO Final Mostrar | NJP50: Rec Final | NJQ50: Rec Final Mostrar | NJR50: FTE Final Mostrar | NJS50: FTE Total Personas | NJT50: Utl Flota Final Mostrar | NJU50: Capacidad [Hl] | NJV50: GAP Opt | NJW50: Costo Personas | NJX50: Costo Personas (USD) | NJY50: GAP Mostrar | NJZ50: Flota Spot Redondeada | NKA50: FTE Total Personas | NKB50: Capacidad [Hl] | NKC50: GAP Redondeado | NKD50: Costo Spot + Personas COP | NKE50: Cajas Equivalentes Entrega | NKF50: Flota Final / GAP | NKG50: Total Flota | NKH50: Conductores | NKI50: =IFERROR(ROUNDUP(NJK56*NJT56+NKY35+NKY36+NJZ52,0)*(1+NKY37),"") -> 43 | NKK50: FTE AM / PM
NJI51: 6 | NJK51: =IFERROR(IF(IF($NJI$49=1,IF(NJM31=0,"",NJM31),"")="","",IF($NJI$49=1,IF(NJM31=0,"",NJM31),0)),"-0-") -> 6 | NJL51: =IFERROR(IF($NJI$49=0,"",IF(NJK51="","-0-",NJK51)),"") -> 6 | NJN51: =IFERROR(IF($NJI$49=1,IF(NJW31="","",NJW31),""),"") -> 16 | NJO51: =IFERROR(IF($NJI$49=0,"",IF(OR(NJN51="",NJN51=0),"-0.0-",NJN51)),"") -> 16 | NJP51: =IFERROR(IF($NJI$49=1,IF(NKB31="","",NKB31),""),"") -> 70.0% | NJQ51: =IFERROR(IF(OR(NJP51="",NJP51=0),"-0.0-",NJP51),"") -> 70% | NJR51: =IFERROR(IF($NJI$49=1,NKG31,""),"") -> 2.0 | NJS51: =IFERROR(IF($NJI$49=1,NJR51*(NJK51+NJM51),""),"") -> 12 | NJT51: =IFERROR(IF($NJI$49=1,$NKL$36,""),"") -> 100.0% | NJU51: =IFERROR(IF($NJI$49=1,((NJK51+NJM51)*NJN51*(1+NJP51)*NJT51*(VLOOKUP("Total Dias",$A$100000:$B$120000,2,FALSE)+$NJL$44+VLOOKUP("Total Dias",$A$100000:$C$120000,3,FALSE)))*(1+$NJS$40),""),"") -> 4,406 | NJZ51: =IFERROR(IF($NJI$49=1,ROUNDUP(NJM51,0),""),"") -> 0 | NKA51: =IFERROR(IF($NJI$49=1,NJR51*(NJK51+NJZ51),""),"") -> 12 | NKB51: =IFERROR(IF($NJI$49=1,(NJK51+NJZ51)*NJN51*(1+NJP51)*NJT51*(VLOOKUP("Total Dias",$A$100000:$B$120000,2,FALSE)+$NJL$44+VLOOKUP("Total Dias",$A$100000:$C$120000,3,FALSE))*(1+$NJS$40),""),"") -> 4,406 | NKE51: =IFERROR(ROUND(NJO51*23.5,1),"") -> 376.0 | NKF51: =NJL51 -> 6 | NKH51: Auxiliares | NKI51: =IFERROR(ROUNDUP(IF((IF(NKI50="","",(NJK52+NJZ52)*(NJR52-2)+IFERROR(NJK53*(NJR53-2),0))*(1+NKI54))<=0,0,(IF(NKI50="","",(NJK52+NJZ52)*(NJR52-2)+IFERROR(NJK53*(NJR53-2),0))*(1+NKI54))),0)*NJT56,"") -> 37 | NKJ51: =IFERROR(IF(NKI50="","",IF(NJI49=0,"",IFERROR((NJK51*(NJR51-1)),0)+IFERROR(((NJK52+NJZ52)*(NJR52-1)),0)+IFERROR((NJK53*(NJR53-1)),0)+IFERROR((NJK54*(NJR54-1)),0))*(1+NKY37)),"") -> 80 | NKK51: Conductores | NKL51: =IFERROR(ROUNDUP(IF($NHY$61="No",NIW46+NIX46,(NIW46+NIX46)*(1+(1/7))),0),"") -> 0 | NKN51: Dias en distribución | NKO51: =IFERROR((VLOOKUP("Total Dias",$A$100000:$B$120000,2,FALSE)+$NJL$44+VLOOKUP("Total Dias",$A$100000:$C$120000,3,FALSE)),"") -> 27 | NKR51: Papel Termico | NKS51: =45*13*6*4 -> 14,040 | NKU51: =+NKS51*1.23 -> 17269.2 | NKX51: Capacidad diaria | NKY51: =+NKG56*NJO56*(1+NJP56) -> 2,116
NJI52: 10 | NJK52: =IFERROR(IF(IF($NJI$49=1,IF(NJM32=0,"",NJM32),"")="","",IF($NJI$49=1,IF(NJM32=0,"",NJM32),0)),"-0-") -> 30 | NJL52: =IFERROR(IF($NJI$49=0,"",IF(NJK52="","-0-",NJK52)),"") -> 30 | NJM52: -14.65364759 | NJN52: =IFERROR(IF(NJK52="",40,IF(NJK52=0,40,IF($NJI$49=1,IF(NJW32="","",NJW32)))),"") -> 45 | NJO52: =IF(OR(NJK52="",NJK52=0),"-0-",IF($NJI$49=0,"",IF(OR(NJN52="",NJN52=0),"-0.0-",NJN52))) -> 45 | NJP52: =IFERROR(IF(OR(NJK52="",NJK52=0),10%,IF($NJI$49=1,IF(NKB32="",NJP51,NKB32),"")),"") -> 10.0% | NJQ52: =IFERROR(IF(OR(NJP52="",NJP52=0),"-0.0-",NJP52),"") -> 10% | NJR52: =IFERROR(IF($NJI$49=1,NKG32,""),"") -> 3.0 | NJS52: =IFERROR(IF($NJI$49=1,NJR52*(NJK52+NJM52),""),"") -> 46.03905724 | NJT52: =IFERROR(IF($NJI$49=1,$NKL$36,""),"") -> 100.0% | NJU52: =IF($NJI$49=1,((NJK52+NJM52)*NJN52*(1+NJP52)*NJT52*(VLOOKUP("Total Dias",$A$100000:$B$120000,2,FALSE)+$NJL$44+VLOOKUP("Total Dias",$A$100000:$C$120000,3,FALSE)))*(1+$NJS$40),"") -> 20,510 | NJZ52: =IFERROR(IF($NJI$49=1,IF(NJM52<0,ROUNDDOWN(NJM52,0),ROUNDUP(NJM52,0)),""),"") -> -14 | NKA52: =IFERROR(IF($NJI$49=1,NJR52*(NJK52+NJZ52),""),"") -> 48 | NKB52: =IFERROR(IF($NJI$49=1,(NJK52+NJZ52)*NJN52*(1+NJP52)*NJT52*(VLOOKUP("Total Dias",$A$100000:$B$120000,2,FALSE)+$NJL$44+VLOOKUP("Total Dias",$A$100000:$C$120000,3,FALSE))*(1+$NJS$40),""),"") -> 21,384 | NKE52: 1,057.5 | NKF52: =IFERROR(IF(IFERROR(ROUNDDOWN(NJL52+NJM52,0),"")<0,0,IFERROR(ROUNDUP(NJL52+NJM52,0),"")),"") -> 16 | NKH52: RR | NKI52: =IFERROR(IF(NKI50="","",NKI50),"") -> 43 | NKK52: Auxiliares Total | NKL52: =IFERROR(ROUNDUP(IF($NHY$61="No",(NIW41+NIX41)*(NJA41-1)+(#REF!+#REF!)*(NJA42-1)+(NIW43+NIX43)*(NJA43-1)+(NIW44+NIX44)*(NJA44-1)+(NIW45+NIX45)*(NJA45-1),((NIW41+NIX41)*(NJA41-1)+(#REF!+#REF!)*(NJA42-1)+(NIW43+NIX43)*(NJA43-1)+(NIW44+NIX44)*(NJA44-1)+(NIW45+NIX45)*(NJA45-1))*(1+(1/7))),0),"") ->  | NKN52: No. Clientes | NKO52: =Q219999 -> 1,039 | NKR52: Bosa | NKS52: 14,040 | NKU52: Entregas
NJI53: 12 | NJK53: =IFERROR(IF(IF($NJI$49=1,IF(NJM33=0,"",NJM33),"")="","",IF($NJI$49=1,IF(NJM33=0,"",NJM33),0)),"-0-") -> 21 | NJL53: =IFERROR(IF($NJI$49=0,"",IF(NJK53="","-0-",NJK53)),"") -> 21 | NJN53: =IFERROR(IF($NJI$49=1,IF(NJW33="","",NJW33),""),"") -> 46 | NJO53: =IFERROR(IF($NJI$49=0,"",IF(OR(NJN53="",NJN53=0),"-0.0-",NJN53)),"") -> 46 | NJP53: =IFERROR(IF($NJI$49=1,IF(NKB33="","",NKB33),""),"") -> 10.0% | NJQ53: =IFERROR(IF(OR(NJP53="",NJP53=0),"-0.0-",NJP53),"") -> 10% | NJR53: =IFERROR(IF($NJI$49=1,NKG33,""),"") -> 3.0 | NJS53: =IFERROR(IF($NJI$49=1,NJR53*(NJK53+NJM53),""),"") -> 63 | NJT53: =IFERROR(IF($NJI$49=1,$NKL$36,""),"") -> 100.0% | NJU53: =IFERROR(IF($NJI$49=1,((NJK53+NJM53)*NJN53*(1+NJP53)*NJT53*(VLOOKUP("Total Dias",$A$100000:$B$120000,2,FALSE)+$NJL$44+VLOOKUP("Total Dias",$A$100000:$C$120000,3,FALSE)))*(1+$NJS$40),""),"") -> 28,690 | NJZ53: =IFERROR(IF($NJI$49=1,ROUNDUP(NJM53,0),""),"") -> 0 | NKA53: =IFERROR(IF($NJI$49=1,NJR53*(NJK53+NJZ53),""),"") -> 63 | NKB53: =IFERROR(IF($NJI$49=1,(NJK53+NJZ53)*NJN53*(1+NJP53)*NJT53*(VLOOKUP("Total Dias",$A$100000:$B$120000,2,FALSE)+$NJL$44+VLOOKUP("Total Dias",$A$100000:$C$120000,3,FALSE))*(1+$NJS$40),""),"") -> 28,690 | NKE53: 1,081.0 | NKF53: =IFERROR(IF(NJL52+NJM52>0,NJL53,NJL53+IFERROR(ROUNDDOWN(NJL52+NJM52,0),"")),"") -> 21 | NKH53: Total | NKI53: =IFERROR(IF(NJI49=0,"",SUM(NKI50:NKI52)),"") -> 123 | NKK53: Auxiliar RR Spot | NKL53: =IFERROR(IF(NHY111="No",NJE56,NJE56*(1+(1/7))),"") -> 0
NJI54: 10 CB | NJK54: =IFERROR(IF(IF($NJI$49=1,IF(NJM34=0,"",NJM34),"")="","",IF($NJI$49=1,IF(NJM34=0,"",NJM34),0)),"-0-") ->  | NJL54: =IFERROR(IF($NJI$49=0,"",IF(NJK54="","-0-",NJK54)),"") -> -0- | NJN54: =IFERROR(IF($NJI$49=1,IF(NJW34="","",NJW34),""),"") -> 0 | NJO54: =IFERROR(IF($NJI$49=0,"",IF(OR(NJN54="",NJN54=0),"-0.0-",NJN54)),"") -> -0.0- | NJP54: =IFERROR(IF($NJI$49=1,IF(NKB34="","",NKB34),""),"") -> 0.0% | NJQ54: =IFERROR(IF(OR(NJP54="",NJP54=0),"-0.0-",NJP54),"") -> -0.0- | NJR54: =IFERROR(IF($NJI$49=1,NKG34,""),"") -> 0.0 | NJS54: =IFERROR(IF($NJI$49=1,NJR54*(NJK54+NJM54),""),"") ->  | NJT54: =IFERROR(IF($NJI$49=1,$NKL$36,""),"") -> 100.0% | NJU54: =IFERROR(IF($NJI$49=1,((NJK54+NJM54)*NJN54*(1+NJP54)*NJT54*(VLOOKUP("Total Dias",$A$100000:$B$120000,2,FALSE)+$NJL$44+VLOOKUP("Total Dias",$A$100000:$C$120000,3,FALSE)))*(1+$NJS$40),""),"") ->  | NJZ54: =IFERROR(IF($NJI$49=1,ROUNDUP(NJM54,0),""),"") -> 0 | NKA54: =IFERROR(IF($NJI$49=1,NJR54*(NJK54+NJZ54),""),"") ->  | NKB54: =IFERROR(IF($NJI$49=1,(NJK54+NJZ54)*NJN54*(1+NJP54)*NJT54*(VLOOKUP("Total Dias",$A$100000:$B$120000,2,FALSE)+$NJL$44+VLOOKUP("Total Dias",$A$100000:$C$120000,3,FALSE))*(1+$NJS$40),""),"") ->  | NKF54: =IFERROR(ROUNDUP(NJL54+NJM54,0),"") ->  | NKH54: Ausentismo | NKI54: =IFERROR(IF(NKI50="","",NKY37),"") -> 0.0% | NKK54: Auxiliar Spot | NKL54: =IFERROR(IF(NHY111="No",NJE52*(NJQ52-2),(NJE52*(NJQ52-2))*(1+(1/7))),"") -> 0 | NKN54: Drop Size | NKO54: =IFERROR(ROUND((NJJ56/(NKO52*NKO51))*10.101010101,1),"") -> 19.3 | NKR54: Pedidos | NKS54: =+NKS52*1.23 -> 17,269 | NKU54: Pedidos | NKW54: =+NKS55/NKS54 -> 0.01853
NJI55: T4 | NJK55: =IFERROR(IF($NJI$49=1,IF(NJM35=0,"",NJM35),""),"") ->  | NJN55: =IFERROR(IF($NJI$49=1,IF(NJW35="","",NJW35),""),"") ->  | NJO55: =IFERROR(IF($NJI$49=0,"",IF(OR(NJN55="",NJN55=0),"-0.0-",NJN55)),"") -> -0.0- | NJP55: =IFERROR(IF($NJI$49=1,NKB35,""),"") -> 0.0% | NJR55: =IFERROR(IF($NJI$49=1,NKG35,""),"") -> 0 | NJS55: =IFERROR(IF($NJI$49=1,NJR55*(NJK55+NJM55),""),"") ->  | NJT55: =IFERROR(IF($NJI$49=1,$NKL$36,""),"") -> 100.0% | NJU55: =IFERROR(IF($NJI$49=1,((NJK55+NJM55)*NJN55*(1+NJP55)*NJT55*(VLOOKUP("Total Dias",$A$100000:$B$120000,2,FALSE)+$NJL$44+VLOOKUP("Total Dias",$A$100000:$C$120000,3,FALSE)))*(1+$NJS$40),""),"") ->  | NJZ55: =IFERROR(IF($NJI$49=1,ROUNDUP(NJM55,0),""),"") -> 0 | NKA55: =IFERROR(IF($NJI$49=1,NJR55*(NJK55+NJZ55),""),"") ->  | NKB55: =IFERROR(IF($NJI$49=1,(NJK55+NJZ55)*NJN55*(1+NJP55)*NJT55*(VLOOKUP("Total Dias",$A$100000:$B$120000,2,FALSE)+$NJL$44+VLOOKUP("Total Dias",$A$100000:$C$120000,3,FALSE))*(1+$NJS$40),""),"") ->  | NKF55: =IFERROR(ROUNDUP(NJL55+NJM55,0),"") -> 0 | NKH55: Primeros Viajes | NKK55: Total | NKL55: =IFERROR(SUM(NKL51:NKL52),"") -> 0 | NKR55: Rollos | NKS55: =5*64 -> 320 | NKU55: =+NKS55*40 -> 12800
NJI56: Total | NJJ56: =IFERROR(IF(NIK29<>"",NIK29,IF(NJI49=1,NJK40,"")*IF(NIA29<>"",(1+(NIA29/100)),(1+NLG31))),"") -> 53,607 | NJK56: =IF(SUM(NJK51:NJK55)=0,"",SUM(NJK51:NJK55)) -> 57 | NJM56: =IFERROR(IF(NJI49=1,ROUND(SUM(NJM51:NJM55),3),""),"") -> -14.654 | NJN56: =IFERROR(SUMPRODUCT(NJN51:NJN54,$NJK$51:$NJK$54)/SUM($NJK$51:$NJK$54),"") -> 42.32 | NJO56: =IFERROR(IF(NJN56="","0.0 ",NJN56),"") -> 42.32 | NJP56: =IFERROR(SUMPRODUCT(NJP51:NJP54,$NJK$51:$NJK$54)/SUM($NJK$51:$NJK$54),"") -> 16.3% | NJR56: =IFERROR(SUMPRODUCT(NJK51:NJK55,NJR51:NJR55)/SUM(NJK51:NJK55),"") -> 2.89 | NJS56: =IFERROR(IF($NJI$49=1,ROUNDUP(SUM(NJS51:NJS55),0),""),"") -> 122 | NJT56: =IFERROR(SUMPRODUCT(NJT51:NJT55,NJK51:NJK55)/SUM(NJK51:NJK55),"") -> 100.0% | NJU56: =IFERROR(IF($NJI$49=1,SUM(NJU51:NJU55),""),"") -> 53,607 | NJV56: =IFERROR(IF($NJI$49=1,ABS(NJU56-NJJ56),""),"") -> 0 | NJW56: =IFERROR(IF(NJI49<>1,"",'Open Book UC'!G28),"") -> 5 | NJX56: =IFERROR(+NJW56/4035.35,"") -> 0 | NJY56: =IFERROR(IF($NJI$49=1,IF(NJU56-NJJ56<0,"Falta","Sobra"),""),"") -> Sobra | NJZ56: =IFERROR(IF(NJI49=1,IF(SUM(NJZ51:NJZ55)=0,"-0-",IF((ROUNDUP(SUM(NJZ51:NJZ55),0))<0,CONCATENATE("Sobran ",ABS(ROUNDUP(SUM(NJZ51:NJZ55),0))," Renting"),ROUNDUP(SUM(NJZ51:NJZ55),0))),""),"") -> Sobran 14 Renting | NKA56: =IFERROR(IF($NJI$49=1,ROUNDUP(SUM(NKA51:NKA55),0),""),"") -> 123 | NKB56: =IFERROR(IF($NJI$49=1,SUM(NKB51:NKB55),""),"") -> 54,481 | NKC56: =IFERROR(IF($NJI$49=1,ABS(NKB56-NJJ56),""),"") -> 874 | NKD56: =IFERROR(IF($NJI$49=1,ROUND(IF(NJR56>=2,NJZ56*(VLOOKUP("Total Dias",$A$100000:$B$120000,2,FALSE)),"Error FTE")* ((8000000/26)+((450*3832.2727)/26)+(((320*3832.2727)*(NJR56-2))/26)),0),""),"") ->  | NKE56: 994.4 | NKF56: =IFERROR(IF($NJI$49=1,IF(NKB56-NJJ56<0,"Falta","Sobra"),""),"") -> Sobra | NKG56: =IFERROR(IF(NJZ56="","",NJZ52+NJK56),"") -> 43 | NKH56: =IFERROR(ROUNDUP(IF(NKG56="","",NKG56*NJT56),0),"") -> 43 | NKN56: Viajes día | NKO56: =NKH56*(1+NJP56) -> 50.0
NJZ57: =IFERROR(IF(NJZ52=0,"Se cuenta con los vehiculos necesarios [Bajo los parámetros de entrada]",IF(NJZ52>0,CONCATENATE("Se requieren ",NKG56," vehículos en la operación, "," es necesario mover flota o contratar ",NJZ52," vehículos de flota spot."),CONCATENATE("Sobran ",ROUNDUP(ABS(NJZ52),0)," vehículos de flota propia, se recomienda moverlos a otro CD que los requiera. "))),"") -> Sobran 14 vehículos de flota propia, se recomienda moverlos a otro CD que los requiera. | NKE57: =IF(NJI49=1,"[Bajo los parámetros de entrada].","") -> [Bajo los parámetros de entrada].
NJV58: =IF(NJV56<>0,"No","Si") -> No
NHQ59: Rutas AM / PM | NHU59: Dominicales a laborar / Mes | NHY59: Tripulaciones 7 x 1 | NIC59: Número de Festivos en el Mes | NIG59: Ingrese otros costos OB | NJV59: Meta CO | NJW59: =ROUND(VLOOKUP(NHH7,Bottom_Up_Champions!$A$19:$N$35,SimulaciónV2!L100001+2,FALSE),1) -> 41.6 | NJX59: =IFERROR(IF(NJW59<=NJO56,"g",""),"") -> g | NKR59: Tasa Cm/Cliente | NKS59: =ROUND((NKU55/NKS54)*100,1) -> 74.1
NJV60: Meta IR | NJW60: =ROUND(VLOOKUP(NHH7,Bottom_Up_Champions!$A$19:$AB$35,SimulaciónV2!L100001+16,FALSE),3) -> 14.2% | NJX60: =IFERROR(IF(NJW60<=NJP56,"g",""),"") -> g
NHQ61: Si | NHU61: Si | NHY61: No | NIC61: 1 | NIG61: 71,000,000 | NKR61: Cajas Papel Simulación | NKS61: =+NKS59*NKS67/40000 -> 0
NHS62: %
NJJ63: =R40002 -> Mayor demanda | NJS63: =R40014 -> Menor demanda
NJJ64: Dia Sem | NJK64: =S40003 -> Fecha | NJL64: =T40003 -> Demanda [Hl] | NJM64: Capacidad diaria | NJN64: Diferencia | NJS64: Dia Sem | NJT64: =S40015 -> Fecha | NJU64: Demanda [Hl] | NJV64: Capacidad diaria | NJW64: Diferencia
NJI65: =Q40004 -> 1 | NJJ65: miércoles | NJK65: =S40004 -> 2025-05-14 | NJL65: =IFERROR(ROUND(T40004,0),"") -> 3,225 | NJM65: =IFERROR(ROUND(SUM($NKN$31:$NKN$35)/(VLOOKUP("Total Dias",$A$100000:$B$120000,2,FALSE)+$C$120000+$NJL$44),0),"") -> 2,711 | NJN65: =IFERROR(IF((NJM65-NJL65)<0,CONCATENATE("Faltan: ",ROUND(ABS(NJM65-NJL65)/(IF($NJT$36="",$NJT$36,$NJT$36)),0)," viajes"),CONCATENATE("Sobran: ",ROUND(ABS(NJM65-NJL65)/(IF($NJT$36="",$NJT$36,$NJT$36)),0)," viajes.")),"") -> Faltan: 12 viajes | NJO65: =IFERROR(CONCATENATE(ROUND(ABS(NJL65)/(IF($NJT$36="",$NJT$36,$NJT$36)*(1+IF($NJY$32<>"",$NJY$32,$NJY$33))),0)," veh. || ", NJN65),"") -> 69 veh. || Faltan: 12 viajes | NJR65: =P40016 -> 1 | NJS65: miércoles | NJT65: 2025-05-21 | NJU65: 938 | NJV65: =IFERROR(ROUND(SUM($NKN$31:$NKN$35)/VLOOKUP("Total Dias",$A$100000:$B$120000,2,FALSE)+C120000,0),"") -> 2,711 | NJW65: =IFERROR(IF((NJV65-NJU65)<0,CONCATENATE("Faltan: ",ROUND(ABS(NJV65-NJU65)/(IF($NJT$36="",$NJT$36,$NJT$36)*(1+IF($NJY$36<>"",$NJY$36,$NJY$36))),0)," veh."),CONCATENATE("Sobran: ",ROUND(ABS(NJV65-NJU65)/(IF($NJT$36="",$NJT$36,$NJT$36)*(1+IF($NJY$36<>"",$NJY$36,$NJY$36))),0)," veh.")),"") -> Sobran: 36 veh. | NJX65: =IFERROR(CONCATENATE(ROUND(ABS(NJU65)/(IF($NJT$36="",$NJT$36,$NJT$36)*(1+IF($NJY$36<>"",$NJY$36,$NJY$36))),0)," veh. || ", NJW65),"") -> 19 veh. || Sobran: 36 veh. | NKR65: Ordenes / día | NKS65: =+NKO52*1.23 -> 1,278
NJI66: =Q40005 -> 2 | NJJ66: miércoles | NJK66: =S40005 -> 2025-05-28 | NJL66: =IFERROR(ROUND(T40005,0),"") -> 2,931 | NJM66: =IFERROR(ROUND(SUM($NKN$31:$NKN$35)/(VLOOKUP("Total Dias",$A$100000:$B$120000,2,FALSE)+$C$120000+$NJL$44),0),"") -> 2,711 | NJN66: =IFERROR(IF((NJM66-NJL66)<0,CONCATENATE("Faltan: ",ROUND(ABS(NJM66-NJL66)/(IF($NJT$36="",$NJT$36,$NJT$36)),0)," viajes"),CONCATENATE("Sobran: ",ROUND(ABS(NJM66-NJL66)/(IF($NJT$36="",$NJT$36,$NJT$36)),0)," viajes.")),"") -> Faltan: 5 viajes | NJO66: =IFERROR(CONCATENATE(ROUND(ABS(NJL66)/(IF($NJT$36="",$NJT$36,$NJT$36)*(1+IF($NJY$32<>"",$NJY$32,$NJY$33))),0)," veh. || ", NJN66),"") -> 63 veh. || Faltan: 5 viajes | NJR66: =P40017 -> 2 | NJS66: martes | NJT66: 2025-05-06 | NJU66: 1,497 | NJV66: =IFERROR(ROUND(SUM($NKN$31:$NKN$35)/VLOOKUP("Total Dias",$A$100000:$B$120000,2,FALSE)+C120000,0),"") -> 2,711 | NJW66: =IFERROR(IF((NJV66-NJU66)<0,CONCATENATE("Faltan: ",ROUND(ABS(NJV66-NJU66)/(IF($NJT$36="",$NJT$36,$NJT$36)*(1+IF($NJY$36<>"",$NJY$36,$NJY$36))),0)," veh."),CONCATENATE("Sobran: ",ROUND(ABS(NJV66-NJU66)/(IF($NJT$36="",$NJT$36,$NJT$36)*(1+IF($NJY$36<>"",$NJY$36,$NJY$36))),0)," veh.")),"") -> Sobran: 25 veh. | NJX66: =IFERROR(CONCATENATE(ROUND(ABS(NJU66)/(IF($NJT$36="",$NJT$36,$NJT$36)*(1+IF($NJY$36<>"",$NJY$36,$NJY$36))),0)," veh. || ", NJW66),"") -> 30 veh. || Sobran: 25 veh. | NKR66: Ordenes / mes | NKS66: =+NKS65*NKO51 -> 34,505
NJI67: =Q40006 -> 3 | NJJ67: miércoles | NJK67: =S40006 -> 2025-05-07 | NJL67: =IFERROR(ROUND(T40006,0),"") -> 2,805 | NJM67: =IFERROR(ROUND(SUM($NKN$31:$NKN$35)/(VLOOKUP("Total Dias",$A$100000:$B$120000,2,FALSE)+$C$120000+$NJL$44),0),"") -> 2,711 | NJN67: =IFERROR(IF((NJM67-NJL67)<0,CONCATENATE("Faltan: ",ROUND(ABS(NJM67-NJL67)/(IF($NJT$36="",$NJT$36,$NJT$36)),0)," viajes"),CONCATENATE("Sobran: ",ROUND(ABS(NJM67-NJL67)/(IF($NJT$36="",$NJT$36,$NJT$36)),0)," viajes.")),"") -> Faltan: 2 viajes | NJO67: =IFERROR(CONCATENATE(ROUND(ABS(NJL67)/(IF($NJT$36="",$NJT$36,$NJT$36)*(1+IF($NJY$32<>"",$NJY$32,$NJY$33))),0)," veh. || ", NJN67),"") -> 60 veh. || Faltan: 2 viajes | NJR67: =P40018 -> 3 | NJS67: martes | NJT67: 2025-05-20 | NJU67: 1,510 | NJV67: =IFERROR(ROUND(SUM($NKN$31:$NKN$35)/VLOOKUP("Total Dias",$A$100000:$B$120000,2,FALSE)+C120000,0),"") -> 2,711 | NJW67: =IFERROR(IF((NJV67-NJU67)<0,CONCATENATE("Faltan: ",ROUND(ABS(NJV67-NJU67)/(IF($NJT$36="",$NJT$36,$NJT$36)*(1+IF($NJY$36<>"",$NJY$36,$NJY$36))),0)," veh."),CONCATENATE("Sobran: ",ROUND(ABS(NJV67-NJU67)/(IF($NJT$36="",$NJT$36,$NJT$36)*(1+IF($NJY$36<>"",$NJY$36,$NJY$36))),0)," veh.")),"") -> Sobran: 24 veh. | NJX67: =IFERROR(CONCATENATE(ROUND(ABS(NJU67)/(IF($NJT$36="",$NJT$36,$NJT$36)*(1+IF($NJY$36<>"",$NJY$36,$NJY$36))),0)," veh. || ", NJW67),"") -> 31 veh. || Sobran: 24 veh. | NKR67: Rollos / Día | NKS67: =+ROUND((NKO52*1.23/40)*NKS59/100,0) -> 24
NJI68: =Q40007 -> 4 | NJJ68: jueves | NJK68: =S40007 -> 2025-05-22 | NJL68: =IFERROR(ROUND(T40007,0),"") -> 2,512 | NJM68: =IFERROR(ROUND(SUM($NKN$31:$NKN$35)/(VLOOKUP("Total Dias",$A$100000:$B$120000,2,FALSE)+$C$120000+$NJL$44),0),"") -> 2,711 | NJN68: =IFERROR(IF((NJM68-NJL68)<0,CONCATENATE("Faltan: ",ROUND(ABS(NJM68-NJL68)/(IF($NJT$36="",$NJT$36,$NJT$36)),0)," viajes"),CONCATENATE("Sobran: ",ROUND(ABS(NJM68-NJL68)/(IF($NJT$36="",$NJT$36,$NJT$36)),0)," viajes.")),"") -> Sobran: 5 viajes. | NJO68: =IFERROR(CONCATENATE(ROUND(ABS(NJL68)/(IF($NJT$36="",$NJT$36,$NJT$36)*(1+IF($NJY$32<>"",$NJY$32,$NJY$33))),0)," veh. || ", NJN68),"") -> 54 veh. || Sobran: 5 viajes. | NJR68: =P40019 -> 4 | NJS68: martes | NJT68: 2025-05-27 | NJU68: 1,542 | NJV68: =IFERROR(ROUND(SUM($NKN$31:$NKN$35)/VLOOKUP("Total Dias",$A$100000:$B$120000,2,FALSE)+C120000,0),"") -> 2,711 | NJW68: =IFERROR(IF((NJV68-NJU68)<0,CONCATENATE("Faltan: ",ROUND(ABS(NJV68-NJU68)/(IF($NJT$36="",$NJT$36,$NJT$36)*(1+IF($NJY$36<>"",$NJY$36,$NJY$36))),0)," veh."),CONCATENATE("Sobran: ",ROUND(ABS(NJV68-NJU68)/(IF($NJT$36="",$NJT$36,$NJT$36)*(1+IF($NJY$36<>"",$NJY$36,$NJY$36))),0)," veh.")),"") -> Sobran: 24 veh. | NJX68: =IFERROR(CONCATENATE(ROUND(ABS(NJU68)/(IF($NJT$36="",$NJT$36,$NJT$36)*(1+IF($NJY$36<>"",$NJY$36,$NJY$36))),0)," veh. || ", NJW68),"") -> 31 veh. || Sobran: 24 veh. | NKR68: Rollos / Mes | NKS68: =ROUND(NKS67*NKO51,0) -> 648
NJI69: =Q40008 -> 5 | NJJ69: jueves | NJK69: =S40008 -> 2025-05-15 | NJL69: =IFERROR(ROUND(T40008,0),"") -> 2,400 | NJM69: =IFERROR(ROUND(SUM($NKN$31:$NKN$35)/(VLOOKUP("Total Dias",$A$100000:$B$120000,2,FALSE)+$C$120000+$NJL$44),0),"") -> 2,711 | NJN69: =IFERROR(IF((NJM69-NJL69)<0,CONCATENATE("Faltan: ",ROUND(ABS(NJM69-NJL69)/(IF($NJT$36="",$NJT$36,$NJT$36)),0)," viajes"),CONCATENATE("Sobran: ",ROUND(ABS(NJM69-NJL69)/(IF($NJT$36="",$NJT$36,$NJT$36)),0)," viajes.")),"") -> Sobran: 7 viajes. | NJO69: =IFERROR(CONCATENATE(ROUND(ABS(NJL69)/(IF($NJT$36="",$NJT$36,$NJT$36)*(1+IF($NJY$32<>"",$NJY$32,$NJY$33))),0)," veh. || ", NJN69),"") -> 52 veh. || Sobran: 7 viajes. | NJR69: =P40020 -> 5 | NJS69: martes | NJT69: 2025-05-13 | NJU69: 1,568 | NJV69: =IFERROR(ROUND(SUM($NKN$31:$NKN$35)/VLOOKUP("Total Dias",$A$100000:$B$120000,2,FALSE)+C120000,0),"") -> 2,711 | NJW69: =IFERROR(IF((NJV69-NJU69)<0,CONCATENATE("Faltan: ",ROUND(ABS(NJV69-NJU69)/(IF($NJT$36="",$NJT$36,$NJT$36)*(1+IF($NJY$36<>"",$NJY$36,$NJY$36))),0)," veh."),CONCATENATE("Sobran: ",ROUND(ABS(NJV69-NJU69)/(IF($NJT$36="",$NJT$36,$NJT$36)*(1+IF($NJY$36<>"",$NJY$36,$NJY$36))),0)," veh.")),"") -> Sobran: 23 veh. | NJX69: =IFERROR(CONCATENATE(ROUND(ABS(NJU69)/(IF($NJT$36="",$NJT$36,$NJT$36)*(1+IF($NJY$36<>"",$NJY$36,$NJY$36))),0)," veh. || ", NJW69),"") -> 32 veh. || Sobran: 23 veh. | NKR69: Cajas/mes | NKS69: =+NKS68/64 -> 10
NHJ71: Tunja | NHK71: 2022-06-01 | NHL71: 50797 | NHM71: -0- | NJI71: Warehouse | NJN71: T2 | NJQ71: T1
NHM72: 15 | NJI72: =IF(NJI49=1,1,0) -> 1
NHM73: 22 | NJN73: No. Viajes T2 | NJO73: =IFERROR(NJL74/NJO56,"") -> 1,267 | NJQ73: No. Viajes T1 | NJR73: =+NJL74/170 -> 315
NHQ74: FLT | NHU74: Picking | NHY74: Sorting & AI | NIC74: Reempaque y Maquila | NIG74: Vertimiento | NIK74: Verificador | NJK74: Venta HL | NJL74: =IFERROR(NJO40,"") -> 53,607 | NJN74: HL / dia | NJO74: =+NJL74/NJL77 -> 1,985 | NJQ74: Traslados T1 HL | NJR74: =+NJL74*1.08 -> 57,896
NJK76: Venta Cajas | NJL76: =IFERROR(NJL74*10,"") -> 536,070 | NJN76: Ret. Cajas Envase | NJO76: =IFERROR(NJL76*100%,"") -> 536,070 | NJQ76: Traslados T1 Cajas | NJR76: =+NJL76*1.08 -> 578,956
NHW77: % | NIA77: % | NIE77: % | NJK77: Dias laborales | NJL77: =NKO51 -> 27 | NJN77: Estibas mov. / mes | NJO77: =+(NJL76+NJO76+NJR76+NJR77)/45 -> 48,604 | NJQ77: Despacho envase | NJR77: =+NJR73*1700 -> 536,070
NJN79: Estibas mov. / dia | NJO79: =+NJO77/NJL77 -> 1,800 | NJQ79: No. Viajes T1 / dia | NJR79: =+NJR73/NJL77 -> 11.68
NJN80: No. Viajes T2 / dia | NJO80: =IFERROR(NJO73/NJL77,"") -> 47
NIE83: %
NHM85: J39998
NJK88: FLT | NJN88: PICKING | NJQ88: SORTING & AI | NJT88: REEMPAQUE & MAQUILA
NJN89: % picking | NJO89: =IFERROR(IF(NHU77<>"",NHU77/100,35%),"") -> 0.350 | NJQ89: % Sorting | NJR89: =IFERROR(IF(NHY77<>"",NHY77/100,35%),"") -> 0.350 | NJT89: % Reempaque | NJU89: =IFERROR(IF(NIC77<>"",NIC77/100,10%),"") -> 0.100
NJK90: Min. / estiba FLT | NJL90: =IFERROR(IF(NHQ77<>"",NHQ77,2.38),"") -> 2.38 | NJN90: % Picking mostrar | NJO90: =IFERROR(CONCATENATE(ROUND(NJO89*100,0),"%"),"") -> 35% | NJQ90: % Sorting mostrar | NJR90: =IFERROR(CONCATENATE(ROUND(NJR89*100,0),"%"),"") -> 35% | NJT90: % Reempaque mostrar | NJU90: =IFERROR(CONCATENATE(ROUND(NJU89*100,0),"%"),"") -> 10%
NJN91: Cj picking / mes | NJO91: =IFERROR(+NJL76*NJO89,"") -> 187,625 | NJQ91: Cajas Sorting / mes | NJR91: =IFERROR(NJO76*NJR90,"") -> 187,625 | NJT91: Cajas reempaque / mes | NJU91: =+NJR76*NJU90 -> 57,896
NJK92: Mov. / estiba FLT | NJL92: =IFERROR(IF(NHQ80<>"",NHQ80,4),"") -> 4 | NJN92: Cj picking / dia | NJO92: 20,000 | NJQ92: Cajas Sorting / dia | NJR92: =NJR91/NJL77 -> 6,949 | NJT92: Cajas reempaque / dia | NJU92: =+NJU91/NJL77 -> 2,144
NJK94: Horas / dia FLT | NJL94: =IFERROR(IF(NHQ83<>"",NHQ83,20),"") -> 20 | NJN94: Cj / Hora | NJO94: =IFERROR(IF(NHU80<>"",NHU80,300),"") -> 300 | NJQ94: Cajas / Hora Sorting | NJR94: =IFERROR(IF(NHY80<>"",NHY80,300),"") -> 300 | NJT94: Cajas / Hora reempaque | NJU94: =IFERROR(IF(NIC80<>"",NIC80/100,20),"") -> 20
NIE95: Volumen con Volatilidad [HL] | NIL95: GAP [Hl] | NJT95: % maquila | NJU95: =IFERROR(IF(NIC83<>"",NIC83/100,0%),"") -> 0.000
NJK96: Estibas movil. / dia | NJL96: =60/NJL90*NJL94 -> 504 | NJQ96: Cajas AI / mes | NJR96: =+NJR74*0.06 -> 3,474 | NJT96: % maquila mostrar | NJU96: =IFERROR(CONCATENATE(ROUND(NJU95*100,0),"%"),"") -> 0%
NJT97: Cajas maquila / mes | NJU97: =+NJR76*0.01 -> 5,790 | NLY97: -0.0-
NJK98: FLT requerido | NJL98: =ROUNDUP(NJJ56/NKO51/NJL96,0) -> 4 | NJQ98: Cajas AI / dia | NJR98: =+NJR96/NJL77 -> 129 | NJT98: Cajas maquila / dia | NJU98: =NJU97/NJL77 -> 214 | NLY98: 0.09
NLY99: 0.09
NJQ100: Cajas / Hora AI | NJR100: =IFERROR(IF(NHY83<>"",NHY83,600),"") -> 600 | NJT100: Cajas / Hora maquila | NJU100: =IFERROR(IF(NIC86<>"",NIC86,15),"") -> 15 | NLY100: 0.2 | NLZ100: Sobra | NMA100: 24557.66614 | NMB100: 293189637
NMB101: 76505
NHQ102: Volumen [Hl] | NHU102: Flota Requerida [Cam] | NHY102: Flota Faltante/ Sobrante [Cam] | NIC102: Cajas por Viaje [Cajas/Viaje] | NIG102: Recargas [%] | NIK102: FTE [Per/Cam]
NJK103: MOVILIZADOR | NJN103: VERIFICADOR | NJQ103: VERTIMIENTO
NJK105: Vehiculos / dia | NJL105: 70
NJN107: Viajes / hora | NJO107: =IFERROR(IF(NIK77<>"",NIK77,1.5),"") -> 1.5 | NJQ107: Cajas / Hora | NJR107: =IFERROR(IF(NIG77<>"",NIG77,30),"") -> 30
NHQ108: Personas en Operación | NHU108: Insumos | NHY108: Capacidad Total [Hl] | NIC108: GAP [Hl] | NIG108: Parametros | NIK108: Productividad
NIA113: =IF(NHR113>0,CONCATENATE(NHR113," vehiculos de flota spot"),"") ->  | NIB113: =IF(AND(NIA113<>"",NIC113<>"")," y ", "") -> 
NHQ114: =IFERROR(IF(NJI49=0,"",NJZ57),"") -> Sobran 14 vehículos de flota propia, se recomienda moverlos a otro CD que los requiera.
NIA115: =IF(NHR115>0,CONCATENATE(NHR115," vehiculos de flota spot"),"") ->  | NIB115: =IF(AND(NIA115<>"",NIC115<>"")," y ", "") -> 
NIA116: =IF(NHR116>0,CONCATENATE(NHR116," vehiculos de flota spot"),"") ->  | NIB116: =IF(AND(NIA116<>"",NIC116<>"")," y ", "") ->  | NJK116: OPERATIVO | NJN116: ADMINISTRATIVO | NJP116: =IF(NJL74>NJX123,NJW123,IF(NJL74>NJX122,NJW122,IF(NJL74>NJX121,NJW121,IF(NJL74>NJX120,NJW120,NJW119)))) -> Cluster3
NIA117: =IF(NHR117>0,CONCATENATE(NHR117," vehiculos de flota spot"),"") ->  | NIB117: =IF(AND(NIA117<>"",NIC117<>"")," y ", "") -> 
NJK118: Operario autoelevador | NJL118: =IF(NJI72=1,ROUNDUP((NJL98*(NJL94/8))+1,0),"") -> 11 | NJM118: =IFERROR(VLOOKUP(NJK118,Costo_OL!$A:$G,7,FALSE),0) -> 2,187,500 | NJN118: Gerente OL | NJO118: =IF(NJI72=1,HLOOKUP(NJN118,$NJW$118:$NKJ$123,RIGHT($NJP$116,1)+1,FALSE),"") -> 0 | NJP118: =IFERROR(VLOOKUP(NJN118,Costo_OL!$A:$G,7,FALSE),0) -> 7,875,000 | NJZ118: Gerente OL | NKA118: Coordinador operaciones | NKB118: Supervisor | NKC118: Analista Inventarios | NKD118: Auxiliar inventarios | NKE118: Analista SISO | NKF118: Auxiliar SISO | NKG118: Facturador/Liquidador | NKH118: Auxiliar porteria | NKI118: Auxiliar administrativo | NKJ118: Aprendiz productivo
NJW119: Cluster1 | NJX119: 1.00 | NJY119: 12,000.00 | NJZ119: 0 | NKA119: 1 | NKB119: 1 | NKC119: 0 | NKD119: 1 | NKE119: 0 | NKF119: 1 | NKG119: 1 | NKH119: 0 | NKI119: 1
NJK120: Operario picking | NJL120: =IF(NJI72=1,ROUNDUP(NJO92/(6*NJO94),0),"") -> 12 | NJM120: =IFERROR(VLOOKUP(NJK120,Costo_OL!$A:$G,7,FALSE),0) -> 1,589,921 | NJN120: Coordinador operaciones | NJO120: =IF(NJI72=1,HLOOKUP(NJN120,$NJW$118:$NKJ$123,RIGHT($NJP$116,1)+1,FALSE),"") -> 1 | NJP120: =IFERROR(VLOOKUP(NJN120,Costo_OL!$A:$G,7,FALSE),0) -> 6,125,000 | NJQ120: 1 | NJW120: Cluster2 | NJX120: 12,001.00 | NJY120: 35,000.00 | NJZ120: 0 | NKA120: 1 | NKB120: 1 | NKC120: 0 | NKD120: 1 | NKE120: 0 | NKF120: 2 | NKG120: 1 | NKH120: 2 | NKI120: 1
NHR121: =+'Open Book UC'!A3 -> Cargo | NHV121: =+'Open Book UC'!B3 -> Tipo | NHY121: =+'Open Book UC'!C3 -> Tipo De Contrato | NIB121: =+'Open Book UC'!E3 -> Clase ARL | NID121: =+'Open Book UC'!D3 -> Tipo Cargo | NIH121: =+'Open Book UC'!F3 -> Salario Base | NIJ121: =+'Open Book UC'!G3 -> Personas | NIL121: Total UC + Parafiscales | NJW121: Cluster3 | NJX121: 35,001.00 | NJY121: 55,000.00 | NJZ121: 0 | NKA121: 1 | NKB121: 3 | NKC121: 0 | NKD121: 1 | NKE121: 0 | NKF121: 3 | NKG121: 3 | NKH121: 3 | NKI121: 1
NHF122: =CONCATENATE("Esc. ",NHF123) -> Esc. 1 | NHG122: =IF(NHJ122<>"",NHF122,"") ->  | NJK122: Verificador | NJL122: =IF(NJI72=1,ROUNDUP(IF((NJO80+NJR79)/(NJO107*20)<0.3,0,(NJO80+NJR79)/(NJO107*20)),0),"") -> 2 | NJM122: =IFERROR(VLOOKUP(NJK122,Costo_OL!$A:$G,7,FALSE),0) -> 1,925,000 | NJN122: Supervisor | NJO122: =IF(NJI72=1,HLOOKUP(NJN122,$NJW$118:$NKJ$123,RIGHT($NJP$116,1)+1,FALSE),"") -> 3 | NJP122: =IFERROR(VLOOKUP(NJN122,Costo_OL!$A:$G,7,FALSE),0) -> 3,150,000 | NJQ122: 3 | NJW122: Cluster4 | NJX122: 55,001.00 | NJY122: 80,000.00 | NJZ122: 1 | NKA122: 0 | NKB122: 3 | NKC122: 1 | NKD122: 1 | NKE122: 1 | NKF122: 2 | NKG122: 4 | NKH122: 4 | NKI122: 1
NHF123: 1 | NHR123: =+'Open Book UC'!A5 -> Conductor | NHV123: =+'Open Book UC'!B5 -> Operativo | NHY123: =+'Open Book UC'!C5 -> Natural | NIB123: =+'Open Book UC'!E5 -> Clase_IV | NID123: =+'Open Book UC'!D5 -> Camion | NIH123: =+'Open Book UC'!F5 -> 2,035,593 | NIJ123: =+'Open Book UC'!G5 -> 43 | NIL123: =+NIJ123*NIH123*1.5 -> 131,295,725 | NJW123: Cluster5 | NJX123: 80,001.00 | NJZ123: 1 | NKA123: 0 | NKB123: 3 | NKC123: 1 | NKD123: 2 | NKE123: 1 | NKF123: 2 | NKG123: 5 | NKH123: 4 | NKI123: 1
NHE124: =1+NHE123 -> 1 | NHR124: =+'Open Book UC'!A6 -> Responsable de reparto | NHV124: =+'Open Book UC'!B6 -> Operativo | NHY124: =+'Open Book UC'!C6 -> Natural | NIB124: =+'Open Book UC'!E6 -> Clase_IV | NID124: =+'Open Book UC'!D6 -> Camion | NIH124: =+'Open Book UC'!F6 -> 1,903,278 | NIJ124: =+'Open Book UC'!G6 -> 43 | NIL124: =+NIJ124*NIH124*1.5 -> 122,761,431 | NJK124: Operario sorting | NJL124: =IF(NJI72=1,ROUNDUP(IF(NJR92/(NJR94*20)<0.3,0,NJR92/(NJR94*20)),0),"") -> 2 | NJM124: =IFERROR(VLOOKUP(NJK124,Costo_OL!$A:$G,7,FALSE),0) -> 1,589,921 | NJN124: Analista Inventarios | NJO124: =IF(NJI72=1,HLOOKUP(NJN124,$NJW$118:$NKJ$123,RIGHT($NJP$116,1)+1,FALSE),"") -> 0 | NJP124: =IFERROR(VLOOKUP(NJN124,Costo_OL!$A:$G,7,FALSE),0) -> 3,237,500 | NJQ124: 1
NHE125: 2 | NHR125: =+'Open Book UC'!A7 -> Auxiliar de reparto | NHV125: =+'Open Book UC'!B7 -> Operativo | NHY125: =+'Open Book UC'!C7 -> Natural | NIB125: =+'Open Book UC'!E7 -> Clase_IV | NID125: =+'Open Book UC'!D7 -> Camion | NIH125: =+'Open Book UC'!F7 -> 1,573,574 | NIJ125: =+'Open Book UC'!G7 -> 37 | NIL125: 87,333,357
NHE126: 3 | NHF126: =CONCATENATE("Esc. ",NHF127) -> Esc. 2 | NHG126: =IF(NHJ126<>"",NHF126,"") ->  | NHR126: =+'Open Book UC'!A8 -> Movilizadores | NHV126: =+'Open Book UC'!B8 -> Operativo | NHY126: =+'Open Book UC'!C8 -> Natural | NIB126: =+'Open Book UC'!E8 -> Clase_IV | NID126: =+'Open Book UC'!D8 -> Camion | NIH126: =+'Open Book UC'!F8 -> 1,744,028 | NIJ126: =+'Open Book UC'!G8 -> 0 | NIL126: 0 | NJK126: Operario AI | NJL126: =IF(NJI72=1,ROUNDUP(NJR98/(20*NJR100),0),"") -> 1 | NJM126: =IFERROR(VLOOKUP(NJK126,Costo_OL!$A:$G,7,FALSE),0) -> 1,589,921 | NJN126: Auxiliar inventarios | NJO126: =IF(NJI72=1,HLOOKUP(NJN126,$NJW$118:$NKJ$123,RIGHT($NJP$116,1)+1,FALSE),"") -> 1 | NJP126: =IFERROR(VLOOKUP(NJN126,Costo_OL!$A:$G,7,FALSE),0) -> 2,147,250 | NJQ126: 2
NHE127: 4 | NHF127: =1+NHF123 -> 2 | NHR127: =+'Open Book UC'!A9 -> Auxiliar Operativo | NHV127: =+'Open Book UC'!B9 -> Operativo | NHY127: =+'Open Book UC'!C9 -> Natural | NIB127: =+'Open Book UC'!E9 -> Clase_IV | NID127: =+'Open Book UC'!D9 -> CD | NIH127: =+'Open Book UC'!F9 -> 0 | NIJ127: =+'Open Book UC'!G9 -> 0 | NIL127: 0
NHE128: 5 | NHR128: =+'Open Book UC'!A10 -> Conductores Inside | NHV128: =+'Open Book UC'!B10 -> Operativo | NHY128: =+'Open Book UC'!C10 -> Natural | NIB128: =+'Open Book UC'!E10 -> Clase_IV | NID128: =+'Open Book UC'!D10 -> Camion | NIH128: =+'Open Book UC'!F10 -> 0 | NIJ128: =+'Open Book UC'!G10 -> 0 | NIL128: 0 | NJK128: Movilizador | NJL128: =IF(NJI72=1,IF(NJO80/NJL105<0.6,0,ROUNDUP(NJO80/NJL105,0)),"") -> 1 | NJM128: =IFERROR(VLOOKUP(NJK128,Costo_OL!$A:$G,7,FALSE),0) -> 1,662,500 | NJN128: Analista SISO | NJO128: =IF(NJI72=1,HLOOKUP(NJN128,$NJW$118:$NKJ$123,RIGHT($NJP$116,1)+1,FALSE),"") -> 0 | NJP128: =IFERROR(VLOOKUP(NJN128,Costo_OL!$A:$G,7,FALSE),0) -> 3,237,500 | NJQ128: 1
NHE129: 6 | NHR129: =+'Open Book UC'!A11 -> Líder de Ruta JL | NHV129: =+'Open Book UC'!B11 -> Jornada Laboral | NHY129: =+'Open Book UC'!C11 -> Natural | NIB129: =+'Open Book UC'!E11 -> Clase_IV | NID129: =+'Open Book UC'!D11 -> Camion | NIH129: =+'Open Book UC'!F11 -> 2,257,213 | NIJ129: =+'Open Book UC'!G11 -> 0 | NIL129: 0
NHE130: 7 | NHF130: =CONCATENATE("Esc. ",NHF131) -> Esc. 3 | NHG130: =IF(NHJ130<>"",NHF130,"") ->  | NHR130: =+'Open Book UC'!A12 -> Conductor JL | NHV130: =+'Open Book UC'!B12 -> Jornada Laboral | NHY130: =+'Open Book UC'!C12 -> Natural | NIB130: =+'Open Book UC'!E12 -> Clase_IV | NID130: =+'Open Book UC'!D12 -> Camion | NIH130: =+'Open Book UC'!F12 -> 1,847,378 | NIJ130: =+'Open Book UC'!G12 -> 0 | NIL130: 0 | NJK130: Operario carpe y descarpe | NJL130: =IF(NJI72=1,IFERROR(ROUND(NJL120/4,0),0),"") -> 3 | NJM130: =IFERROR(VLOOKUP(NJK130,Costo_OL!$A:$G,7,FALSE),0) -> 1,589,921 | NJN130: Auxiliar SISO | NJO130: =IF(NJI72=1,HLOOKUP(NJN130,$NJW$118:$NKJ$123,RIGHT($NJP$116,1)+1,FALSE),"") -> 3 | NJP130: =IFERROR(VLOOKUP(NJN130,Costo_OL!$A:$G,7,FALSE),0) -> 2,147,250 | NJQ130: 2
NHE131: 8 | NHF131: =1+NHF127 -> 3 | NHR131: =+'Open Book UC'!A13 -> Responsable de reparto JL | NHV131: =+'Open Book UC'!B13 -> Jornada Laboral | NHY131: =+'Open Book UC'!C13 -> Natural | NIB131: =+'Open Book UC'!E13 -> Clase_IV | NID131: =+'Open Book UC'!D13 -> Camion | NIH131: =+'Open Book UC'!F13 -> 1,527,334 | NIJ131: =+'Open Book UC'!G13 -> 0 | NIL131: 0
NHE132: 9 | NHR132: =+'Open Book UC'!A14 -> Auxiliar de reparto JL | NHV132: =+'Open Book UC'!B14 -> Jornada Laboral | NHY132: =+'Open Book UC'!C14 -> Natural | NIB132: =+'Open Book UC'!E14 -> Clase_IV | NID132: =+'Open Book UC'!D14 -> Camion | NIH132: =+'Open Book UC'!F14 -> 1,527,334 | NIJ132: =+'Open Book UC'!G14 -> 0 | NIL132: 0 | NJK132: Operario reempaque / vertimiento / maquila | NJL132: =IF(NJI72=1,IF((NJU89+NJU92)/50<0.6,0,ROUNDUP((NJU96+NJU94)/50,0)),"") -> 1 | NJM132: =IFERROR(VLOOKUP(NJK132,Costo_OL!$A:$G,7,FALSE),0) -> 1,589,921 | NJN132: Facturador/Liquidador | NJO132: =IF(NJI72=1,HLOOKUP(NJN132,$NJW$118:$NKJ$123,RIGHT($NJP$116,1)+1,FALSE),"") -> 3 | NJP132: =IFERROR(VLOOKUP(NJN132,Costo_OL!$A:$G,7,FALSE),0) -> 2,147,250 | NJQ132: 9
NHE133: 10 | NHR133: =+'Open Book UC'!A15 -> Auxiliar contable | NHV133: =+'Open Book UC'!B15 -> Administrativo | NHY133: =+'Open Book UC'!C15 -> Confianza | NIB133: =+'Open Book UC'!E15 -> Clase_III | NID133: =+'Open Book UC'!D15 -> Oficina_fuera_de_CD | NIH133: =+'Open Book UC'!F15 -> 1,723,468 | NIJ133: =+'Open Book UC'!G15 -> 1 | NIL133: 2,585,202
NHE134: 11 | NHF134: =CONCATENATE("Esc. ",NHF135) -> Esc. 4 | NHG134: =IF(NHJ134<>"",NHF134,"") ->  | NHR134: =+'Open Book UC'!A16 -> Auxiliar de Aseo | NHV134: =+'Open Book UC'!B16 -> Administrativo | NHY134: =+'Open Book UC'!C16 -> Natural | NIB134: =+'Open Book UC'!E16 -> Clase_III | NID134: =+'Open Book UC'!D16 -> CD | NIH134: =+'Open Book UC'!F16 -> 1,423,500 | NIJ134: =+'Open Book UC'!G16 -> 2 | NIL134: 4,270,500 | NJK134: Operario aseo | NJL134: =IF(NJI72=1,IFERROR(ROUND(NJL74/19000,0),""),"") -> 3 | NJM134: =IFERROR(VLOOKUP(NJK134,Costo_OL!$A:$G,7,FALSE),0) -> 1,589,921 | NJN134: Auxiliar porteria | NJO134: =IF(NJI72=1,HLOOKUP(NJN134,$NJW$118:$NKJ$123,RIGHT($NJP$116,1)+1,FALSE),"") -> 3 | NJP134: =IFERROR(VLOOKUP(NJN134,Costo_OL!$A:$G,7,FALSE),0) -> 2,147,250 | NJQ134: 5
NHE135: 12 | NHF135: =1+NHF131 -> 4 | NHR135: =+'Open Book UC'!A17 -> Auxiliar de Flota | NHV135: =+'Open Book UC'!B17 -> Administrativo | NHY135: =+'Open Book UC'!C17 -> Natural | NIB135: =+'Open Book UC'!E17 -> Clase_III | NID135: =+'Open Book UC'!D17 -> CD | NIH135: =+'Open Book UC'!F17 -> 1,723,468 | NIJ135: =+'Open Book UC'!G17 -> 2 | NIL135: 5,170,404
NHE136: 13 | NHR136: =+'Open Book UC'!A18 -> Auxiliar de liquidación | NHV136: =+'Open Book UC'!B18 -> Administrativo | NHY136: =+'Open Book UC'!C18 -> Confianza | NIB136: =+'Open Book UC'!E18 -> Clase_III | NID136: =+'Open Book UC'!D18 -> CD | NIH136: =+'Open Book UC'!F18 -> 1,723,468 | NIJ136: =+'Open Book UC'!G18 -> 4 | NIL136: 10,340,808 | NJK136: Verificador check in / devoluciones | NJL136: =IF(NJI72=1,IF(NJO80/(NJO107*20)<0.65,0,ROUNDUP(NJO80/(NJO107*20),0)),"") -> 2 | NJM136: =IFERROR(VLOOKUP(NJK136,Costo_OL!$A:$G,7,FALSE),0) -> 1,925,000 | NJN136: Auxiliar administrativo | NJO136: =IF(NJI72=1,HLOOKUP(NJN136,$NJW$118:$NKJ$123,RIGHT($NJP$116,1)+1,FALSE),"") -> 1 | NJP136: =IFERROR(VLOOKUP(NJN136,Costo_OL!$A:$G,7,FALSE),0) -> 2,147,250 | NJQ136: 1
NHE137: 14 | NHR137: =+'Open Book UC'!A19 -> Auxiliar de Recursos Humanos | NHV137: =+'Open Book UC'!B19 -> Administrativo | NHY137: =+'Open Book UC'!C19 -> Natural | NIB137: =+'Open Book UC'!E19 -> Clase_III | NID137: =+'Open Book UC'!D19 -> Oficina_fuera_de_CD | NIH137: =+'Open Book UC'!F19 -> 1,723,468 | NIJ137: =+'Open Book UC'!G19 -> 3 | NIL137: 7,755,606
NHE138: 15 | NHF138: =CONCATENATE("Esc. ",NHF139) -> Esc. 5 | NHG138: =IF(NHJ138<>"",NHF138,"") ->  | NHR138: =+'Open Book UC'!A20 -> Call center | NHV138: =+'Open Book UC'!B20 -> Administrativo | NHY138: =+'Open Book UC'!C20 -> Confianza | NIB138: =+'Open Book UC'!E20 -> Clase_III | NID138: =+'Open Book UC'!D20 -> Oficina_fuera_de_CD | NIH138: =+'Open Book UC'!F20 -> 2,091,312 | NIJ138: =+'Open Book UC'!G20 -> 4 | NIL138: 12,547,872 | NJN138: Aprendiz productivo | NJO138: =IF(NJI72=1,HLOOKUP(NJN138,$NJW$118:$NKJ$123,RIGHT($NJP$116,1)+1,FALSE),"") -> 0 | NJP138: =IFERROR(VLOOKUP(NJN138,Costo_OL!$A:$G,7,FALSE),0) -> 1,589,921
NHE139: 16 | NHF139: =1+NHF135 -> 5 | NHR139: =+'Open Book UC'!A21 -> Contador (Honorarios) | NHV139: =+'Open Book UC'!B21 -> Administrativo | NHY139: =+'Open Book UC'!C21 -> Honorarios | NIB139: =+'Open Book UC'!E21 -> Clase_III | NID139: =+'Open Book UC'!D21 -> Oficina_fuera_de_CD | NIH139: =+'Open Book UC'!F21 -> 3,533,937 | NIJ139: =+'Open Book UC'!G21 -> 1 | NIL139: 5,300,906
NHE140: 17 | NHR140: =+'Open Book UC'!A22 -> Coordinadores Ruta | NHV140: =+'Open Book UC'!B22 -> Administrativo | NHY140: =+'Open Book UC'!C22 -> Confianza | NIB140: =+'Open Book UC'!E22 -> Clase_III | NID140: =+'Open Book UC'!D22 -> CD | NIH140: =+'Open Book UC'!F22 -> 2,221,583 | NIJ140: =+'Open Book UC'!G22 -> 3 | NIL140: 9,997,124
NHR141: =+'Open Book UC'!A23 -> Gerente | NHV141: =+'Open Book UC'!B23 -> Administrativo | NHY141: =+'Open Book UC'!C23 -> Confianza | NIB141: =+'Open Book UC'!E23 -> Clase_III | NID141: =+'Open Book UC'!D23 -> Oficina_fuera_de_CD | NIH141: =+'Open Book UC'!F23 -> 3,682,000 | NIJ141: =+'Open Book UC'!G23 -> 0 | NIL141: 0 | NJK141: Total operativo | NJL141: =IF(NJI72=1,SUM(NJL118:NJL138),"") -> 38 | NJM141: + | NJN141: Total admin. | NJO141: =IF(NJI72=1,SUM(NJO118:NJO138),"") -> 15 | NJP141: = | NJQ141: Total HC | NJR141: =IF(NJI72=1,NJL141+NJO141,"") -> 53
NHF142: =CONCATENATE("Esc. ",NHF143) -> Esc. 6 | NHG142: =IF(NHJ142<>"",NHF142,"") ->  | NHR142: =+'Open Book UC'!A24 -> Jefe de operaciones | NHV142: =+'Open Book UC'!B24 -> Administrativo | NHY142: =+'Open Book UC'!C24 -> Confianza | NIB142: =+'Open Book UC'!E24 -> Clase_III | NID142: =+'Open Book UC'!D24 -> Oficinas_CD | NIH142: =+'Open Book UC'!F24 -> 2,949,343 | NIJ142: =+'Open Book UC'!G24 -> 1 | NIL142: 4,424,015
NHF143: =1+NHF139 -> 6 | NHR143: =+'Open Book UC'!A25 -> Profesional de flota | NHV143: =+'Open Book UC'!B25 -> Administrativo | NHY143: =+'Open Book UC'!C25 -> Confianza | NIB143: =+'Open Book UC'!E25 -> Clase_III | NID143: =+'Open Book UC'!D25 -> CD | NIH143: =+'Open Book UC'!F25 -> 3,458,131 | NIJ143: =+'Open Book UC'!G25 -> 1 | NIL143: 5,187,197
NHR144: =+'Open Book UC'!A26 -> Profesional de Recursos Humanos | NHV144: =+'Open Book UC'!B26 -> Administrativo | NHY144: =+'Open Book UC'!C26 -> Confianza | NIB144: =+'Open Book UC'!E26 -> Clase_III | NID144: =+'Open Book UC'!D26 -> Oficina_fuera_de_CD | NIH144: =+'Open Book UC'!F26 -> 2,084,041 | NIJ144: =+'Open Book UC'!G26 -> 1 | NIL144: 3,126,062 | NJF144: =9*15% -> 1.35
NHR145: =+'Open Book UC'!A27 -> Revisor Fiscal (Honorarios) | NHV145: =+'Open Book UC'!B27 -> Administrativo | NHY145: =+'Open Book UC'!C27 -> Honorarios | NIB145: =+'Open Book UC'!E27 -> Clase_III | NID145: =+'Open Book UC'!D27 -> Oficina_fuera_de_CD | NIH145: =+'Open Book UC'!F27 -> 1,423,500 | NIJ145: =+'Open Book UC'!G27 -> 1 | NIL145: 2,135,250
NHF146: =CONCATENATE("Esc. ",NHF147) -> Esc. 7 | NHG146: =IF(NHJ146<>"",NHF146,"") ->  | NHR146: =+'Open Book UC'!A28 -> Torre de Control | NHV146: =+'Open Book UC'!B28 -> Administrativo | NHY146: =+'Open Book UC'!C28 -> Confianza | NIB146: =+'Open Book UC'!E28 -> Clase_III | NID146: =+'Open Book UC'!D28 -> CD | NIH146: =+'Open Book UC'!F28 -> 1,953,788 | NIJ146: =+'Open Book UC'!G28 -> 5 | NIL146: 14,653,410
NHF147: =1+NHF143 -> 7 | NHR147: =+'Open Book UC'!A29 -> Profesional SGSST | NHV147: =+'Open Book UC'!B29 -> Administrativo | NHY147: =+'Open Book UC'!C29 -> Confianza | NIB147: =+'Open Book UC'!E29 -> Clase_III | NID147: =+'Open Book UC'!D29 -> CD | NIH147: =+'Open Book UC'!F29 -> 2,623,766 | NIJ147: =+'Open Book UC'!G29 -> 1 | NIL147: 3,935,649
NHR148: =+'Open Book UC'!A30 -> Técnico SGSST | NHV148: =+'Open Book UC'!B30 -> Administrativo | NHY148: =+'Open Book UC'!C30 -> Confianza | NIB148: =+'Open Book UC'!E30 -> Clase_III | NID148: =+'Open Book UC'!D30 -> CD | NIH148: =+'Open Book UC'!F30 -> 1,723,468 | NIJ148: =+'Open Book UC'!G30 -> 1 | NIL148: 2,585,202
NHR149: =+'Open Book UC'!A31 -> Aprendices SENA | NHV149: =+'Open Book UC'!B31 -> Administrativo | NHY149: =+'Open Book UC'!C31 -> Educativo | NIB149: =+'Open Book UC'!E31 -> Clase_III | NID149: =+'Open Book UC'!D31 -> Oficina_fuera_de_CD | NIH149: =+'Open Book UC'!F31 -> 1,067,625 | NIJ149: =+'Open Book UC'!G31 -> 1 | NIL149: 1,601,438
NHF150: =CONCATENATE("Esc. ",NHF151) -> Esc. 8 | NHG150: =IF(NHJ150<>"",NHF150,"") -> 
NHF151: =1+NHF147 -> 8 | NHR151: Otros Costos | NHV151: =+NIG61 -> 71,000,000 | NID151: Costo / HL (COP/HL) | NIH151: =+NHV152/NJL40 -> 16,110
NHR152: Costo Total (Aproximado) | NHV152: =(SUM(NIL123:NIM149)+NHV151)*1.7 -> 863,612,164 | NID152: Costo / HL (USD/HL) | NIH152: =+NIH151/4366.82432 -> 3.69 | NIQ152: =IF(NIN152<>"","USD","") ->  | NJK152: Costo HC operativo | NJL152: =IF(NJI72=1,SUMPRODUCT(NJM118:NJM138,NJL118:NJL138),"") -> 68,403,251 | NJN152: Gastos Operativos y administrativos | NJO152: =IF(NJI72=1,NJL156*NJP152,"") -> 16,139,700 | NJP152: 15% | NJQ152: COP / Hl | NJR152: =IF(NJI72=1,NJO156/NJL74,"") -> 2,961
NJK154: Costo HC administrativo | NJL154: =IF(NJI72=1,SUMPRODUCT(NJP118:NJP138,NJO118:NJO138),"") -> 39,194,750 | NJN154: Gastos nomina extraordinarios | NJO154: =IF(NJI72=1,NJL156*(NJP154),"") -> 10,759,800 | NJP154: 10% | NJQ154: USD / Hl | NJR154: =IF(NJI72=1,NJR152/5037.037,"") -> 0.59
NJK156: Costo HC total | NJL156: =IF(NJI72=1,NJL154+NJL152,"") -> 107,598,001 | NJN156: Costo operación OB + AIU + CREE | NJO156: =IF(NJI72=1,(NJL156+NJO152+NJO154)*(1+NJP156),"") -> 158,707,051 | NJP156: 18%
NHV157: =IF(NHT157<>"","Hl","") ->  | NHW157: =IF(NHJ126<>"","20 :","") ->  | NIA157: =IF(NHJ126<>"","10 :","") ->  | NIE157: =IF(NHJ126<>"","20 :","") ->  | NIG157: asd | NIH157: =IF(NHJ126<>"","20 :","") ->  | NIM157: =IF(NIJ157<>"","Hl","") -> 
NHW158: =IF(NHJ126<>"","12:","") ->  | NIE158: =IF(NHJ126<>"","12 :","") ->  | NIH158: =IF(NHJ126<>"","12 :","") -> 
NHW159: =IF(NHJ126<>"","10 :","") ->  | NIE159: =IF(NHJ126<>"","10 :","") ->  | NIH159: =IF(NHJ126<>"","10 :","") -> 
NHW160: =IF(NHJ126<>"","6 :","") ->  | NIE160: =IF(NHJ126<>"","6 :","") ->  | NIH160: =IF(NHJ126<>"","6 :","") -> 
NHV161: =IF(NHT161<>"","Hl","") ->  | NHW161: =IF(NHJ130<>"","20 :","") ->  | NIA161: =IF(NHJ130<>"","10 :","") ->  | NIE161: =IF(NHJ130<>"","20 :","") ->  | NIG161: asd | NIH161: =IF(NHJ130<>"","20 :","") ->  | NIM161: =IF(NIJ161<>"","Hl","") -> 
NHW162: =IF(NHJ130<>"","12:","") ->  | NIE162: =IF(NHJ130<>"","12 :","") ->  | NIH162: =IF(NHJ130<>"","12 :","") -> 
NHW163: =IF(NHJ130<>"","10 :","") ->  | NIE163: =IF(NHJ130<>"","10 :","") ->  | NIH163: =IF(NHJ130<>"","10 :","") -> 
NHW164: =IF(NHJ130<>"","6 :","") ->  | NIE164: =IF(NHJ130<>"","6 :","") ->  | NIH164: =IF(NHJ130<>"","6 :","") -> 
NHV165: =IF(NHT165<>"","Hl","") ->  | NHW165: =IF(NHJ134<>"","20 :","") ->  | NIA165: =IF(NHJ134<>"","10 :","") ->  | NIE165: =IF(NHJ134<>"","20 :","") ->  | NIG165: asd | NIH165: =IF(NHJ134<>"","20 :","") ->  | NIM165: =IF(NIJ165<>"","Hl","") -> 
NHW166: =IF(NHJ134<>"","12:","") ->  | NIE166: =IF(NHJ134<>"","12 :","") ->  | NIH166: =IF(NHJ134<>"","12 :","") ->  | NJL166: =((NJL118+NJL120+NJL122+NJL124+NJL126+NJL132+NJO122)) -> 32
NHW167: =IF(NHJ134<>"","10 :","") ->  | NIE167: =IF(NHJ134<>"","10 :","") ->  | NIH167: =IF(NHJ134<>"","10 :","") ->  | NJK167: WNP (Hl/h) | NJL167: =IF(NJI72=1,NJL74/((NJL118+NJL120+NJL122+NJL124+NJL126+NJL132+NJO122)*8*NJL77),"") -> 7.8 | NJN167: Prod. Picking (Cj/h) | NJO167: =IF(NJI72=1,NJO92/(NJL120*6),"") -> 278
NHW168: =IF(NHJ134<>"","6 :","") ->  | NIE168: =IF(NHJ134<>"","6 :","") ->  | NIH168: =IF(NHJ134<>"","6 :","") -> 
NHV169: =IF(NHT169<>"","Hl","") ->  | NHW169: =IF(NHJ138<>"","20 :","") ->  | NIA169: =IF(NHJ138<>"","10 :","") ->  | NIE169: =IF(NHJ138<>"","20 :","") ->  | NIG169: asd | NIH169: =IF(NHJ138<>"","20 :","") ->  | NIM169: =IF(NIJ169<>"","Hl","") ->  | NJK169: WLP (Hl/h) | NJL169: =IF(NJI72=1,NJL74/((NJL118+NJL120+NJL122+NJL124+NJL126+NJL132)*8*NJL77),"") -> 8.6 | NJN169: Prod. Sorting (Cj/h) | NJO169: =IF(NJI72=1,NJR91/(NJL124*8*NJL77),"") -> 434
NHW170: =IF(NHJ138<>"","12:","") ->  | NIE170: =IF(NHJ138<>"","12 :","") ->  | NIH170: =IF(NHJ138<>"","12 :","") -> 
NHW171: =IF(NHJ138<>"","10 :","") ->  | NIE171: =IF(NHJ138<>"","10 :","") ->  | NIH171: =IF(NHJ138<>"","10 :","") ->  | NJK171: FNP (horas) | NJL171: =IF(NJI72=1,NJL74/(NJL98*NJL94*NJL77),"") -> 24.8 | NJN171: Prod. Vertimiento | NJO171: =IF(NJI72=1,NJR107,"") -> 30
NHW172: =IF(NHJ138<>"","6 :","") ->  | NIE172: =IF(NHJ138<>"","6 :","") ->  | NIH172: =IF(NHJ138<>"","6 :","") -> 
NHV173: =IF(NHT173<>"","Hl","") ->  | NHW173: =IF(NHJ142<>"","20 :","") ->  | NIA173: =IF(NHJ142<>"","10 :","") ->  | NIE173: =IF(NHJ142<>"","20 :","") ->  | NIG173: asd | NIH173: =IF(NHJ142<>"","20 :","") ->  | NIM173: =IF(NIJ173<>"","Hl","") ->  | NJK173: FNP (FLT) | NJL173: =IF(NJI72=1,NJL74/NJL98,"") -> 13,401.8 | NJN173: Prod. Reempaque | NJO173: =IF(NJI72=1,NJU94,"") -> 20
NHW174: =IF(NHJ142<>"","12:","") ->  | NIE174: =IF(NHJ142<>"","12 :","") ->  | NIH174: =IF(NHJ142<>"","12 :","") -> 
NHW175: =IF(NHJ142<>"","10 :","") ->  | NIE175: =IF(NHJ142<>"","10 :","") ->  | NIH175: =IF(NHJ142<>"","10 :","") -> 
NHW176: =IF(NHJ142<>"","6 :","") ->  | NIE176: =IF(NHJ142<>"","6 :","") ->  | NIH176: =IF(NHJ142<>"","6 :","") -> 
NJK178: SKPIs
NJK179: Pcks | NJL179: h
NJK186: Item | NJL186: Enero LE
NJK187: HL Budget | NJL187: =NJL74*(1+NJJ194) -> 55,253
NJJ188: =1-NJJ194-NJJ191 -> 90.21% | NJK188: HL Budget UC | NJL188: =(NJL187*NJJ188)*(100%+NJL207) -> 50,840
NJJ189: =+(SUM(NJM32:NJM33)/$NJM$36)+SUM(NJM31)/$NJM$36 -> 100.00% | NJK189: HL Budget Camiones > 3.5 Ton | NJL189: =NJL187*NJJ189 -> 55,253
NJJ190: =1-NJJ189 -> 0.00% | NJK190: HL Budget Camiones < 3.5 Ton | NJL190: =NJL188*NJJ190 -> 0
NJJ191: 6.72% | NJK191: HL Budget KA | NJL191: =(NJL187*NJJ191)*(100%+NJL208) -> 3,787
NJJ192: 0.00% | NJK192: HL Socios | NJL192: =NJL187*NJJ192 -> 0
NJJ193: 0.00% | NJK193: HL UDS | NJL193: =NJJ193*NJL187 -> 0
NJJ194: 3.07% | NJK194: HL T4 | NJL194: =NJL187*NJJ194 -> 1,696
NJK195: HL Totales | NJL195: =NJL188+NJL191+NJL192+NJL193+NJL194 -> 56,324
NJK196: Packs Budget | NJL196: =NJL187*23.5 -> 1,298,439
NJK197: 2T Capacity Occupation (hl) camiones > 3.5 Ton | NJL197: =((NKF52*NJO52)+(NKF53*NJO53)+(NJO51*NKF51))/SUM(NKF51:NKF53) -> 41.44
NJK198: 2T Capacity Occupation (hl) camiones < 3.5 Ton | NJL198: 0
NJK199: 2T Capacity Occupation (hl) camiones KA | NJL199: =NJW31 -> 16.00
NJK200: Productividad flota camiones >3.5 Ton | NJL200: =+NJP56 -> 16%
NJK201: Productividad flota camiones <3.5 Ton
NJK202: Productividad flota KA | NJL202: =+NJL200/2 -> 8%
NJK203: Flota necesaria > 3.5 Ton | NJL203: =+SUM(NKF51:NKF55)-NJL205 -> 34.23
NJK204: Flota Necesaria < 3.5 Ton
NJK205: Flota Necesaria KA | NJL205: =(NJL191/NJL206)/(NJL199*(1+NJL201)) -> 8.77
NJK206: Dias laborados | NJL206: =+NKO51 -> 27
NJK207: 2T Refusals (Volume loaded and Undelivered) UC | NJL207: 2.0%
NJK208: 2T Refusals (Volume loaded and Undelivered) KA | NJL208: 2.0%
NJK209: FTE flota camiones > 3.5 Ton | NJL209: =+NJR56 -> 2.9
NJK210: FTE flota camiones < 3.5 Ton | NJL210: 0.0
NJK211: FTE flota camiones KA | NJL211: =+NJR51 -> 2.0
NJK212: Viajes Camiones > 3.5 Ton | NJL212: =(NJL203*NJL200*NJL206)+(NJL205*NJL202*NJL206) -> 170
NJK213: Viajes Camiones < 3.5 Ton | NJL213: =NJL204*NJL206*NJL201 -> 0
NJK214: Assets Utilization (%) | NJL214: =IFERROR(ROUND((NJL212+NJL213)/((((NJL203+NJL205+(NJL204*2)))*(COUNT(A100001:A110031)))),3),"")*2.5 -> 32.0%
NJK215: Assets Occupation(%) | NJL215: =ROUND(NJL197/(((NKF51*20)+(NKF52*45)+(NKF53*47))/SUM(NKF51:NKF53)),3) -> 97.5%
NJK216: Asset Efficiency | NJL216: =IFERROR(ROUND(NJL214*NJL215,3),"") -> 31.2%
NJK217: Tiempo en ruta camiones > 3.5 Ton | NJL217: =9/(1+NJL200) -> 7.74
NJK218: Tiempo en ruta camiones < 3.5 Ton | NJL218: =IF(OR(NJL201<>"",NJL201<>0),9/(1+NJL201),0) -> 0.00
NJK219: Tiempo en ruta camiones KA | NJL219: =9/(1+NJL202) -> 8.32
NJK220: TML | NJL220: =40/60 -> 0.67
NJK221: TV | NJL221: =35/60 -> 0.58
NJK222: Horas Hombre TAT | NJL222: =(NJL203*NJL200*NJL206*NJL209*NJL217)+(NJL205*NJL202*NJL206*NJL211*NJL219)+(NJL213*NJL210*NJL218) -> 3,699.15
NJK223: Horas Hombre TOTAL Delivery | NJL223: =((NJL203*NJL206*2*(NJL220+NJL221))+(NJL204*NJL206*(NJL220+NJL221))+(NJL205*NJL206*(NJL220+NJL221)))+NJL222 -> 6,305.77
NJK224: # de personas WLP (pickers, helpers, FLT) | NJL224: =(NJL118+NJL120+NJL122+NJL124+NJL126+NJL132+NJO122) -> 32.00
NJK225: # de personas WNP (pickers, helpers, FLT, supervisors, checkers) | NJL225: =(NJL118+NJL120+NJL122+NJL124+NJL126+NJL132) -> 29.00
NJK226: Horas totales almacen | NJL226: =NJL225*8*NJL206 -> 6,264.00
NJK227: # personas apoyo en reparto | NJL227: 15
NJK228: Horas apoyo reparto | NJL228: =NJL227*8*NJL206 -> 3240
NJK229: Horas Totales del CD | NJL229: =NJL223+NJL226+NJL228 -> 15,809.77
NJK230: Total Productivity | NJL230: =NJL195/NJL229 -> 3.56
NJK231: Flota asignada > 3.5 Ton | NJL231: 100
NJK232: Disponibilidad de flota | NJL232: =+$NKI$36 -> 100%
NJK233: Flota disponible | NJL233: =NJL231*NJL232 -> 100
NJK234: Flota ocasional | NJL234: =IF(NJL203-NJL233<0,0,NJL203-NJL233) -> 0
NJK235: Rendimiento combustible (Km/Gl) | NJL235: 11
NJK236: Rendimiento combustible (Hl/KM) | NJL236: 1
NJK237: Kilometros | NJL237: =NJL188/NJL236 -> 50,840.36
NJK238: Galones | NJL238: =NJL237/NJL235 -> 4,621.85
NJK239: Combustible | NJL239: =NJL238*9500 -> 43,907,585.36
NJK240: OB UC
NJK241: OB OL | NJL241: 194,531,567.96
... 240 more rows

Sheet ANAPLAN (hidden)
A1: MTH | B1: KPI Code | C1: KPI Name | D1: UOM | E1: LOCATION TYPE | F1: Zone Name | G1: Country Group Name | H1: Country Name | I1: Plant Group Name | J1: Plant Name | K1: LY | L1: AC | M1: BU | N1: AC vs LY | O1: AC vs BU | P1: LE | Q1: LY | R1: AC | S1: BU | T1: AC vs LY | U1: AC vs BU | V1: LE | W1: Mes | X1: CD
A2: Jan 25 | B2: DC-K0010 | C2: 2T Volume | D2: hl | E2: PLANT | F2: MAZ | G2: BU Colombia | H2: Colombia | I2: Colombia_PG_Name | J2: DC Boyaca | K2: 393421.3441 | L2: 319750 | M2: 0 | N2: -73671.3441 | O2: 319750 | P2: 0 | Q2: 393421.3441 | R2: 319750 | S2: 0 | T2: -73671.3441 | U2: 319750 | V2: 0 | W2: 1 | X2: =VLOOKUP(J2,CDs_ANAPLAN!B:C,2,FALSE) -> AV04
A3: Jan 25 | B3: DC-K0010 | C3: 2T Volume | D3: hl | E3: PLANT | F3: MAZ | G3: BU Colombia | H3: Colombia | I3: Colombia_PG_Name | J3: DC Tocancipa | K3: 976307.2116 | L3: 960079 | M3: 0 | N3: -16228.2116 | O3: 960079 | P3: 0 | Q3: 976307.2116 | R3: 960079 | S3: 0 | T3: -16228.2116 | U3: 960079 | V3: 0 | W3: 1 | X3: =VLOOKUP(J3,CDs_ANAPLAN!B:C,2,FALSE) -> AV06
A4: Jan 25 | B4: DC-K0010 | C4: 2T Volume | D4: hl | E4: PLANT | F4: MAZ | G4: BU Colombia | H4: Colombia | I4: Colombia_PG_Name | J4: DC Sibate | K4: 84407.84638 | L4: 75929.68041 | M4: 0 | N4: -8478.165974 | O4: 75929.68041 | P4: 0 | Q4: 84407.84638 | R4: 75929.68041 | S4: 0 | T4: -8478.165974 | U4: 75929.68041 | V4: 0 | W4: 1 | X4: =VLOOKUP(J4,CDs_ANAPLAN!B:C,2,FALSE) -> AV47
A5: Jan 25 | B5: DC-K0010 | C5: 2T Volume | D5: hl | E5: PLANT | F5: MAZ | G5: BU Colombia | H5: Colombia | I5: Colombia_PG_Name | J5: DC Siberia | K5: 97578.1917 | L5: 96333.41161 | M5: 0 | N5: -1244.780087 | O5: 96333.41161 | P5: 0 | Q5: 97578.1917 | R5: 96333.41161 | S5: 0 | T5: -1244.780087 | U5: 96333.41161 | V5: 0 | W5: 1 | X5: =VLOOKUP(J5,CDs_ANAPLAN!B:C,2,FALSE) -> AV50
A6: Jan 25 | B6: DC-K0010 | C6: 2T Volume | D6: hl | E6: PLANT | F6: MAZ | G6: BU Colombia | H6: Colombia | I6: Colombia_PG_Name | J6: DC Tunja | K6: 47664.43177 | L6: 45943.17034 | M6: 0 | N6: -1721.261433 | O6: 45943.17034 | P6: 0 | Q6: 47664.43177 | R6: 45943.17034 | S6: 0 | T6: -1721.261433 | U6: 45943.17034 | V6: 0 | W6: 1 | X6: =VLOOKUP(J6,CDs_ANAPLAN!B:C,2,FALSE) -> AV42
A7: Jan 25 | B7: DC-K0010 | C7: 2T Volume | D7: hl | E7: PLANT | F7: MAZ | G7: BU Colombia | H7: Colombia | I7: Colombia_PG_Name | J7: DC Chiquinquira | K7: 23883.9636 | L7: 22983.10687 | M7: 0 | N7: -900.8567348 | O7: 22983.10687 | P7: 0 | Q7: 23883.9636 | R7: 22983.10687 | S7: 0 | T7: -900.8567348 | U7: 22983.10687 | V7: 0 | W7: 1 | X7: =VLOOKUP(J7,CDs_ANAPLAN!B:C,2,FALSE) -> AV66
A8: Jan 25 | B8: DC-K0010 | C8: 2T Volume | D8: hl | E8: PLANT | F8: MAZ | G8: BU Colombia | H8: Colombia | I8: Colombia_PG_Name | J8: DC Montevideo (CO) | K8: 0 | L8: 52365.15812 | M8: 0 | N8: 52365.15812 | O8: 52365.15812 | P8: 0 | Q8: 0 | R8: 52365.15812 | S8: 0 | T8: 52365.15812 | U8: 52365.15812 | V8: 0 | W8: 1 | X8: =VLOOKUP(J8,CDs_ANAPLAN!B:C,2,FALSE) -> AV78
A9: Jan 25 | B9: DC-K0011 | C9: 2T On-trade Volume | D9: hl | E9: PLANT | F9: MAZ | G9: BU Colombia | H9: Colombia | I9: Colombia_PG_Name | J9: DC Boyaca | K9: 0 | L9: 0 | M9: 0 | N9: 0 | O9: 0 | P9: 0 | Q9: 0 | R9: 0 | S9: 0 | T9: 0 | U9: 0 | V9: 0 | W9: 1 | X9: =VLOOKUP(J9,CDs_ANAPLAN!B:C,2,FALSE) -> AV04
A10: Jan 25 | B10: DC-K0011 | C10: 2T On-trade Volume | D10: hl | E10: PLANT | F10: MAZ | G10: BU Colombia | H10: Colombia | I10: Colombia_PG_Name | J10: DC Tocancipa | K10: 0 | L10: 0 | M10: 0 | N10: 0 | O10: 0 | P10: 0 | Q10: 0 | R10: 0 | S10: 0 | T10: 0 | U10: 0 | V10: 0 | W10: 1 | X10: =VLOOKUP(J10,CDs_ANAPLAN!B:C,2,FALSE) -> AV06
A11: Jan 25 | B11: DC-K0011 | C11: 2T On-trade Volume | D11: hl | E11: PLANT | F11: MAZ | G11: BU Colombia | H11: Colombia | I11: Colombia_PG_Name | J11: DC Sibate | K11: 0 | L11: 1162.217256 | M11: 0 | N11: 1162.217256 | O11: 1162.217256 | P11: 0 | Q11: 0 | R11: 1162.217256 | S11: 0 | T11: 1162.217256 | U11: 1162.217256 | V11: 0 | W11: 1 | X11: =VLOOKUP(J11,CDs_ANAPLAN!B:C,2,FALSE) -> AV47
A12: Jan 25 | B12: DC-K0011 | C12: 2T On-trade Volume | D12: hl | E12: PLANT | F12: MAZ | G12: BU Colombia | H12: Colombia | I12: Colombia_PG_Name | J12: DC Siberia | K12: 0 | L12: 3478.146433 | M12: 0 | N12: 3478.146433 | O12: 3478.146433 | P12: 0 | Q12: 0 | R12: 3478.146433 | S12: 0 | T12: 3478.146433 | U12: 3478.146433 | V12: 0 | W12: 1 | X12: =VLOOKUP(J12,CDs_ANAPLAN!B:C,2,FALSE) -> AV50
A13: Jan 25 | B13: DC-K0011 | C13: 2T On-trade Volume | D13: hl | E13: PLANT | F13: MAZ | G13: BU Colombia | H13: Colombia | I13: Colombia_PG_Name | J13: DC Tunja | K13: 0 | L13: 45234.7378 | M13: 0 | N13: 45234.7378 | O13: 45234.7378 | P13: 0 | Q13: 0 | R13: 45234.7378 | S13: 0 | T13: 45234.7378 | U13: 45234.7378 | V13: 0 | W13: 1 | X13: =VLOOKUP(J13,CDs_ANAPLAN!B:C,2,FALSE) -> AV42
A14: Jan 25 | B14: DC-K0011 | C14: 2T On-trade Volume | D14: hl | E14: PLANT | F14: MAZ | G14: BU Colombia | H14: Colombia | I14: Colombia_PG_Name | J14: DC Chiquinquira | K14: 0 | L14: 22518.42237 | M14: 0 | N14: 22518.42237 | O14: 22518.42237 | P14: 0 | Q14: 0 | R14: 22518.42237 | S14: 0 | T14: 22518.42237 | U14: 22518.42237 | V14: 0 | W14: 1 | X14: =VLOOKUP(J14,CDs_ANAPLAN!B:C,2,FALSE) -> AV66
A15: Jan 25 | B15: DC-K0011 | C15: 2T On-trade Volume | D15: hl | E15: PLANT | F15: MAZ | G15: BU Colombia | H15: Colombia | I15: Colombia_PG_Name | J15: DC Montevideo (CO) | K15: 0 | L15: 1237.832119 | M15: 0 | N15: 1237.832119 | O15: 1237.832119 | P15: 0 | Q15: 0 | R15: 1237.832119 | S15: 0 | T15: 1237.832119 | U15: 1237.832119 | V15: 0 | W15: 1 | X15: =VLOOKUP(J15,CDs_ANAPLAN!B:C,2,FALSE) -> AV78
A16: Jan 25 | B16: DC-K0012 | C16: 2T Off-trade Volume | D16: hl | E16: PLANT | F16: MAZ | G16: BU Colombia | H16: Colombia | I16: Colombia_PG_Name | J16: DC Boyaca | K16: 393421.3441 | L16: 319750 | M16: 0 | N16: -73671.3441 | O16: 319750 | P16: 0 | Q16: 393421.3441 | R16: 319750 | S16: 0 | T16: -73671.3441 | U16: 319750 | V16: 0 | W16: 1 | X16: =VLOOKUP(J16,CDs_ANAPLAN!B:C,2,FALSE) -> AV04
A17: Jan 25 | B17: DC-K0012 | C17: 2T Off-trade Volume | D17: hl | E17: PLANT | F17: MAZ | G17: BU Colombia | H17: Colombia | I17: Colombia_PG_Name | J17: DC Tocancipa | K17: 976307.2116 | L17: 960079 | M17: 0 | N17: -16228.2116 | O17: 960079 | P17: 0 | Q17: 976307.2116 | R17: 960079 | S17: 0 | T17: -16228.2116 | U17: 960079 | V17: 0 | W17: 1 | X17: =VLOOKUP(J17,CDs_ANAPLAN!B:C,2,FALSE) -> AV06
A18: Jan 25 | B18: DC-K0012 | C18: 2T Off-trade Volume | D18: hl | E18: PLANT | F18: MAZ | G18: BU Colombia | H18: Colombia | I18: Colombia_PG_Name | J18: DC Sibate | K18: 84407.84638 | L18: 74767.46315 | M18: 0 | N18: -9640.38323 | O18: 74767.46315 | P18: 0 | Q18: 84407.84638 | R18: 74767.46315 | S18: 0 | T18: -9640.38323 | U18: 74767.46315 | V18: 0 | W18: 1 | X18: =VLOOKUP(J18,CDs_ANAPLAN!B:C,2,FALSE) -> AV47
A19: Jan 25 | B19: DC-K0012 | C19: 2T Off-trade Volume | D19: hl | E19: PLANT | F19: MAZ | G19: BU Colombia | H19: Colombia | I19: Colombia_PG_Name | J19: DC Siberia | K19: 97578.1917 | L19: 92855.26518 | M19: 0 | N19: -4722.92652 | O19: 92855.26518 | P19: 0 | Q19: 97578.1917 | R19: 92855.26518 | S19: 0 | T19: -4722.92652 | U19: 92855.26518 | V19: 0 | W19: 1 | X19: =VLOOKUP(J19,CDs_ANAPLAN!B:C,2,FALSE) -> AV50
A20: Jan 25 | B20: DC-K0012 | C20: 2T Off-trade Volume | D20: hl | E20: PLANT | F20: MAZ | G20: BU Colombia | H20: Colombia | I20: Colombia_PG_Name | J20: DC Tunja | K20: 47664.43177 | L20: 708.4325372 | M20: 0 | N20: -46955.99923 | O20: 708.4325372 | P20: 0 | Q20: 47664.43177 | R20: 708.4325372 | S20: 0 | T20: -46955.99923 | U20: 708.4325372 | V20: 0 | W20: 1 | X20: =VLOOKUP(J20,CDs_ANAPLAN!B:C,2,FALSE) -> AV42
A21: Jan 25 | B21: DC-K0012 | C21: 2T Off-trade Volume | D21: hl | E21: PLANT | F21: MAZ | G21: BU Colombia | H21: Colombia | I21: Colombia_PG_Name | J21: DC Chiquinquira | K21: 23883.9636 | L21: 464.6844952 | M21: 0 | N21: -23419.2791 | O21: 464.6844952 | P21: 0 | Q21: 23883.9636 | R21: 464.6844952 | S21: 0 | T21: -23419.2791 | U21: 464.6844952 | V21: 0 | W21: 1 | X21: =VLOOKUP(J21,CDs_ANAPLAN!B:C,2,FALSE) -> AV66
A22: Jan 25 | B22: DC-K0012 | C22: 2T Off-trade Volume | D22: hl | E22: PLANT | F22: MAZ | G22: BU Colombia | H22: Colombia | I22: Colombia_PG_Name | J22: DC Montevideo (CO) | K22: 0 | L22: 51127.326 | M22: 0 | N22: 51127.326 | O22: 51127.326 | P22: 0 | Q22: 0 | R22: 51127.326 | S22: 0 | T22: 51127.326 | U22: 51127.326 | V22: 0 | W22: 1 | X22: =VLOOKUP(J22,CDs_ANAPLAN!B:C,2,FALSE) -> AV78
A23: Jan 25 | B23: DC-K0013 | C23: 2T Returnable Package Volume | D23: hl | E23: PLANT | F23: MAZ | G23: BU Colombia | H23: Colombia | I23: Colombia_PG_Name | J23: DC Boyaca | K23: 68609.2105 | L23: 67258.535 | M23: 0 | N23: -1350.6755 | O23: 67258.535 | P23: 0 | Q23: 68609.2105 | R23: 67258.535 | S23: 0 | T23: -1350.6755 | U23: 67258.535 | V23: 0 | W23: 1 | X23: =VLOOKUP(J23,CDs_ANAPLAN!B:C,2,FALSE) -> AV04
A24: Jan 25 | B24: DC-K0013 | C24: 2T Returnable Package Volume | D24: hl | E24: PLANT | F24: MAZ | G24: BU Colombia | H24: Colombia | I24: Colombia_PG_Name | J24: DC Tocancipa | K24: 145838.005 | L24: 0 | M24: 0 | N24: -145838.005 | O24: 0 | P24: 0 | Q24: 145838.005 | R24: 292823.808 | S24: 0 | T24: 146985.803 | U24: 292823.808 | V24: 0 | W24: 1 | X24: =VLOOKUP(J24,CDs_ANAPLAN!B:C,2,FALSE) -> AV06
A25: Jan 25 | B25: DC-K0013 | C25: 2T Returnable Package Volume | D25: hl | E25: PLANT | F25: MAZ | G25: BU Colombia | H25: Colombia | I25: Colombia_PG_Name | J25: DC Sibate | K25: 71905.8385 | L25: 68370.323 | M25: 0 | N25: -3535.5155 | O25: 68370.323 | P25: 0 | Q25: 71905.8385 | R25: 68370.323 | S25: 0 | T25: -3535.5155 | U25: 68370.323 | V25: 0 | W25: 1 | X25: =VLOOKUP(J25,CDs_ANAPLAN!B:C,2,FALSE) -> AV47
A26: Jan 25 | B26: DC-K0013 | C26: 2T Returnable Package Volume | D26: hl | E26: PLANT | F26: MAZ | G26: BU Colombia | H26: Colombia | I26: Colombia_PG_Name | J26: DC Siberia | K26: 73940.871 | L26: 79450.704 | M26: 0 | N26: 5509.833 | O26: 79450.704 | P26: 0 | Q26: 73940.871 | R26: 79450.704 | S26: 0 | T26: 5509.833 | U26: 79450.704 | V26: 0 | W26: 1 | X26: =VLOOKUP(J26,CDs_ANAPLAN!B:C,2,FALSE) -> AV50
A27: Jan 25 | B27: DC-K0013 | C27: 2T Returnable Package Volume | D27: hl | E27: PLANT | F27: MAZ | G27: BU Colombia | H27: Colombia | I27: Colombia_PG_Name | J27: DC Tunja | K27: 43693.5185 | L27: 42247.685 | M27: 0 | N27: -1445.8335 | O27: 42247.685 | P27: 0 | Q27: 43693.5185 | R27: 42247.685 | S27: 0 | T27: -1445.8335 | U27: 42247.685 | V27: 0 | W27: 1 | X27: =VLOOKUP(J27,CDs_ANAPLAN!B:C,2,FALSE) -> AV42
A28: Jan 25 | B28: DC-K0013 | C28: 2T Returnable Package Volume | D28: hl | E28: PLANT | F28: MAZ | G28: BU Colombia | H28: Colombia | I28: Colombia_PG_Name | J28: DC Chiquinquira | K28: 20871.2245 | L28: 0 | M28: 0 | N28: -20871.2245 | O28: 0 | P28: 0 | Q28: 20871.2245 | R28: 0 | S28: 0 | T28: -20871.2245 | U28: 0 | V28: 0 | W28: 1 | X28: =VLOOKUP(J28,CDs_ANAPLAN!B:C,2,FALSE) -> AV66
A29: Jan 25 | B29: DC-K0013 | C29: 2T Returnable Package Volume | D29: hl | E29: PLANT | F29: MAZ | G29: BU Colombia | H29: Colombia | I29: Colombia_PG_Name | J29: DC Montevideo (CO) | K29: 34136.5585 | L29: 42983.3745 | M29: 0 | N29: 8846.816 | O29: 42983.3745 | P29: 0 | Q29: 34136.5585 | R29: 42983.3745 | S29: 0 | T29: 8846.816 | U29: 42983.3745 | V29: 0 | W29: 1 | X29: =VLOOKUP(J29,CDs_ANAPLAN!B:C,2,FALSE) -> AV78
A30: Jan 25 | B30: DC-K0020 | C30: 2T Returnable Package Mix | D30: % | E30: PLANT | F30: MAZ | G30: BU Colombia | H30: Colombia | I30: Colombia_PG_Name | J30: DC Boyaca | K30: 17.43911751 | L30: 21.03472557 | M30: 0 | N30: 3.595608059 | O30: 21.03472557 | P30: 0 | Q30: 17.43911751 | R30: 21.03472557 | S30: 0 | T30: 3.595608059 | U30: 21.03472557 | V30: 0 | W30: 1 | X30: =VLOOKUP(J30,CDs_ANAPLAN!B:C,2,FALSE) -> AV04
A31: Jan 25 | B31: DC-K0020 | C31: 2T Returnable Package Mix | D31: % | E31: PLANT | F31: MAZ | G31: BU Colombia | H31: Colombia | I31: Colombia_PG_Name | J31: DC Tocancipa | K31: 14.93771666 | L31: 30.49997011 | M31: 0 | N31: 15.56225345 | O31: 30.49997011 | P31: 0 | Q31: 14.93771666 | R31: 30.49997011 | S31: 0 | T31: 15.56225345 | U31: 30.49997011 | V31: 0 | W31: 1 | X31: =VLOOKUP(J31,CDs_ANAPLAN!B:C,2,FALSE) -> AV06
A32: Jan 25 | B32: DC-K0020 | C32: 2T Returnable Package Mix | D32: % | E32: PLANT | F32: MAZ | G32: BU Colombia | H32: Colombia | I32: Colombia_PG_Name | J32: DC Sibate | K32: 81.65985788 | L32: 87.42868454 | M32: 0 | N32: 5.768826667 | O32: 87.42868454 | P32: 0 | Q32: 81.65985788 | R32: 87.42868454 | S32: 0 | T32: 5.768826667 | U32: 87.42868454 | V32: 0 | W32: 1 | X32: =VLOOKUP(J32,CDs_ANAPLAN!B:C,2,FALSE) -> AV47
A33: Jan 25 | B33: DC-K0020 | C33: 2T Returnable Package Mix | D33: % | E33: PLANT | F33: MAZ | G33: BU Colombia | H33: Colombia | I33: Colombia_PG_Name | J33: DC Siberia | K33: 72.70739706 | L33: 80.66538498 | M33: 0 | N33: 7.957987916 | O33: 80.66538498 | P33: 0 | Q33: 72.70739706 | R33: 80.66538498 | S33: 0 | T33: 7.957987916 | U33: 80.66538498 | V33: 0 | W33: 1 | X33: =VLOOKUP(J33,CDs_ANAPLAN!B:C,2,FALSE) -> AV50
A34: Jan 25 | B34: DC-K0020 | C34: 2T Returnable Package Mix | D34: % | E34: PLANT | F34: MAZ | G34: BU Colombia | H34: Colombia | I34: Colombia_PG_Name | J34: DC Tunja | K34: 90.54578446 | L34: 90.9151246 | M34: 0 | N34: 0.3693401411 | O34: 90.9151246 | P34: 0 | Q34: 90.54578446 | R34: 90.9151246 | S34: 0 | T34: 0.3693401411 | U34: 90.9151246 | V34: 0 | W34: 1 | X34: =VLOOKUP(J34,CDs_ANAPLAN!B:C,2,FALSE) -> AV42
A35: Jan 25 | B35: DC-K0020 | C35: 2T Returnable Package Mix | D35: % | E35: PLANT | F35: MAZ | G35: BU Colombia | H35: Colombia | I35: Colombia_PG_Name | J35: DC Chiquinquira | K35: 86.76045665 | L35: 0 | M35: 0 | N35: -86.76045665 | O35: 0 | P35: 0 | Q35: 86.76045665 | R35: 0 | S35: 0 | T35: -86.76045665 | U35: 0 | V35: 0 | W35: 1 | X35: =VLOOKUP(J35,CDs_ANAPLAN!B:C,2,FALSE) -> AV66
A36: Jan 25 | B36: DC-K0020 | C36: 2T Returnable Package Mix | D36: % | E36: PLANT | F36: MAZ | G36: BU Colombia | H36: Colombia | I36: Colombia_PG_Name | J36: DC Montevideo (CO) | K36: 70.26729247 | L36: 80.324327 | M36: 0 | N36: 10.05703453 | O36: 80.324327 | P36: 0 | Q36: 70.26729247 | R36: 80.324327 | S36: 0 | T36: 10.05703453 | U36: 80.324327 | V36: 0 | W36: 1 | X36: =VLOOKUP(J36,CDs_ANAPLAN!B:C,2,FALSE) -> AV78
A37: Jan 25 | B37: DC-K0030 | C37: 2T Finished Goods Loss Index | D37: ppm | E37: PLANT | F37: MAZ | G37: BU Colombia | H37: Colombia | I37: Colombia_PG_Name | J37: DC Boyaca | K37: 139.5413018 | L37: 118.976294 | M37: 152.1463091 | N37: -20.56500779 | O37: -33.17001512 | P37: 0 | Q37: 139.5413018 | R37: 118.976294 | S37: 152.1463091 | T37: -20.56500779 | U37: -33.17001512 | V37: 0 | W37: 1 | X37: =VLOOKUP(J37,CDs_ANAPLAN!B:C,2,FALSE) -> AV04
A38: Jan 25 | B38: DC-K0030 | C38: 2T Finished Goods Loss Index | D38: ppm | E38: PLANT | F38: MAZ | G38: BU Colombia | H38: Colombia | I38: Colombia_PG_Name | J38: DC Tocancipa | K38: 1282.405349 | L38: 1723.203143 | M38: 1092.621632 | N38: 440.7977941 | O38: 630.5815107 | P38: 0 | Q38: 1282.405349 | R38: 1723.203143 | S38: 1092.621632 | T38: 440.7977941 | U38: 630.5815107 | V38: 0 | W38: 1 | X38: =VLOOKUP(J38,CDs_ANAPLAN!B:C,2,FALSE) -> AV06
A39: Jan 25 | B39: DC-K0030 | C39: 2T Finished Goods Loss Index | D39: ppm | E39: PLANT | F39: MAZ | G39: BU Colombia | H39: Colombia | I39: Colombia_PG_Name | J39: DC Sibate | K39: 979.3874213 | L39: 1776.232252 | M39: 1009.328157 | N39: 796.8448304 | O39: 766.9040948 | P39: 0 | Q39: 979.3874213 | R39: 1776.232252 | S39: 1009.328157 | T39: 796.8448304 | U39: 766.9040948 | V39: 0 | W39: 1 | X39: =VLOOKUP(J39,CDs_ANAPLAN!B:C,2,FALSE) -> AV47
A40: Jan 25 | B40: DC-K0030 | C40: 2T Finished Goods Loss Index | D40: ppm | E40: PLANT | F40: MAZ | G40: BU Colombia | H40: Colombia | I40: Colombia_PG_Name | J40: DC Siberia | K40: 2656.134535 | L40: 963.9232485 | M40: 2460.590632 | N40: -1692.211287 | O40: -1496.667383 | P40: 0 | Q40: 2656.134535 | R40: 963.9232485 | S40: 2460.590632 | T40: -1692.211287 | U40: -1496.667383 | V40: 0 | W40: 1 | X40: =VLOOKUP(J40,CDs_ANAPLAN!B:C,2,FALSE) -> AV50
A41: Jan 25 | B41: DC-K0030 | C41: 2T Finished Goods Loss Index | D41: ppm | E41: PLANT | F41: MAZ | G41: BU Colombia | H41: Colombia | I41: Colombia_PG_Name | J41: DC Tunja | K41: 487.6649012 | L41: 297.4191432 | M41: 543.512303 | N41: -190.2457581 | O41: -246.0931598 | P41: 0 | Q41: 487.6649012 | R41: 297.4191432 | S41: 543.512303 | T41: -190.2457581 | U41: -246.0931598 | V41: 0 | W41: 1 | X41: =VLOOKUP(J41,CDs_ANAPLAN!B:C,2,FALSE) -> AV42
A42: Jan 25 | B42: DC-K0030 | C42: 2T Finished Goods Loss Index | D42: ppm | E42: PLANT | F42: MAZ | G42: BU Colombia | H42: Colombia | I42: Colombia_PG_Name | J42: DC Chiquinquira | K42: 699.5068156 | L42: 2370.759673 | M42: 716.3919603 | N42: 1671.252857 | O42: 1654.367713 | P42: 0 | Q42: 699.5068156 | R42: 2370.759673 | S42: 716.3919603 | T42: 1671.252857 | U42: 1654.367713 | V42: 0 | W42: 1 | X42: =VLOOKUP(J42,CDs_ANAPLAN!B:C,2,FALSE) -> AV66
A43: Jan 25 | B43: DC-K0030 | C43: 2T Finished Goods Loss Index | D43: ppm | E43: PLANT | F43: MAZ | G43: BU Colombia | H43: Colombia | I43: Colombia_PG_Name | J43: DC Montevideo (CO) | K43: 985.1845946 | L43: 1131.953127 | M43: 876.6170883 | N43: 146.7685327 | O43: 255.3360389 | P43: 0 | Q43: 985.1845946 | R43: 1131.953127 | S43: 876.6170883 | T43: 146.7685327 | U43: 255.3360389 | V43: 0 | W43: 1 | X43: =VLOOKUP(J43,CDs_ANAPLAN!B:C,2,FALSE) -> AV78
A44: Jan 25 | B44: DC-K1016 | C44: 2T Warehouse Labor Productivity | D44: hl/h | E44: PLANT | F44: MAZ | G44: BU Colombia | H44: Colombia | I44: Colombia_PG_Name | J44: DC Boyaca | K44: 52.96036186 | L44: 61.07052476 | M44: 55.64044023 | N44: 8.110162899 | O44: 5.430084529 | P44: 0 | Q44: 52.96036186 | R44: 61.07052476 | S44: 55.64044023 | T44: 8.110162899 | U44: 5.430084529 | V44: 0 | W44: 1 | X44: =VLOOKUP(J44,CDs_ANAPLAN!B:C,2,FALSE) -> AV04
A45: Jan 25 | B45: DC-K1016 | C45: 2T Warehouse Labor Productivity | D45: hl/h | E45: PLANT | F45: MAZ | G45: BU Colombia | H45: Colombia | I45: Colombia_PG_Name | J45: DC Tocancipa | K45: 98.31895384 | L45: 80.81473064 | M45: 98.17813388 | N45: -17.5042232 | O45: -17.36340324 | P45: 0 | Q45: 98.31895384 | R45: 80.81473064 | S45: 98.17813388 | T45: -17.5042232 | U45: -17.36340324 | V45: 0 | W45: 1 | X45: =VLOOKUP(J45,CDs_ANAPLAN!B:C,2,FALSE) -> AV06
A46: Jan 25 | B46: DC-K1016 | C46: 2T Warehouse Labor Productivity | D46: hl/h | E46: PLANT | F46: MAZ | G46: BU Colombia | H46: Colombia | I46: Colombia_PG_Name | J46: DC Sibate | K46: 14.69057507 | L46: 12.93268734 | M46: 14.54014687 | N46: -1.757887725 | O46: -1.607459534 | P46: 0 | Q46: 14.69057507 | R46: 12.93268734 | S46: 14.54014687 | T46: -1.757887725 | U46: -1.607459534 | V46: 0 | W46: 1 | X46: =VLOOKUP(J46,CDs_ANAPLAN!B:C,2,FALSE) -> AV47
A47: Jan 25 | B47: DC-K1016 | C47: 2T Warehouse Labor Productivity | D47: hl/h | E47: PLANT | F47: MAZ | G47: BU Colombia | H47: Colombia | I47: Colombia_PG_Name | J47: DC Siberia | K47: 9.465862177 | L47: 11.71616078 | M47: 13.41199993 | N47: 2.2502986 | O47: -1.69583915 | P47: 0 | Q47: 9.465862177 | R47: 11.71616078 | S47: 13.41199993 | T47: 2.2502986 | U47: -1.69583915 | V47: 0 | W47: 1 | X47: =VLOOKUP(J47,CDs_ANAPLAN!B:C,2,FALSE) -> AV50
A48: Jan 25 | B48: DC-K1016 | C48: 2T Warehouse Labor Productivity | D48: hl/h | E48: PLANT | F48: MAZ | G48: BU Colombia | H48: Colombia | I48: Colombia_PG_Name | J48: DC Tunja | K48: 14.33835035 | L48: 13.18949866 | M48: 11.67841381 | N48: -1.148851693 | O48: 1.511084843 | P48: 0 | Q48: 14.33835035 | R48: 13.18949866 | S48: 11.67841381 | T48: -1.148851693 | U48: 1.511084843 | V48: 0 | W48: 1 | X48: =VLOOKUP(J48,CDs_ANAPLAN!B:C,2,FALSE) -> AV42
A49: Jan 25 | B49: DC-K1016 | C49: 2T Warehouse Labor Productivity | D49: hl/h | E49: PLANT | F49: MAZ | G49: BU Colombia | H49: Colombia | I49: Colombia_PG_Name | J49: DC Chiquinquira | K49: 13.34228993 | L49: 17.34879867 | M49: 17.00609785 | N49: 4.006508744 | O49: 0.3427008186 | P49: 0 | Q49: 13.34228993 | R49: 17.34879867 | S49: 17.00609785 | T49: 4.006508744 | U49: 0.3427008186 | V49: 0 | W49: 1 | X49: =VLOOKUP(J49,CDs_ANAPLAN!B:C,2,FALSE) -> AV66
A50: Jan 25 | B50: DC-K1016 | C50: 2T Warehouse Labor Productivity | D50: hl/h | E50: PLANT | F50: MAZ | G50: BU Colombia | H50: Colombia | I50: Colombia_PG_Name | J50: DC Montevideo (CO) | K50: 8.986497839 | L50: 11.70868414 | M50: 13.51342556 | N50: 2.722186303 | O50: -1.804741416 | P50: 0 | Q50: 8.986497839 | R50: 11.70868414 | S50: 13.51342556 | T50: 2.722186303 | U50: -1.804741416 | V50: 0 | W50: 1 | X50: =VLOOKUP(J50,CDs_ANAPLAN!B:C,2,FALSE) -> AV78
A51: Jan 25 | B51: DC-K1017 | C51: 2T Total Warehouse Network Productivity | D51: hl/h | E51: PLANT | F51: MAZ | G51: BU Colombia | H51: Colombia | I51: Colombia_PG_Name | J51: DC Boyaca | K51: 38.11225204 | L51: 36.56061516 | M51: 40.04093641 | N51: -1.551636881 | O51: -3.480321258 | P51: 0 | Q51: 38.11225204 | R51: 36.56061516 | S51: 40.04093641 | T51: -1.551636881 | U51: -3.480321258 | V51: 0 | W51: 1 | X51: =VLOOKUP(J51,CDs_ANAPLAN!B:C,2,FALSE) -> AV04
A52: Jan 25 | B52: DC-K1017 | C52: 2T Total Warehouse Network Productivity | D52: hl/h | E52: PLANT | F52: MAZ | G52: BU Colombia | H52: Colombia | I52: Colombia_PG_Name | J52: DC Tocancipa | K52: 46.39140944 | L52: 39.39997948 | M52: 41.28189434 | N52: -6.991429956 | O52: -1.881914862 | P52: 0 | Q52: 46.39140944 | R52: 39.39997948 | S52: 41.28189434 | T52: -6.991429956 | U52: -1.881914862 | V52: 0 | W52: 1 | X52: =VLOOKUP(J52,CDs_ANAPLAN!B:C,2,FALSE) -> AV06
A53: Jan 25 | B53: DC-K1017 | C53: 2T Total Warehouse Network Productivity | D53: hl/h | E53: PLANT | F53: MAZ | G53: BU Colombia | H53: Colombia | I53: Colombia_PG_Name | J53: DC Sibate | K53: 6.776091338 | L53: 6.665334211 | M53: 7.27676315 | N53: -0.1107571267 | O53: -0.6114289384 | P53: 0 | Q53: 6.776091338 | R53: 6.665334211 | S53: 7.27676315 | T53: -0.1107571267 | U53: -0.6114289384 | V53: 0 | W53: 1 | X53: =VLOOKUP(J53,CDs_ANAPLAN!B:C,2,FALSE) -> AV47
A54: Jan 25 | B54: DC-K1017 | C54: 2T Total Warehouse Network Productivity | D54: hl/h | E54: PLANT | F54: MAZ | G54: BU Colombia | H54: Colombia | I54: Colombia_PG_Name | J54: DC Siberia | K54: 5.116161001 | L54: 5.929017239 | M54: 6.102777726 | N54: 0.8128562381 | O54: -0.1737604866 | P54: 0 | Q54: 5.116161001 | R54: 5.929017239 | S54: 6.102777726 | T54: 0.8128562381 | U54: -0.1737604866 | V54: 0 | W54: 1 | X54: =VLOOKUP(J54,CDs_ANAPLAN!B:C,2,FALSE) -> AV50
A55: Jan 25 | B55: DC-K1017 | C55: 2T Total Warehouse Network Productivity | D55: hl/h | E55: PLANT | F55: MAZ | G55: BU Colombia | H55: Colombia | I55: Colombia_PG_Name | J55: DC Tunja | K55: 6.590060512 | L55: 6.405934112 | M55: 6.866424889 | N55: -0.1841263998 | O55: -0.4604907767 | P55: 0 | Q55: 6.590060512 | R55: 6.405934112 | S55: 6.866424889 | T55: -0.1841263998 | U55: -0.4604907767 | V55: 0 | W55: 1 | X55: =VLOOKUP(J55,CDs_ANAPLAN!B:C,2,FALSE) -> AV42
A56: Jan 25 | B56: DC-K1017 | C56: 2T Total Warehouse Network Productivity | D56: hl/h | E56: PLANT | F56: MAZ | G56: BU Colombia | H56: Colombia | I56: Colombia_PG_Name | J56: DC Chiquinquira | K56: 6.020057242 | L56: 6.159820845 | M56: 6.252241858 | N56: 0.1397636026 | O56: -0.09242101308 | P56: 0 | Q56: 6.020057242 | R56: 6.159820845 | S56: 6.252241858 | T56: 0.1397636026 | U56: -0.09242101308 | V56: 0 | W56: 1 | X56: =VLOOKUP(J56,CDs_ANAPLAN!B:C,2,FALSE) -> AV66
A57: Jan 25 | B57: DC-K1017 | C57: 2T Total Warehouse Network Productivity | D57: hl/h | E57: PLANT | F57: MAZ | G57: BU Colombia | H57: Colombia | I57: Colombia_PG_Name | J57: DC Montevideo (CO) | K57: 4.707918143 | L57: 5.636545779 | M57: 5.741197911 | N57: 0.9286276354 | O57: -0.1046521328 | P57: 0 | Q57: 4.707918143 | R57: 5.636545779 | S57: 5.741197911 | T57: 0.9286276354 | U57: -0.1046521328 | V57: 0 | W57: 1 | X57: =VLOOKUP(J57,CDs_ANAPLAN!B:C,2,FALSE) -> AV78
A58: Jan 25 | B58: DC-K1025 | C58: 2T Forklift Network Productivity (by FLT) | D58: hl/Forklift | E58: PLANT | F58: MAZ | G58: BU Colombia | H58: Colombia | I58: Colombia_PG_Name | J58: DC Boyaca | K58: 98355.33602 | L58: 63950 | M58: 57806.72027 | N58: -34405.33602 | O58: 6143.279733 | P58: 0 | Q58: 98355.33602 | R58: 63950 | S58: 57806.72027 | T58: -34405.33602 | U58: 6143.279733 | V58: 0 | W58: 1 | X58: =VLOOKUP(J58,CDs_ANAPLAN!B:C,2,FALSE) -> AV04
A59: Jan 25 | B59: DC-K1025 | C59: 2T Forklift Network Productivity (by FLT) | D59: hl/Forklift | E59: PLANT | F59: MAZ | G59: BU Colombia | H59: Colombia | I59: Colombia_PG_Name | J59: DC Tocancipa | K59: 30509.60036 | L59: 45718.04762 | M59: 63201.65972 | N59: 15208.44726 | O59: -17483.6121 | P59: 0 | Q59: 30509.60036 | R59: 45718.04762 | S59: 63201.65972 | T59: 15208.44726 | U59: -17483.6121 | V59: 0 | W59: 1 | X59: =VLOOKUP(J59,CDs_ANAPLAN!B:C,2,FALSE) -> AV06
A60: Jan 25 | B60: DC-K1025 | C60: 2T Forklift Network Productivity (by FLT) | D60: hl/Forklift | E60: PLANT | F60: MAZ | G60: BU Colombia | H60: Colombia | I60: Colombia_PG_Name | J60: DC Sibate | K60: 14675.88449 | L60: 13033.54144 | M60: 14223.89868 | N60: -1642.343047 | O60: -1190.357237 | P60: 0 | Q60: 14675.88449 | R60: 13033.54144 | S60: 14223.89868 | T60: -1642.343047 | U60: -1190.357237 | V60: 0 | W60: 1 | X60: =VLOOKUP(J60,CDs_ANAPLAN!B:C,2,FALSE) -> AV47
A61: Jan 25 | B61: DC-K1025 | C61: 2T Forklift Network Productivity (by FLT) | D61: hl/Forklift | E61: PLANT | F61: MAZ | G61: BU Colombia | H61: Colombia | I61: Colombia_PG_Name | J61: DC Siberia | K61: 10169.64903 | L61: 8954.015746 | M61: 11036.73474 | N61: -1215.633284 | O61: -2082.718994 | P61: 0 | Q61: 10169.64903 | R61: 8954.015746 | S61: 11036.73474 | T61: -1215.633284 | U61: -2082.718994 | V61: 0 | W61: 1 | X61: =VLOOKUP(J61,CDs_ANAPLAN!B:C,2,FALSE) -> AV50
A62: Jan 25 | B62: DC-K1025 | C62: 2T Forklift Network Productivity (by FLT) | D62: hl/Forklift | E62: PLANT | F62: MAZ | G62: BU Colombia | H62: Colombia | I62: Colombia_PG_Name | J62: DC Tunja | K62: 16085.23937 | L62: 11617.34232 | M62: 14346.93137 | N62: -4467.897042 | O62: -2729.589045 | P62: 0 | Q62: 16085.23937 | R62: 11617.34232 | S62: 14346.93137 | T62: -4467.897042 | U62: -2729.589045 | V62: 0 | W62: 1 | X62: =VLOOKUP(J62,CDs_ANAPLAN!B:C,2,FALSE) -> AV42
A63: Jan 25 | B63: DC-K1025 | C63: 2T Forklift Network Productivity (by FLT) | D63: hl/Forklift | E63: PLANT | F63: MAZ | G63: BU Colombia | H63: Colombia | I63: Colombia_PG_Name | J63: DC Chiquinquira | K63: 8018.716247 | L63: 11536.25157 | M63: 7737.774523 | N63: 3517.535323 | O63: 3798.477047 | P63: 0 | Q63: 8018.716247 | R63: 11536.25157 | S63: 7737.774523 | T63: 3517.535323 | U63: 3798.477047 | V63: 0 | W63: 1 | X63: =VLOOKUP(J63,CDs_ANAPLAN!B:C,2,FALSE) -> AV66
A64: Jan 25 | B64: DC-K1025 | C64: 2T Forklift Network Productivity (by FLT) | D64: hl/Forklift | E64: PLANT | F64: MAZ | G64: BU Colombia | H64: Colombia | I64: Colombia_PG_Name | J64: DC Montevideo (CO) | K64: 12145.25183 | L64: 8918.712447 | M64: 9222.912943 | N64: -3226.539383 | O64: -304.2004967 | P64: 0 | Q64: 12145.25183 | R64: 8918.712447 | S64: 9222.912943 | T64: -3226.539383 | U64: -304.2004967 | V64: 0 | W64: 1 | X64: =VLOOKUP(J64,CDs_ANAPLAN!B:C,2,FALSE) -> AV78
A65: Jan 25 | B65: DC-K1091 | C65: 2T turnover | D65: % | E65: PLANT | F65: MAZ | G65: BU Colombia | H65: Colombia | I65: Colombia_PG_Name | J65: DC Boyaca | K65: 0.7518938326 | L65: 0 | M65: 0.9070294785 | N65: -0.7518938326 | O65: -0.9070294785 | P65: 0 | Q65: 0.7518938326 | R65: 0 | S65: 0.9070294785 | T65: -0.7518938326 | U65: -0.9070294785 | V65: 0 | W65: 1 | X65: =VLOOKUP(J65,CDs_ANAPLAN!B:C,2,FALSE) -> AV04
A66: Jan 25 | B66: DC-K1091 | C66: 2T turnover | D66: % | E66: PLANT | F66: MAZ | G66: BU Colombia | H66: Colombia | I66: Colombia_PG_Name | J66: DC Tocancipa | K66: 0.5004170142 | L66: 0.3350898527 | M66: 0.5494505495 | N66: -0.1653271615 | O66: -0.2143606968 | P66: 0 | Q66: 0.5004170142 | R66: 0.3350898527 | S66: 0.5494505495 | T66: -0.1653271615 | U66: -0.2143606968 | V66: 0 | W66: 1 | X66: =VLOOKUP(J66,CDs_ANAPLAN!B:C,2,FALSE) -> AV06
A67: Jan 25 | B67: DC-K1091 | C67: 2T turnover | D67: % | E67: PLANT | F67: MAZ | G67: BU Colombia | H67: Colombia | I67: Colombia_PG_Name | J67: DC Sibate | K67: 0.6745362563 | L67: 0.3403974963 | M67: 0.7104795737 | N67: -0.33413876 | O67: -0.3700820774 | P67: 0 | Q67: 0.6745362563 | R67: 0.3403974963 | S67: 0.7104795737 | T67: -0.33413876 | U67: -0.3700820774 | V67: 0 | W67: 1 | X67: =VLOOKUP(J67,CDs_ANAPLAN!B:C,2,FALSE) -> AV47
A68: Jan 25 | B68: DC-K1091 | C68: 2T turnover | D68: % | E68: PLANT | F68: MAZ | G68: BU Colombia | H68: Colombia | I68: Colombia_PG_Name | J68: DC Siberia | K68: 0.3891050584 | L68: 0.4442852024 | M68: 0.3587443946 | N68: 0.05518014404 | O68: 0.08554080779 | P68: 0 | Q68: 0.3891050584 | R68: 0.4442852024 | S68: 0.3587443946 | T68: 0.05518014404 | U68: 0.08554080779 | V68: 0 | W68: 1 | X68: =VLOOKUP(J68,CDs_ANAPLAN!B:C,2,FALSE) -> AV50
A69: Jan 25 | B69: DC-K1091 | C69: 2T turnover | D69: % | E69: PLANT | F69: MAZ | G69: BU Colombia | H69: Colombia | I69: Colombia_PG_Name | J69: DC Tunja | K69: 0 | L69: 0 | M69: 0 | N69: 0 | O69: 0 | P69: 0 | Q69: 0 | R69: 0 | S69: 0 | T69: 0 | U69: 0 | V69: 0 | W69: 1 | X69: =VLOOKUP(J69,CDs_ANAPLAN!B:C,2,FALSE) -> AV42
A70: Jan 25 | B70: DC-K1091 | C70: 2T turnover | D70: % | E70: PLANT | F70: MAZ | G70: BU Colombia | H70: Colombia | I70: Colombia_PG_Name | J70: DC Chiquinquira | K70: 0 | L70: 0 | M70: 0 | N70: 0 | O70: 0 | P70: 0 | Q70: 0 | R70: 0 | S70: 0 | T70: 0 | U70: 0 | V70: 0 | W70: 1 | X70: =VLOOKUP(J70,CDs_ANAPLAN!B:C,2,FALSE) -> AV66
A71: Jan 25 | B71: DC-K1091 | C71: 2T turnover | D71: % | E71: PLANT | F71: MAZ | G71: BU Colombia | H71: Colombia | I71: Colombia_PG_Name | J71: DC Montevideo (CO) | K71: 1.005025126 | L71: 0 | M71: 0.4454342984 | N71: -1.005025126 | O71: -0.4454342984 | P71: 0 | Q71: 1.005025126 | R71: 0 | S71: 0.4454342984 | T71: -1.005025126 | U71: -0.4454342984 | V71: 0 | W71: 1 | X71: =VLOOKUP(J71,CDs_ANAPLAN!B:C,2,FALSE) -> AV78
A72: Jan 25 | B72: DC-K1275 | C72: 2T Warehouse Quality Index | D72: ppm | E72: PLANT | F72: MAZ | G72: BU Colombia | H72: Colombia | I72: Colombia_PG_Name | J72: DC Boyaca | K72: 25.46887745 | L72: 26.64519156 | M72: 25.46887745 | N72: 1.176314104 | O72: 1.176314107 | P72: 0 | Q72: 25.46887745 | R72: 26.64519156 | S72: 25.46887745 | T72: 1.176314104 | U72: 1.176314107 | V72: 0 | W72: 1 | X72: =VLOOKUP(J72,CDs_ANAPLAN!B:C,2,FALSE) -> AV04
A73: Jan 25 | B73: DC-K1275 | C73: 2T Warehouse Quality Index | D73: ppm | E73: PLANT | F73: MAZ | G73: BU Colombia | H73: Colombia | I73: Colombia_PG_Name | J73: DC Tocancipa | K73: 234.1476098 | L73: 157.5905837 | M73: 187.3180878 | N73: -76.55702608 | O73: -29.7275041 | P73: 0 | Q73: 234.1476098 | R73: 157.5905837 | S73: 187.3180878 | T73: -76.55702608 | U73: -29.7275041 | V73: 0 | W73: 1 | X73: =VLOOKUP(J73,CDs_ANAPLAN!B:C,2,FALSE) -> AV06
A74: Jan 25 | B74: DC-K1275 | C74: 2T Warehouse Quality Index | D74: ppm | E74: PLANT | F74: MAZ | G74: BU Colombia | H74: Colombia | I74: Colombia_PG_Name | J74: DC Sibate | K74: 12.15145387 | L74: 62.53097084 | M74: 12.15145387 | N74: 50.37951698 | O74: 50.37951697 | P74: 0 | Q74: 12.15145387 | R74: 62.53097084 | S74: 12.15145387 | T74: 50.37951698 | U74: 50.37951697 | V74: 0 | W74: 1 | X74: =VLOOKUP(J74,CDs_ANAPLAN!B:C,2,FALSE) -> AV47
A75: Jan 25 | B75: DC-K1275 | C75: 2T Warehouse Quality Index | D75: ppm | E75: PLANT | F75: MAZ | G75: BU Colombia | H75: Colombia | I75: Colombia_PG_Name | J75: DC Siberia | K75: 49.16590519 | L75: 80.41084809 | M75: 49.16590519 | N75: 31.24494291 | O75: 31.24494291 | P75: 0 | Q75: 49.16590519 | R75: 80.41084809 | S75: 49.16590519 | T75: 31.24494291 | U75: 31.24494291 | V75: 0 | W75: 1 | X75: =VLOOKUP(J75,CDs_ANAPLAN!B:C,2,FALSE) -> AV50
A76: Jan 25 | B76: DC-K1275 | C76: 2T Warehouse Quality Index | D76: ppm | E76: PLANT | F76: MAZ | G76: BU Colombia | H76: Colombia | I76: Colombia_PG_Name | J76: DC Tunja | K76: 22.58799668 | L76: 52.67986282 | M76: 22.58799667 | N76: 30.09186614 | O76: 30.09186615 | P76: 0 | Q76: 22.58799668 | R76: 52.67986282 | S76: 22.58799667 | T76: 30.09186614 | U76: 30.09186615 | V76: 0 | W76: 1 | X76: =VLOOKUP(J76,CDs_ANAPLAN!B:C,2,FALSE) -> AV42
A77: Jan 25 | B77: DC-K1275 | C77: 2T Warehouse Quality Index | D77: ppm | E77: PLANT | F77: MAZ | G77: BU Colombia | H77: Colombia | I77: Colombia_PG_Name | J77: DC Chiquinquira | K77: 214.4981749 | L77: 36.58033959 | M77: 214.4981749 | N77: -177.9178353 | O77: -177.9178353 | P77: 0 | Q77: 214.4981749 | R77: 36.58033959 | S77: 214.4981749 | T77: -177.9178353 | U77: -177.9178353 | V77: 0 | W77: 1 | X77: =VLOOKUP(J77,CDs_ANAPLAN!B:C,2,FALSE) -> AV66
A78: Jan 25 | B78: DC-K1275 | C78: 2T Warehouse Quality Index | D78: ppm | E78: PLANT | F78: MAZ | G78: BU Colombia | H78: Colombia | I78: Colombia_PG_Name | J78: DC Montevideo (CO) | K78: 21.38901718 | L78: 24.54639318 | M78: 21.38901717 | N78: 3.157375999 | O78: 3.157376002 | P78: 0 | Q78: 21.38901718 | R78: 24.54639318 | S78: 21.38901717 | T78: 3.157375999 | U78: 3.157376002 | V78: 0 | W78: 1 | X78: =VLOOKUP(J78,CDs_ANAPLAN!B:C,2,FALSE) -> AV78
A79: Jan 25 | B79: DC-K1276 | C79: 2T Delivery Quality Index | D79: ppm | E79: PLANT | F79: MAZ | G79: BU Colombia | H79: Colombia | I79: Colombia_PG_Name | J79: DC Boyaca | K79: 84.78364544 | L79: 3.27952932 | M79: 84.78364543 | N79: -81.50411612 | O79: -81.50411611 | P79: 0 | Q79: 84.78364544 | R79: 3.27952932 | S79: 84.78364543 | T79: -81.50411612 | U79: -81.50411611 | V79: 0 | W79: 1 | X79: =VLOOKUP(J79,CDs_ANAPLAN!B:C,2,FALSE) -> AV04
A80: Jan 25 | B80: DC-K1276 | C80: 2T Delivery Quality Index | D80: ppm | E80: PLANT | F80: MAZ | G80: BU Colombia | H80: Colombia | I80: Colombia_PG_Name | J80: DC Tocancipa | K80: 161.736418 | L80: 15.56631611 | M80: 161.736418 | N80: -146.1701019 | O80: -146.1701019 | P80: 0 | Q80: 161.736418 | R80: 15.56631611 | S80: 161.736418 | T80: -146.1701019 | U80: -146.1701019 | V80: 0 | W80: 1 | X80: =VLOOKUP(J80,CDs_ANAPLAN!B:C,2,FALSE) -> AV06
A81: Jan 25 | B81: DC-K1276 | C81: 2T Delivery Quality Index | D81: ppm | E81: PLANT | F81: MAZ | G81: BU Colombia | H81: Colombia | I81: Colombia_PG_Name | J81: DC Sibate | K81: 26.15530409 | L81: 132.0904089 | M81: 26.15530409 | N81: 105.9351048 | O81: 105.9351048 | P81: 0 | Q81: 26.15530409 | R81: 132.0904089 | S81: 26.15530409 | T81: 105.9351048 | U81: 105.9351048 | V81: 0 | W81: 1 | X81: =VLOOKUP(J81,CDs_ANAPLAN!B:C,2,FALSE) -> AV47
A82: Jan 25 | B82: DC-K1276 | C82: 2T Delivery Quality Index | D82: ppm | E82: PLANT | F82: MAZ | G82: BU Colombia | H82: Colombia | I82: Colombia_PG_Name | J82: DC Siberia | K82: 117.9967699 | L82: 74.13074291 | M82: 117.9967698 | N82: -43.86602699 | O82: -43.86602694 | P82: 0 | Q82: 117.9967699 | R82: 74.13074291 | S82: 117.9967698 | T82: -43.86602699 | U82: -43.86602694 | V82: 0 | W82: 1 | X82: =VLOOKUP(J82,CDs_ANAPLAN!B:C,2,FALSE) -> AV50
A83: Jan 25 | B83: DC-K1276 | C83: 2T Delivery Quality Index | D83: ppm | E83: PLANT | F83: MAZ | G83: BU Colombia | H83: Colombia | I83: Colombia_PG_Name | J83: DC Tunja | K83: 4.144343068 | L83: 18.86192193 | M83: 4.144343075 | N83: 14.71757886 | O83: 14.71757885 | P83: 0 | Q83: 4.144343068 | R83: 18.86192193 | S83: 4.144343075 | T83: 14.71757886 | U83: 14.71757885 | V83: 0 | W83: 1 | X83: =VLOOKUP(J83,CDs_ANAPLAN!B:C,2,FALSE) -> AV42
A84: Jan 25 | B84: DC-K1276 | C84: 2T Delivery Quality Index | D84: ppm | E84: PLANT | F84: MAZ | G84: BU Colombia | H84: Colombia | I84: Colombia_PG_Name | J84: DC Chiquinquira | K84: 19.9533186 | L84: 14.75705823 | M84: 19.9533186 | N84: -5.196260367 | O84: -5.196260373 | P84: 0 | Q84: 19.9533186 | R84: 14.75705823 | S84: 19.9533186 | T84: -5.196260367 | U84: -5.196260373 | V84: 0 | W84: 1 | X84: =VLOOKUP(J84,CDs_ANAPLAN!B:C,2,FALSE) -> AV66
A85: Jan 25 | B85: DC-K1276 | C85: 2T Delivery Quality Index | D85: ppm | E85: PLANT | F85: MAZ | G85: BU Colombia | H85: Colombia | I85: Colombia_PG_Name | J85: DC Montevideo (CO) | K85: 74.5968999 | L85: 21.92359051 | M85: 74.59689991 | N85: -52.67330939 | O85: -52.67330939 | P85: 0 | Q85: 74.5968999 | R85: 21.92359051 | S85: 74.59689991 | T85: -52.67330939 | U85: -52.67330939 | V85: 0 | W85: 1 | X85: =VLOOKUP(J85,CDs_ANAPLAN!B:C,2,FALSE) -> AV78
A86: Jan 25 | B86: DC-K1401 | C86: 2T Lost Time Injuries | D86: # | E86: PLANT | F86: MAZ | G86: BU Colombia | H86: Colombia | I86: Colombia_PG_Name | J86: DC Boyaca | K86: 0 | L86: 0 | M86: 0 | N86: 0 | O86: 0 | P86: 0 | Q86: 0 | R86: 0 | S86: 0 | T86: 0 | U86: 0 | V86: 0 | W86: 1 | X86: =VLOOKUP(J86,CDs_ANAPLAN!B:C,2,FALSE) -> AV04
A87: Jan 25 | B87: DC-K1401 | C87: 2T Lost Time Injuries | D87: # | E87: PLANT | F87: MAZ | G87: BU Colombia | H87: Colombia | I87: Colombia_PG_Name | J87: DC Tocancipa | K87: 0 | L87: 0 | M87: 0 | N87: 0 | O87: 0 | P87: 0 | Q87: 0 | R87: 0 | S87: 0 | T87: 0 | U87: 0 | V87: 0 | W87: 1 | X87: =VLOOKUP(J87,CDs_ANAPLAN!B:C,2,FALSE) -> AV06
A88: Jan 25 | B88: DC-K1401 | C88: 2T Lost Time Injuries | D88: # | E88: PLANT | F88: MAZ | G88: BU Colombia | H88: Colombia | I88: Colombia_PG_Name | J88: DC Sibate | K88: 0 | L88: 0 | M88: 0 | N88: 0 | O88: 0 | P88: 0 | Q88: 0 | R88: 0 | S88: 0 | T88: 0 | U88: 0 | V88: 0 | W88: 1 | X88: =VLOOKUP(J88,CDs_ANAPLAN!B:C,2,FALSE) -> AV47
A89: Jan 25 | B89: DC-K1401 | C89: 2T Lost Time Injuries | D89: # | E89: PLANT | F89: MAZ | G89: BU Colombia | H89: Colombia | I89: Colombia_PG_Name | J89: DC Siberia | K89: 0 | L89: 0 | M89: 0 | N89: 0 | O89: 0 | P89: 0 | Q89: 0 | R89: 0 | S89: 0 | T89: 0 | U89: 0 | V89: 0 | W89: 1 | X89: =VLOOKUP(J89,CDs_ANAPLAN!B:C,2,FALSE) -> AV50
A90: Jan 25 | B90: DC-K1401 | C90: 2T Lost Time Injuries | D90: # | E90: PLANT | F90: MAZ | G90: BU Colombia | H90: Colombia | I90: Colombia_PG_Name | J90: DC Tunja | K90: 0 | L90: 0 | M90: 0 | N90: 0 | O90: 0 | P90: 0 | Q90: 0 | R90: 0 | S90: 0 | T90: 0 | U90: 0 | V90: 0 | W90: 1 | X90: =VLOOKUP(J90,CDs_ANAPLAN!B:C,2,FALSE) -> AV42
A91: Jan 25 | B91: DC-K1401 | C91: 2T Lost Time Injuries | D91: # | E91: PLANT | F91: MAZ | G91: BU Colombia | H91: Colombia | I91: Colombia_PG_Name | J91: DC Chiquinquira | K91: 0 | L91: 0 | M91: 0 | N91: 0 | O91: 0 | P91: 0 | Q91: 0 | R91: 0 | S91: 0 | T91: 0 | U91: 0 | V91: 0 | W91: 1 | X91: =VLOOKUP(J91,CDs_ANAPLAN!B:C,2,FALSE) -> AV66
A92: Jan 25 | B92: DC-K1401 | C92: 2T Lost Time Injuries | D92: # | E92: PLANT | F92: MAZ | G92: BU Colombia | H92: Colombia | I92: Colombia_PG_Name | J92: DC Montevideo (CO) | K92: 0 | L92: 0 | M92: 0 | N92: 0 | O92: 0 | P92: 0 | Q92: 0 | R92: 0 | S92: 0 | T92: 0 | U92: 0 | V92: 0 | W92: 1 | X92: =VLOOKUP(J92,CDs_ANAPLAN!B:C,2,FALSE) -> AV78
A93: Jan 25 | B93: DC-K1402 | C93: 2T Total Recordable Injuries (TRI) | D93: # | E93: PLANT | F93: MAZ | G93: BU Colombia | H93: Colombia | I93: Colombia_PG_Name | J93: DC Boyaca | K93: 0 | L93: 0 | M93: 0 | N93: 0 | O93: 0 | P93: 0 | Q93: 0 | R93: 0 | S93: 0 | T93: 0 | U93: 0 | V93: 0 | W93: 1 | X93: =VLOOKUP(J93,CDs_ANAPLAN!B:C,2,FALSE) -> AV04
A94: Jan 25 | B94: DC-K1402 | C94: 2T Total Recordable Injuries (TRI) | D94: # | E94: PLANT | F94: MAZ | G94: BU Colombia | H94: Colombia | I94: Colombia_PG_Name | J94: DC Tocancipa | K94: 0 | L94: 0 | M94: 0 | N94: 0 | O94: 0 | P94: 0 | Q94: 0 | R94: 0 | S94: 0 | T94: 0 | U94: 0 | V94: 0 | W94: 1 | X94: =VLOOKUP(J94,CDs_ANAPLAN!B:C,2,FALSE) -> AV06
A95: Jan 25 | B95: DC-K1402 | C95: 2T Total Recordable Injuries (TRI) | D95: # | E95: PLANT | F95: MAZ | G95: BU Colombia | H95: Colombia | I95: Colombia_PG_Name | J95: DC Sibate | K95: 0 | L95: 0 | M95: 0 | N95: 0 | O95: 0 | P95: 0 | Q95: 0 | R95: 0 | S95: 0 | T95: 0 | U95: 0 | V95: 0 | W95: 1 | X95: =VLOOKUP(J95,CDs_ANAPLAN!B:C,2,FALSE) -> AV47
A96: Jan 25 | B96: DC-K1402 | C96: 2T Total Recordable Injuries (TRI) | D96: # | E96: PLANT | F96: MAZ | G96: BU Colombia | H96: Colombia | I96: Colombia_PG_Name | J96: DC Siberia | K96: 0 | L96: 0 | M96: 0 | N96: 0 | O96: 0 | P96: 0 | Q96: 0 | R96: 0 | S96: 0 | T96: 0 | U96: 0 | V96: 0 | W96: 1 | X96: =VLOOKUP(J96,CDs_ANAPLAN!B:C,2,FALSE) -> AV50
A97: Jan 25 | B97: DC-K1402 | C97: 2T Total Recordable Injuries (TRI) | D97: # | E97: PLANT | F97: MAZ | G97: BU Colombia | H97: Colombia | I97: Colombia_PG_Name | J97: DC Tunja | K97: 0 | L97: 0 | M97: 0 | N97: 0 | O97: 0 | P97: 0 | Q97: 0 | R97: 0 | S97: 0 | T97: 0 | U97: 0 | V97: 0 | W97: 1 | X97: =VLOOKUP(J97,CDs_ANAPLAN!B:C,2,FALSE) -> AV42
A98: Jan 25 | B98: DC-K1402 | C98: 2T Total Recordable Injuries (TRI) | D98: # | E98: PLANT | F98: MAZ | G98: BU Colombia | H98: Colombia | I98: Colombia_PG_Name | J98: DC Chiquinquira | K98: 0 | L98: 0 | M98: 0 | N98: 0 | O98: 0 | P98: 0 | Q98: 0 | R98: 0 | S98: 0 | T98: 0 | U98: 0 | V98: 0 | W98: 1 | X98: =VLOOKUP(J98,CDs_ANAPLAN!B:C,2,FALSE) -> AV66
A99: Jan 25 | B99: DC-K1402 | C99: 2T Total Recordable Injuries (TRI) | D99: # | E99: PLANT | F99: MAZ | G99: BU Colombia | H99: Colombia | I99: Colombia_PG_Name | J99: DC Montevideo (CO) | K99: 0 | L99: 0 | M99: 0 | N99: 0 | O99: 0 | P99: 0 | Q99: 0 | R99: 0 | S99: 0 | T99: 0 | U99: 0 | V99: 0 | W99: 1 | X99: =VLOOKUP(J99,CDs_ANAPLAN!B:C,2,FALSE) -> AV78
A100: Jan 25 | B100: DC-K2200 | C100: 2T Capacity Occupation | D100: pck/Truck | E100: PLANT | F100: MAZ | G100: BU Colombia | H100: Colombia | I100: Colombia_PG_Name | J100: DC Boyaca | K100: 0 | L100: 0 | M100: 0 | N100: 0 | O100: 0 | P100: 0 | Q100: 0 | R100: 0 | S100: 0 | T100: 0 | U100: 0 | V100: 0 | W100: 1 | X100: =VLOOKUP(J100,CDs_ANAPLAN!B:C,2,FALSE) -> AV04
A101: Jan 25 | B101: DC-K2200 | C101: 2T Capacity Occupation | D101: pck/Truck | E101: PLANT | F101: MAZ | G101: BU Colombia | H101: Colombia | I101: Colombia_PG_Name | J101: DC Tocancipa | K101: 0 | L101: 0 | M101: 0 | N101: 0 | O101: 0 | P101: 0 | Q101: 0 | R101: 0 | S101: 0 | T101: 0 | U101: 0 | V101: 0 | W101: 1 | X101: =VLOOKUP(J101,CDs_ANAPLAN!B:C,2,FALSE) -> AV06
A102: Jan 25 | B102: DC-K2200 | C102: 2T Capacity Occupation | D102: pck/Truck | E102: PLANT | F102: MAZ | G102: BU Colombia | H102: Colombia | I102: Colombia_PG_Name | J102: DC Sibate | K102: 0 | L102: 0 | M102: 0 | N102: 0 | O102: 0 | P102: 0 | Q102: 0 | R102: 0 | S102: 0 | T102: 0 | U102: 0 | V102: 0 | W102: 1 | X102: =VLOOKUP(J102,CDs_ANAPLAN!B:C,2,FALSE) -> AV47
A103: Jan 25 | B103: DC-K2200 | C103: 2T Capacity Occupation | D103: pck/Truck | E103: PLANT | F103: MAZ | G103: BU Colombia | H103: Colombia | I103: Colombia_PG_Name | J103: DC Siberia | K103: 0 | L103: 0 | M103: 0 | N103: 0 | O103: 0 | P103: 0 | Q103: 0 | R103: 0 | S103: 0 | T103: 0 | U103: 0 | V103: 0 | W103: 1 | X103: =VLOOKUP(J103,CDs_ANAPLAN!B:C,2,FALSE) -> AV50
A104: Jan 25 | B104: DC-K2200 | C104: 2T Capacity Occupation | D104: pck/Truck | E104: PLANT | F104: MAZ | G104: BU Colombia | H104: Colombia | I104: Colombia_PG_Name | J104: DC Tunja | K104: 0 | L104: 0 | M104: 0 | N104: 0 | O104: 0 | P104: 0 | Q104: 0 | R104: 0 | S104: 0 | T104: 0 | U104: 0 | V104: 0 | W104: 1 | X104: =VLOOKUP(J104,CDs_ANAPLAN!B:C,2,FALSE) -> AV42
A105: Jan 25 | B105: DC-K2200 | C105: 2T Capacity Occupation | D105: pck/Truck | E105: PLANT | F105: MAZ | G105: BU Colombia | H105: Colombia | I105: Colombia_PG_Name | J105: DC Chiquinquira | K105: 0 | L105: 0 | M105: 0 | N105: 0 | O105: 0 | P105: 0 | Q105: 0 | R105: 0 | S105: 0 | T105: 0 | U105: 0 | V105: 0 | W105: 1 | X105: =VLOOKUP(J105,CDs_ANAPLAN!B:C,2,FALSE) -> AV66
A106: Jan 25 | B106: DC-K2200 | C106: 2T Capacity Occupation | D106: pck/Truck | E106: PLANT | F106: MAZ | G106: BU Colombia | H106: Colombia | I106: Colombia_PG_Name | J106: DC Montevideo (CO) | K106: 0 | L106: 0 | M106: 0 | N106: 0 | O106: 0 | P106: 0 | Q106: 0 | R106: 0 | S106: 0 | T106: 0 | U106: 0 | V106: 0 | W106: 1 | X106: =VLOOKUP(J106,CDs_ANAPLAN!B:C,2,FALSE) -> AV78
A107: Jan 25 | B107: DC-K2205 | C107: 2T Number of Deliveries per Shipment | D107: # | E107: PLANT | F107: MAZ | G107: BU Colombia | H107: Colombia | I107: Colombia_PG_Name | J107: DC Boyaca | K107: 19.91444513 | L107: 21.50032279 | M107: 20.23307626 | N107: 1.585877656 | O107: 1.267246529 | P107: 0 | Q107: 19.91444513 | R107: 21.50032279 | S107: 0 | T107: 1.585877656 | U107: 21.50032279 | V107: 0 | W107: 1 | X107: =VLOOKUP(J107,CDs_ANAPLAN!B:C,2,FALSE) -> AV04
A108: Jan 25 | B108: DC-K2205 | C108: 2T Number of Deliveries per Shipment | D108: # | E108: PLANT | F108: MAZ | G108: BU Colombia | H108: Colombia | I108: Colombia_PG_Name | J108: DC Tocancipa | K108: 11.59399303 | L108: 11.05456989 | M108: 11.77949692 | N108: -0.5394231351 | O108: -0.7249270275 | P108: 0 | Q108: 11.59399303 | R108: 11.05456989 | S108: 0 | T108: -0.5394231351 | U108: 11.05456989 | V108: 0 | W108: 1 | X108: =VLOOKUP(J108,CDs_ANAPLAN!B:C,2,FALSE) -> AV06
A109: Jan 25 | B109: DC-K2205 | C109: 2T Number of Deliveries per Shipment | D109: # | E109: PLANT | F109: MAZ | G109: BU Colombia | H109: Colombia | I109: Colombia_PG_Name | J109: DC Sibate | K109: 15.04388229 | L109: 15.50502793 | M109: 15.28458441 | N109: 0.4611456408 | O109: 0.220443523 | P109: 0 | Q109: 15.04388229 | R109: 15.50502793 | S109: 0 | T109: 0.4611456408 | U109: 15.50502793 | V109: 0 | W109: 1 | X109: =VLOOKUP(J109,CDs_ANAPLAN!B:C,2,FALSE) -> AV47
A110: Jan 25 | B110: DC-K2205 | C110: 2T Number of Deliveries per Shipment | D110: # | E110: PLANT | F110: MAZ | G110: BU Colombia | H110: Colombia | I110: Colombia_PG_Name | J110: DC Siberia | K110: 11.73723229 | L110: 12.04509974 | M110: 11.92502801 | N110: 0.3078674499 | O110: 0.1200717298 | P110: 0 | Q110: 11.73723229 | R110: 12.04509974 | S110: 0 | T110: 0.3078674499 | U110: 12.04509974 | V110: 0 | W110: 1 | X110: =VLOOKUP(J110,CDs_ANAPLAN!B:C,2,FALSE) -> AV50
A111: Jan 25 | B111: DC-K2205 | C111: 2T Number of Deliveries per Shipment | D111: # | E111: PLANT | F111: MAZ | G111: BU Colombia | H111: Colombia | I111: Colombia_PG_Name | J111: DC Tunja | K111: 21.64944962 | L111: 23.7417962 | M111: 21.99584081 | N111: 2.092346581 | O111: 1.74595539 | P111: 0 | Q111: 21.64944962 | R111: 23.7417962 | S111: 0 | T111: 2.092346581 | U111: 23.7417962 | V111: 0 | W111: 1 | X111: =VLOOKUP(J111,CDs_ANAPLAN!B:C,2,FALSE) -> AV42
A112: Jan 25 | B112: DC-K2205 | C112: 2T Number of Deliveries per Shipment | D112: # | E112: PLANT | F112: MAZ | G112: BU Colombia | H112: Colombia | I112: Colombia_PG_Name | J112: DC Chiquinquira | K112: 12.29359165 | L112: 15.77574751 | M112: 12.49028912 | N112: 3.482155854 | O112: 3.285458388 | P112: 0 | Q112: 12.29359165 | R112: 15.77574751 | S112: 0 | T112: 3.482155854 | U112: 15.77574751 | V112: 0 | W112: 1 | X112: =VLOOKUP(J112,CDs_ANAPLAN!B:C,2,FALSE) -> AV66
A113: Jan 25 | B113: DC-K2205 | C113: 2T Number of Deliveries per Shipment | D113: # | E113: PLANT | F113: MAZ | G113: BU Colombia | H113: Colombia | I113: Colombia_PG_Name | J113: DC Montevideo (CO) | K113: 13.25247148 | L113: 15.58153639 | M113: 13.46451103 | N113: 2.329064905 | O113: 2.117025358 | P113: 0 | Q113: 13.25247148 | R113: 15.58153639 | S113: 0 | T113: 2.329064905 | U113: 15.58153639 | V113: 0 | W113: 1 | X113: =VLOOKUP(J113,CDs_ANAPLAN!B:C,2,FALSE) -> AV78
A114: Jan 25 | B114: DC-K2210 | C114: 2T Average Drop Size | D114: pck | E114: PLANT | F114: MAZ | G114: BU Colombia | H114: Colombia | I114: Colombia_PG_Name | J114: DC Boyaca | K114: 59.10202042 | L114: 46.94243706 | M114: 43.76479156 | N114: -12.15958336 | O114: 3.177645505 | P114: 0 | Q114: 59.10202042 | R114: 46.94243706 | S114: 43.76479156 | T114: -12.15958336 | U114: 3.177645505 | V114: 0 | W114: 1 | X114: =VLOOKUP(J114,CDs_ANAPLAN!B:C,2,FALSE) -> AV04
A115: Jan 25 | B115: DC-K2210 | C115: 2T Average Drop Size | D115: pck | E115: PLANT | F115: MAZ | G115: BU Colombia | H115: Colombia | I115: Colombia_PG_Name | J115: DC Tocancipa | K115: 124.0243177 | L115: 95.33628172 | M115: 85.79046486 | N115: -28.68803595 | O115: 9.545816856 | P115: 0 | Q115: 124.0243177 | R115: 95.33628172 | S115: 85.79046486 | T115: -28.68803595 | U115: 9.545816856 | V115: 0 | W115: 1 | X115: =VLOOKUP(J115,CDs_ANAPLAN!B:C,2,FALSE) -> AV06
A116: Jan 25 | B116: DC-K2210 | C116: 2T Average Drop Size | D116: pck | E116: PLANT | F116: MAZ | G116: BU Colombia | H116: Colombia | I116: Colombia_PG_Name | J116: DC Sibate | K116: 67.72157824 | L116: 73.65646682 | M116: 71.87347741 | N116: 5.934888573 | O116: 1.782989406 | P116: 0 | Q116: 67.72157824 | R116: 73.65646682 | S116: 71.87347741 | T116: 5.934888573 | U116: 1.782989406 | V116: 0 | W116: 1 | X116: =VLOOKUP(J116,CDs_ANAPLAN!B:C,2,FALSE) -> AV47
A117: Jan 25 | B117: DC-K2210 | C117: 2T Average Drop Size | D117: pck | E117: PLANT | F117: MAZ | G117: BU Colombia | H117: Colombia | I117: Colombia_PG_Name | J117: DC Siberia | K117: 53.57728449 | L117: 61.00921505 | M117: 53.84057821 | N117: 7.431930566 | O117: 7.168636844 | P117: 0 | Q117: 53.57728449 | R117: 61.00921505 | S117: 53.84057821 | T117: 7.431930566 | U117: 7.168636844 | V117: 0 | W117: 1 | X117: =VLOOKUP(J117,CDs_ANAPLAN!B:C,2,FALSE) -> AV50
A118: Jan 25 | B118: DC-K2210 | C118: 2T Average Drop Size | D118: pck | E118: PLANT | F118: MAZ | G118: BU Colombia | H118: Colombia | I118: Colombia_PG_Name | J118: DC Tunja | K118: 46.13040128 | L118: 45.39194799 | M118: 49.34240136 | N118: -0.7384532961 | O118: -3.950453373 | P118: 0 | Q118: 46.13040128 | R118: 45.39194799 | S118: 49.34240136 | T118: -0.7384532961 | U118: -3.950453373 | V118: 0 | W118: 1 | X118: =VLOOKUP(J118,CDs_ANAPLAN!B:C,2,FALSE) -> AV42
A119: Jan 25 | B119: DC-K2210 | C119: 2T Average Drop Size | D119: pck | E119: PLANT | F119: MAZ | G119: BU Colombia | H119: Colombia | I119: Colombia_PG_Name | J119: DC Chiquinquira | K119: 72.27532792 | L119: 64.30779443 | M119: 76.72018042 | N119: -7.967533489 | O119: -12.41238599 | P119: 0 | Q119: 72.27532792 | R119: 64.30779443 | S119: 76.72018042 | T119: -7.967533489 | U119: -12.41238599 | V119: 0 | W119: 1 | X119: =VLOOKUP(J119,CDs_ANAPLAN!B:C,2,FALSE) -> AV66
A120: Jan 25 | B120: DC-K2210 | C120: 2T Average Drop Size | D120: pck | E120: PLANT | F120: MAZ | G120: BU Colombia | H120: Colombia | I120: Colombia_PG_Name | J120: DC Montevideo (CO) | K120: 60.26461296 | L120: 60.28302119 | M120: 66.85391523 | N120: 0.01840823412 | O120: -6.570894039 | P120: 0 | Q120: 60.26461296 | R120: 60.28302119 | S120: 66.85391523 | T120: 0.01840823412 | U120: -6.570894039 | V120: 0 | W120: 1 | X120: =VLOOKUP(J120,CDs_ANAPLAN!B:C,2,FALSE) -> AV78
A121: Jan 25 | B121: DC-K2220 | C121: 2T Average Distance per Route | D121: km | E121: PLANT | F121: MAZ | G121: BU Colombia | H121: Colombia | I121: Colombia_PG_Name | J121: DC Boyaca | K121: 77.56850589 | L121: 78.33627663 | M121: 68.44808305 | N121: 0.7677707404 | O121: 9.88819358 | P121: 0 | Q121: 77.56850589 | R121: 78.33627663 | S121: 0 | T121: 0.7677707404 | U121: 78.33627663 | V121: 0 | W121: 1 | X121: =VLOOKUP(J121,CDs_ANAPLAN!B:C,2,FALSE) -> AV04
A122: Jan 25 | B122: DC-K2220 | C122: 2T Average Distance per Route | D122: km | E122: PLANT | F122: MAZ | G122: BU Colombia | H122: Colombia | I122: Colombia_PG_Name | J122: DC Tocancipa | K122: 70.76937517 | L122: 86.17420772 | M122: 82.22988302 | N122: 15.40483255 | O122: 3.944324695 | P122: 0 | Q122: 70.76937517 | R122: 86.17420772 | S122: 0 | T122: 15.40483255 | U122: 86.17420772 | V122: 0 | W122: 1 | X122: =VLOOKUP(J122,CDs_ANAPLAN!B:C,2,FALSE) -> AV06
A123: Jan 25 | B123: DC-K2220 | C123: 2T Average Distance per Route | D123: km | E123: PLANT | F123: MAZ | G123: BU Colombia | H123: Colombia | I123: Colombia_PG_Name | J123: DC Sibate | K123: 55.22405782 | L123: 57.29614665 | M123: 49.56553583 | N123: 2.072088827 | O123: 7.730610818 | P123: 0 | Q123: 55.22405782 | R123: 57.29614665 | S123: 0 | T123: 2.072088827 | U123: 57.29614665 | V123: 0 | W123: 1 | X123: =VLOOKUP(J123,CDs_ANAPLAN!B:C,2,FALSE) -> AV47
A124: Jan 25 | B124: DC-K2220 | C124: 2T Average Distance per Route | D124: km | E124: PLANT | F124: MAZ | G124: BU Colombia | H124: Colombia | I124: Colombia_PG_Name | J124: DC Siberia | K124: 37.5236134 | L124: 41.76023394 | M124: 35.13944484 | N124: 4.236620541 | O124: 6.6207891 | P124: 0 | Q124: 37.5236134 | R124: 41.76023394 | S124: 0 | T124: 4.236620541 | U124: 41.76023394 | V124: 0 | W124: 1 | X124: =VLOOKUP(J124,CDs_ANAPLAN!B:C,2,FALSE) -> AV50
A125: Jan 25 | B125: DC-K2220 | C125: 2T Average Distance per Route | D125: km | E125: PLANT | F125: MAZ | G125: BU Colombia | H125: Colombia | I125: Colombia_PG_Name | J125: DC Tunja | K125: 67.37256562 | L125: 72.88816515 | M125: 68.78097631 | N125: 5.515599524 | O125: 4.107188837 | P125: 0 | Q125: 67.37256562 | R125: 72.88816515 | S125: 0 | T125: 5.515599524 | U125: 72.88816515 | V125: 0 | W125: 1 | X125: =VLOOKUP(J125,CDs_ANAPLAN!B:C,2,FALSE) -> AV42
A126: Jan 25 | B126: DC-K2220 | C126: 2T Average Distance per Route | D126: km | E126: PLANT | F126: MAZ | G126: BU Colombia | H126: Colombia | I126: Colombia_PG_Name | J126: DC Chiquinquira | K126: 66.08494784 | L126: 78.84812752 | M126: 71.38208036 | N126: 12.76317969 | O126: 7.466047165 | P126: 0 | Q126: 66.08494784 | R126: 78.84812752 | S126: 0 | T126: 12.76317969 | U126: 78.84812752 | V126: 0 | W126: 1 | X126: =VLOOKUP(J126,CDs_ANAPLAN!B:C,2,FALSE) -> AV66
A127: Jan 25 | B127: DC-K2220 | C127: 2T Average Distance per Route | D127: km | E127: PLANT | F127: MAZ | G127: BU Colombia | H127: Colombia | I127: Colombia_PG_Name | J127: DC Montevideo (CO) | K127: 40.02129278 | L127: 26.54086146 | M127: 20.30874972 | N127: -13.48043131 | O127: 6.232111742 | P127: 0 | Q127: 40.02129278 | R127: 26.54086146 | S127: 0 | T127: -13.48043131 | U127: 26.54086146 | V127: 0 | W127: 1 | X127: =VLOOKUP(J127,CDs_ANAPLAN!B:C,2,FALSE) -> AV78
A128: Jan 25 | B128: DC-K2230 | C128: 2T Average Truck Cycle Time | D128: h/truck | E128: PLANT | F128: MAZ | G128: BU Colombia | H128: Colombia | I128: Colombia_PG_Name | J128: DC Boyaca | K128: 0 | L128: 0 | M128: 1.799982635 | N128: 0 | O128: -1.799982635 | P128: 0 | Q128: 0 | R128: 0 | S128: 1.799982635 | T128: 0 | U128: -1.799982635 | V128: 0 | W128: 1 | X128: =VLOOKUP(J128,CDs_ANAPLAN!B:C,2,FALSE) -> AV04
A129: Jan 25 | B129: DC-K2230 | C129: 2T Average Truck Cycle Time | D129: h/truck | E129: PLANT | F129: MAZ | G129: BU Colombia | H129: Colombia | I129: Colombia_PG_Name | J129: DC Tocancipa | K129: 0 | L129: 0 | M129: 1.800000001 | N129: 0 | O129: -1.800000001 | P129: 0 | Q129: 0 | R129: 0 | S129: 1.800000001 | T129: 0 | U129: -1.800000001 | V129: 0 | W129: 1 | X129: =VLOOKUP(J129,CDs_ANAPLAN!B:C,2,FALSE) -> AV06
A130: Jan 25 | B130: DC-K2230 | C130: 2T Average Truck Cycle Time | D130: h/truck | E130: PLANT | F130: MAZ | G130: BU Colombia | H130: Colombia | I130: Colombia_PG_Name | J130: DC Sibate | K130: 0.007083624462 | L130: 0.01019826468 | M130: 3.499999999 | N130: 0.003114640214 | O130: -3.489801734 | P130: 0 | Q130: 0.007083624462 | R130: 0.01019826468 | S130: 3.499999999 | T130: 0.003114640214 | U130: -3.489801734 | V130: 0 | W130: 1 | X130: =VLOOKUP(J130,CDs_ANAPLAN!B:C,2,FALSE) -> AV47
A131: Jan 25 | B131: DC-K2230 | C131: 2T Average Truck Cycle Time | D131: h/truck | E131: PLANT | F131: MAZ | G131: BU Colombia | H131: Colombia | I131: Colombia_PG_Name | J131: DC Siberia | K131: 0.005175406227 | L131: 0.00422728597 | M131: 2.500000001 | N131: -0.0009481202568 | O131: -2.495772715 | P131: 0 | Q131: 0.005175406227 | R131: 0.00422728597 | S131: 2.500000001 | T131: -0.0009481202568 | U131: -2.495772715 | V131: 0 | W131: 1 | X131: =VLOOKUP(J131,CDs_ANAPLAN!B:C,2,FALSE) -> AV50
A132: Jan 25 | B132: DC-K2230 | C132: 2T Average Truck Cycle Time | D132: h/truck | E132: PLANT | F132: MAZ | G132: BU Colombia | H132: Colombia | I132: Colombia_PG_Name | J132: DC Tunja | K132: 0.01325050562 | L132: 0.004839259351 | M132: 2.5 | N132: -0.008411246265 | O132: -2.495160741 | P132: 0 | Q132: 0.01325050562 | R132: 0.004839259351 | S132: 2.5 | T132: -0.008411246265 | U132: -2.495160741 | V132: 0 | W132: 1 | X132: =VLOOKUP(J132,CDs_ANAPLAN!B:C,2,FALSE) -> AV42
A133: Jan 25 | B133: DC-K2230 | C133: 2T Average Truck Cycle Time | D133: h/truck | E133: PLANT | F133: MAZ | G133: BU Colombia | H133: Colombia | I133: Colombia_PG_Name | J133: DC Chiquinquira | K133: 0 | L133: 0 | M133: 2.600000001 | N133: 0 | O133: -2.600000001 | P133: 0 | Q133: 0 | R133: 0 | S133: 2.600000001 | T133: 0 | U133: -2.600000001 | V133: 0 | W133: 1 | X133: =VLOOKUP(J133,CDs_ANAPLAN!B:C,2,FALSE) -> AV66
A134: Jan 25 | B134: DC-K2230 | C134: 2T Average Truck Cycle Time | D134: h/truck | E134: PLANT | F134: MAZ | G134: BU Colombia | H134: Colombia | I134: Colombia_PG_Name | J134: DC Montevideo (CO) | K134: 0 | L134: 0 | M134: 2.5 | N134: 0 | O134: -2.5 | P134: 0 | Q134: 0 | R134: 0 | S134: 2.5 | T134: 0 | U134: -2.5 | V134: 0 | W134: 1 | X134: =VLOOKUP(J134,CDs_ANAPLAN!B:C,2,FALSE) -> AV78
A135: Jan 25 | B135: DC-K2300 | C135: 2T FTE per truck | D135: FTE/Truck | E135: PLANT | F135: MAZ | G135: BU Colombia | H135: Colombia | I135: Colombia_PG_Name | J135: DC Boyaca | K135: 2.904761905 | L135: 2.981132075 | M135: 2.955555556 | N135: 0.07637017071 | O135: 0.02557651947 | P135: 0 | Q135: 2.904761905 | R135: 2.981132075 | S135: 2.955555556 | T135: 0.07637017071 | U135: 0.02557651947 | V135: 0 | W135: 1 | X135: =VLOOKUP(J135,CDs_ANAPLAN!B:C,2,FALSE) -> AV04
A136: Jan 25 | B136: DC-K2300 | C136: 2T FTE per truck | D136: FTE/Truck | E136: PLANT | F136: MAZ | G136: BU Colombia | H136: Colombia | I136: Colombia_PG_Name | J136: DC Tocancipa | K136: 2.61875 | L136: 2.813953488 | M136: 2.703703704 | N136: 0.1952034884 | O136: 0.1102497844 | P136: 0 | Q136: 2.61875 | R136: 2.813953488 | S136: 2.703703704 | T136: 0.1952034884 | U136: 0.1102497844 | V136: 0 | W136: 1 | X136: =VLOOKUP(J136,CDs_ANAPLAN!B:C,2,FALSE) -> AV06
A137: Jan 25 | B137: DC-K2300 | C137: 2T FTE per truck | D137: FTE/Truck | E137: PLANT | F137: MAZ | G137: BU Colombia | H137: Colombia | I137: Colombia_PG_Name | J137: DC Sibate | K137: 2.794520548 | L137: 3 | M137: 3 | N137: 0.2054794521 | O137: 0 | P137: 0 | Q137: 2.794520548 | R137: 3 | S137: 3 | T137: 0.2054794521 | U137: 0 | V137: 0 | W137: 1 | X137: =VLOOKUP(J137,CDs_ANAPLAN!B:C,2,FALSE) -> AV47
A138: Jan 25 | B138: DC-K2300 | C138: 2T FTE per truck | D138: FTE/Truck | E138: PLANT | F138: MAZ | G138: BU Colombia | H138: Colombia | I138: Colombia_PG_Name | J138: DC Siberia | K138: 1.604477612 | L138: 2.576086957 | M138: 2.547368421 | N138: 0.9716093446 | O138: 0.02871853552 | P138: 0 | Q138: 1.604477612 | R138: 2.576086957 | S138: 2.547368421 | T138: 0.9716093446 | U138: 0.02871853552 | V138: 0 | W138: 1 | X138: =VLOOKUP(J138,CDs_ANAPLAN!B:C,2,FALSE) -> AV50
A139: Jan 25 | B139: DC-K2300 | C139: 2T FTE per truck | D139: FTE/Truck | E139: PLANT | F139: MAZ | G139: BU Colombia | H139: Colombia | I139: Colombia_PG_Name | J139: DC Tunja | K139: 2.644444444 | L139: 2.976190476 | M139: 3 | N139: 0.3317460317 | O139: -0.02380952381 | P139: 0 | Q139: 2.644444444 | R139: 2.976190476 | S139: 3 | T139: 0.3317460317 | U139: -0.02380952381 | V139: 0 | W139: 1 | X139: =VLOOKUP(J139,CDs_ANAPLAN!B:C,2,FALSE) -> AV42
A140: Jan 25 | B140: DC-K2300 | C140: 2T FTE per truck | D140: FTE/Truck | E140: PLANT | F140: MAZ | G140: BU Colombia | H140: Colombia | I140: Colombia_PG_Name | J140: DC Chiquinquira | K140: 2.833333333 | L140: 2.777777778 | M140: 2.894736842 | N140: -0.05555555556 | O140: -0.1169590642 | P140: 0 | Q140: 2.833333333 | R140: 2.777777778 | S140: 2.894736842 | T140: -0.05555555556 | U140: -0.1169590642 | V140: 0 | W140: 1 | X140: =VLOOKUP(J140,CDs_ANAPLAN!B:C,2,FALSE) -> AV66
A141: Jan 25 | B141: DC-K2300 | C141: 2T FTE per truck | D141: FTE/Truck | E141: PLANT | F141: MAZ | G141: BU Colombia | H141: Colombia | I141: Colombia_PG_Name | J141: DC Montevideo (CO) | K141: 2.101694915 | L141: 2.85 | M141: 2.720930233 | N141: 0.7483050847 | O141: 0.129069767 | P141: 0 | Q141: 2.101694915 | R141: 2.85 | S141: 2.720930233 | T141: 0.7483050847 | U141: 0.129069767 | V141: 0 | W141: 1 | X141: =VLOOKUP(J141,CDs_ANAPLAN!B:C,2,FALSE) -> AV78
A142: Jan 25 | B142: DC-K2310 | C142: 2T Transport Labor Productivity | D142: pck/h | E142: PLANT | F142: MAZ | G142: BU Colombia | H142: Colombia | I142: Colombia_PG_Name | J142: DC Boyaca | K142: 46.73528548 | L142: 48.17149158 | M142: 47.99713816 | N142: 1.436206102 | O142: 0.1743534166 | P142: 0 | Q142: 46.73528548 | R142: 48.17149158 | S142: 47.99713816 | T142: 1.436206102 | U142: 0.1743534166 | V142: 0 | W142: 1 | X142: =VLOOKUP(J142,CDs_ANAPLAN!B:C,2,FALSE) -> AV04
A143: Jan 25 | B143: DC-K2310 | C143: 2T Transport Labor Productivity | D143: pck/h | E143: PLANT | F143: MAZ | G143: BU Colombia | H143: Colombia | I143: Colombia_PG_Name | J143: DC Tocancipa | K143: 66.27302051 | L143: 60.80306846 | M143: 68.06239206 | N143: -5.469952046 | O143: -7.259323603 | P143: 0 | Q143: 66.27302051 | R143: 60.80306846 | S143: 68.06239206 | T143: -5.469952046 | U143: -7.259323603 | V143: 0 | W143: 1 | X143: =VLOOKUP(J143,CDs_ANAPLAN!B:C,2,FALSE) -> AV06
A144: Jan 25 | B144: DC-K2310 | C144: 2T Transport Labor Productivity | D144: pck/h | E144: PLANT | F144: MAZ | G144: BU Colombia | H144: Colombia | I144: Colombia_PG_Name | J144: DC Sibate | K144: 44.20644402 | L144: 48.13932573 | M144: 45.40001801 | N144: 3.932881709 | O144: 2.739307721 | P144: 0 | Q144: 44.20644402 | R144: 48.13932573 | S144: 45.40001801 | T144: 3.932881709 | U144: 2.739307721 | V144: 0 | W144: 1 | X144: =VLOOKUP(J144,CDs_ANAPLAN!B:C,2,FALSE) -> AV47
A145: Jan 25 | B145: DC-K2310 | C145: 2T Transport Labor Productivity | D145: pck/h | E145: PLANT | F145: MAZ | G145: BU Colombia | H145: Colombia | I145: Colombia_PG_Name | J145: DC Siberia | K145: 48.26047137 | L145: 47.09224194 | M145: 49.5635041 | N145: -1.168229433 | O145: -2.471262162 | P145: 0 | Q145: 48.26047137 | R145: 47.09224194 | S145: 49.5635041 | T145: -1.168229433 | U145: -2.471262162 | V145: 0 | W145: 1 | X145: =VLOOKUP(J145,CDs_ANAPLAN!B:C,2,FALSE) -> AV50
A146: Jan 25 | B146: DC-K2310 | C146: 2T Transport Labor Productivity | D146: pck/h | E146: PLANT | F146: MAZ | G146: BU Colombia | H146: Colombia | I146: Colombia_PG_Name | J146: DC Tunja | K146: 29.32788336 | L146: 35.26638048 | M146: 30.11973621 | N146: 5.938497119 | O146: 5.146644271 | P146: 0 | Q146: 29.32788336 | R146: 35.26638048 | S146: 30.11973621 | T146: 5.938497119 | U146: 5.146644271 | V146: 0 | W146: 1 | X146: =VLOOKUP(J146,CDs_ANAPLAN!B:C,2,FALSE) -> AV42
A147: Jan 25 | B147: DC-K2310 | C147: 2T Transport Labor Productivity | D147: pck/h | E147: PLANT | F147: MAZ | G147: BU Colombia | H147: Colombia | I147: Colombia_PG_Name | J147: DC Chiquinquira | K147: 45.53076057 | L147: 50.99148539 | M147: 46.7600911 | N147: 5.460724822 | O147: 4.231394296 | P147: 0 | Q147: 45.53076057 | R147: 50.99148539 | S147: 46.7600911 | T147: 5.460724822 | U147: 4.231394296 | V147: 0 | W147: 1 | X147: =VLOOKUP(J147,CDs_ANAPLAN!B:C,2,FALSE) -> AV66
A148: Jan 25 | B148: DC-K2310 | C148: 2T Transport Labor Productivity | D148: pck/h | E148: PLANT | F148: MAZ | G148: BU Colombia | H148: Colombia | I148: Colombia_PG_Name | J148: DC Montevideo (CO) | K148: 43.61074099 | L148: 47.06055177 | M148: 44.788231 | N148: 3.449810789 | O148: 2.272320774 | P148: 0 | Q148: 43.61074099 | R148: 47.06055177 | S148: 44.788231 | T148: 3.449810789 | U148: 2.272320774 | V148: 0 | W148: 1 | X148: =VLOOKUP(J148,CDs_ANAPLAN!B:C,2,FALSE) -> AV78
A149: Jan 25 | B149: DC-K2311 | C149: 2T Transport Labor Productivity (hl) | D149: hl/h | E149: PLANT | F149: MAZ | G149: BU Colombia | H149: Colombia | I149: Colombia_PG_Name | J149: DC Boyaca | K149: 2.026671364 | L149: 2.727492602 | M149: 2.611907412 | N149: 0.7008212378 | O149: 0.1155851896 | P149: 0 | Q149: 2.026671364 | R149: 2.727492602 | S149: 2.611907412 | T149: 0.7008212378 | U149: 0.1155851896 | V149: 0 | W149: 1 | X149: =VLOOKUP(J149,CDs_ANAPLAN!B:C,2,FALSE) -> AV04
A150: Jan 25 | B150: DC-K2311 | C150: 2T Transport Labor Productivity (hl) | D150: hl/h | E150: PLANT | F150: MAZ | G150: BU Colombia | H150: Colombia | I150: Colombia_PG_Name | J150: DC Tocancipa | K150: 3.171354393 | L150: 4.364576876 | M150: 4.676828725 | N150: 1.193222484 | O150: -0.3122518488 | P150: 0 | Q150: 3.171354393 | R150: 4.364576876 | S150: 4.676828725 | T150: 1.193222484 | U150: -0.3122518488 | V150: 0 | W150: 1 | X150: =VLOOKUP(J150,CDs_ANAPLAN!B:C,2,FALSE) -> AV06
A151: Jan 25 | B151: DC-K2311 | C151: 2T Transport Labor Productivity (hl) | D151: hl/h | E151: PLANT | F151: MAZ | G151: BU Colombia | H151: Colombia | I151: Colombia_PG_Name | J151: DC Sibate | K151: 1.969867549 | L151: 1.896853891 | M151: 1.812428144 | N151: -0.07301365811 | O151: 0.08442574669 | P151: 0 | Q151: 1.969867549 | R151: 1.896853891 | S151: 1.812428144 | T151: -0.07301365811 | U151: 0.08442574669 | V151: 0 | W151: 1 | X151: =VLOOKUP(J151,CDs_ANAPLAN!B:C,2,FALSE) -> AV47
A152: Jan 25 | B152: DC-K2311 | C152: 2T Transport Labor Productivity (hl) | D152: hl/h | E152: PLANT | F152: MAZ | G152: BU Colombia | H152: Colombia | I152: Colombia_PG_Name | J152: DC Siberia | K152: 2.142971264 | L152: 1.874372386 | M152: 1.943403316 | N152: -0.2685988772 | O152: -0.06903092954 | P152: 0 | Q152: 2.142971264 | R152: 1.874372386 | S152: 1.943403316 | T152: -0.2685988772 | U152: -0.06903092954 | V152: 0 | W152: 1 | X152: =VLOOKUP(J152,CDs_ANAPLAN!B:C,2,FALSE) -> AV50
A153: Jan 25 | B153: DC-K2311 | C153: 2T Transport Labor Productivity (hl) | D153: hl/h | E153: PLANT | F153: MAZ | G153: BU Colombia | H153: Colombia | I153: Colombia_PG_Name | J153: DC Tunja | K153: 1.199971764 | L153: 1.34839304 | M153: 1.148516531 | N153: 0.1484212767 | O153: 0.1998765093 | P153: 0 | Q153: 1.199971764 | R153: 1.34839304 | S153: 1.148516531 | T153: 0.1484212767 | U153: 0.1998765093 | V153: 0 | W153: 1 | X153: =VLOOKUP(J153,CDs_ANAPLAN!B:C,2,FALSE) -> AV42
A154: Jan 25 | B154: DC-K2311 | C154: 2T Transport Labor Productivity (hl) | D154: hl/h | E154: PLANT | F154: MAZ | G154: BU Colombia | H154: Colombia | I154: Colombia_PG_Name | J154: DC Chiquinquira | K154: 1.837128908 | L154: 1.974573237 | M154: 1.815289841 | N154: 0.1374443293 | O154: 0.1592833963 | P154: 0 | Q154: 1.837128908 | R154: 1.974573237 | S154: 1.815289841 | T154: 0.1374443293 | U154: 0.1592833963 | V154: 0 | W154: 1 | X154: =VLOOKUP(J154,CDs_ANAPLAN!B:C,2,FALSE) -> AV66
A155: Jan 25 | B155: DC-K2311 | C155: 2T Transport Labor Productivity (hl) | D155: hl/h | E155: PLANT | F155: MAZ | G155: BU Colombia | H155: Colombia | I155: Colombia_PG_Name | J155: DC Montevideo (CO) | K155: 2.017325009 | L155: 1.865775709 | M155: 1.774083756 | N155: -0.1515492991 | O155: 0.09169195342 | P155: 0 | Q155: 2.017325009 | R155: 1.865775709 | S155: 1.774083756 | T155: -0.1515492991 | U155: 0.09169195342 | V155: 0 | W155: 1 | X155: =VLOOKUP(J155,CDs_ANAPLAN!B:C,2,FALSE) -> AV78
A156: Jan 25 | B156: DC-K2330 | C156: 2T Daily Work Shift | D156: h | E156: PLANT | F156: MAZ | G156: BU Colombia | H156: Colombia | I156: Colombia_PG_Name | J156: DC Boyaca | K156: 8.669920154 | L156: 7.028122157 | M156: 6.242122856 | N156: -1.641797997 | O156: 0.7859993014 | P156: 0 | Q156: 8.669920154 | R156: 7.028122157 | S156: 6.242122856 | T156: -1.641797997 | U156: 0.7859993014 | V156: 0 | W156: 1 | X156: =VLOOKUP(J156,CDs_ANAPLAN!B:C,2,FALSE) -> AV04
A157: Jan 25 | B157: DC-K2330 | C157: 2T Daily Work Shift | D157: h | E157: PLANT | F157: MAZ | G157: BU Colombia | H157: Colombia | I157: Colombia_PG_Name | J157: DC Tocancipa | K157: 8.285315985 | L157: 6.159672869 | M157: 5.491607122 | N157: -2.125643116 | O157: 0.668065747 | P157: 0 | Q157: 8.285315985 | R157: 6.159672869 | S157: 5.491607122 | T157: -2.125643116 | U157: 0.668065747 | V157: 0 | W157: 1 | X157: =VLOOKUP(J157,CDs_ANAPLAN!B:C,2,FALSE) -> AV06
A158: Jan 25 | B158: DC-K2330 | C158: 2T Daily Work Shift | D158: h | E158: PLANT | F158: MAZ | G158: BU Colombia | H158: Colombia | I158: Colombia_PG_Name | J158: DC Sibate | K158: 8.246964187 | L158: 7.907918374 | M158: 8.065754746 | N158: -0.3390458123 | O158: -0.1578363717 | P158: 0 | Q158: 8.246964187 | R158: 7.907918374 | S158: 8.065754746 | T158: -0.3390458123 | U158: -0.1578363717 | V158: 0 | W158: 1 | X158: =VLOOKUP(J158,CDs_ANAPLAN!B:C,2,FALSE) -> AV47
A159: Jan 25 | B159: DC-K2330 | C159: 2T Daily Work Shift | D159: h | E159: PLANT | F159: MAZ | G159: BU Colombia | H159: Colombia | I159: Colombia_PG_Name | J159: DC Siberia | K159: 8.121218154 | L159: 6.057535287 | M159: 5.085285721 | N159: -2.063682867 | O159: 0.9722495658 | P159: 0 | Q159: 8.121218154 | R159: 6.057535287 | S159: 5.085285721 | T159: -2.063682867 | U159: 0.9722495658 | V159: 0 | W159: 1 | X159: =VLOOKUP(J159,CDs_ANAPLAN!B:C,2,FALSE) -> AV50
A160: Jan 25 | B160: DC-K2330 | C160: 2T Daily Work Shift | D160: h | E160: PLANT | F160: MAZ | G160: BU Colombia | H160: Colombia | I160: Colombia_PG_Name | J160: DC Tunja | K160: 12.87712539 | L160: 10.26764352 | M160: 12.01125621 | N160: -2.609481865 | O160: -1.743612687 | P160: 0 | Q160: 12.87712539 | R160: 10.26764352 | S160: 12.01125621 | T160: -2.609481865 | U160: -1.743612687 | V160: 0 | W160: 1 | X160: =VLOOKUP(J160,CDs_ANAPLAN!B:C,2,FALSE) -> AV42
A161: Jan 25 | B161: DC-K2330 | C161: 2T Daily Work Shift | D161: h | E161: PLANT | F161: MAZ | G161: BU Colombia | H161: Colombia | I161: Colombia_PG_Name | J161: DC Chiquinquira | K161: 6.887574004 | L161: 7.162397157 | M161: 7.079419857 | N161: 0.2748231531 | O161: 0.08297729981 | P161: 0 | Q161: 6.887574004 | R161: 7.162397157 | S161: 7.079419857 | T161: 0.2748231531 | U161: 0.08297729981 | V161: 0 | W161: 1 | X161: =VLOOKUP(J161,CDs_ANAPLAN!B:C,2,FALSE) -> AV66
A162: Jan 25 | B162: DC-K2330 | C162: 2T Daily Work Shift | D162: h | E162: PLANT | F162: MAZ | G162: BU Colombia | H162: Colombia | I162: Colombia_PG_Name | J162: DC Montevideo (CO) | K162: 8.713569726 | L162: 7.003311004 | M162: 7.386456034 | N162: -1.710258722 | O162: -0.3831450301 | P162: 0 | Q162: 8.713569726 | R162: 7.003311004 | S162: 7.386456034 | T162: -1.710258722 | U162: -0.3831450301 | V162: 0 | W162: 1 | X162: =VLOOKUP(J162,CDs_ANAPLAN!B:C,2,FALSE) -> AV78
A163: Jan 25 | B163: DC-K2920 | C163: 2T Sales Curve Index | D163: % | E163: PLANT | F163: MAZ | G163: BU Colombia | H163: Colombia | I163: Colombia_PG_Name | J163: DC Boyaca | K163: 17.83748352 | L163: 25.3 | M163: 15.73947754 | N163: 7.46251648 | O163: 9.56052246 | P163: 0 | Q163: 17.83748352 | R163: 25.3 | S163: 15.73947754 | T163: 7.46251648 | U163: 9.56052246 | V163: 0 | W163: 1 | X163: =VLOOKUP(J163,CDs_ANAPLAN!B:C,2,FALSE) -> AV04
A164: Jan 25 | B164: DC-K2920 | C164: 2T Sales Curve Index | D164: % | E164: PLANT | F164: MAZ | G164: BU Colombia | H164: Colombia | I164: Colombia_PG_Name | J164: DC Tocancipa | K164: 23.19570495 | L164: 20.8 | M164: 23.19570495 | N164: -2.39570495 | O164: -2.39570495 | P164: 0 | Q164: 23.19570495 | R164: 20.8 | S164: 23.19570495 | T164: -2.39570495 | U164: -2.39570495 | V164: 0 | W164: 1 | X164: =VLOOKUP(J164,CDs_ANAPLAN!B:C,2,FALSE) -> AV06
A165: Jan 25 | B165: DC-K2920 | C165: 2T Sales Curve Index | D165: % | E165: PLANT | F165: MAZ | G165: BU Colombia | H165: Colombia | I165: Colombia_PG_Name | J165: DC Sibate | K165: 24.85688583 | L165: 18.8 | M165: 20.90720413 | N165: -6.05688583 | O165: -2.10720413 | P165: 0 | Q165: 24.85688583 | R165: 18.8 | S165: 20.90720413 | T165: -6.05688583 | U165: -2.10720413 | V165: 0 | W165: 1 | X165: =VLOOKUP(J165,CDs_ANAPLAN!B:C,2,FALSE) -> AV47
A166: Jan 25 | B166: DC-K2920 | C166: 2T Sales Curve Index | D166: % | E166: PLANT | F166: MAZ | G166: BU Colombia | H166: Colombia | I166: Colombia_PG_Name | J166: DC Siberia | K166: 22.55486909 | L166: 17 | M166: 17.48966116 | N166: -5.55486909 | O166: -0.48966116 | P166: 0 | Q166: 22.55486909 | R166: 17 | S166: 17.48966116 | T166: -5.55486909 | U166: -0.48966116 | V166: 0 | W166: 1 | X166: =VLOOKUP(J166,CDs_ANAPLAN!B:C,2,FALSE) -> AV50
A167: Jan 25 | B167: DC-K2920 | C167: 2T Sales Curve Index | D167: % | E167: PLANT | F167: MAZ | G167: BU Colombia | H167: Colombia | I167: Colombia_PG_Name | J167: DC Tunja | K167: 16.35903928 | L167: 15.9 | M167: 16.35903928 | N167: -0.45903928 | O167: -0.45903928 | P167: 0 | Q167: 16.35903928 | R167: 15.9 | S167: 16.35903928 | T167: -0.45903928 | U167: -0.45903928 | V167: 0 | W167: 1 | X167: =VLOOKUP(J167,CDs_ANAPLAN!B:C,2,FALSE) -> AV42
A168: Jan 25 | B168: DC-K2920 | C168: 2T Sales Curve Index | D168: % | E168: PLANT | F168: MAZ | G168: BU Colombia | H168: Colombia | I168: Colombia_PG_Name | J168: DC Chiquinquira | K168: 30.99048589 | L168: 27.1 | M168: 25 | N168: -3.89048589 | O168: 2.1 | P168: 0 | Q168: 30.99048589 | R168: 27.1 | S168: 25 | T168: -3.89048589 | U168: 2.1 | V168: 0 | W168: 1 | X168: =VLOOKUP(J168,CDs_ANAPLAN!B:C,2,FALSE) -> AV66
A169: Jan 25 | B169: DC-K2920 | C169: 2T Sales Curve Index | D169: % | E169: PLANT | F169: MAZ | G169: BU Colombia | H169: Colombia | I169: Colombia_PG_Name | J169: DC Montevideo (CO) | K169: 21.94039616 | L169: 20.3 | M169: 21.94039616 | N169: -1.64039616 | O169: -1.64039616 | P169: 0 | Q169: 21.94039616 | R169: 20.3 | S169: 21.94039616 | T169: -1.64039616 | U169: -1.64039616 | V169: 0 | W169: 1 | X169: =VLOOKUP(J169,CDs_ANAPLAN!B:C,2,FALSE) -> AV78
A170: Jan 25 | B170: DC-K2930 | C170: 2T Number of SKUs | D170: # | E170: PLANT | F170: MAZ | G170: BU Colombia | H170: Colombia | I170: Colombia_PG_Name | J170: DC Boyaca | K170: 110 | L170: 203 | M170: 110 | N170: 93 | O170: 93 | P170: 0 | Q170: 110 | R170: 203 | S170: 0 | T170: 93 | U170: 203 | V170: 0 | W170: 1 | X170: =VLOOKUP(J170,CDs_ANAPLAN!B:C,2,FALSE) -> AV04
A171: Jan 25 | B171: DC-K2930 | C171: 2T Number of SKUs | D171: # | E171: PLANT | F171: MAZ | G171: BU Colombia | H171: Colombia | I171: Colombia_PG_Name | J171: DC Tocancipa | K171: 155 | L171: 148 | M171: 155 | N171: -7 | O171: -7 | P171: 0 | Q171: 155 | R171: 148 | S171: 0 | T171: -7 | U171: 148 | V171: 0 | W171: 1 | X171: =VLOOKUP(J171,CDs_ANAPLAN!B:C,2,FALSE) -> AV06
A172: Jan 25 | B172: DC-K2930 | C172: 2T Number of SKUs | D172: # | E172: PLANT | F172: MAZ | G172: BU Colombia | H172: Colombia | I172: Colombia_PG_Name | J172: DC Sibate | K172: 261 | L172: 243 | M172: 261 | N172: -18 | O172: -18 | P172: 0 | Q172: 261 | R172: 243 | S172: 0 | T172: -18 | U172: 243 | V172: 0 | W172: 1 | X172: =VLOOKUP(J172,CDs_ANAPLAN!B:C,2,FALSE) -> AV47
A173: Jan 25 | B173: DC-K2930 | C173: 2T Number of SKUs | D173: # | E173: PLANT | F173: MAZ | G173: BU Colombia | H173: Colombia | I173: Colombia_PG_Name | J173: DC Siberia | K173: 263 | L173: 236 | M173: 263 | N173: -27 | O173: -27 | P173: 0 | Q173: 263 | R173: 236 | S173: 0 | T173: -27 | U173: 236 | V173: 0 | W173: 1 | X173: =VLOOKUP(J173,CDs_ANAPLAN!B:C,2,FALSE) -> AV50
A174: Jan 25 | B174: DC-K2930 | C174: 2T Number of SKUs | D174: # | E174: PLANT | F174: MAZ | G174: BU Colombia | H174: Colombia | I174: Colombia_PG_Name | J174: DC Tunja | K174: 159 | L174: 177 | M174: 159 | N174: 18 | O174: 18 | P174: 0 | Q174: 159 | R174: 177 | S174: 0 | T174: 18 | U174: 177 | V174: 0 | W174: 1 | X174: =VLOOKUP(J174,CDs_ANAPLAN!B:C,2,FALSE) -> AV42
A175: Jan 25 | B175: DC-K2930 | C175: 2T Number of SKUs | D175: # | E175: PLANT | F175: MAZ | G175: BU Colombia | H175: Colombia | I175: Colombia_PG_Name | J175: DC Chiquinquira | K175: 105 | L175: 122 | M175: 105 | N175: 17 | O175: 17 | P175: 0 | Q175: 105 | R175: 122 | S175: 0 | T175: 17 | U175: 122 | V175: 0 | W175: 1 | X175: =VLOOKUP(J175,CDs_ANAPLAN!B:C,2,FALSE) -> AV66
A176: Jan 25 | B176: DC-K2930 | C176: 2T Number of SKUs | D176: # | E176: PLANT | F176: MAZ | G176: BU Colombia | H176: Colombia | I176: Colombia_PG_Name | J176: DC Montevideo (CO) | K176: 146 | L176: 190 | M176: 146 | N176: 44 | O176: 44 | P176: 0 | Q176: 0 | R176: 190 | S176: 0 | T176: 190 | U176: 190 | V176: 0 | W176: 1 | X176: =VLOOKUP(J176,CDs_ANAPLAN!B:C,2,FALSE) -> AV78
A177: Jan 25 | B177: DC-K3000 | C177: 2T Fleet Availability | D177: % | E177: PLANT | F177: MAZ | G177: BU Colombia | H177: Colombia | I177: Colombia_PG_Name | J177: DC Boyaca | K177: 100 | L177: 92.76974416 | M177: 91.65739711 | N177: -7.23025584 | O177: 1.11234705 | P177: 0 | Q177: 100 | R177: 92.76974416 | S177: 91.65739711 | T177: -7.23025584 | U177: 1.11234705 | V177: 0 | W177: 1 | X177: =VLOOKUP(J177,CDs_ANAPLAN!B:C,2,FALSE) -> AV04
A178: Jan 25 | B178: DC-K3000 | C178: 2T Fleet Availability | D178: % | E178: PLANT | F178: MAZ | G178: BU Colombia | H178: Colombia | I178: Colombia_PG_Name | J178: DC Tocancipa | K178: 100 | L178: 96.5294772 | M178: 95.36411049 | N178: -3.470522803 | O178: 1.165366707 | P178: 0 | Q178: 100 | R178: 96.5294772 | S178: 95.36411049 | T178: -3.470522803 | U178: 1.165366707 | V178: 0 | W178: 1 | X178: =VLOOKUP(J178,CDs_ANAPLAN!B:C,2,FALSE) -> AV06
A179: Jan 25 | B179: DC-K3000 | C179: 2T Fleet Availability | D179: % | E179: PLANT | F179: MAZ | G179: BU Colombia | H179: Colombia | I179: Colombia_PG_Name | J179: DC Sibate | K179: 100 | L179: 93.44758065 | M179: 92.43951613 | N179: -6.552419355 | O179: 1.008064515 | P179: 0 | Q179: 100 | R179: 93.44758065 | S179: 92.43951613 | T179: -6.552419355 | U179: 1.008064515 | V179: 0 | W179: 1 | X179: =VLOOKUP(J179,CDs_ANAPLAN!B:C,2,FALSE) -> AV47
A180: Jan 25 | B180: DC-K3000 | C180: 2T Fleet Availability | D180: % | E180: PLANT | F180: MAZ | G180: BU Colombia | H180: Colombia | I180: Colombia_PG_Name | J180: DC Siberia | K180: 100 | L180: 94.30003132 | M180: 94.90662139 | N180: -5.699968681 | O180: -0.6065900715 | P180: 0 | Q180: 100 | R180: 94.30003132 | S180: 94.90662139 | T180: -5.699968681 | U180: -0.6065900715 | V180: 0 | W180: 1 | X180: =VLOOKUP(J180,CDs_ANAPLAN!B:C,2,FALSE) -> AV50
A181: Jan 25 | B181: DC-K3000 | C181: 2T Fleet Availability | D181: % | E181: PLANT | F181: MAZ | G181: BU Colombia | H181: Colombia | I181: Colombia_PG_Name | J181: DC Tunja | K181: 100 | L181: 93.01075269 | M181: 89.00293255 | N181: -6.989247312 | O181: 4.007820138 | P181: 0 | Q181: 100 | R181: 93.01075269 | S181: 89.00293255 | T181: -6.989247312 | U181: 4.007820138 | V181: 0 | W181: 1 | X181: =VLOOKUP(J181,CDs_ANAPLAN!B:C,2,FALSE) -> AV42
A182: Jan 25 | B182: DC-K3000 | C182: 2T Fleet Availability | D182: % | E182: PLANT | F182: MAZ | G182: BU Colombia | H182: Colombia | I182: Colombia_PG_Name | J182: DC Chiquinquira | K182: 100 | L182: 95.58573854 | M182: 94.90662139 | N182: -4.41426146 | O182: 0.6791171499 | P182: 0 | Q182: 100 | R182: 95.58573854 | S182: 94.90662139 | T182: -4.41426146 | U182: 0.6791171499 | V182: 0 | W182: 1 | X182: =VLOOKUP(J182,CDs_ANAPLAN!B:C,2,FALSE) -> AV66
A183: Jan 25 | B183: DC-K3000 | C183: 2T Fleet Availability | D183: % | E183: PLANT | F183: MAZ | G183: BU Colombia | H183: Colombia | I183: Colombia_PG_Name | J183: DC Montevideo (CO) | K183: 100 | L183: 96.35343619 | M183: 94.19354839 | N183: -3.646563815 | O183: 2.159887795 | P183: 0 | Q183: 100 | R183: 96.35343619 | S183: 94.19354839 | T183: -3.646563815 | U183: 2.159887795 | V183: 0 | W183: 1 | X183: =VLOOKUP(J183,CDs_ANAPLAN!B:C,2,FALSE) -> AV78
A184: Jan 25 | B184: DC-K3200 | C184: 2T Fuel Efficiency | D184: km/L | E184: PLANT | F184: MAZ | G184: BU Colombia | H184: Colombia | I184: Colombia_PG_Name | J184: DC Boyaca | K184: 3.105040616 | L184: 2.897065952 | M184: 2.866355998 | N184: -0.2079746638 | O184: 0.03070995423 | P184: 0 | Q184: 3.105040616 | R184: 2.897065952 | S184: 2.866355998 | T184: -0.2079746638 | U184: 0.03070995423 | V184: 0 | W184: 1 | X184: =VLOOKUP(J184,CDs_ANAPLAN!B:C,2,FALSE) -> AV04
A185: Jan 25 | B185: DC-K3200 | C185: 2T Fuel Efficiency | D185: km/L | E185: PLANT | F185: MAZ | G185: BU Colombia | H185: Colombia | I185: Colombia_PG_Name | J185: DC Tocancipa | K185: 3.393664467 | L185: 3.706403352 | M185: 3.360861684 | N185: 0.3127388847 | O185: 0.345541668 | P185: 0 | Q185: 3.393664467 | R185: 3.706403352 | S185: 3.360861684 | T185: 0.3127388847 | U185: 0.345541668 | V185: 0 | W185: 1 | X185: =VLOOKUP(J185,CDs_ANAPLAN!B:C,2,FALSE) -> AV06
A186: Jan 25 | B186: DC-K3200 | C186: 2T Fuel Efficiency | D186: km/L | E186: PLANT | F186: MAZ | G186: BU Colombia | H186: Colombia | I186: Colombia_PG_Name | J186: DC Sibate | K186: 2.579046198 | L186: 2.548876421 | M186: 2.459793014 | N186: -0.03016977653 | O186: 0.08908340706 | P186: 0 | Q186: 2.579046198 | R186: 2.548876421 | S186: 2.459793014 | T186: -0.03016977653 | U186: 0.08908340706 | V186: 0 | W186: 1 | X186: =VLOOKUP(J186,CDs_ANAPLAN!B:C,2,FALSE) -> AV47
A187: Jan 25 | B187: DC-K3200 | C187: 2T Fuel Efficiency | D187: km/L | E187: PLANT | F187: MAZ | G187: BU Colombia | H187: Colombia | I187: Colombia_PG_Name | J187: DC Siberia | K187: 2.737096363 | L187: 3.045556938 | M187: 2.932888125 | N187: 0.3084605743 | O187: 0.1126688128 | P187: 0 | Q187: 2.737096363 | R187: 3.045556938 | S187: 2.932888125 | T187: 0.3084605743 | U187: 0.1126688128 | V187: 0 | W187: 1 | X187: =VLOOKUP(J187,CDs_ANAPLAN!B:C,2,FALSE) -> AV50
A188: Jan 25 | B188: DC-K3200 | C188: 2T Fuel Efficiency | D188: km/L | E188: PLANT | F188: MAZ | G188: BU Colombia | H188: Colombia | I188: Colombia_PG_Name | J188: DC Tunja | K188: 2.297123525 | L188: 2.27117715 | M188: 2.252680345 | N188: -0.0259463752 | O188: 0.01849680502 | P188: 0 | Q188: 2.297123525 | R188: 2.27117715 | S188: 2.252680345 | T188: -0.0259463752 | U188: 0.01849680502 | V188: 0 | W188: 1 | X188: =VLOOKUP(J188,CDs_ANAPLAN!B:C,2,FALSE) -> AV42
A189: Jan 25 | B189: DC-K3200 | C189: 2T Fuel Efficiency | D189: km/L | E189: PLANT | F189: MAZ | G189: BU Colombia | H189: Colombia | I189: Colombia_PG_Name | J189: DC Chiquinquira | K189: 3.259305877 | L189: 2.999183795 | M189: 3.083239185 | N189: -0.2601220819 | O189: -0.08405538963 | P189: 0 | Q189: 3.259305877 | R189: 2.999183795 | S189: 3.083239185 | T189: -0.2601220819 | U189: -0.08405538963 | V189: 0 | W189: 1 | X189: =VLOOKUP(J189,CDs_ANAPLAN!B:C,2,FALSE) -> AV66
A190: Jan 25 | B190: DC-K3200 | C190: 2T Fuel Efficiency | D190: km/L | E190: PLANT | F190: MAZ | G190: BU Colombia | H190: Colombia | I190: Colombia_PG_Name | J190: DC Montevideo (CO) | K190: 5.002826586 | L190: 3.657559919 | M190: 2.357142857 | N190: -1.345266666 | O190: 1.300417062 | P190: 0 | Q190: 5.002826586 | R190: 3.657559919 | S190: 2.357142857 | T190: -1.345266666 | U190: 1.300417062 | V190: 0 | W190: 1 | X190: =VLOOKUP(J190,CDs_ANAPLAN!B:C,2,FALSE) -> AV78
A191: Jan 25 | B191: DC-K4200 | C191: 2T Capacity Occupation (hl) | D191: hl/# | E191: PLANT | F191: MAZ | G191: BU Colombia | H191: Colombia | I191: Colombia_PG_Name | J191: DC Boyaca | K191: 51.03980063 | L191: 57.14577147 | M191: 48.18692544 | N191: 6.105970839 | O191: 8.958846025 | P191: 0 | Q191: 51.03980063 | R191: 57.14577147 | S191: 0 | T191: 6.105970839 | U191: 57.14577147 | V191: 0 | W191: 1 | X191: =VLOOKUP(J191,CDs_ANAPLAN!B:C,2,FALSE) -> AV04
A192: Jan 25 | B192: DC-K4200 | C192: 2T Capacity Occupation (hl) | D192: hl/# | E192: PLANT | F192: MAZ | G192: BU Colombia | H192: Colombia | I192: Colombia_PG_Name | J192: DC Tocancipa | K192: 68.80941931 | L192: 75.65135484 | M192: 69.44004937 | N192: 6.841935531 | O192: 6.211305469 | P192: 0 | Q192: 68.80941931 | R192: 75.65135484 | S192: 0 | T192: 6.841935531 | U192: 75.65135484 | V192: 0 | W192: 1 | X192: =VLOOKUP(J192,CDs_ANAPLAN!B:C,2,FALSE) -> AV06
A193: Jan 25 | B193: DC-K4200 | C193: 2T Capacity Occupation (hl) | D193: hl/# | E193: PLANT | F193: MAZ | G193: BU Colombia | H193: Colombia | I193: Colombia_PG_Name | J193: DC Sibate | K193: 45.39817992 | L193: 45.00049721 | M193: 43.85580271 | N193: -0.3976827107 | O193: 1.144694497 | P193: 0 | Q193: 45.39817992 | R193: 45.00049721 | S193: 0 | T193: -0.3976827107 | U193: 45.00049721 | V193: 0 | W193: 1 | X193: =VLOOKUP(J193,CDs_ANAPLAN!B:C,2,FALSE) -> AV47
A194: Jan 25 | B194: DC-K4200 | C194: 2T Capacity Occupation (hl) | D194: hl/# | E194: PLANT | F194: MAZ | G194: BU Colombia | H194: Colombia | I194: Colombia_PG_Name | J194: DC Siberia | K194: 27.92358569 | L194: 29.24908933 | M194: 25.17503362 | N194: 1.325503638 | O194: 4.074055712 | P194: 0 | Q194: 27.92358569 | R194: 29.24908933 | S194: 0 | T194: 1.325503638 | U194: 29.24908933 | V194: 0 | W194: 1 | X194: =VLOOKUP(J194,CDs_ANAPLAN!B:C,2,FALSE) -> AV50
A195: Jan 25 | B195: DC-K4200 | C195: 2T Capacity Occupation (hl) | D195: hl/# | E195: PLANT | F195: MAZ | G195: BU Colombia | H195: Colombia | I195: Colombia_PG_Name | J195: DC Tunja | K195: 40.8624497 | L195: 41.20481865 | M195: 41.38537896 | N195: 0.3423689492 | O195: -0.1805603072 | P195: 0 | Q195: 40.8624497 | R195: 41.20481865 | S195: 0 | T195: 0.3423689492 | U195: 41.20481865 | V195: 0 | W195: 1 | X195: =VLOOKUP(J195,CDs_ANAPLAN!B:C,2,FALSE) -> AV42
A196: Jan 25 | B196: DC-K4200 | C196: 2T Capacity Occupation (hl) | D196: hl/# | E196: PLANT | F196: MAZ | G196: BU Colombia | H196: Colombia | I196: Colombia_PG_Name | J196: DC Chiquinquira | K196: 35.85119037 | L196: 39.28521595 | M196: 37.20083906 | N196: 3.434025574 | O196: 2.084376887 | P196: 0 | Q196: 35.85119037 | R196: 39.28521595 | S196: 0 | T196: 3.434025574 | U196: 39.28521595 | V196: 0 | W196: 1 | X196: =VLOOKUP(J196,CDs_ANAPLAN!B:C,2,FALSE) -> AV66
A197: Jan 25 | B197: DC-K4200 | C197: 2T Capacity Occupation (hl) | D197: hl/# | E197: PLANT | F197: MAZ | G197: BU Colombia | H197: Colombia | I197: Colombia_PG_Name | J197: DC Montevideo (CO) | K197: 36.94380785 | L197: 37.23983154 | M197: 35.65559128 | N197: 0.2960236885 | O197: 1.584240256 | P197: 0 | Q197: 36.94380785 | R197: 37.23983154 | S197: 0 | T197: 0.2960236885 | U197: 37.23983154 | V197: 0 | W197: 1 | X197: =VLOOKUP(J197,CDs_ANAPLAN!B:C,2,FALSE) -> AV78
A198: Jan 25 | B198: DC-R0030 | C198: 2T HL Lost | D198: hl | E198: PLANT | F198: MAZ | G198: BU Colombia | H198: Colombia | I198: Colombia_PG_Name | J198: DC Boyaca | K198: 54.8985265 | L198: 38.04267 | M198: 52.77047476 | N198: -16.8558565 | O198: -14.72780476 | P198: 0 | Q198: 54.8985265 | R198: 38.04267 | S198: 52.77047476 | T198: -16.8558565 | U198: -14.72780476 | V198: 0 | W198: 1 | X198: =VLOOKUP(J198,CDs_ANAPLAN!B:C,2,FALSE) -> AV04
A199: Jan 25 | B199: DC-R0030 | C199: 2T HL Lost | D199: hl | E199: PLANT | F199: MAZ | G199: BU Colombia | H199: Colombia | I199: Colombia_PG_Name | J199: DC Tocancipa | K199: 1252.02159 | L199: 1654.41115 | M199: 1242.99901 | N199: 402.38956 | O199: 411.41214 | P199: 0 | Q199: 1252.02159 | R199: 1654.41115 | S199: 1242.99901 | T199: 402.38956 | U199: 411.41214 | V199: 0 | W199: 1 | X199: =VLOOKUP(J199,CDs_ANAPLAN!B:C,2,FALSE) -> AV06
A200: Jan 25 | B200: DC-R0030 | C200: 2T HL Lost | D200: hl | E200: PLANT | F200: MAZ | G200: BU Colombia | H200: Colombia | I200: Colombia_PG_Name | J200: DC Sibate | K200: 86.24026 | L200: 138.90358 | M200: 86.13948866 | N200: 52.66332 | O200: 52.76409134 | P200: 0 | Q200: 86.24026 | R200: 138.90358 | S200: 86.13948866 | T200: 52.66332 | U200: 52.76409134 | V200: 0 | W200: 1 | X200: =VLOOKUP(J200,CDs_ANAPLAN!B:C,2,FALSE) -> AV47
... 2050 more rows

Sheet CDs_ANAPLAN (hidden)
B1: Plant Name
A2: AV04 | B2: DC Boyaca | C2: AV04 | D2: Tibasosa
A3: AV06 | B3: DC Tocancipa | C3: AV06 | D3: Tocancipá
A4: AV06KA | B4: DC Tocancipa | C4: AV06 | D4: Tocancipá KA
A5: AV26 | C5: AV26 | D5: Autosur
A6: AV42 | B6: DC Tunja | C6: AV42 | D6: Tunja
A7: AV47 | B7: DC Sibate | C7: AV47 | D7: Sibaté
A8: AV50 | B8: DC Siberia | C8: AV50 | D8: Siberia
A9: AV66 | B9: DC Chiquinquira | C9: AV66 | D9: Chiquinquirá
A10: AV78 | B10: DC Montevideo (CO) | C10: AV78 | D10: Montevideo

Sheet Open Book UC (hidden)
A1: Cantidad de Vehículos Operación | B1: =SimulaciónV2!NKG56 -> 43
L2: =IF(AND($B$1>K5,$B$1<=L5),1,0) -> 0 | M2: 1 | N2: 0 | O2: 0 | P2: 0 | Q2: 0 | R2: 0 | S2: 0 | T2: 0 | U2: 0
A3: Cargo | B3: Tipo | C3: Tipo De Contrato | D3: Tipo Cargo | E3: Clase ARL | F3: Salario Base | G3: Personas | H3: Salario Base | J3: Personal | K3: Camiones | X3: Personal | Y3: Tripulantes | BK3: PLANEADO | CW3: REALIZADO
A4: Líder de Ruta | B4: Operativo | C4: Natural | D4: Camion | E4: Clase_IV | F4: $ 2,167,560.00 | H4: $ 2,167,560.00 | J4: NÃO APAGAR -> | K4: 0 | L4: =IF(L5="","",RIGHT(K5,LEN(K5)-2)+1) ->  | R4: 7 | S4: 1 | T4: 6 | U4: 1 | X4: NÃO APAGAR -> | Y4: 0 | Z4: =RIGHT(Y5,LEN(Y5)-2)+1 -> 51 | AA4: =RIGHT(Z5,LEN(Z5)-2)+1 -> 151 | AB4: =RIGHT(AA5,LEN(AA5)-2)+1 -> 251
A5: Conductor | B5: Operativo | C5: Natural | D5: Camion | E5: Clase_IV | F5: =1900160.64+135432 -> $ 2,035,592.64 | G5: =+SimulaciónV2!NKI50 -> 43 | H5: $ 1,830,600.00 | J5: Cargo | K5: 0 | L5: 30 | M5: 45 | N5: 60 | O5: 75 | P5: 91 | Q5: 106 | R5: 120 | S5: 135 | T5: 150 | U5: 151 | V5: Personas Requeridas | X5: Cargo | Y5: <= 50 | Z5: <=150 | AA5: <=250 | AB5: >250 | AF5: Mês | AG5: Cargo | AH5: Cantidad Prevista Regular | AI5: Cantidad Prevista KA | AJ5: Cantidad Prevista SPOT | AK5: Cantidad Ajustada | AL5: Vacaciones | AM5: Cantidad + Vacaciones | AN5: Ausentismo | AO5: Total | AQ5: Mês | AR5: Cargo | AS5: Cantidad Camiones | AT5: Cantidad Tripulación | AU5: Cantidad Prevista | AV5: Cantidad Ajustada | AX5: Mês | AY5: Cargo | AZ5: Cantidad Camiones | BA5: Cantidad Prevista | BB5: Cantidad Ajustada | BD5: Mês | BE5: Cargo | BF5: Cantidad Administrativos | BG5: Cantidad Prevista | BH5: Cantidad Ajustada | BJ5: Mês | BK5: Cargo | BL5: Cantidad Prevista | BM5: Cantidad Ajustada | BN5: Cantidad + Vacaciones | BO5: Cantidad + Vacaciones + Ausentismos | BR5: Mês | BS5: Cargo | BT5: Cantidad Prevista Regular | BU5: Cantidad Prevista KA | BV5: Cantidad Prevista SPOT | BW5: Cantidad Ajustada | BX5: Vacaciones | BY5: Canidad + Vacaciones | BZ5: Ausentismo | CA5: Total | CC5: Mês | CD5: Cargo | CE5: Cantidad Camiones | CF5: Cantidad Tripulación | CG5: Cantidad Prevista | CH5: Cantidad Ajustada | CJ5: Mês | CK5: Cargo | CL5: Cantidad Camiones | CM5: Cantidad Prevista | CN5: Cantidad Ajustada | CP5: Mês | CQ5: Cargo | CR5: Cantidad Administrativos | CS5: Cantidad Prevista | CT5: Cantidad Ajustada | CV5: Mês | CW5: Cargo | CX5: Cantidad Prevista | CY5: Cantidad Ajustada | CZ5: Cantidad + Vacaciones | DA5: Cantidad + Vacaciones + Ausentismos
A6: Responsable de reparto | B6: Operativo | C6: Natural | D6: Camion | E6: Clase_IV | F6: =1795546+107732 -> $ 1,903,278.00 | G6: =+SimulaciónV2!NKI52 -> 43 | H6: $ 1,647,000.00 | J6: Jefe de operaciones | K6: 0 | L6: 1 | M6: 1 | N6: 1 | O6: 1 | P6: 1 | Q6: 1 | R6: 1 | S6: 1 | T6: 1 | U6: 1 | V6: =+SUMPRODUCT($L$2:$U$2,L6:U6) -> 1 | X6: Profesional SGSST | Y6: 0 | Z6: 1 | AA6: 1 | AB6: 1 | AF6: Enero | AG6: Auxiliar de Reparto | AH6: 55.0 | AI6: 0.0 | AJ6: 0.0 | AL6: =IF($Z$19="Si",ROUNDUP(ROUND(AH6*$Y$19,1),0),AK6*$Y$19) ->  | AM6: =AK6+AL6 ->  | AN6: =IF($Z$18="Si",ROUNDUP(ROUND(AH6*$Y$18,1),0),AH6*$Y$18) -> 1.0 | AO6: =AN6+AL6+AK6 ->  | AQ6: Enero | AR6: Profesional SGSST | AT6: =SUMIFS($AK:$AK,AF:AF,AQ6) ->  | AU6: =IF(AS6=0,0,INDEX($X$4:$AB$7,MATCH(AR6,$X$4:$X$7,0),MATCH(AT6,$X$4:$AB$4,1))) ->  | AX6: Enero | AY6: Auxiliar contable | BA6: =INDEX($J$4:$U$20,MATCH(AY6,$J$4:$J$20,0),MATCH(AZ6,$J$4:$U$4,1)) ->  | BD6: Enero | BE6: Aprendices SENA | BF6: =SUMIFS(BB:BB,AX:AX,BD6)+SUMIFS(AV:AV,AQ:AQ,BD6) ->  | BG6: =IF(BF6<15,0,ROUND(BF6/$Y$13,0)) ->  | BJ6: Enero | BK6: Aprendices SENA | BL6: =SUMIFS(BG:BG,BD:BD,BJ6,BE:BE,BK6)+SUMIFS(BA:BA,AX:AX,BJ6,AY:AY,BK6)+SUMIFS(AU:AU,AQ:AQ,BJ6,AR:AR,BK6)+SUMIFS(AH:AH,AF:AF,BJ6,AG:AG,BK6)+SUMIFS(AI:AI,AF:AF,BJ6,AG:AG,BK6)+SUMIFS(AJ:AJ,AF:AF,BJ6,AG:AG,BK6) ->  | BM6: =SUMIFS(BH:BH,BD:BD,BJ6,BE:BE,BK6)+SUMIFS(BB:BB,AX:AX,BJ6,AY:AY,BK6)+SUMIFS(AV:AV,AQ:AQ,BJ6,AR:AR,BK6)+SUMIFS(AK:AK,AF:AF,BJ6,AG:AG,BK6) ->  | BN6: =SUMIFS(BH:BH,BD:BD,BJ6,BE:BE,BK6)+SUMIFS(BB:BB,AX:AX,BJ6,AY:AY,BK6)+SUMIFS(AV:AV,AQ:AQ,BJ6,AR:AR,BK6)+SUMIFS(AM:AM,AF:AF,BJ6,AG:AG,BK6) ->  | BO6: =SUMIFS(BH:BH,BD:BD,BJ6,BE:BE,BK6)+SUMIFS(BB:BB,AX:AX,BJ6,AY:AY,BK6)+SUMIFS(AV:AV,AQ:AQ,BJ6,AR:AR,BK6)+SUMIFS(AO:AO,AF:AF,BJ6,AG:AG,BK6) ->  | BR6: Enero | BS6: Auxiliar de Reparto | BT6: 62 | BU6: 0 | BV6: 0 | BX6: =IF($Z$19="Si",ROUNDUP(ROUND(BT6*$Y$19,1),0),BT6*$Y$19) -> 0 | BY6: =BW6+BX6 ->  | BZ6: =IF($Z$18="Si",ROUNDUP(ROUND(BT6*$Y$18,1),0),BT6*$Y$18) -> 1 | CA6: =BZ6+BX6+BW6 ->  | CC6: Enero | CD6: Profesional SGSST | CF6: =SUMIFS($BW:$BW,BR:BR,CC6) ->  | CG6: =IF(CE6=0,0,INDEX($X$4:$AB$7,MATCH(CD6,$X$4:$X$7,0),MATCH(CF6,$X$4:$AB$4,1))) ->  | CJ6: Enero | CK6: Auxiliar contable | CM6: =INDEX($J$4:$U$20,MATCH(CK6,$J$4:$J$20,0),MATCH(CL6,$J$4:$U$4,1)) ->  | CP6: Enero | CQ6: Aprendices SENA | CR6: =SUMIFS(CN:CN,CJ:CJ,CP6)+SUMIFS(CH:CH,CC:CC,CP6) ->  | CS6: =IF(CR6<15,0,ROUND(CR6/$Y$13,0)) ->  | CV6: Enero | CW6: Aprendices SENA | CX6: =SUMIFS(CS:CS,CP:CP,CV6,CQ:CQ,CW6)+SUMIFS(CM:CM,CJ:CJ,CV6,CK:CK,CW6)+SUMIFS(CG:CG,CC:CC,CV6,CD:CD,CW6)+SUMIFS(BT:BT,BR:BR,CV6,BS:BS,CW6) ->  | CY6: =SUMIFS(CT:CT,CP:CP,CV6,CQ:CQ,CW6)+SUMIFS(CN:CN,CJ:CJ,CV6,CK:CK,CW6)+SUMIFS(CH:CH,CC:CC,CV6,CD:CD,CW6)+SUMIFS(BW:BW,BR:BR,CV6,BS:BS,CW6) ->  | CZ6: =SUMIFS(CT:CT,CP:CP,CV6,CQ:CQ,CW6)+SUMIFS(CN:CN,CJ:CJ,CV6,CK:CK,CW6)+SUMIFS(CH:CH,CC:CC,CV6,CD:CD,CW6)+SUMIFS(BY:BY,BR:BR,CV6,BS:BS,CW6) ->  | DA6: =SUMIFS(CT:CT,CP:CP,CV6,CQ:CQ,CW6)+SUMIFS(CN:CN,CJ:CJ,CV6,CK:CK,CW6)+SUMIFS(CH:CH,CC:CC,CV6,CD:CD,CW6)+SUMIFS(CA:CA,BR:BR,CV6,BS:BS,CW6) -> 
A7: Auxiliar de reparto | B7: Operativo | C7: Natural | D7: Camion | E7: Clase_IV | F7: =1485297+88277 -> $ 1,573,574.00 | G7: =+SimulaciónV2!NKI51 -> 37 | H7: $ 1,423,500.00 | J7: Coordinadores Ruta | K7: 0 | L7: 2 | M7: 3 | N7: 3 | O7: 4 | P7: 6 | Q7: 6 | R7: 6 | S7: 6 | T7: 6 | U7: 6 | V7: 3 | X7: Técnico SGSST | Y7: 1 | Z7: 0 | AA7: 1 | AB7: 2 | AF7: Enero | AG7: Conductor RR | AH7: 31.0 | AI7: 0.0 | AJ7: 0.0 | AN7: 1.0 | AQ7: Enero | AR7: Técnico SGSST | AX7: Enero | AY7: Auxiliar de Aseo | BD7: Febrero | BE7: Aprendices SENA | BJ7: Enero | BK7: Auxiliar contable | BR7: Enero | BS7: Conductor RR | BT7: 31 | BU7: 0 | BV7: 0 | BX7: 0 | BZ7: 1 | CC7: Enero | CD7: Técnico SGSST | CJ7: Enero | CK7: Auxiliar de Aseo | CP7: Febrero | CQ7: Aprendices SENA | CV7: Enero | CW7: Auxiliar contable
A8: Movilizadores | B8: Operativo | C8: Natural | D8: Camion | E8: Clase_IV | F8: $ 1,744,028.00 | G8: =+SimulaciónV2!NHU49 -> 0 | H8: $ 1,715,509.00 | J8: Profesional de flota | K8: 0 | L8: 1 | M8: 1 | N8: 1 | O8: 1 | P8: 1 | Q8: 1 | R8: 1 | S8: 1 | T8: 1 | U8: 1 | V8: 1 | AF8: Enero | AG8: Cuarto Tripulante | AH8: 0.0 | AI8: 0.0 | AJ8: 0.0 | AN8: 0.0 | AQ8: Febrero | AR8: Profesional SGSST | AX8: Enero | AY8: Auxiliar de Flota | BD8: Marzo | BE8: Aprendices SENA | BJ8: Enero | BK8: Auxiliar de Aseo | BR8: Enero | BS8: Cuarto Tripulante | BT8: 0 | BU8: 0 | BV8: 0 | BX8: 0 | BZ8: 0 | CC8: Febrero | CD8: Profesional SGSST | CJ8: Enero | CK8: Auxiliar de Flota | CP8: Marzo | CQ8: Aprendices SENA | CV8: Enero | CW8: Auxiliar de Aseo
A9: Auxiliar Operativo | B9: Operativo | C9: Natural | D9: CD | E9: Clase_IV | F9: 0 | G9: 0 | H9: 0 | J9: Auxiliar de liquidación | K9: 0 | L9: 1 | M9: 1 | N9: 2 | O9: 3 | P9: 3 | Q9: 3 | R9: 3 | S9: 3 | T9: 3 | U9: 3 | V9: 1 | AF9: Enero | AG9: Movilizadores | AH9: 5.0 | AI9: 0.0 | AJ9: 0.0 | AN9: 0.0 | AQ9: Febrero | AR9: Técnico SGSST | AX9: Enero | AY9: Auxiliar de liquidación | BD9: Abril | BE9: Aprendices SENA | BJ9: Enero | BK9: Auxiliar de Flota | BR9: Enero | BS9: Movilizadores | BT9: 5 | BU9: 0 | BV9: 0 | BX9: 0 | BZ9: 0 | CC9: Febrero | CD9: Técnico SGSST | CJ9: Enero | CK9: Auxiliar de liquidación | CP9: Abril | CQ9: Aprendices SENA | CV9: Enero | CW9: Auxiliar de Flota
A10: Conductores Inside | B10: Operativo | C10: Natural | D10: Camion | E10: Clase_IV | F10: 0 | G10: 0 | H10: 0 | J10: Auxiliar de Flota | K10: 0 | L10: 0 | M10: 1 | N10: 1 | O10: 2 | P10: 2 | Q10: 3 | R10: 3 | S10: 3 | T10: 3 | U10: 3 | V10: 1 | AF10: Febrero | AG10: Auxiliar de Reparto | AH10: 58.0 | AI10: 0.0 | AJ10: 0.0 | AN10: 1.0 | AQ10: Marzo | AR10: Profesional SGSST | AX10: Enero | AY10: Auxiliar de Recursos Humanos | BD10: Mayo | BE10: Aprendices SENA | BJ10: Enero | BK10: Auxiliar de liquidación | BR10: Febrero | BS10: Auxiliar de Reparto | BT10: 64 | BU10: 0 | BV10: 0 | BX10: 0 | BZ10: 1 | CC10: Marzo | CD10: Profesional SGSST | CJ10: Enero | CK10: Auxiliar de Recursos Humanos | CP10: Mayo | CQ10: Aprendices SENA | CV10: Enero | CW10: Auxiliar de liquidación
A11: Líder de Ruta JL | B11: Jornada Laboral | C11: Natural | D11: Camion | E11: Clase_IV | F11: $ 2,257,213.00 | G11: 0 | H11: $ 2,167,560.00 | J11: Auxiliar de Aseo | K11: 0 | L11: 1 | M11: 1 | N11: 2 | O11: 2 | P11: 2 | Q11: 3 | R11: 3 | S11: 3 | T11: 3 | U11: 3 | V11: 1 | AF11: Febrero | AG11: Conductor RR | AH11: 30.0 | AI11: 0.0 | AJ11: 0.0 | AN11: 1.0 | AQ11: Marzo | AR11: Técnico SGSST | AX11: Enero | AY11: Call center | BD11: Junio | BE11: Aprendices SENA | BJ11: Enero | BK11: Auxiliar de Recursos Humanos | BR11: Febrero | BS11: Conductor RR | BT11: 32 | BU11: 0 | BV11: 0 | BX11: 0 | BZ11: 1 | CC11: Marzo | CD11: Técnico SGSST | CJ11: Enero | CK11: Call center | CP11: Junio | CQ11: Aprendices SENA | CV11: Enero | CW11: Auxiliar de Recursos Humanos
A12: Conductor JL | B12: Jornada Laboral | C12: Natural | D12: Camion | E12: Clase_IV | F12: $ 1,847,378.00 | G12: 0 | H12: $ 1,715,509.00 | J12: Profesional de Recursos Humanos | K12: 0 | L12: 1 | M12: 1 | N12: 1 | O12: 1 | P12: 1 | Q12: 1 | R12: 1 | S12: 1 | T12: 1 | U12: 1 | V12: 1 | X12: Cargo | Y12: ="1 a cada "&Y13&" Administrativos" -> 1 a cada 20 Administrativos | AF12: Febrero | AG12: Cuarto Tripulante | AH12: 0.0 | AI12: 0.0 | AJ12: 0.0 | AN12: 0.0 | AQ12: Abril | AR12: Profesional SGSST | AX12: Enero | AY12: Contador (Honorarios) | BD12: Julio | BE12: Aprendices SENA | BJ12: Enero | BK12: Auxiliar de Reparto | BL12: 55 | BR12: Febrero | BS12: Cuarto Tripulante | BT12: 0 | BU12: 0 | BV12: 0 | BX12: 0 | BZ12: 0 | CC12: Abril | CD12: Profesional SGSST | CJ12: Enero | CK12: Contador (Honorarios) | CP12: Julio | CQ12: Aprendices SENA | CV12: Enero | CW12: Auxiliar de Reparto | CX12: 62
A13: Responsable de reparto JL | B13: Jornada Laboral | C13: Natural | D13: Camion | E13: Clase_IV | F13: $ 1,527,334.00 | G13: 0 | H13: $ 1,537,200.00 | J13: Auxiliar de Recursos Humanos | K13: 0 | L13: 1 | M13: 1 | N13: 1 | O13: 2 | P13: 2 | Q13: 3 | R13: 3 | S13: 3 | T13: 3 | U13: 3 | V13: 1 | X13: Aprendices SENA | Y13: 20 | AF13: Febrero | AG13: Movilizadores | AH13: 4.0 | AI13: 0.0 | AJ13: 0.0 | AN13: 0.0 | AQ13: Abril | AR13: Técnico SGSST | AX13: Enero | AY13: Coordinadores Ruta | BD13: Agosto | BE13: Aprendices SENA | BJ13: Enero | BK13: Call center | BR13: Febrero | BS13: Movilizadores | BT13: 5 | BU13: 0 | BV13: 0 | BX13: 0 | BZ13: 0 | CC13: Abril | CD13: Técnico SGSST | CJ13: Enero | CK13: Coordinadores Ruta | CP13: Agosto | CQ13: Aprendices SENA | CV13: Enero | CW13: Call center
A14: Auxiliar de reparto JL | B14: Jornada Laboral | C14: Natural | D14: Camion | E14: Clase_IV | F14: $ 1,527,334.00 | G14: 0 | H14: $ 1,423,500.00 | J14: Contador (Honorarios) | K14: 0 | L14: 1 | M14: 1 | N14: 1 | O14: 1 | P14: 1 | Q14: 1 | R14: 1 | S14: 1 | T14: 1 | U14: 1 | V14: 1 | AF14: Marzo | AG14: Auxiliar de Reparto | AH14: 61.0 | AI14: 0.0 | AJ14: 0.0 | AN14: 1.0 | AQ14: Mayo | AR14: Profesional SGSST | AX14: Enero | AY14: Gerente Junior | BD14: Septiembre | BE14: Aprendices SENA | BJ14: Enero | BK14: Conductor RR | BL14: 31 | BR14: Marzo | BS14: Auxiliar de Reparto | BT14: 64 | BU14: 0 | BV14: 0 | BX14: 0 | BZ14: 1 | CC14: Mayo | CD14: Profesional SGSST | CJ14: Enero | CK14: Gerente Junior | CP14: Septiembre | CQ14: Aprendices SENA | CV14: Enero | CW14: Conductor RR | CX14: 31
A15: Auxiliar contable | B15: Administrativo | C15: Confianza | D15: Oficina_fuera_de_CD | E15: Clase_III | F15: $ 1,723,468.00 | G15: =+VLOOKUP(A15,J:V,13,FALSE) -> 1 | H15: $ 1,423,500.00 | J15: Auxiliar contable | K15: 0 | L15: 1 | M15: 1 | N15: 1 | O15: 1 | P15: 1 | Q15: 1 | R15: 1 | S15: 1 | T15: 1 | U15: 1 | V15: 1 | AF15: Marzo | AG15: Conductor RR | AH15: 32.0 | AI15: 0.0 | AJ15: 0.0 | AN15: 1.0 | AQ15: Mayo | AR15: Técnico SGSST | AX15: Enero | AY15: Gerente Senior | BD15: Octubre | BE15: Aprendices SENA | BJ15: Enero | BK15: Contador (Honorarios) | BR15: Marzo | BS15: Conductor RR | BT15: 32 | BU15: 0 | BV15: 0 | BX15: 0 | BZ15: 1 | CC15: Mayo | CD15: Técnico SGSST | CJ15: Enero | CK15: Gerente Senior | CP15: Octubre | CQ15: Aprendices SENA | CV15: Enero | CW15: Contador (Honorarios)
A16: Auxiliar de Aseo | B16: Administrativo | C16: Natural | D16: CD | E16: Clase_III | F16: $ 1,423,500.00 | G16: =+VLOOKUP(A16,J:V,13,FALSE)+1 -> 2 | H16: $ 1,423,500.00 | J16: Gerente Junior | K16: 0 | L16: 0 | M16: 0 | N16: 1 | O16: 1 | P16: 0 | Q16: 0 | R16: 0 | S16: 0 | T16: 0 | U16: 0 | V16: 0 | AF16: Marzo | AG16: Cuarto Tripulante | AH16: 0.0 | AI16: 0.0 | AJ16: 0.0 | AN16: 0.0 | AQ16: Junio | AR16: Profesional SGSST | AX16: Enero | AY16: Jefe de operaciones | BD16: Noviembre | BE16: Aprendices SENA | BJ16: Enero | BK16: Coordinadores Ruta | BR16: Marzo | BS16: Cuarto Tripulante | BT16: 0 | BU16: 0 | BV16: 0 | BX16: 0 | BZ16: 0 | CC16: Junio | CD16: Profesional SGSST | CJ16: Enero | CK16: Jefe de operaciones | CP16: Noviembre | CQ16: Aprendices SENA | CV16: Enero | CW16: Coordinadores Ruta
A17: Auxiliar de Flota | B17: Administrativo | C17: Natural | D17: CD | E17: Clase_III | F17: $ 1,723,468.00 | G17: =+VLOOKUP(A17,J:V,13,FALSE)+1 -> 2 | H17: $ 1,480,297.00 | J17: Gerente | K17: 0 | L17: 0 | M17: 0 | N17: 0 | O17: 0 | P17: 1 | Q17: 1 | R17: 1 | S17: 1 | T17: 1 | U17: 1 | V17: 0 | X17: Ausentismo Y Vacaciones Tripulación | Z17: Redondear cantidad? | AF17: Marzo | AG17: Movilizadores | AH17: 4.0 | AI17: 0.0 | AJ17: 0.0 | AN17: 0.0 | AQ17: Junio | AR17: Técnico SGSST | AX17: Enero | AY17: Profesional de flota | BD17: Diciembre | BE17: Aprendices SENA | BJ17: Enero | BK17: Cuarto Tripulante | BL17: 0 | BR17: Marzo | BS17: Movilizadores | BT17: 5 | BU17: 0 | BV17: 0 | BX17: 0 | BZ17: 0 | CC17: Junio | CD17: Técnico SGSST | CJ17: Enero | CK17: Profesional de flota | CP17: Diciembre | CQ17: Aprendices SENA | CV17: Enero | CW17: Cuarto Tripulante | CX17: 0
A18: Auxiliar de liquidación | B18: Administrativo | C18: Confianza | D18: CD | E18: Clase_III | F18: $ 1,723,468.00 | G18: =+VLOOKUP(A18,J:V,13,FALSE)+3 -> 4 | H18: $ 1,737,700.00 | J18: Call center | K18: 0 | L18: 2 | M18: 2 | N18: 2 | O18: 3 | P18: 4 | Q18: 5 | R18: 5 | S18: 5 | T18: 5 | U18: 5 | V18: 2 | X18: Ausentismo | Y18: 0.70% | Z18: Si | AF18: Abril | AG18: Auxiliar de Reparto | AH18: 69.0 | AI18: 0.0 | AJ18: 0.0 | AN18: 1.0 | AQ18: Julio | AR18: Profesional SGSST | AX18: Enero | AY18: Profesional de Recursos Humanos | BJ18: Enero | BK18: Gerente Junior | BR18: Abril | BS18: Auxiliar de Reparto | BT18: 64 | BU18: 0 | BV18: 0 | BX18: 0 | BZ18: 1 | CC18: Julio | CD18: Profesional SGSST | CJ18: Enero | CK18: Profesional de Recursos Humanos | CV18: Enero | CW18: Gerente Junior
A19: Auxiliar de Recursos Humanos | B19: Administrativo | C19: Natural | D19: Oficina_fuera_de_CD | E19: Clase_III | F19: $ 1,723,468.00 | G19: =+VLOOKUP(A19,J:V,13,FALSE)+2 -> 3 | H19: $ 1,423,500.00 | J19: Torre de Control | K19: 0 | L19: 1 | M19: 2 | N19: 3 | O19: 4 | P19: 5 | Q19: 6 | R19: 6 | S19: 6 | T19: 6 | U19: 6 | V19: 2 | X19: Vacaciones | Y19: 0.00% | Z19: No | AF19: Abril | AG19: Conductor RR | AH19: 36.0 | AI19: 0.0 | AJ19: 0.0 | AN19: 1.0 | AQ19: Julio | AR19: Técnico SGSST | AX19: Enero | AY19: Revisor Fiscal (Honorarios) | BJ19: Enero | BK19: Gerente Senior | BR19: Abril | BS19: Conductor RR | BT19: 32 | BU19: 0 | BV19: 0 | BX19: 0 | BZ19: 1 | CC19: Julio | CD19: Técnico SGSST | CJ19: Enero | CK19: Revisor Fiscal (Honorarios) | CV19: Enero | CW19: Gerente Senior
A20: Call center | B20: Administrativo | C20: Confianza | D20: Oficina_fuera_de_CD | E20: Clase_III | F20: $ 2,091,312.00 | G20: =+VLOOKUP(A20,J:V,13,FALSE)+2 -> 4 | H20: $ 1,423,500.00 | J20: Revisor Fiscal (Honorarios) | K20: 0 | L20: 1 | M20: 1 | N20: 1 | O20: 1 | P20: 1 | Q20: 1 | R20: 1 | S20: 1 | T20: 1 | U20: 1 | V20: 1 | AF20: Abril | AG20: Cuarto Tripulante | AH20: 0.0 | AI20: 0.0 | AJ20: 0.0 | AN20: 0.0 | AQ20: Agosto | AR20: Profesional SGSST | AX20: Enero | AY20: Torre de Control | BJ20: Enero | BK20: Jefe de operaciones | BR20: Abril | BS20: Cuarto Tripulante | BT20: 0 | BU20: 0 | BV20: 0 | BX20: 0 | BZ20: 0 | CC20: Agosto | CD20: Profesional SGSST | CJ20: Enero | CK20: Torre de Control | CV20: Enero | CW20: Jefe de operaciones
A21: Contador (Honorarios) | B21: Administrativo | C21: Honorarios | D21: Oficina_fuera_de_CD | E21: Clase_III | F21: $ 3,533,937.00 | G21: =+VLOOKUP(A21,J:V,13,FALSE) -> 1 | H21: $ 2,183,000.00 | J21: Profesional SGSST | K21: 0 | L21: 1 | M21: 1 | N21: 1 | O21: 1 | P21: 1 | Q21: 1 | R21: 1 | S21: 1 | T21: 1 | U21: 1 | V21: 1 | AF21: Abril | AG21: Movilizadores | AH21: 4.0 | AI21: 0.0 | AJ21: 0.0 | AN21: 0.0 | AQ21: Agosto | AR21: Técnico SGSST | AX21: Febrero | AY21: Auxiliar contable | BJ21: Enero | BK21: Movilizadores | BL21: 5 | BR21: Abril | BS21: Movilizadores | BT21: 0 | BU21: 0 | BV21: 0 | BX21: 0 | BZ21: 0 | CC21: Agosto | CD21: Técnico SGSST | CJ21: Febrero | CK21: Auxiliar contable | CV21: Enero | CW21: Movilizadores | CX21: 5
A22: Coordinadores Ruta | B22: Administrativo | C22: Confianza | D22: CD | E22: Clase_III | F22: $ 2,221,583.00 | G22: 3 | H22: $ 1,997,828.00 | J22: Técnico SGSST | K22: 0 | L22: 0 | M22: 1 | N22: 2 | O22: 2 | P22: 2 | Q22: 2 | R22: 2 | S22: 2 | T22: 2 | U22: 2 | V22: 1 | AF22: Mayo | AG22: Auxiliar de Reparto | AH22: 65.0 | AI22: 0.0 | AJ22: 0.0 | AN22: 1.0 | AQ22: Septiembre | AR22: Profesional SGSST | AX22: Febrero | AY22: Auxiliar de Aseo | BJ22: Enero | BK22: Profesional de flota | BR22: Mayo | BS22: Auxiliar de Reparto | BT22: 64 | BU22: 0 | BV22: 0 | BX22: 0 | BZ22: 1 | CC22: Septiembre | CD22: Profesional SGSST | CJ22: Febrero | CK22: Auxiliar de Aseo | CV22: Enero | CW22: Profesional de flota
A23: Gerente | B23: Administrativo | C23: Confianza | D23: Oficina_fuera_de_CD | E23: Clase_III | F23: $ 3,682,000.00 | G23: 0 | H23: $ 3,559,680.00 | J23: Aprendices SENA | K23: 0 | L23: 0 | M23: 1 | N23: 2 | O23: 2 | P23: 2 | Q23: 2 | R23: 2 | S23: 2 | T23: 2 | U23: 2 | V23: 1 | AF23: Mayo | AG23: Conductor RR | AH23: 34.0 | AI23: 0.0 | AJ23: 0.0 | AN23: 1.0 | AQ23: Septiembre | AR23: Técnico SGSST | AX23: Febrero | AY23: Auxiliar de Flota | BJ23: Enero | BK23: Profesional de Recursos Humanos | BR23: Mayo | BS23: Conductor RR | BT23: 32 | BU23: 0 | BV23: 0 | BX23: 0 | BZ23: 1 | CC23: Septiembre | CD23: Técnico SGSST | CJ23: Febrero | CK23: Auxiliar de Flota | CV23: Enero | CW23: Profesional de Recursos Humanos
A24: Jefe de operaciones | B24: Administrativo | C24: Confianza | D24: Oficinas_CD | E24: Clase_III | F24: $ 2,949,343.00 | G24: 1 | H24: $ 2,838,680.00 | V24: =SUM(V6:V22) -> 19 | AF24: Mayo | AG24: Cuarto Tripulante | AH24: 0.0 | AI24: 0.0 | AJ24: 0.0 | AN24: 0.0 | AQ24: Octubre | AR24: Profesional SGSST | AX24: Febrero | AY24: Auxiliar de liquidación | BJ24: Enero | BK24: Profesional SGSST | BR24: Mayo | BS24: Cuarto Tripulante | BT24: 0 | BU24: 0 | BV24: 0 | BX24: 0 | BZ24: 0 | CC24: Octubre | CD24: Profesional SGSST | CJ24: Febrero | CK24: Auxiliar de liquidación | CV24: Enero | CW24: Profesional SGSST
A25: Profesional de flota | B25: Administrativo | C25: Confianza | D25: CD | E25: Clase_III | F25: $ 3,458,131.00 | G25: 1 | H25: $ 2,321,090.00 | AF25: Mayo | AG25: Movilizadores | AH25: 4.0 | AI25: 0.0 | AJ25: 0.0 | AN25: 0.0 | AQ25: Octubre | AR25: Técnico SGSST | AX25: Febrero | AY25: Auxiliar de Recursos Humanos | BJ25: Enero | BK25: Revisor Fiscal (Honorarios) | BR25: Mayo | BS25: Movilizadores | BT25: 4 | BU25: 0 | BV25: 0 | BX25: 0 | BZ25: 0 | CC25: Octubre | CD25: Técnico SGSST | CJ25: Febrero | CK25: Auxiliar de Recursos Humanos | CV25: Enero | CW25: Revisor Fiscal (Honorarios)
A26: Profesional de Recursos Humanos | B26: Administrativo | C26: Confianza | D26: Oficina_fuera_de_CD | E26: Clase_III | F26: $ 2,084,041.00 | G26: 1 | H26: $ 1,779,840.00 | AF26: Junio | AG26: Auxiliar de Reparto | AH26: 71.0 | AI26: 0.0 | AJ26: 0.0 | AN26: 1.0 | AQ26: Noviembre | AR26: Profesional SGSST | AX26: Febrero | AY26: Call center | BJ26: Enero | BK26: Técnico SGSST | BR26: Junio | BS26: Auxiliar de Reparto | BT26: 64 | BU26: 0 | BV26: 0 | BX26: 0 | BZ26: 1 | CC26: Noviembre | CD26: Profesional SGSST | CJ26: Febrero | CK26: Call center | CV26: Enero | CW26: Técnico SGSST
A27: Revisor Fiscal (Honorarios) | B27: Administrativo | C27: Honorarios | D27: Oficina_fuera_de_CD | E27: Clase_III | F27: $ 1,423,500.00 | G27: 1 | H27: $ 2,183,600.00 | AF27: Junio | AG27: Conductor RR | AH27: 37.0 | AI27: 0.0 | AJ27: 0.0 | AN27: 1.0 | AQ27: Noviembre | AR27: Técnico SGSST | AX27: Febrero | AY27: Contador (Honorarios) | BJ27: Enero | BK27: Torre de Control | BR27: Junio | BS27: Conductor RR | BT27: 32 | BU27: 0 | BV27: 0 | BX27: 0 | BZ27: 1 | CC27: Noviembre | CD27: Técnico SGSST | CJ27: Febrero | CK27: Contador (Honorarios) | CV27: Enero | CW27: Torre de Control
A28: Torre de Control | B28: Administrativo | C28: Confianza | D28: CD | E28: Clase_III | F28: $ 1,953,788.00 | G28: =+VLOOKUP(A28,J:V,13,FALSE)+3 -> 5 | H28: $ 1,637,700.00 | AF28: Junio | AG28: Cuarto Tripulante | AH28: 0.0 | AI28: 0.0 | AJ28: 0.0 | AN28: 0.0 | AQ28: Diciembre | AR28: Profesional SGSST | AX28: Febrero | AY28: Coordinadores Ruta | BJ28: Febrero | BK28: Aprendices SENA | BR28: Junio | BS28: Cuarto Tripulante | BT28: 0 | BU28: 0 | BV28: 0 | BX28: 0 | BZ28: 0 | CC28: Diciembre | CD28: Profesional SGSST | CJ28: Febrero | CK28: Coordinadores Ruta | CV28: Febrero | CW28: Aprendices SENA
A29: Profesional SGSST | B29: Administrativo | C29: Confianza | D29: CD | E29: Clase_III | F29: $ 2,623,766.00 | G29: =+VLOOKUP(A29,J:V,13,FALSE) -> 1 | H29: $ 2,679,574.00 | AF29: Junio | AG29: Movilizadores | AH29: 4.0 | AI29: 0.0 | AJ29: 0.0 | AN29: 0.0 | AQ29: Diciembre | AR29: Técnico SGSST | AX29: Febrero | AY29: Gerente Junior | BJ29: Febrero | BK29: Auxiliar contable | BR29: Junio | BS29: Movilizadores | BT29: 4 | BU29: 0 | BV29: 0 | BX29: 0 | BZ29: 0 | CC29: Diciembre | CD29: Técnico SGSST | CJ29: Febrero | CK29: Gerente Junior | CV29: Febrero | CW29: Auxiliar contable
A30: Técnico SGSST | B30: Administrativo | C30: Confianza | D30: CD | E30: Clase_III | F30: $ 1,723,468.00 | G30: =+VLOOKUP(A30,J:V,13,FALSE) -> 1 | H30: $ 1,496,400.00 | AF30: Julio | AG30: Auxiliar de Reparto | AH30: 67.0 | AI30: 0.0 | AJ30: 0.0 | AN30: 1.0 | AX30: Febrero | AY30: Gerente Senior | BJ30: Febrero | BK30: Auxiliar de Aseo | BR30: Julio | BS30: Auxiliar de Reparto | BT30: 64 | BU30: 0 | BV30: 0 | BX30: 0 | BZ30: 1 | CJ30: Febrero | CK30: Gerente Senior | CV30: Febrero | CW30: Auxiliar de Aseo
A31: Aprendices SENA | B31: Administrativo | C31: Educativo | D31: Oficina_fuera_de_CD | E31: Clase_III | F31: $ 1,067,625.00 | G31: =+VLOOKUP(A31,J:V,13,FALSE) -> 1 | H31: $ 1,067,625.00 | J31: =+SUM(G5:G7) -> 123 | AF31: Julio | AG31: Cuarto Tripulante | AH31: 0.0 | AI31: 0.0 | AJ31: 0.0 | AN31: 0.0 | AX31: Febrero | AY31: Profesional de flota | BJ31: Febrero | BK31: Auxiliar de liquidación | BR31: Julio | BS31: Cuarto Tripulante | BT31: 0 | BU31: 0 | BV31: 0 | BX31: 0 | BZ31: 0 | CJ31: Febrero | CK31: Profesional de flota | CV31: Febrero | CW31: Auxiliar de liquidación
J32: =+J31/42 -> 2.928571429 | AF32: Julio | AG32: Movilizadores | AH32: 4.0 | AI32: 0.0 | AJ32: 0.0 | AN32: 0.0 | AX32: Febrero | AY32: Profesional de Recursos Humanos | BJ32: Febrero | BK32: Auxiliar de Recursos Humanos | BR32: Julio | BS32: Movilizadores | BT32: 4 | BU32: 0 | BV32: 0 | BX32: 0 | BZ32: 0 | CJ32: Febrero | CK32: Profesional de Recursos Humanos | CV32: Febrero | CW32: Auxiliar de Recursos Humanos
AF33: Agosto | AG33: Auxiliar de Reparto | AH33: 72.0 | AI33: 0.0 | AJ33: 0.0 | AN33: 1.0 | AX33: Febrero | AY33: Revisor Fiscal (Honorarios) | BJ33: Febrero | BK33: Auxiliar de Reparto | BL33: 58 | BR33: Agosto | BS33: Auxiliar de Reparto | BT33: 72 | BU33: 0 | BV33: 0 | BX33: 0 | BZ33: 1 | CJ33: Febrero | CK33: Revisor Fiscal (Honorarios) | CV33: Febrero | CW33: Auxiliar de Reparto | CX33: 64
AF34: Agosto | AG34: Conductor RR | AH34: 36.0 | AI34: 0.0 | AJ34: 0.0 | AN34: 1.0 | AX34: Febrero | AY34: Torre de Control | BJ34: Febrero | BK34: Call center | BR34: Agosto | BS34: Conductor RR | BT34: 36 | BU34: 0 | BV34: 0 | BX34: 0 | BZ34: 1 | CJ34: Febrero | CK34: Torre de Control | CV34: Febrero | CW34: Call center
AF35: Agosto | AG35: Cuarto Tripulante | AH35: 0.0 | AI35: 0.0 | AJ35: 0.0 | AN35: 0.0 | AX35: Marzo | AY35: Auxiliar contable | BJ35: Febrero | BK35: Conductor RR | BL35: 30 | BR35: Agosto | BS35: Cuarto Tripulante | BT35: 0 | BU35: 0 | BV35: 0 | BX35: 0 | BZ35: 0 | CJ35: Marzo | CK35: Auxiliar contable | CV35: Febrero | CW35: Conductor RR | CX35: 32
AF36: Agosto | AG36: Movilizadores | AH36: 4.0 | AI36: 0.0 | AJ36: 0.0 | AN36: 0.0 | AX36: Marzo | AY36: Auxiliar de Aseo | BJ36: Febrero | BK36: Contador (Honorarios) | BR36: Agosto | BS36: Movilizadores | BT36: 4 | BU36: 0 | BV36: 0 | BX36: 0 | BZ36: 0 | CJ36: Marzo | CK36: Auxiliar de Aseo | CV36: Febrero | CW36: Contador (Honorarios)
AF37: Septiembre | AG37: Auxiliar de Reparto | AH37: 39.0 | AI37: 0.0 | AJ37: 0.0 | AN37: 1.0 | AX37: Marzo | AY37: Auxiliar de Flota | BJ37: Febrero | BK37: Coordinadores Ruta | BR37: Septiembre | BS37: Auxiliar de Reparto | BT37: 0 | BU37: 0 | BV37: 0 | BX37: 0 | BZ37: 0 | CJ37: Marzo | CK37: Auxiliar de Flota | CV37: Febrero | CW37: Coordinadores Ruta
AF38: Septiembre | AG38: Conductor RR | AH38: 4.0 | AI38: 0.0 | AJ38: 0.0 | AN38: 0.0 | AX38: Marzo | AY38: Auxiliar de liquidación | BA38: =INDEX($J$4:$U$20,MATCH(AY38,$J$4:$J$20,0),MATCH(AZ38,$J$4:$U$4,1)) ->  | BJ38: Febrero | BK38: Cuarto Tripulante | BL38: 0 | BR38: Septiembre | BS38: Conductor RR | BT38: 0 | BU38: 0 | BV38: 0 | BX38: 0 | BZ38: 0 | CJ38: Marzo | CK38: Auxiliar de liquidación | CM38: =INDEX($J$4:$U$20,MATCH(CK38,$J$4:$J$20,0),MATCH(CL38,$J$4:$U$4,1)) ->  | CV38: Febrero | CW38: Cuarto Tripulante | CX38: 0
AF39: Septiembre | AG39: Cuarto Tripulante | AH39: 62.0 | AI39: 0.0 | AJ39: 0.0 | AN39: 1.0 | AX39: Marzo | AY39: Auxiliar de Recursos Humanos | BJ39: Febrero | BK39: Gerente Junior | BR39: Septiembre | BS39: Cuarto Tripulante | BT39: 0 | BU39: 0 | BV39: 0 | BX39: 0 | BZ39: 0 | CJ39: Marzo | CK39: Auxiliar de Recursos Humanos | CV39: Febrero | CW39: Gerente Junior
AF40: Septiembre | AG40: Movilizadores | AH40: 4.0 | AI40: 0.0 | AJ40: 0.0 | AN40: 0.0 | AX40: Marzo | AY40: Call center | BJ40: Febrero | BK40: Gerente Senior | BR40: Septiembre | BS40: Movilizadores | BT40: 0 | BU40: 0 | BV40: 0 | BX40: 0 | BZ40: 0 | CJ40: Marzo | CK40: Call center | CV40: Febrero | CW40: Gerente Senior
AF41: Octubre | AG41: Auxiliar de Reparto | AH41: 0.0 | AI41: 0.0 | AJ41: 0.0 | AN41: 0.0 | AX41: Marzo | AY41: Contador (Honorarios) | BJ41: Febrero | BK41: Jefe de operaciones | BL41: 0 | BM41: 0 | BN41: 0 | BO41: 0 | BR41: Octubre | BS41: Auxiliar de Reparto | BT41: 0 | BU41: 0 | BV41: 0 | BX41: 0 | BZ41: 0 | CJ41: Marzo | CK41: Contador (Honorarios) | CV41: Febrero | CW41: Jefe de operaciones | CX41: 0 | CY41: 0 | CZ41: 0 | DA41: 0
AF42: Octubre | AG42: Conductor RR | AH42: 0.0 | AI42: 0.0 | AJ42: 0.0 | AN42: 0.0 | AX42: Marzo | AY42: Coordinadores Ruta | BJ42: Febrero | BK42: Movilizadores | BL42: 4 | BR42: Octubre | BS42: Conductor RR | BT42: 0 | BU42: 0 | BV42: 0 | BX42: 0 | BZ42: 0 | CJ42: Marzo | CK42: Coordinadores Ruta | CV42: Febrero | CW42: Movilizadores | CX42: 5
AF43: Octubre | AG43: Cuarto Tripulante | AH43: 0.0 | AI43: 0.0 | AJ43: 0.0 | AN43: 0.0 | AX43: Marzo | AY43: Gerente Junior | BJ43: Febrero | BK43: Profesional de flota | BR43: Octubre | BS43: Cuarto Tripulante | BT43: 0 | BU43: 0 | BV43: 0 | BX43: 0 | BZ43: 0 | CJ43: Marzo | CK43: Gerente Junior | CV43: Febrero | CW43: Profesional de flota
AF44: Octubre | AG44: Movilizadores | AH44: 0.0 | AI44: 0.0 | AJ44: 0.0 | AN44: 0.0 | AX44: Marzo | AY44: Gerente Senior | BJ44: Febrero | BK44: Profesional de Recursos Humanos | BR44: Octubre | BS44: Movilizadores | BT44: 0 | BU44: 0 | BV44: 0 | BX44: 0 | BZ44: 0 | CJ44: Marzo | CK44: Gerente Senior | CV44: Febrero | CW44: Profesional de Recursos Humanos
AF45: Noviembre | AG45: Auxiliar de Reparto | AH45: 0.0 | AI45: 0.0 | AJ45: 0.0 | AN45: 0.0 | AX45: Marzo | AY45: Jefe de operaciones | BJ45: Febrero | BK45: Profesional SGSST | BR45: Noviembre | BS45: Auxiliar de Reparto | BT45: 0 | BU45: 0 | BV45: 0 | BX45: 0 | BZ45: 0 | CJ45: Marzo | CK45: Jefe de operaciones | CV45: Febrero | CW45: Profesional SGSST
AF46: Noviembre | AG46: Conductor RR | AH46: 0.0 | AI46: 0.0 | AJ46: 0.0 | AN46: 0.0 | AX46: Marzo | AY46: Profesional de flota | BJ46: Febrero | BK46: Revisor Fiscal (Honorarios) | BR46: Noviembre | BS46: Conductor RR | BT46: 0 | BU46: 0 | BV46: 0 | BX46: 0 | BZ46: 0 | CJ46: Marzo | CK46: Profesional de flota | CV46: Febrero | CW46: Revisor Fiscal (Honorarios)
AF47: Noviembre | AG47: Cuarto Tripulante | AH47: 0.0 | AI47: 0.0 | AJ47: 0.0 | AN47: 0.0 | AX47: Marzo | AY47: Profesional de Recursos Humanos | BJ47: Febrero | BK47: Técnico SGSST | BR47: Noviembre | BS47: Cuarto Tripulante | BT47: 0 | BU47: 0 | BV47: 0 | BX47: 0 | BZ47: 0 | CJ47: Marzo | CK47: Profesional de Recursos Humanos | CV47: Febrero | CW47: Técnico SGSST
AF48: Noviembre | AG48: Movilizadores | AH48: 0.0 | AI48: 0.0 | AJ48: 0.0 | AN48: 0.0 | AX48: Marzo | AY48: Revisor Fiscal (Honorarios) | BJ48: Febrero | BK48: Torre de Control | BR48: Noviembre | BS48: Movilizadores | BT48: 0 | BU48: 0 | BV48: 0 | BX48: 0 | BZ48: 0 | CJ48: Marzo | CK48: Revisor Fiscal (Honorarios) | CV48: Febrero | CW48: Torre de Control
AF49: Diciembre | AG49: Auxiliar de Reparto | AH49: 0.0 | AI49: 0.0 | AJ49: 0.0 | AN49: 0.0 | AX49: Marzo | AY49: Torre de Control | BJ49: Marzo | BK49: Aprendices SENA | BR49: Diciembre | BS49: Auxiliar de Reparto | BT49: 0 | BU49: 0 | BV49: 0 | BX49: 0 | BZ49: 0 | CJ49: Marzo | CK49: Torre de Control | CV49: Marzo | CW49: Aprendices SENA
AF50: Diciembre | AG50: Conductor RR | AH50: 0.0 | AI50: 0.0 | AJ50: 0.0 | AN50: 0.0 | AX50: Abril | AY50: Auxiliar contable | BJ50: Marzo | BK50: Auxiliar contable | BR50: Diciembre | BS50: Conductor RR | BT50: 0 | BU50: 0 | BV50: 0 | BX50: 0 | BZ50: 0 | CJ50: Abril | CK50: Auxiliar contable | CV50: Marzo | CW50: Auxiliar contable
AF51: Diciembre | AG51: Cuarto Tripulante | AH51: 0.0 | AI51: 0.0 | AJ51: 0.0 | AN51: 0.0 | AX51: Abril | AY51: Auxiliar de Aseo | BJ51: Marzo | BK51: Auxiliar de Aseo | BR51: Diciembre | BS51: Cuarto Tripulante | BT51: 0 | BU51: 0 | BV51: 0 | BX51: 0 | BZ51: 0 | CJ51: Abril | CK51: Auxiliar de Aseo | CV51: Marzo | CW51: Auxiliar de Aseo
AF52: Diciembre | AG52: Movilizadores | AH52: 0.0 | AI52: 0.0 | AJ52: 0.0 | AN52: 0.0 | AX52: Abril | AY52: Auxiliar de Flota | BJ52: Marzo | BK52: Auxiliar de Flota | BR52: Diciembre | BS52: Movilizadores | BT52: 0 | BU52: 0 | BV52: 0 | BX52: 0 | BZ52: 0 | CJ52: Abril | CK52: Auxiliar de Flota | CV52: Marzo | CW52: Auxiliar de Flota
AX53: Abril | AY53: Auxiliar de liquidación | BJ53: Marzo | BK53: Auxiliar de liquidación | CJ53: Abril | CK53: Auxiliar de liquidación | CV53: Marzo | CW53: Auxiliar de liquidación
AX54: Abril | AY54: Auxiliar de Recursos Humanos | BJ54: Marzo | BK54: Auxiliar de Recursos Humanos | CJ54: Abril | CK54: Auxiliar de Recursos Humanos | CV54: Marzo | CW54: Auxiliar de Recursos Humanos
AX55: Abril | AY55: Call center | BJ55: Marzo | BK55: Auxiliar de Reparto | BL55: 61 | CJ55: Abril | CK55: Call center | CV55: Marzo | CW55: Auxiliar de Reparto | CX55: 64
AX56: Abril | AY56: Contador (Honorarios) | BJ56: Marzo | BK56: Call center | CJ56: Abril | CK56: Contador (Honorarios) | CV56: Marzo | CW56: Call center
AX57: Abril | AY57: Coordinadores Ruta | BJ57: Marzo | BK57: Conductor RR | BL57: 32 | CJ57: Abril | CK57: Coordinadores Ruta | CV57: Marzo | CW57: Conductor RR | CX57: 32
AX58: Abril | AY58: Gerente Junior | BJ58: Marzo | BK58: Contador (Honorarios) | CJ58: Abril | CK58: Gerente Junior | CV58: Marzo | CW58: Contador (Honorarios)
AX59: Abril | AY59: Gerente Senior | BJ59: Marzo | BK59: Coordinadores Ruta | CJ59: Abril | CK59: Gerente Senior | CV59: Marzo | CW59: Coordinadores Ruta
AX60: Abril | AY60: Jefe de operaciones | BJ60: Marzo | BK60: Cuarto Tripulante | BL60: 0 | CJ60: Abril | CK60: Jefe de operaciones | CV60: Marzo | CW60: Cuarto Tripulante | CX60: 0
AX61: Abril | AY61: Profesional de flota | BJ61: Marzo | BK61: Gerente Junior | CJ61: Abril | CK61: Profesional de flota | CV61: Marzo | CW61: Gerente Junior
AX62: Abril | AY62: Profesional de Recursos Humanos | BJ62: Marzo | BK62: Gerente Senior | CJ62: Abril | CK62: Profesional de Recursos Humanos | CV62: Marzo | CW62: Gerente Senior
AX63: Abril | AY63: Revisor Fiscal (Honorarios) | BJ63: Marzo | BK63: Jefe de operaciones | CJ63: Abril | CK63: Revisor Fiscal (Honorarios) | CV63: Marzo | CW63: Jefe de operaciones
AX64: Abril | AY64: Torre de Control | BJ64: Marzo | BK64: Movilizadores | BL64: 4 | CJ64: Abril | CK64: Torre de Control | CV64: Marzo | CW64: Movilizadores | CX64: 5
AX65: Mayo | AY65: Auxiliar contable | BJ65: Marzo | BK65: Profesional de flota | CJ65: Mayo | CK65: Auxiliar contable | CV65: Marzo | CW65: Profesional de flota
AX66: Mayo | AY66: Auxiliar de Aseo | BJ66: Marzo | BK66: Profesional de Recursos Humanos | CJ66: Mayo | CK66: Auxiliar de Aseo | CV66: Marzo | CW66: Profesional de Recursos Humanos
AX67: Mayo | AY67: Auxiliar de Flota | BJ67: Marzo | BK67: Profesional SGSST | CJ67: Mayo | CK67: Auxiliar de Flota | CV67: Marzo | CW67: Profesional SGSST
AX68: Mayo | AY68: Auxiliar de liquidación | BJ68: Marzo | BK68: Revisor Fiscal (Honorarios) | CJ68: Mayo | CK68: Auxiliar de liquidación | CV68: Marzo | CW68: Revisor Fiscal (Honorarios)
AX69: Mayo | AY69: Auxiliar de Recursos Humanos | BJ69: Marzo | BK69: Técnico SGSST | CJ69: Mayo | CK69: Auxiliar de Recursos Humanos | CV69: Marzo | CW69: Técnico SGSST
AX70: Mayo | AY70: Call center | BA70: =INDEX($J$4:$U$20,MATCH(AY70,$J$4:$J$20,0),MATCH(AZ70,$J$4:$U$4,1)) ->  | BJ70: Marzo | BK70: Torre de Control | BL70: =SUMIFS(BG:BG,BD:BD,BJ70,BE:BE,BK70)+SUMIFS(BA:BA,AX:AX,BJ70,AY:AY,BK70)+SUMIFS(AU:AU,AQ:AQ,BJ70,AR:AR,BK70)+SUMIFS(AH:AH,AF:AF,BJ70,AG:AG,BK70)+SUMIFS(AI:AI,AF:AF,BJ70,AG:AG,BK70)+SUMIFS(AJ:AJ,AF:AF,BJ70,AG:AG,BK70) ->  | BM70: =SUMIFS(BH:BH,BD:BD,BJ70,BE:BE,BK70)+SUMIFS(BB:BB,AX:AX,BJ70,AY:AY,BK70)+SUMIFS(AV:AV,AQ:AQ,BJ70,AR:AR,BK70)+SUMIFS(AK:AK,AF:AF,BJ70,AG:AG,BK70) ->  | BN70: =SUMIFS(BH:BH,BD:BD,BJ70,BE:BE,BK70)+SUMIFS(BB:BB,AX:AX,BJ70,AY:AY,BK70)+SUMIFS(AV:AV,AQ:AQ,BJ70,AR:AR,BK70)+SUMIFS(AM:AM,AF:AF,BJ70,AG:AG,BK70) ->  | BO70: =SUMIFS(BH:BH,BD:BD,BJ70,BE:BE,BK70)+SUMIFS(BB:BB,AX:AX,BJ70,AY:AY,BK70)+SUMIFS(AV:AV,AQ:AQ,BJ70,AR:AR,BK70)+SUMIFS(AO:AO,AF:AF,BJ70,AG:AG,BK70) ->  | CJ70: Mayo | CK70: Call center | CM70: =INDEX($J$4:$U$20,MATCH(CK70,$J$4:$J$20,0),MATCH(CL70,$J$4:$U$4,1)) ->  | CV70: Marzo | CW70: Torre de Control | CX70: =SUMIFS(CS:CS,CP:CP,CV70,CQ:CQ,CW70)+SUMIFS(CM:CM,CJ:CJ,CV70,CK:CK,CW70)+SUMIFS(CG:CG,CC:CC,CV70,CD:CD,CW70)+SUMIFS(BT:BT,BR:BR,CV70,BS:BS,CW70) ->  | CY70: =SUMIFS(CT:CT,CP:CP,CV70,CQ:CQ,CW70)+SUMIFS(CN:CN,CJ:CJ,CV70,CK:CK,CW70)+SUMIFS(CH:CH,CC:CC,CV70,CD:CD,CW70)+SUMIFS(BW:BW,BR:BR,CV70,BS:BS,CW70) ->  | CZ70: =SUMIFS(CT:CT,CP:CP,CV70,CQ:CQ,CW70)+SUMIFS(CN:CN,CJ:CJ,CV70,CK:CK,CW70)+SUMIFS(CH:CH,CC:CC,CV70,CD:CD,CW70)+SUMIFS(BY:BY,BR:BR,CV70,BS:BS,CW70) ->  | DA70: =SUMIFS(CT:CT,CP:CP,CV70,CQ:CQ,CW70)+SUMIFS(CN:CN,CJ:CJ,CV70,CK:CK,CW70)+SUMIFS(CH:CH,CC:CC,CV70,CD:CD,CW70)+SUMIFS(CA:CA,BR:BR,CV70,BS:BS,CW70) -> 
AX71: Mayo | AY71: Contador (Honorarios) | BJ71: Abril | BK71: Aprendices SENA | CJ71: Mayo | CK71: Contador (Honorarios) | CV71: Abril | CW71: Aprendices SENA
AX72: Mayo | AY72: Coordinadores Ruta | BJ72: Abril | BK72: Auxiliar contable | CJ72: Mayo | CK72: Coordinadores Ruta | CV72: Abril | CW72: Auxiliar contable
AX73: Mayo | AY73: Gerente Junior | BJ73: Abril | BK73: Auxiliar de Aseo | CJ73: Mayo | CK73: Gerente Junior | CV73: Abril | CW73: Auxiliar de Aseo
AX74: Mayo | AY74: Gerente Senior | BJ74: Abril | BK74: Auxiliar de Flota | CJ74: Mayo | CK74: Gerente Senior | CV74: Abril | CW74: Auxiliar de Flota
AX75: Mayo | AY75: Jefe de operaciones | BJ75: Abril | BK75: Auxiliar de liquidación | CJ75: Mayo | CK75: Jefe de operaciones | CV75: Abril | CW75: Auxiliar de liquidación
AX76: Mayo | AY76: Profesional de flota | BJ76: Abril | BK76: Auxiliar de Recursos Humanos | CJ76: Mayo | CK76: Profesional de flota | CV76: Abril | CW76: Auxiliar de Recursos Humanos
AX77: Mayo | AY77: Profesional de Recursos Humanos | BJ77: Abril | BK77: Auxiliar de Reparto | BL77: 69 | CJ77: Mayo | CK77: Profesional de Recursos Humanos | CV77: Abril | CW77: Auxiliar de Reparto | CX77: 64
AX78: Mayo | AY78: Revisor Fiscal (Honorarios) | BJ78: Abril | BK78: Call center | CJ78: Mayo | CK78: Revisor Fiscal (Honorarios) | CV78: Abril | CW78: Call center
AX79: Mayo | AY79: Torre de Control | BJ79: Abril | BK79: Conductor RR | BL79: 36 | CJ79: Mayo | CK79: Torre de Control | CV79: Abril | CW79: Conductor RR | CX79: 32
AX80: Junio | AY80: Auxiliar contable | BJ80: Abril | BK80: Contador (Honorarios) | CJ80: Junio | CK80: Auxiliar contable | CV80: Abril | CW80: Contador (Honorarios)
AX81: Junio | AY81: Auxiliar de Aseo | BJ81: Abril | BK81: Coordinadores Ruta | CJ81: Junio | CK81: Auxiliar de Aseo | CV81: Abril | CW81: Coordinadores Ruta
AX82: Junio | AY82: Auxiliar de Flota | BJ82: Abril | BK82: Cuarto Tripulante | BL82: 0 | CJ82: Junio | CK82: Auxiliar de Flota | CV82: Abril | CW82: Cuarto Tripulante | CX82: 0
AX83: Junio | AY83: Auxiliar de liquidación | BJ83: Abril | BK83: Gerente Junior | CJ83: Junio | CK83: Auxiliar de liquidación | CV83: Abril | CW83: Gerente Junior
AX84: Junio | AY84: Auxiliar de Recursos Humanos | BJ84: Abril | BK84: Gerente Senior | CJ84: Junio | CK84: Auxiliar de Recursos Humanos | CV84: Abril | CW84: Gerente Senior
AX85: Junio | AY85: Call center | BJ85: Abril | BK85: Jefe de operaciones | CJ85: Junio | CK85: Call center | CV85: Abril | CW85: Jefe de operaciones
AX86: Junio | AY86: Contador (Honorarios) | BJ86: Abril | BK86: Movilizadores | BL86: 4 | CJ86: Junio | CK86: Contador (Honorarios) | CV86: Abril | CW86: Movilizadores | CX86: 0
AX87: Junio | AY87: Coordinadores Ruta | BJ87: Abril | BK87: Profesional de flota | CJ87: Junio | CK87: Coordinadores Ruta | CV87: Abril | CW87: Profesional de flota
AX88: Junio | AY88: Gerente Junior | BJ88: Abril | BK88: Profesional de Recursos Humanos | CJ88: Junio | CK88: Gerente Junior | CV88: Abril | CW88: Profesional de Recursos Humanos
AX89: Junio | AY89: Gerente Senior | BJ89: Abril | BK89: Profesional SGSST | CJ89: Junio | CK89: Gerente Senior | CV89: Abril | CW89: Profesional SGSST
AX90: Junio | AY90: Jefe de operaciones | BJ90: Abril | BK90: Revisor Fiscal (Honorarios) | CJ90: Junio | CK90: Jefe de operaciones | CV90: Abril | CW90: Revisor Fiscal (Honorarios)
AX91: Junio | AY91: Profesional de flota | BJ91: Abril | BK91: Técnico SGSST | CJ91: Junio | CK91: Profesional de flota | CV91: Abril | CW91: Técnico SGSST
AX92: Junio | AY92: Profesional de Recursos Humanos | BJ92: Abril | BK92: Torre de Control | CJ92: Junio | CK92: Profesional de Recursos Humanos | CV92: Abril | CW92: Torre de Control
AX93: Junio | AY93: Revisor Fiscal (Honorarios) | BJ93: Mayo | BK93: Aprendices SENA | CJ93: Junio | CK93: Revisor Fiscal (Honorarios) | CV93: Mayo | CW93: Aprendices SENA
AX94: Junio | AY94: Torre de Control | BJ94: Mayo | BK94: Auxiliar contable | CJ94: Junio | CK94: Torre de Control | CV94: Mayo | CW94: Auxiliar contable
AX95: Julio | AY95: Auxiliar contable | BJ95: Mayo | BK95: Auxiliar de Aseo | CJ95: Julio | CK95: Auxiliar contable | CV95: Mayo | CW95: Auxiliar de Aseo
AX96: Julio | AY96: Auxiliar de Aseo | BJ96: Mayo | BK96: Auxiliar de Flota | CJ96: Julio | CK96: Auxiliar de Aseo | CV96: Mayo | CW96: Auxiliar de Flota
AX97: Julio | AY97: Auxiliar de Flota | BJ97: Mayo | BK97: Auxiliar de liquidación | CJ97: Julio | CK97: Auxiliar de Flota | CV97: Mayo | CW97: Auxiliar de liquidación
AX98: Julio | AY98: Auxiliar de liquidación | BJ98: Mayo | BK98: Auxiliar de Recursos Humanos | CJ98: Julio | CK98: Auxiliar de liquidación | CV98: Mayo | CW98: Auxiliar de Recursos Humanos
AX99: Julio | AY99: Auxiliar de Recursos Humanos | BJ99: Mayo | BK99: Auxiliar de Reparto | BL99: 65 | CJ99: Julio | CK99: Auxiliar de Recursos Humanos | CV99: Mayo | CW99: Auxiliar de Reparto | CX99: 64
AX100: Julio | AY100: Call center | BJ100: Mayo | BK100: Call center | CJ100: Julio | CK100: Call center | CV100: Mayo | CW100: Call center
AX101: Julio | AY101: Contador (Honorarios) | BJ101: Mayo | BK101: Conductor RR | BL101: 34 | CJ101: Julio | CK101: Contador (Honorarios) | CV101: Mayo | CW101: Conductor RR | CX101: 32
AX102: Julio | AY102: Coordinadores Ruta | BA102: =INDEX($J$4:$U$20,MATCH(AY102,$J$4:$J$20,0),MATCH(AZ102,$J$4:$U$4,1)) ->  | BJ102: Mayo | BK102: Contador (Honorarios) | CJ102: Julio | CK102: Coordinadores Ruta | CM102: =INDEX($J$4:$U$20,MATCH(CK102,$J$4:$J$20,0),MATCH(CL102,$J$4:$U$4,1)) ->  | CV102: Mayo | CW102: Contador (Honorarios)
AX103: Julio | AY103: Gerente Junior | BJ103: Mayo | BK103: Coordinadores Ruta | CJ103: Julio | CK103: Gerente Junior | CV103: Mayo | CW103: Coordinadores Ruta
AX104: Julio | AY104: Gerente Senior | BJ104: Mayo | BK104: Cuarto Tripulante | BL104: 0 | CJ104: Julio | CK104: Gerente Senior | CV104: Mayo | CW104: Cuarto Tripulante | CX104: 0
AX105: Julio | AY105: Jefe de operaciones | BJ105: Mayo | BK105: Gerente Junior | CJ105: Julio | CK105: Jefe de operaciones | CV105: Mayo | CW105: Gerente Junior
AX106: Julio | AY106: Profesional de flota | BJ106: Mayo | BK106: Gerente Senior | CJ106: Julio | CK106: Profesional de flota | CV106: Mayo | CW106: Gerente Senior
AX107: Julio | AY107: Profesional de Recursos Humanos | BJ107: Mayo | BK107: Jefe de operaciones | CJ107: Julio | CK107: Profesional de Recursos Humanos | CV107: Mayo | CW107: Jefe de operaciones
AX108: Julio | AY108: Revisor Fiscal (Honorarios) | BJ108: Mayo | BK108: Movilizadores | BL108: 4 | CJ108: Julio | CK108: Revisor Fiscal (Honorarios) | CV108: Mayo | CW108: Movilizadores | CX108: 4
AX109: Julio | AY109: Torre de Control | BJ109: Mayo | BK109: Profesional de flota | CJ109: Julio | CK109: Torre de Control | CV109: Mayo | CW109: Profesional de flota
AX110: Agosto | AY110: Auxiliar contable | BJ110: Mayo | BK110: Profesional de Recursos Humanos | CJ110: Agosto | CK110: Auxiliar contable | CV110: Mayo | CW110: Profesional de Recursos Humanos
AX111: Agosto | AY111: Auxiliar de Aseo | BJ111: Mayo | BK111: Profesional SGSST | CJ111: Agosto | CK111: Auxiliar de Aseo | CV111: Mayo | CW111: Profesional SGSST
AX112: Agosto | AY112: Auxiliar de Flota | BJ112: Mayo | BK112: Revisor Fiscal (Honorarios) | CJ112: Agosto | CK112: Auxiliar de Flota | CV112: Mayo | CW112: Revisor Fiscal (Honorarios)
AX113: Agosto | AY113: Auxiliar de liquidación | BJ113: Mayo | BK113: Técnico SGSST | CJ113: Agosto | CK113: Auxiliar de liquidación | CV113: Mayo | CW113: Técnico SGSST
AX114: Agosto | AY114: Auxiliar de Recursos Humanos | BJ114: Mayo | BK114: Torre de Control | CJ114: Agosto | CK114: Auxiliar de Recursos Humanos | CV114: Mayo | CW114: Torre de Control
AX115: Agosto | AY115: Call center | BJ115: Junio | BK115: Aprendices SENA | CJ115: Agosto | CK115: Call center | CV115: Junio | CW115: Aprendices SENA
AX116: Agosto | AY116: Contador (Honorarios) | BJ116: Junio | BK116: Auxiliar contable | CJ116: Agosto | CK116: Contador (Honorarios) | CV116: Junio | CW116: Auxiliar contable
AX117: Agosto | AY117: Coordinadores Ruta | BJ117: Junio | BK117: Auxiliar de Aseo | CJ117: Agosto | CK117: Coordinadores Ruta | CV117: Junio | CW117: Auxiliar de Aseo
AX118: Agosto | AY118: Gerente Junior | BJ118: Junio | BK118: Auxiliar de Flota | CJ118: Agosto | CK118: Gerente Junior | CV118: Junio | CW118: Auxiliar de Flota
AX119: Agosto | AY119: Gerente Senior | BJ119: Junio | BK119: Auxiliar de liquidación | CJ119: Agosto | CK119: Gerente Senior | CV119: Junio | CW119: Auxiliar de liquidación
AX120: Agosto | AY120: Jefe de operaciones | BJ120: Junio | BK120: Auxiliar de Recursos Humanos | CJ120: Agosto | CK120: Jefe de operaciones | CV120: Junio | CW120: Auxiliar de Recursos Humanos
AX121: Agosto | AY121: Profesional de flota | BJ121: Junio | BK121: Auxiliar de Reparto | BL121: 71 | CJ121: Agosto | CK121: Profesional de flota | CV121: Junio | CW121: Auxiliar de Reparto | CX121: 64
AX122: Agosto | AY122: Profesional de Recursos Humanos | BJ122: Junio | BK122: Call center | CJ122: Agosto | CK122: Profesional de Recursos Humanos | CV122: Junio | CW122: Call center
AX123: Agosto | AY123: Revisor Fiscal (Honorarios) | BJ123: Junio | BK123: Conductor RR | BL123: 37 | CJ123: Agosto | CK123: Revisor Fiscal (Honorarios) | CV123: Junio | CW123: Conductor RR | CX123: 32
AX124: Agosto | AY124: Torre de Control | BJ124: Junio | BK124: Contador (Honorarios) | CJ124: Agosto | CK124: Torre de Control | CV124: Junio | CW124: Contador (Honorarios)
AX125: Septiembre | AY125: Auxiliar contable | BJ125: Junio | BK125: Coordinadores Ruta | CJ125: Septiembre | CK125: Auxiliar contable | CV125: Junio | CW125: Coordinadores Ruta
AX126: Septiembre | AY126: Auxiliar de Aseo | BJ126: Junio | BK126: Cuarto Tripulante | BL126: 0 | CJ126: Septiembre | CK126: Auxiliar de Aseo | CV126: Junio | CW126: Cuarto Tripulante | CX126: 0
AX127: Septiembre | AY127: Auxiliar de Flota | BJ127: Junio | BK127: Gerente Junior | CJ127: Septiembre | CK127: Auxiliar de Flota | CV127: Junio | CW127: Gerente Junior
AX128: Septiembre | AY128: Auxiliar de liquidación | BJ128: Junio | BK128: Gerente Senior | CJ128: Septiembre | CK128: Auxiliar de liquidación | CV128: Junio | CW128: Gerente Senior
AX129: Septiembre | AY129: Auxiliar de Recursos Humanos | BJ129: Junio | BK129: Jefe de operaciones | CJ129: Septiembre | CK129: Auxiliar de Recursos Humanos | CV129: Junio | CW129: Jefe de operaciones
AX130: Septiembre | AY130: Call center | BJ130: Junio | BK130: Movilizadores | BL130: 4 | CJ130: Septiembre | CK130: Call center | CV130: Junio | CW130: Movilizadores | CX130: 4
AX131: Septiembre | AY131: Contador (Honorarios) | BJ131: Junio | BK131: Profesional de flota | CJ131: Septiembre | CK131: Contador (Honorarios) | CV131: Junio | CW131: Profesional de flota
AX132: Septiembre | AY132: Coordinadores Ruta | BJ132: Junio | BK132: Profesional de Recursos Humanos | CJ132: Septiembre | CK132: Coordinadores Ruta | CV132: Junio | CW132: Profesional de Recursos Humanos
AX133: Septiembre | AY133: Gerente Junior | BJ133: Junio | BK133: Profesional SGSST | CJ133: Septiembre | CK133: Gerente Junior | CV133: Junio | CW133: Profesional SGSST
AX134: Septiembre | AY134: Gerente Senior | BA134: =INDEX($J$4:$U$20,MATCH(AY134,$J$4:$J$20,0),MATCH(AZ134,$J$4:$U$4,1)) ->  | BJ134: Junio | BK134: Revisor Fiscal (Honorarios) | BL134: =SUMIFS(BG:BG,BD:BD,BJ134,BE:BE,BK134)+SUMIFS(BA:BA,AX:AX,BJ134,AY:AY,BK134)+SUMIFS(AU:AU,AQ:AQ,BJ134,AR:AR,BK134)+SUMIFS(AH:AH,AF:AF,BJ134,AG:AG,BK134)+SUMIFS(AI:AI,AF:AF,BJ134,AG:AG,BK134)+SUMIFS(AJ:AJ,AF:AF,BJ134,AG:AG,BK134) ->  | BM134: =SUMIFS(BH:BH,BD:BD,BJ134,BE:BE,BK134)+SUMIFS(BB:BB,AX:AX,BJ134,AY:AY,BK134)+SUMIFS(AV:AV,AQ:AQ,BJ134,AR:AR,BK134)+SUMIFS(AK:AK,AF:AF,BJ134,AG:AG,BK134) ->  | BN134: =SUMIFS(BH:BH,BD:BD,BJ134,BE:BE,BK134)+SUMIFS(BB:BB,AX:AX,BJ134,AY:AY,BK134)+SUMIFS(AV:AV,AQ:AQ,BJ134,AR:AR,BK134)+SUMIFS(AM:AM,AF:AF,BJ134,AG:AG,BK134) ->  | BO134: =SUMIFS(BH:BH,BD:BD,BJ134,BE:BE,BK134)+SUMIFS(BB:BB,AX:AX,BJ134,AY:AY,BK134)+SUMIFS(AV:AV,AQ:AQ,BJ134,AR:AR,BK134)+SUMIFS(AO:AO,AF:AF,BJ134,AG:AG,BK134) ->  | CJ134: Septiembre | CK134: Gerente Senior | CM134: =INDEX($J$4:$U$20,MATCH(CK134,$J$4:$J$20,0),MATCH(CL134,$J$4:$U$4,1)) ->  | CV134: Junio | CW134: Revisor Fiscal (Honorarios) | CX134: =SUMIFS(CS:CS,CP:CP,CV134,CQ:CQ,CW134)+SUMIFS(CM:CM,CJ:CJ,CV134,CK:CK,CW134)+SUMIFS(CG:CG,CC:CC,CV134,CD:CD,CW134)+SUMIFS(BT:BT,BR:BR,CV134,BS:BS,CW134) ->  | CY134: =SUMIFS(CT:CT,CP:CP,CV134,CQ:CQ,CW134)+SUMIFS(CN:CN,CJ:CJ,CV134,CK:CK,CW134)+SUMIFS(CH:CH,CC:CC,CV134,CD:CD,CW134)+SUMIFS(BW:BW,BR:BR,CV134,BS:BS,CW134) ->  | CZ134: =SUMIFS(CT:CT,CP:CP,CV134,CQ:CQ,CW134)+SUMIFS(CN:CN,CJ:CJ,CV134,CK:CK,CW134)+SUMIFS(CH:CH,CC:CC,CV134,CD:CD,CW134)+SUMIFS(BY:BY,BR:BR,CV134,BS:BS,CW134) ->  | DA134: =SUMIFS(CT:CT,CP:CP,CV134,CQ:CQ,CW134)+SUMIFS(CN:CN,CJ:CJ,CV134,CK:CK,CW134)+SUMIFS(CH:CH,CC:CC,CV134,CD:CD,CW134)+SUMIFS(CA:CA,BR:BR,CV134,BS:BS,CW134) -> 
AX135: Septiembre | AY135: Jefe de operaciones | BJ135: Junio | BK135: Técnico SGSST | CJ135: Septiembre | CK135: Jefe de operaciones | CV135: Junio | CW135: Técnico SGSST
AX136: Septiembre | AY136: Profesional de flota | BJ136: Junio | BK136: Torre de Control | CJ136: Septiembre | CK136: Profesional de flota | CV136: Junio | CW136: Torre de Control
AX137: Septiembre | AY137: Profesional de Recursos Humanos | BJ137: Julio | BK137: Aprendices SENA | CJ137: Septiembre | CK137: Profesional de Recursos Humanos | CV137: Julio | CW137: Aprendices SENA
AX138: Septiembre | AY138: Revisor Fiscal (Honorarios) | BJ138: Julio | BK138: Auxiliar contable | CJ138: Septiembre | CK138: Revisor Fiscal (Honorarios) | CV138: Julio | CW138: Auxiliar contable
AX139: Septiembre | AY139: Torre de Control | BJ139: Julio | BK139: Auxiliar de Aseo | CJ139: Septiembre | CK139: Torre de Control | CV139: Julio | CW139: Auxiliar de Aseo
AX140: Octubre | AY140: Auxiliar contable | BJ140: Julio | BK140: Auxiliar de Flota | CJ140: Octubre | CK140: Auxiliar contable | CV140: Julio | CW140: Auxiliar de Flota
AX141: Octubre | AY141: Auxiliar de Aseo | BJ141: Julio | BK141: Auxiliar de liquidación | CJ141: Octubre | CK141: Auxiliar de Aseo | CV141: Julio | CW141: Auxiliar de liquidación
AX142: Octubre | AY142: Auxiliar de Flota | BJ142: Julio | BK142: Auxiliar de Recursos Humanos | CJ142: Octubre | CK142: Auxiliar de Flota | CV142: Julio | CW142: Auxiliar de Recursos Humanos
AX143: Octubre | AY143: Auxiliar de liquidación | BJ143: Julio | BK143: Auxiliar de Reparto | BL143: 67 | CJ143: Octubre | CK143: Auxiliar de liquidación | CV143: Julio | CW143: Auxiliar de Reparto | CX143: 64
AX144: Octubre | AY144: Auxiliar de Recursos Humanos | BJ144: Julio | BK144: Call center | CJ144: Octubre | CK144: Auxiliar de Recursos Humanos | CV144: Julio | CW144: Call center
AX145: Octubre | AY145: Call center | BJ145: Julio | BK145: Conductor RR | BL145: 0 | BM145: 0 | BN145: 0 | BO145: 0 | CJ145: Octubre | CK145: Call center | CV145: Julio | CW145: Conductor RR | CX145: 0 | CY145: 0 | CZ145: 0 | DA145: 0
AX146: Octubre | AY146: Contador (Honorarios) | BJ146: Julio | BK146: Contador (Honorarios) | CJ146: Octubre | CK146: Contador (Honorarios) | CV146: Julio | CW146: Contador (Honorarios)
AX147: Octubre | AY147: Coordinadores Ruta | BJ147: Julio | BK147: Coordinadores Ruta | CJ147: Octubre | CK147: Coordinadores Ruta | CV147: Julio | CW147: Coordinadores Ruta
AX148: Octubre | AY148: Gerente Junior | BJ148: Julio | BK148: Cuarto Tripulante | BL148: 0 | CJ148: Octubre | CK148: Gerente Junior | CV148: Julio | CW148: Cuarto Tripulante | CX148: 0
AX149: Octubre | AY149: Gerente Senior | BJ149: Julio | BK149: Gerente Junior | CJ149: Octubre | CK149: Gerente Senior | CV149: Julio | CW149: Gerente Junior
AX150: Octubre | AY150: Jefe de operaciones | BJ150: Julio | BK150: Gerente Senior | CJ150: Octubre | CK150: Jefe de operaciones | CV150: Julio | CW150: Gerente Senior
AX151: Octubre | AY151: Profesional de flota | BJ151: Julio | BK151: Jefe de operaciones | CJ151: Octubre | CK151: Profesional de flota | CV151: Julio | CW151: Jefe de operaciones
AX152: Octubre | AY152: Profesional de Recursos Humanos | BJ152: Julio | BK152: Movilizadores | BL152: 4 | CJ152: Octubre | CK152: Profesional de Recursos Humanos | CV152: Julio | CW152: Movilizadores | CX152: 4
AX153: Octubre | AY153: Revisor Fiscal (Honorarios) | BJ153: Julio | BK153: Profesional de flota | CJ153: Octubre | CK153: Revisor Fiscal (Honorarios) | CV153: Julio | CW153: Profesional de flota
AX154: Octubre | AY154: Torre de Control | BJ154: Julio | BK154: Profesional de Recursos Humanos | CJ154: Octubre | CK154: Torre de Control | CV154: Julio | CW154: Profesional de Recursos Humanos
AX155: Noviembre | AY155: Auxiliar contable | BJ155: Julio | BK155: Profesional SGSST | CJ155: Noviembre | CK155: Auxiliar contable | CV155: Julio | CW155: Profesional SGSST
AX156: Noviembre | AY156: Auxiliar de Aseo | BJ156: Julio | BK156: Revisor Fiscal (Honorarios) | CJ156: Noviembre | CK156: Auxiliar de Aseo | CV156: Julio | CW156: Revisor Fiscal (Honorarios)
AX157: Noviembre | AY157: Auxiliar de Flota | BJ157: Julio | BK157: Técnico SGSST | CJ157: Noviembre | CK157: Auxiliar de Flota | CV157: Julio | CW157: Técnico SGSST
AX158: Noviembre | AY158: Auxiliar de liquidación | BJ158: Julio | BK158: Torre de Control | CJ158: Noviembre | CK158: Auxiliar de liquidación | CV158: Julio | CW158: Torre de Control
AX159: Noviembre | AY159: Auxiliar de Recursos Humanos | BJ159: Agosto | BK159: Aprendices SENA | CJ159: Noviembre | CK159: Auxiliar de Recursos Humanos | CV159: Agosto | CW159: Aprendices SENA
AX160: Noviembre | AY160: Call center | BJ160: Agosto | BK160: Auxiliar contable | CJ160: Noviembre | CK160: Call center | CV160: Agosto | CW160: Auxiliar contable
AX161: Noviembre | AY161: Contador (Honorarios) | BJ161: Agosto | BK161: Auxiliar de Aseo | CJ161: Noviembre | CK161: Contador (Honorarios) | CV161: Agosto | CW161: Auxiliar de Aseo
AX162: Noviembre | AY162: Coordinadores Ruta | BJ162: Agosto | BK162: Auxiliar de Flota | CJ162: Noviembre | CK162: Coordinadores Ruta | CV162: Agosto | CW162: Auxiliar de Flota
AX163: Noviembre | AY163: Gerente Junior | BJ163: Agosto | BK163: Auxiliar de liquidación | CJ163: Noviembre | CK163: Gerente Junior | CV163: Agosto | CW163: Auxiliar de liquidación
AX164: Noviembre | AY164: Gerente Senior | BJ164: Agosto | BK164: Auxiliar de Recursos Humanos | CJ164: Noviembre | CK164: Gerente Senior | CV164: Agosto | CW164: Auxiliar de Recursos Humanos
AX165: Noviembre | AY165: Jefe de operaciones | BJ165: Agosto | BK165: Auxiliar de Reparto | BL165: 72 | CJ165: Noviembre | CK165: Jefe de operaciones | CV165: Agosto | CW165: Auxiliar de Reparto | CX165: 72
AX166: Noviembre | AY166: Profesional de flota | BA166: =INDEX($J$4:$U$20,MATCH(AY166,$J$4:$J$20,0),MATCH(AZ166,$J$4:$U$4,1)) ->  | BJ166: Agosto | BK166: Call center | CJ166: Noviembre | CK166: Profesional de flota | CM166: =INDEX($J$4:$U$20,MATCH(CK166,$J$4:$J$20,0),MATCH(CL166,$J$4:$U$4,1)) ->  | CV166: Agosto | CW166: Call center
AX167: Noviembre | AY167: Profesional de Recursos Humanos | BJ167: Agosto | BK167: Conductor RR | BL167: 36 | CJ167: Noviembre | CK167: Profesional de Recursos Humanos | CV167: Agosto | CW167: Conductor RR | CX167: 36
AX168: Noviembre | AY168: Revisor Fiscal (Honorarios) | BJ168: Agosto | BK168: Contador (Honorarios) | CJ168: Noviembre | CK168: Revisor Fiscal (Honorarios) | CV168: Agosto | CW168: Contador (Honorarios)
AX169: Noviembre | AY169: Torre de Control | BJ169: Agosto | BK169: Coordinadores Ruta | CJ169: Noviembre | CK169: Torre de Control | CV169: Agosto | CW169: Coordinadores Ruta
AX170: Diciembre | AY170: Auxiliar contable | BJ170: Agosto | BK170: Cuarto Tripulante | BL170: 0 | CJ170: Diciembre | CK170: Auxiliar contable | CV170: Agosto | CW170: Cuarto Tripulante | CX170: 0
AX171: Diciembre | AY171: Auxiliar de Aseo | BJ171: Agosto | BK171: Gerente Junior | CJ171: Diciembre | CK171: Auxiliar de Aseo | CV171: Agosto | CW171: Gerente Junior
AX172: Diciembre | AY172: Auxiliar de Flota | BJ172: Agosto | BK172: Gerente Senior | CJ172: Diciembre | CK172: Auxiliar de Flota | CV172: Agosto | CW172: Gerente Senior
AX173: Diciembre | AY173: Auxiliar de liquidación | BJ173: Agosto | BK173: Jefe de operaciones | CJ173: Diciembre | CK173: Auxiliar de liquidación | CV173: Agosto | CW173: Jefe de operaciones
AX174: Diciembre | AY174: Auxiliar de Recursos Humanos | BJ174: Agosto | BK174: Movilizadores | BL174: 4 | CJ174: Diciembre | CK174: Auxiliar de Recursos Humanos | CV174: Agosto | CW174: Movilizadores | CX174: 4
AX175: Diciembre | AY175: Call center | BJ175: Agosto | BK175: Profesional de flota | CJ175: Diciembre | CK175: Call center | CV175: Agosto | CW175: Profesional de flota
AX176: Diciembre | AY176: Contador (Honorarios) | BJ176: Agosto | BK176: Profesional de Recursos Humanos | CJ176: Diciembre | CK176: Contador (Honorarios) | CV176: Agosto | CW176: Profesional de Recursos Humanos
AX177: Diciembre | AY177: Coordinadores Ruta | BJ177: Agosto | BK177: Profesional SGSST | CJ177: Diciembre | CK177: Coordinadores Ruta | CV177: Agosto | CW177: Profesional SGSST
AX178: Diciembre | AY178: Gerente Junior | BJ178: Agosto | BK178: Revisor Fiscal (Honorarios) | CJ178: Diciembre | CK178: Gerente Junior | CV178: Agosto | CW178: Revisor Fiscal (Honorarios)
AX179: Diciembre | AY179: Gerente Senior | BJ179: Agosto | BK179: Técnico SGSST | CJ179: Diciembre | CK179: Gerente Senior | CV179: Agosto | CW179: Técnico SGSST
AX180: Diciembre | AY180: Jefe de operaciones | BJ180: Agosto | BK180: Torre de Control | CJ180: Diciembre | CK180: Jefe de operaciones | CV180: Agosto | CW180: Torre de Control
AX181: Diciembre | AY181: Profesional de flota | BJ181: Septiembre | BK181: Aprendices SENA | CJ181: Diciembre | CK181: Profesional de flota | CV181: Septiembre | CW181: Aprendices SENA
AX182: Diciembre | AY182: Profesional de Recursos Humanos | BJ182: Septiembre | BK182: Auxiliar contable | CJ182: Diciembre | CK182: Profesional de Recursos Humanos | CV182: Septiembre | CW182: Auxiliar contable
AX183: Diciembre | AY183: Revisor Fiscal (Honorarios) | BJ183: Septiembre | BK183: Auxiliar de Aseo | CJ183: Diciembre | CK183: Revisor Fiscal (Honorarios) | CV183: Septiembre | CW183: Auxiliar de Aseo
AX184: Diciembre | AY184: Torre de Control | BJ184: Septiembre | BK184: Auxiliar de Flota | CJ184: Diciembre | CK184: Torre de Control | CV184: Septiembre | CW184: Auxiliar de Flota
BJ185: Septiembre | BK185: Auxiliar de liquidación | CV185: Septiembre | CW185: Auxiliar de liquidación
BJ186: Septiembre | BK186: Auxiliar de Recursos Humanos | CV186: Septiembre | CW186: Auxiliar de Recursos Humanos
BJ187: Septiembre | BK187: Auxiliar de Reparto | BL187: 39 | CV187: Septiembre | CW187: Auxiliar de Reparto | CX187: 0
BJ188: Septiembre | BK188: Call center | CV188: Septiembre | CW188: Call center
BJ189: Septiembre | BK189: Conductor RR | BL189: 4 | CV189: Septiembre | CW189: Conductor RR | CX189: 0
BJ190: Septiembre | BK190: Contador (Honorarios) | CV190: Septiembre | CW190: Contador (Honorarios)
BJ191: Septiembre | BK191: Coordinadores Ruta | CV191: Septiembre | CW191: Coordinadores Ruta
BJ192: Septiembre | BK192: Cuarto Tripulante | BL192: 62 | CV192: Septiembre | CW192: Cuarto Tripulante | CX192: 0
BJ193: Septiembre | BK193: Gerente Junior | CV193: Septiembre | CW193: Gerente Junior
BJ194: Septiembre | BK194: Gerente Senior | CV194: Septiembre | CW194: Gerente Senior
BJ195: Septiembre | BK195: Jefe de operaciones | CV195: Septiembre | CW195: Jefe de operaciones
BJ196: Septiembre | BK196: Movilizadores | BL196: 4 | CV196: Septiembre | CW196: Movilizadores | CX196: 0
BJ197: Septiembre | BK197: Profesional de flota | CV197: Septiembre | CW197: Profesional de flota
BJ198: Septiembre | BK198: Profesional de Recursos Humanos | BL198: =SUMIFS(BG:BG,BD:BD,BJ198,BE:BE,BK198)+SUMIFS(BA:BA,AX:AX,BJ198,AY:AY,BK198)+SUMIFS(AU:AU,AQ:AQ,BJ198,AR:AR,BK198)+SUMIFS(AH:AH,AF:AF,BJ198,AG:AG,BK198)+SUMIFS(AI:AI,AF:AF,BJ198,AG:AG,BK198)+SUMIFS(AJ:AJ,AF:AF,BJ198,AG:AG,BK198) ->  | BM198: =SUMIFS(BH:BH,BD:BD,BJ198,BE:BE,BK198)+SUMIFS(BB:BB,AX:AX,BJ198,AY:AY,BK198)+SUMIFS(AV:AV,AQ:AQ,BJ198,AR:AR,BK198)+SUMIFS(AK:AK,AF:AF,BJ198,AG:AG,BK198) ->  | BN198: =SUMIFS(BH:BH,BD:BD,BJ198,BE:BE,BK198)+SUMIFS(BB:BB,AX:AX,BJ198,AY:AY,BK198)+SUMIFS(AV:AV,AQ:AQ,BJ198,AR:AR,BK198)+SUMIFS(AM:AM,AF:AF,BJ198,AG:AG,BK198) ->  | BO198: =SUMIFS(BH:BH,BD:BD,BJ198,BE:BE,BK198)+SUMIFS(BB:BB,AX:AX,BJ198,AY:AY,BK198)+SUMIFS(AV:AV,AQ:AQ,BJ198,AR:AR,BK198)+SUMIFS(AO:AO,AF:AF,BJ198,AG:AG,BK198) ->  | CV198: Septiembre | CW198: Profesional de Recursos Humanos | CX198: =SUMIFS(CS:CS,CP:CP,CV198,CQ:CQ,CW198)+SUMIFS(CM:CM,CJ:CJ,CV198,CK:CK,CW198)+SUMIFS(CG:CG,CC:CC,CV198,CD:CD,CW198)+SUMIFS(BT:BT,BR:BR,CV198,BS:BS,CW198) ->  | CY198: =SUMIFS(CT:CT,CP:CP,CV198,CQ:CQ,CW198)+SUMIFS(CN:CN,CJ:CJ,CV198,CK:CK,CW198)+SUMIFS(CH:CH,CC:CC,CV198,CD:CD,CW198)+SUMIFS(BW:BW,BR:BR,CV198,BS:BS,CW198) ->  | CZ198: =SUMIFS(CT:CT,CP:CP,CV198,CQ:CQ,CW198)+SUMIFS(CN:CN,CJ:CJ,CV198,CK:CK,CW198)+SUMIFS(CH:CH,CC:CC,CV198,CD:CD,CW198)+SUMIFS(BY:BY,BR:BR,CV198,BS:BS,CW198) ->  | DA198: =SUMIFS(CT:CT,CP:CP,CV198,CQ:CQ,CW198)+SUMIFS(CN:CN,CJ:CJ,CV198,CK:CK,CW198)+SUMIFS(CH:CH,CC:CC,CV198,CD:CD,CW198)+SUMIFS(CA:CA,BR:BR,CV198,BS:BS,CW198) -> 
BJ199: Septiembre | BK199: Profesional SGSST | CV199: Septiembre | CW199: Profesional SGSST
BJ200: Septiembre | BK200: Revisor Fiscal (Honorarios) | CV200: Septiembre | CW200: Revisor Fiscal (Honorarios)
... 68 more rows

Sheet Vh (hidden)
A1: Recuento de Placa | B1: Etiquetas de columna
A2: Etiquetas de fila | B2: 1 | C2: 6 | D2: 10 | E2: 12 | F2: 20 | G2: Total general
A3: AV04 | B3: 2 | C3: 6 | D3: 30 | E3: 21 | G3: 59
A4: AV06 | B4: 6 | C4: 19 | D4: 99 | E4: 25 | F4: 1 | G4: 150
A5: AV26 | B5: 9 | C5: 18 | D5: 11 | E5: 64 | G5: 102
A6: AV42 | B6: 5 | C6: 3 | D6: 27 | E6: 16 | G6: 51
A7: AV47 | D7: 36 | E7: 28 | G7: =SUM(D7:E7) -> 64
A8: AV50 | B8: 5 | C8: 3 | D8: 67 | E8: 9 | F8: 2 | G8: 86
A9: AV53 | B9: 1 | C9: 15 | G9: 16
A10: AV54 | B10: 9 | C10: 5 | G10: 14
A11: AV66 | B11: 2 | C11: 2 | D11: 16 | G11: 20
A12: AV68 | B12: 6 | D12: 1 | G12: 7
A13: AV71 | B13: 13 | C13: 4 | G13: 17
A14: AV78 | B14: 5 | C14: 13 | D14: 10 | E14: 21 | G14: 49
A15: Total general | B15: 66 | C15: 88 | D15: 295 | E15: 186 | F15: 3 | G15: 638
A21: 4574200.00%

Sheet Bottom_Up_Champions (hidden)
C1: Volumen | Q1: Volumen | AE1: Volumen
A2: CD | B2: Nombre CD | C2: Ene | D2: Feb | E2: Mar | F2: Abr | G2: May | H2: Jun | I2: Jul | J2: Ago | K2: Sep | L2: Oct | M2: Nov | N2: Dic | O2: FY | P2: FY | Q2: Ene | R2: Feb | S2: Mar | T2: Abr | U2: May | V2: Jun | W2: Jul | X2: Ago | Y2: Sep | Z2: Oct | AA2: Nov | AB2: Dic | AC2: FY | AD2: FY | AE2: Ene | AF2: Feb | AG2: Mar | AH2: Abr | AI2: May | AJ2: Jun | AK2: Jul | AL2: Ago | AM2: Sep | AN2: Oct | AO2: Nov | AP2: Dic | AQ2: FY
A3: AV04 | B3: CD Tibasosa | C3: 62,375 | D3: 52,396 | E3: 51,799 | F3: 52,485 | G3: 54,419 | H3: 56,990 | I3: 59,835 | J3: 58,754 | K3: 49,888 | L3: 58,684 | M3: 63,955 | N3: 72,065 | O3: =SUM(C3:N3) -> 693,645 | P3: =SUM(D3:O3) -> 1,324,915 | Q3: =C3 -> 62,375 | R3: 52,396 | S3: 51,799 | T3: 52,485 | U3: 54,419 | V3: 56,990 | W3: 59,835 | X3: 58,754 | Y3: 49,888 | Z3: 58,684 | AA3: 63,955 | AB3: 72,065 | AC3: =SUM(Q3:AB3) -> 693,645 | AD3: =SUM(R3:AC3) -> 1,324,915 | AE3: =C3 -> 62,375 | AF3: 52,396 | AG3: 51,799 | AH3: 52,485 | AI3: 54,419 | AJ3: 56,990 | AK3: 59,835 | AL3: 58,754 | AM3: 49,888 | AN3: 58,684 | AO3: 63,955 | AP3: 72,065 | AQ3: =SUM(AE3:AP3) -> 693,645
A4: AV06 | B4: CD Tocancipa | C4: 80,510 | D4: 76,573 | E4: 76,351 | F4: 81,078 | G4: 93,712 | H4: 91,879 | I4: 98,349 | J4: 91,501 | K4: 84,847 | L4: 91,510 | M4: 120,300 | N4: 134,908 | O4: =SUM(C4:N4) -> 1,121,517 | P4: 2,162,525 | Q4: 80,510 | R4: 76,573 | S4: 76,351 | T4: 81,078 | U4: 93,712 | V4: 91,879 | W4: 98,349 | X4: 91,501 | Y4: 84,847 | Z4: 91,510 | AA4: 120,300 | AB4: 134,908 | AC4: =SUM(Q4:AB4) -> 1,121,517 | AD4: 2,162,525 | AE4: 80,510 | AF4: 76,573 | AG4: 76,351 | AH4: 81,078 | AI4: 93,712 | AJ4: 91,879 | AK4: 98,349 | AL4: 91,501 | AM4: 84,847 | AN4: 91,510 | AO4: 120,300 | AP4: 134,908 | AQ4: =SUM(AE4:AP4) -> 1,121,517
A5: AV26 | B5: CD Autosur | C5: 100,690 | D5: 98,265 | E5: 106,263 | F5: 110,562 | G5: 119,709 | H5: 123,021 | I5: 123,359 | J5: 120,244 | K5: 109,325 | L5: 113,237 | M5: 128,660 | N5: 146,436 | O5: 1,399,773 | P5: 2,698,856 | Q5: 100,690 | R5: 98,265 | S5: 106,263 | T5: 110,562 | U5: 119,709 | V5: 123,021 | W5: 123,359 | X5: 120,244 | Y5: 109,325 | Z5: 113,237 | AA5: 128,660 | AB5: 146,436 | AC5: 1,399,773 | AD5: 2,698,856 | AE5: 100,690 | AF5: 98,265 | AG5: 106,263 | AH5: 110,562 | AI5: 119,709 | AJ5: 123,021 | AK5: 123,359 | AL5: 120,244 | AM5: 109,325 | AN5: 113,237 | AO5: 128,660 | AP5: 146,436 | AQ5: 1,399,773
A6: AV42 | B6: CD Tunja | C6: 47,410 | D6: 40,675 | E6: 41,572 | F6: 41,906 | G6: 45,226 | H6: 44,315 | I6: 43,153 | J6: 46,183 | K6: 41,298 | L6: 43,309 | M6: 48,010 | N6: 53,886 | O6: 536,941 | P6: 1,026,472 | Q6: 47,410 | R6: 40,675 | S6: 41,572 | T6: 41,906 | U6: 45,226 | V6: 44,315 | W6: 43,153 | X6: 46,183 | Y6: 41,298 | Z6: 43,309 | AA6: 48,010 | AB6: 53,886 | AC6: 536,941 | AD6: 1,026,472 | AE6: 47,410 | AF6: 40,675 | AG6: 41,572 | AH6: 41,906 | AI6: 45,226 | AJ6: 44,315 | AK6: 43,153 | AL6: 46,183 | AM6: 41,298 | AN6: 43,309 | AO6: 48,010 | AP6: 53,886 | AQ6: 536,941
A7: AV47 | B7: CD Sibate | C7: 85,309 | D7: 74,028 | E7: 83,479 | F7: 78,852 | G7: 83,638 | H7: 92,212 | I7: 90,482 | J7: 86,694 | K7: 80,048 | L7: 88,483 | M7: 92,538 | N7: 104,622 | O7: 1,040,385 | P7: 1,995,462 | Q7: 85,309 | R7: 74,028 | S7: 83,479 | T7: 78,852 | U7: 83,638 | V7: 92,212 | W7: 90,482 | X7: 86,694 | Y7: 80,048 | Z7: 88,483 | AA7: 92,538 | AB7: 104,622 | AC7: 1,040,385 | AD7: 1,995,462 | AE7: 85,309 | AF7: 74,028 | AG7: 83,479 | AH7: 78,852 | AI7: 83,638 | AJ7: 92,212 | AK7: 90,482 | AL7: 86,694 | AM7: 80,048 | AN7: 88,483 | AO7: 92,538 | AP7: 104,622 | AQ7: 1,040,385
A8: AV50 | B8: CD Siberia | C8: 83,449 | D8: 79,676 | E8: 86,191 | F8: 84,641 | G8: 94,368 | H8: 94,067 | I8: 96,903 | J8: 96,783 | K8: 89,068 | L8: 92,887 | M8: 103,332 | N8: 117,799 | O8: 1,119,163 | P8: 2,154,876 | Q8: 83,449 | R8: 79,676 | S8: 86,191 | T8: 84,641 | U8: 94,368 | V8: 94,067 | W8: 96,903 | X8: 96,783 | Y8: 89,068 | Z8: 92,887 | AA8: 103,332 | AB8: 117,799 | AC8: 1,119,163 | AD8: 2,154,876 | AE8: 83,449 | AF8: 79,676 | AG8: 86,191 | AH8: 84,641 | AI8: 94,368 | AJ8: 94,067 | AK8: 96,903 | AL8: 96,783 | AM8: 89,068 | AN8: 92,887 | AO8: 103,332 | AP8: 117,799 | AQ8: 1,119,163
A9: AV78 | B9: CD Montevideo | C9: 46,860 | D9: 46,644 | E9: 46,402 | F9: 48,245 | G9: 48,995 | H9: 48,787 | I9: 51,055 | J9: 52,740 | K9: 49,160 | L9: 58,336 | M9: 55,644 | N9: 62,785 | O9: 615,653 | P9: 1,184,447 | Q9: 46,860 | R9: 46,644 | S9: 46,402 | T9: 48,245 | U9: 48,995 | V9: 48,787 | W9: 51,055 | X9: 52,740 | Y9: 49,160 | Z9: 58,336 | AA9: 55,644 | AB9: 62,785 | AC9: 615,653 | AD9: 1,184,447 | AE9: 46,860 | AF9: 46,644 | AG9: 46,402 | AH9: 48,245 | AI9: 48,995 | AJ9: 48,787 | AK9: 51,055 | AL9: 52,740 | AM9: 49,160 | AN9: 58,336 | AO9: 55,644 | AP9: 62,785 | AQ9: 615,653
A10: AV66 | B10: CD Chiquinquira | C10: 24,058 | D10: 19,581 | E10: 21,769 | F10: 20,408 | G10: 21,665 | H10: 23,706 | I10: 23,244 | J10: 24,825 | K10: 21,434 | L10: 23,430 | M10: 24,786 | N10: 27,873 | O10: 276,778 | P10: 529,497 | Q10: 24,058 | R10: 19,581 | S10: 21,769 | T10: 20,408 | U10: 21,665 | V10: 23,706 | W10: 23,244 | X10: 24,825 | Y10: 21,434 | Z10: 23,430 | AA10: 24,786 | AB10: 27,873 | AC10: 276,778 | AD10: 529,497 | AE10: 24,058 | AF10: 19,581 | AG10: 21,769 | AH10: 20,408 | AI10: 21,665 | AJ10: 23,706 | AK10: 23,244 | AL10: 24,825 | AM10: 21,434 | AN10: 23,430 | AO10: 24,786 | AP10: 27,873 | AQ10: 276,778
A11: AV06_KA | B11: CD Tocancipa KA | C11: 69,364 | D11: 65,952 | E11: 83,976 | F11: 79,413 | G11: 88,460 | H11: 87,928 | I11: 113,158 | J11: 92,668 | K11: 96,486 | L11: 101,813 | M11: 109,504 | N11: 130,430 | O11: 1,119,152 | P11: 2,168,941 | Q11: 69,364 | R11: 65,952 | S11: 83,976 | T11: 79,413 | U11: 88,460 | V11: 87,928 | W11: 113,158 | X11: 92,668 | Y11: 96,486 | Z11: 101,813 | AA11: 109,504 | AB11: 130,430 | AC11: 1,119,152 | AD11: 2,168,941 | AE11: 69,364 | AF11: 65,952 | AG11: 83,976 | AH11: 79,413 | AI11: 88,460 | AJ11: 87,928 | AK11: 113,158 | AL11: 92,668 | AM11: 96,486 | AN11: 101,813 | AO11: 109,504 | AP11: 130,430 | AQ11: 1,119,152
A12: AV53 | B12: CD Bosa UDC | C12: 7,163 | D12: 7,293 | E12: 8,167 | F12: 9,010 | G12: 10,918 | H12: 11,867 | I12: 11,998 | J12: 11,720 | K12: 9,997 | L12: 10,846 | M12: 11,416 | N12: 11,723 | O12: 122,119 | P12: 237,075 | Q12: 7,163 | R12: 7,293 | S12: 8,167 | T12: 9,010 | U12: 10,918 | V12: 11,867 | W12: 11,998 | X12: 11,720 | Y12: 9,997 | Z12: 10,846 | AA12: 11,416 | AB12: 11,723 | AC12: 122,119 | AD12: 237,075 | AE12: 7,163 | AF12: 7,293 | AG12: 8,167 | AH12: 9,010 | AI12: 10,918 | AJ12: 11,867 | AK12: 11,998 | AL12: 11,720 | AM12: 9,997 | AN12: 10,846 | AO12: 11,416 | AP12: 11,723 | AQ12: 122,119
A13: AV71 | B13: CD Chapinero UDC | C13: 5,689 | D13: 6,444 | E13: 6,954 | F13: 7,295 | G13: 7,761 | H13: 7,340 | I13: 7,347 | J13: 7,340 | K13: 6,837 | L13: 6,679 | M13: 7,313 | N13: 7,581 | O13: 84,580 | P13: 163,470 | Q13: 5,689 | R13: 6,444 | S13: 6,954 | T13: 7,295 | U13: 7,761 | V13: 7,340 | W13: 7,347 | X13: 7,340 | Y13: 6,837 | Z13: 6,679 | AA13: 7,313 | AB13: 7,581 | AC13: 84,580 | AD13: 163,470 | AE13: 5,689 | AF13: 6,444 | AG13: 6,954 | AH13: 7,295 | AI13: 7,761 | AJ13: 7,340 | AK13: 7,347 | AL13: 7,340 | AM13: 6,837 | AN13: 6,679 | AO13: 7,313 | AP13: 7,581 | AQ13: 84,580
A14: AV54 | B14: CD Engativa UDC | C14: 5,258 | D14: 5,605 | E14: 5,814 | F14: 6,003 | G14: 6,384 | H14: 6,579 | I14: 7,205 | J14: 6,947 | K14: 6,448 | L14: 6,374 | M14: 7,111 | N14: 7,626 | O14: 77,352 | P14: 149,446 | Q14: 5,258 | R14: 5,605 | S14: 5,814 | T14: 6,003 | U14: 6,384 | V14: 6,579 | W14: 7,205 | X14: 6,947 | Y14: 6,448 | Z14: 6,374 | AA14: 7,111 | AB14: 7,626 | AC14: 77,352 | AD14: 149,446 | AE14: 5,258 | AF14: 5,605 | AG14: 5,814 | AH14: 6,003 | AI14: 6,384 | AJ14: 6,579 | AK14: 7,205 | AL14: 6,947 | AM14: 6,448 | AN14: 6,374 | AO14: 7,111 | AP14: 7,626 | AQ14: 77,352
A15: Centro | C15: =SUM(C3:C11) -> 600,025 | D15: =SUM(D3:D11) -> 553,789 | E15: 597,803 | F15: 597,588 | G15: 650,193 | H15: 662,904 | I15: 699,538 | J15: 670,393 | K15: 621,554 | L15: 671,689 | M15: 746,728 | N15: 850,803 | O15: 7,923,008 | P15: 15,245,990 | Q15: 600,025 | R15: 553,789 | S15: 597,803 | T15: 597,588 | U15: 650,193 | V15: 662,904 | W15: 699,538 | X15: 670,393 | Y15: 621,554 | Z15: 671,689 | AA15: 746,728 | AB15: 850,803 | AC15: 7,923,008 | AD15: 15,245,990 | AE15: 600,025 | AF15: 553,789 | AG15: 597,803 | AH15: 597,588 | AI15: 650,193 | AJ15: 662,904 | AK15: 699,538 | AL15: 670,393 | AM15: 621,554 | AN15: 671,689 | AO15: 746,728 | AP15: 850,803 | AQ15: 7,923,008
C19: Capacity Occupation- Champions 2025 | Q19: Recargas- Champions 2025 | AE19: HL Camión Día- Champions 2025
A20: CD | B20: Nombre CD | C20: Ene | D20: Feb | E20: Mar | F20: Abr | G20: May | H20: Jun | I20: Jul | J20: Ago | K20: Sep | L20: Oct | M20: Nov | N20: Dic | O20: FY | P20: MAX | Q20: Ene | R20: Feb | S20: Mar | T20: Abr | U20: May | V20: Jun | W20: Jul | X20: Ago | Y20: Sep | Z20: Oct | AA20: Nov | AB20: Dic | AC20: FY | AD20: MAX | AE20: Ene | AF20: Feb | AG20: Mar | AH20: Abr | AI20: May | AJ20: Jun | AK20: Jul | AL20: Ago | AM20: Sep | AN20: Oct | AO20: Nov | AP20: Dic | AQ20: FY
A21: AV04 | B21: CD Tibasosa | C21: 41.6 | D21: 41.6 | E21: 41.2 | F21: 41.6 | G21: 41.6 | H21: 41.6 | I21: 42.5 | J21: 41.6 | K21: 41.6 | L21: 41.6 | M21: 41.6 | N21: 41.6 | O21: 41.6 | P21: 42.5 | Q21: 14.2% | R21: 14.2% | S21: 14.2% | T21: 14.2% | U21: 14.2% | V21: 14.2% | W21: 14.2% | X21: 14.2% | Y21: 14.2% | Z21: 14.2% | AA21: 14.2% | AB21: 14.2% | AC21: 14.2% | AD21: 14.2% | AE21: 47.5 | AF21: 47.5 | AG21: 47.0 | AH21: 47.5 | AI21: 47.5 | AJ21: 47.5 | AK21: 48.5 | AL21: 47.5 | AM21: 47.5 | AN21: 47.5 | AO21: 47.5 | AP21: 47.5 | AQ21: 47.5
A22: AV06 | B22: CD Tocancipa | C22: 45.0 | D22: 45.0 | E22: 45.0 | F22: 45.0 | G22: 45.8 | H22: 45.9 | I22: 47.3 | J22: 45.9 | K22: 45.7 | L22: 46.0 | M22: 46.0 | N22: 46.0 | O22: 45.7 | P22: 47.3 | Q22: 10.4% | R22: 12.8% | S22: 6.2% | T22: 9.9% | U22: 13.2% | V22: 13.3% | W22: 10.7% | X22: 8.4% | Y22: 7.2% | Z22: 15.0% | AA22: 15.0% | AB22: 15.0% | AC22: 11.4% | AD22: 15.0% | AE22: 49.7 | AF22: 50.8 | AG22: 47.8 | AH22: 49.4 | AI22: 51.9 | AJ22: 52.0 | AK22: 52.3 | AL22: 49.8 | AM22: 49.0 | AN22: 52.9 | AO22: 52.9 | AP22: 52.9 | AQ22: 50.9
A23: AV26 | B23: CD Autosur | C23: 38.2 | D23: 38.2 | E23: 38.2 | F23: 38.2 | G23: 38.2 | H23: 38.2 | I23: 38.2 | J23: 38.5 | K23: 38.2 | L23: 38.6 | M23: 38.6 | N23: 38.6 | O23: 38.3 | P23: 38.6 | Q23: 38.0% | R23: 41.0% | S23: 44.0% | T23: 47.0% | U23: 49.0% | V23: 56.0% | W23: 53.0% | X23: 43.0% | Y23: 38.0% | Z23: 38.0% | AA23: 38.0% | AB23: 38.0% | AC23: 43.6% | AD23: 56.0% | AE23: 52.7 | AF23: 53.9 | AG23: 55.0 | AH23: 56.2 | AI23: 56.9 | AJ23: 59.6 | AK23: 58.4 | AL23: 55.0 | AM23: 52.7 | AN23: 53.2 | AO23: 53.2 | AP23: 53.2 | AQ23: 55.0
A24: AV42 | B24: CD Tunja | C24: 41.8 | D24: 41.2 | E24: 41.6 | F24: 41.6 | G24: 41.8 | H24: 42.1 | I24: 42.3 | J24: 42.8 | K24: 42.6 | L24: 42.4 | M24: 42.4 | N24: 42.4 | O24: 42.1 | P24: 42.8 | Q24: 15.0% | R24: 13.6% | S24: 13.0% | T24: 13.0% | U24: 13.0% | V24: 13.0% | W24: 13.0% | X24: 13.0% | Y24: 13.0% | Z24: 15.0% | AA24: 15.0% | AB24: 15.0% | AC24: 13.7% | AD24: 15.0% | AE24: 48.1 | AF24: 46.8 | AG24: 47.0 | AH24: 47.0 | AI24: 47.2 | AJ24: 47.6 | AK24: 47.8 | AL24: 48.4 | AM24: 48.2 | AN24: 48.7 | AO24: 48.7 | AP24: 48.7 | AQ24: 47.9
A25: AV47 | B25: CD Sibate | C25: 45.4 | D25: 44.6 | E25: 45.5 | F25: 46.0 | G25: 46.3 | H25: 47.8 | I25: 47.2 | J25: 45.5 | K25: 45.3 | L25: 46.7 | M25: 46.7 | N25: 46.7 | O25: 46.2 | P25: 47.8 | Q25: 30.7% | R25: 30.0% | S25: 30.0% | T25: 30.0% | U25: 30.0% | V25: 36.0% | W25: 32.5% | X25: 30.0% | Y25: 30.0% | Z25: 33.5% | AA25: 33.5% | AB25: 33.5% | AC25: 31.6% | AD25: 36.0% | AE25: 59.3 | AF25: 58.0 | AG25: 59.2 | AH25: 59.8 | AI25: 60.2 | AJ25: 65.0 | AK25: 62.5 | AL25: 59.2 | AM25: 58.9 | AN25: 62.4 | AO25: 62.4 | AP25: 62.4 | AQ25: 60.8
A26: AV50 | B26: CD Siberia | C26: 46.1 | D26: 44.6 | E26: 44.8 | F26: 45.1 | G26: 44.3 | H26: 44.4 | I26: 45.8 | J26: 46.3 | K26: 46.4 | L26: 46.0 | M26: 46.0 | N26: 46.0 | O26: 45.5 | P26: 46.4 | Q26: 18.0% | R26: 20.8% | S26: 19.7% | T26: 18.0% | U26: 22.2% | V26: 21.5% | W26: 18.5% | X26: 18.0% | Y26: 18.0% | Z26: 26.0% | AA26: 26.0% | AB26: 26.0% | AC26: 21.1% | AD26: 26.0% | AE26: 54.3 | AF26: 53.8 | AG26: 53.6 | AH26: 53.2 | AI26: 54.2 | AJ26: 53.9 | AK26: 54.3 | AL26: 54.6 | AM26: 54.7 | AN26: 58.0 | AO26: 58.0 | AP26: 58.0 | AQ26: 55.1
A27: AV78 | B27: CD Montevideo | C27: 37.2 | D27: 36.6 | E27: 36.2 | F27: 36.7 | G27: 37.0 | H27: 37.2 | I27: 37.2 | J27: 37.2 | K27: 37.2 | L27: 37.3 | M27: 37.3 | N27: 37.3 | O27: 37.0 | P27: 37.3 | Q27: 48.0% | R27: 50.0% | S27: 43.0% | T27: 42.0% | U27: 42.0% | V27: 42.0% | W27: 44.0% | X27: 42.0% | Y27: 40.0% | Z27: 40.0% | AA27: 40.0% | AB27: 40.0% | AC27: 42.8% | AD27: 50.0% | AE27: 55.1 | AF27: 54.9 | AG27: 51.8 | AH27: 52.2 | AI27: 52.5 | AJ27: 52.9 | AK27: 53.6 | AL27: 52.8 | AM27: 52.1 | AN27: 52.2 | AO27: 52.2 | AP27: 52.2 | AQ27: 52.9
A28: AV66 | B28: CD Chiquinquira | C28: 36.9 | D28: 35.5 | E28: 38.4 | F28: 38.8 | G28: 38.4 | H28: 38.5 | I28: 38.7 | J28: 38.7 | K28: 38.5 | L28: 38.8 | M28: 38.8 | N28: 38.8 | O28: 38.2 | P28: 38.8 | Q28: 55.0% | R28: 54.0% | S28: 45.0% | T28: 45.0% | U28: 45.0% | V28: 52.1% | W28: 45.0% | X28: 45.0% | Y28: 45.0% | Z28: 50.0% | AA28: 50.0% | AB28: 50.0% | AC28: 48.4% | AD28: 55.0% | AE28: 57.1 | AF28: 54.7 | AG28: 55.7 | AH28: 56.2 | AI28: 55.6 | AJ28: 58.5 | AK28: 56.2 | AL28: 56.1 | AM28: 55.8 | AN28: 58.1 | AO28: 58.1 | AP28: 58.1 | AQ28: 56.7
A29: AV06KA | B29: CD Tocancipa KA | C29: 43.2 | D29: 43.3 | E29: 52.3 | F29: 47.7 | G29: 50.5 | H29: 47.9 | I29: 52.2 | J29: 46.4 | K29: 50.3 | L29: 50.3 | M29: 50.3 | N29: 50.3 | O29: 48.7 | P29: 52.3 | Q29: 7.9% | R29: 9.5% | S29: 11.9% | T29: 13.6% | U29: 13.5% | V29: 12.2% | W29: 9.6% | X29: 9.1% | Y29: 8.1% | Z29: 8.1% | AA29: 8.1% | AB29: 8.1% | AC29: 10.0% | AD29: 13.6% | AE29: 46.7 | AF29: 47.4 | AG29: 58.6 | AH29: 54.2 | AI29: 57.3 | AJ29: 53.7 | AK29: 57.2 | AL29: 50.6 | AM29: 54.4 | AN29: 54.4 | AO29: 54.4 | AP29: 54.4 | AQ29: 53.6
A30: AV53 | B30: CD Bosa UDC | C30: 13.9 | D30: 13.7 | E30: 13.9 | F30: 14.6 | G30: 16.3 | H30: 16.1 | I30: 16.5 | J30: 17.1 | K30: 16.7 | L30: 15.0 | M30: 15.0 | N30: 15.0 | O30: 15.3 | P30: 17.1 | Q30: 77.3% | R30: 90.0% | S30: 90.9% | T30: 85.0% | U30: 79.1% | V30: 102.7% | W30: 92.9% | X30: 81.4% | Y30: 78.6% | Z30: 100.0% | AA30: 100.0% | AB30: 100.0% | AC30: 89.8% | AD30: 102.7% | AE30: 24.6 | AF30: 26.0 | AG30: 26.5 | AH30: 27.1 | AI30: 29.2 | AJ30: 32.6 | AK30: 31.7 | AL30: 31.1 | AM30: 29.8 | AN30: 30.0 | AO30: 30.0 | AP30: 30.0 | AQ30: 29.0
A31: AV71 | B31: CD Chapinero UDC | C31: 5.5 | D31: 5.1 | E31: 5.5 | F31: 5.4 | G31: 5.5 | H31: 5.7 | I31: 5.8 | J31: 5.4 | K31: 6.0 | L31: 7.7 | M31: 7.7 | N31: 7.7 | O31: 6.1 | P31: 7.7 | Q31: 163.8% | R31: 203.1% | S31: 216.2% | T31: 208.5% | U31: 220.0% | V31: 210.3% | W31: 201.7% | X31: 216.2% | Y31: 201.3% | Z31: 229.0% | AA31: 229.0% | AB31: 229.0% | AC31: 210.7% | AD31: 229.0% | AE31: 14.6 | AF31: 15.5 | AG31: 17.3 | AH31: 16.8 | AI31: 17.6 | AJ31: 17.6 | AK31: 17.5 | AL31: 17.0 | AM31: 17.9 | AN31: 25.3 | AO31: 25.3 | AP31: 25.3 | AQ31: 19.0
A32: AV54 | B32: CD Engativa UDC | C32: 7.6 | D32: 13.7 | E32: 9.8 | F32: 8.3 | G32: 8.6 | H32: 7.2 | I32: 7.5 | J32: 6.4 | K32: 6.3 | L32: 6.8 | M32: 6.8 | N32: 6.8 | O32: 8.0 | P32: 13.7 | Q32: 175.0% | R32: 153.4% | S32: 183.8% | T32: 188.0% | U32: 183.7% | V32: 219.2% | W32: 226.1% | X32: 247.0% | Y32: 251.7% | Z32: 243.0% | AA32: 243.0% | AB32: 243.0% | AC32: 213.1% | AD32: 251.7% | AE32: 20.9 | AF32: 34.8 | AG32: 27.7 | AH32: 24.0 | AI32: 24.3 | AJ32: 23.0 | AK32: 24.4 | AL32: 22.2 | AM32: 22.2 | AN32: 23.3 | AO32: 23.3 | AP32: 23.3 | AQ32: 24.5
A33: Centro (Real- LE) | P33: 0 | AD33: 0.0% | AE33: 0 | AF33: 0 | AG33: 0 | AH33: 0 | AI33: 0 | AJ33: 0 | AK33: 0 | AL33: 0 | AM33: 0 | AN33: 0 | AO33: 0 | AP33: 0 | AQ33: 0
A34: Centro (Cálculo) | C34: 42.0 | D34: 41.6 | E34: 42.9 | F34: 42.5 | G34: 42.9 | H34: 42.8 | I34: 44.0 | J34: 42.7 | K34: 43.2 | L34: 43.4 | M34: 43.5 | N34: 43.5 | O34: 42.9 | P34: 44.0 | Q34: 23% | R34: 25% | S34: 24% | T34: 25% | U34: 27% | V34: 28% | W34: 25% | X34: 23% | Y34: 22% | Z34: 25% | AA34: 25% | AB34: 25% | AC34: 24.7% | AD34: 28% | AE34: 51.8 | AF34: 52.0 | AG34: 53.3 | AH34: 53.0 | AI34: 54.4 | AJ34: 54.7 | AK34: 55.1 | AL34: 52.7 | AM34: 52.8 | AN34: 54.2 | AO34: 54.2 | AP34: 54.3 | AQ34: 53.7
A35: Centro (Prom Pond) | C35: 42.3 | D35: 41.8 | E35: 43.4 | F35: 42.8 | G35: 43.4 | H35: 43.3 | I35: 44.5 | J35: 43.1 | K35: 43.7 | L35: 43.9 | M35: 43.9 | N35: 44.0 | O35: 43.3 | P35: 44.5 | Q35: 24% | R35: 26% | S35: 24% | T35: 25% | U35: 27% | V35: 29% | W35: 26% | X35: 24% | Y35: 22% | Z35: 25% | AA35: 25% | AB35: 25% | AC35: 25.1% | AD35: 29% | AE35: 52.5 | AF35: 52.6 | AG35: 54.0 | AH35: 53.7 | AI35: 54.9 | AJ35: 55.8 | AK35: 56.1 | AL35: 53.3 | AM35: 53.4 | AN35: 54.9 | AO35: 54.8 | AP35: 54.8 | AQ35: 54.2

Sheet Global KPIs
B2: Global KPIs
B4: No. Mes | C4: =MONTH(SimulaciónV2!B340001) -> 5 | D4: Capacidad
B5: Vh asignados 6E | C5: =HLOOKUP(C4,'Alimentación Data'!32:45,4,FALSE) -> 6 | D5: 3550
B6: Vh asignados 10E | C6: =HLOOKUP(C4,'Alimentación Data'!32:45,9,FALSE) -> 30 | D6: 9400
B7: Vh asignados 12E | C7: =HLOOKUP(C4,'Alimentación Data'!32:45,14,FALSE) -> 21 | D7: 9400
B9: Vh asignados >= 3000 Kg | C9: =SUM(C5:C7) -> 57 | D9: =(((C5*D5)+(C6*D6)+(C7*D7)))/SUM(C5:C7) -> 8,784
B10: Vh asignados <= 3000 Kg | C10: =+'Alimentación Data'!G50 -> 0
C12: No. Vh | D12: CO_Opt
B13: Cap_6 | C13: =HLOOKUP(C4,'Alimentación Data'!32:45,4,FALSE) -> 6 | D13: =4*4.5 -> 18
B14: Cap_10_12 | C14: =+HLOOKUP(C4,'Alimentación Data'!32:45,9,FALSE)+HLOOKUP(C4,'Alimentación Data'!32:45,14,FALSE) -> 51 | D14: =11*4.5 -> 49.5
B15: Cap_Promedio | C15: =SUM(C13:C14) -> 57 | D15: =+((C13*D13)+(C14*D14))/SUM(C13:C14) -> 46
B17: Días | C17: 25
B18: Viajes >= 3500 Kg | C18: =(C9+C10)*C17 -> 1,425
B20: Kg/HL | C20: 210
B21: CO [HL/Viaje] | C21: =SimulaciónV2!NJO56 -> 42.32
B22: CO [Pcks/Viaje] | C22: =+C21*18.5 -> 783
B23: Peso_Prom [Kg] | C23: =+C21*C20 -> 8,886
B24: Recargas [%] - IR | C24: =SimulaciónV2!NJP56 -> 16.3%
B25: VH_Asignados | C25: =SimulaciónV2!NJK56 -> 57
B26: VH_Optimos | C26: =SimulaciónV2!NKG56 -> 43
B27: Viajes proyectados mes | C27: =ROUND((C17*C26*(1+C24)),0) -> 1,250
D28: Meta
B29: Asset Utilization | C29: =+C27/C18 -> 88% | D29: =SUMIFS(ANAPLAN!M:M,ANAPLAN!C:C,"2T Assets Utilization",ANAPLAN!X:X,Dimensionamiento!G2,ANAPLAN!W:W,SimulaciónV2!L100001)/100 -> 100.0% | E29: =CONCATENATE(IF('Global KPIs'!C29>='Global KPIs'!D29,"Cumpliendo","Incumpliendo")) -> Incumpliendo | F29: =IF(E29="Incumpliendo","","g") -> 
B30: Asset Occupation | C30: =+C21/D15 -> 92% | D30: =SUMIFS(ANAPLAN!M:M,ANAPLAN!C:C,"2T Assets Occupation",ANAPLAN!X:X,Dimensionamiento!G2,ANAPLAN!W:W,SimulaciónV2!L100001)/100 -> 82.8% | E30: =CONCATENATE(IF('Global KPIs'!C30>='Global KPIs'!D30,"Cumpliendo","Incumpliendo")) -> Cumpliendo | F30: =IF(E30="Incumpliendo","","g") -> g
B31: Asset Efficiency | C31: =+C29*C30 -> 80% | D31: =SUMIFS(ANAPLAN!M:M,ANAPLAN!C:C,"2T Asset Efficiency",ANAPLAN!X:X,Dimensionamiento!G2,ANAPLAN!W:W,SimulaciónV2!L100001)/100 -> 82.8% | E31: =CONCATENATE(IF('Global KPIs'!C31>='Global KPIs'!D31,"Cumpliendo","Incumpliendo")) -> Incumpliendo
B34: Volumen mes [HL] | C34: =SimulaciónV2!$NJL40 -> 53,607
B35: Volumen mes [Pcks] | C35: =+C34*12 -> 643,284
C37: Total | D37: Horas mes
B38: Personal OL Op. | C38: =+SimulaciónV2!NJL141 -> 38 | D38: =+IF(OR(Dimensionamiento!G2="AV04",Dimensionamiento!G2="AV06"),0,C38*$C$17*7.5) -> 0
B39: Personal OL Admin. | C39: =+SimulaciónV2!NJO141 -> 15 | D39: =IF(D38=0,0,C39*$C$17*7.5) -> 0
B40: Personal UC Op. | C40: =SimulaciónV2!$NKI$53 -> 123 | D40: =+C40*$C$17*7.5 -> 23,063
B41: Personal UC Admin. | C41: ='Open Book UC'!V24 -> 19 | D41: 3,563
B42: ABI | C42: 5 | D42: =+C42*$C$17*7.5 -> 938
B43: Total | C43: =+SUM(C38:C42) -> 200 | D43: =+SUM(D38:D42) -> 27,563
D46: Meta
B47: Total Productivity | C47: =+(C34/D43) -> 1.9 | D47: =SUMIFS(ANAPLAN!M:M,ANAPLAN!C:C,"2T Total Productivity (HL)",ANAPLAN!X:X,Dimensionamiento!G2,ANAPLAN!W:W,SimulaciónV2!L100001) -> 1.8 | E47: =CONCATENATE(IF('Global KPIs'!C47>='Global KPIs'!D47,"Cumpliendo","Incumpliendo")) -> Cumpliendo | F47: =IF(E47="Incumpliendo","","g") -> g

Sheet Alimentación Data
G1: =MONTH(G3) -> 1 | H1: =MONTH(H3) -> 1 | I1: 1 | J1: 1 | K1: 1 | L1: 1 | M1: 1 | N1: 1 | O1: 1 | P1: 1 | Q1: 1 | R1: 1 | S1: 1 | T1: 1 | U1: 1 | V1: 1 | W1: 1 | X1: 1 | Y1: 1 | Z1: 1 | AA1: 1 | AB1: 1 | AC1: 1 | AD1: 1 | AE1: 1 | AF1: 1 | AG1: 1 | AH1: 1 | AI1: 1 | AJ1: 1 | AK1: 1 | AL1: 2 | AM1: 2 | AN1: 2 | AO1: 2 | AP1: 2 | AQ1: 2 | AR1: 2 | AS1: 2 | AT1: 2 | AU1: 2 | AV1: 2 | AW1: 2 | AX1: 2 | AY1: 2 | AZ1: 2 | BA1: 2 | BB1: 2 | BC1: 2 | BD1: 2 | BE1: 2 | BF1: 2 | BG1: 2 | BH1: 2 | BI1: 2 | BJ1: 2 | BK1: 2 | BL1: 2 | BM1: 2 | BN1: 3 | BO1: 3 | BP1: 3 | BQ1: 3 | BR1: 3 | BS1: 3 | BT1: =MONTH(BT3) -> 3 | BU1: 3 | BV1: 3 | BW1: 3 | BX1: 3 | BY1: 3 | BZ1: 3 | CA1: 3 | CB1: 3 | CC1: 3 | CD1: 3 | CE1: 3 | CF1: 3 | CG1: 3 | CH1: 3 | CI1: 3 | CJ1: 3 | CK1: 3 | CL1: 3 | CM1: 3 | CN1: 3 | CO1: 3 | CP1: 3 | CQ1: 3 | CR1: 3 | CS1: 4 | CT1: 4 | CU1: 4 | CV1: 4 | CW1: 4 | CX1: 4 | CY1: 4 | CZ1: 4 | DA1: 4 | DB1: 4 | DC1: 4 | DD1: 4 | DE1: 4 | DF1: 4 | DG1: 4 | DH1: 4 | DI1: 4 | DJ1: 4 | DK1: 4 | DL1: 4 | DM1: 4 | DN1: 4 | DO1: 4 | DP1: 4 | DQ1: 4 | DR1: 4 | DS1: 4 | DT1: 4 | DU1: 4 | DV1: 4 | DW1: 5 | DX1: 5 | DY1: 5 | DZ1: 5 | EA1: 5 | EB1: 5 | EC1: 5 | ED1: 5 | EE1: 5 | EF1: =MONTH(EF3) -> 5 | EG1: 5 | EH1: 5 | EI1: 5 | EJ1: 5 | EK1: 5 | EL1: 5 | EM1: 5 | EN1: 5 | EO1: 5 | EP1: 5 | EQ1: 5 | ER1: 5 | ES1: 5 | ET1: 5 | EU1: 5 | EV1: 5 | EW1: 5 | EX1: 5 | EY1: 5 | EZ1: 5 | FA1: 5 | FB1: 33 | FC1: =1+FB1 -> 34 | FD1: =1+FC1 -> 35 | FE1: 36 | FF1: 37 | FG1: 38 | FH1: 39 | FI1: 40 | FJ1: 41 | FK1: 42 | FL1: 43 | FM1: 44 | FN1: 45 | FO1: 46 | FP1: 47 | FQ1: 48 | FR1: 6 | FS1: 6 | FT1: 6 | FU1: 6 | FV1: 6 | FW1: 6 | FX1: 6 | FY1: 6 | FZ1: 6 | GA1: 6 | GB1: 6 | GC1: 6 | GD1: 6 | GE1: 6 | GF1: 7 | GG1: 7 | GH1: 7 | GI1: 7 | GJ1: 7 | GK1: 7 | GL1: 7 | GM1: 7 | GN1: 7 | GO1: 7 | GP1: 7 | GQ1: 7 | GR1: =MONTH(GR3) -> 7 | GS1: 7 | GT1: 7 | GU1: 7 | GV1: 7 | GW1: 7 | GX1: 7 | GY1: 7 | GZ1: 7 | HA1: 7 | HB1: 7 | HC1: 7 | HD1: 7 | HE1: 7 | HF1: 7 | HG1: 7 | HH1: 7 | HI1: 7 | HJ1: 7 | HK1: 8 | HL1: 8 | HM1: 8 | HN1: 8 | HO1: 8 | HP1: 8 | HQ1: 8 | HR1: 8 | HS1: 8 | HT1: 8 | HU1: 8 | HV1: 8 | HW1: 8 | HX1: 8 | HY1: 8 | HZ1: 8 | IA1: 8 | IB1: 8 | IC1: 8 | ID1: 8 | IE1: 8 | IF1: 8 | IG1: 8 | IH1: 8 | II1: 8 | IJ1: 8 | IK1: 8 | IL1: 8 | IM1: 8 | IN1: 8 | IO1: 8 | IP1: 9 | IQ1: 9 | IR1: 9 | IS1: 9 | IT1: 9 | IU1: 9 | IV1: 9 | IW1: 9 | IX1: 9 | IY1: 9 | IZ1: 9 | JA1: 9 | JB1: 9 | JC1: 9 | JD1: =MONTH(JD3) -> 9 | JE1: 9 | JF1: 9 | JG1: 9 | JH1: 9 | JI1: 9 | JJ1: 9 | JK1: 9 | JL1: 9 | JM1: 9 | JN1: 9 | JO1: 9 | JP1: 9 | JQ1: 9 | JR1: 9 | JS1: 9 | JT1: 10 | JU1: 10 | JV1: 10 | JW1: 10 | JX1: 10 | JY1: 10 | JZ1: 10 | KA1: 10 | KB1: 10 | KC1: 10 | KD1: 10 | KE1: 10 | KF1: 10 | KG1: 10 | KH1: 10 | KI1: 10 | KJ1: 10 | KK1: 10 | KL1: 10 | KM1: 10 | KN1: 10 | KO1: 10 | KP1: 10 | KQ1: 10 | KR1: 10 | KS1: 10 | KT1: 10 | KU1: 10 | KV1: 10 | KW1: 10 | KX1: 10 | KY1: 11 | KZ1: 11 | LA1: 11 | LB1: 11 | LC1: 11 | LD1: 11 | LE1: 11 | LF1: 11 | LG1: 11 | LH1: 11 | LI1: 11 | LJ1: 11 | LK1: 11 | LL1: 11 | LM1: 11 | LN1: 11 | LO1: 11 | LP1: =MONTH(LP3) -> 11 | LQ1: 11 | LR1: 11 | LS1: 11 | LT1: 11 | LU1: 11 | LV1: 11 | LW1: 11 | LX1: 11 | LY1: 11 | LZ1: 11 | MA1: 11 | MB1: 11 | MC1: 12 | MD1: 12 | ME1: 12 | MF1: 12 | MG1: 12 | MH1: 12 | MI1: 12 | MJ1: 12 | MK1: 12 | ML1: 12 | MM1: 12 | MN1: 12 | MO1: 12 | MP1: 12 | MQ1: 12 | MR1: 12 | MS1: 12 | MT1: 12 | MU1: 12 | MV1: 12 | MW1: 12 | MX1: 12 | MY1: 12 | MZ1: 12 | NA1: 12 | NB1: 12 | NC1: 12 | ND1: 12 | NE1: 12 | NF1: 12 | NG1: 12
B2: Ordenado | D2: Ordenado | G2: =TEXT(G3,"ddd") -> Sat | H2: Sun | I2: Mon | J2: Tue | K2: Wed | L2: Thu | M2: Fri | N2: =TEXT(N3,"ddd") -> Sat | O2: Sun | P2: Mon | Q2: Tue | R2: Wed | S2: Thu | T2: Fri | U2: Sat | V2: Sun | W2: Mon | X2: Tue | Y2: Wed | Z2: Thu | AA2: Fri | AB2: Sat | AC2: Sun | AD2: Mon | AE2: Tue | AF2: Wed | AG2: Thu | AH2: Fri | AI2: Sat | AJ2: Sun | AK2: Mon | AL2: Tue | AM2: Wed | AN2: Thu | AO2: Fri | AP2: Sat | AQ2: Sun | AR2: Mon | AS2: Tue | AT2: Wed | AU2: Thu | AV2: Fri | AW2: Sat | AX2: Sun | AY2: Mon | AZ2: Tue | BA2: Wed | BB2: Thu | BC2: Fri | BD2: Sat | BE2: Sun | BF2: Mon | BG2: Tue | BH2: Wed | BI2: Thu | BJ2: Fri | BK2: Sat | BL2: Sun | BM2: Mon | BN2: Tue | BO2: Wed | BP2: Thu | BQ2: Fri | BR2: Sat | BS2: Sun | BT2: Mon | BU2: Tue | BV2: Wed | BW2: Thu | BX2: Fri | BY2: Sat | BZ2: =TEXT(BZ3,"ddd") -> Sun | CA2: Mon | CB2: Tue | CC2: Wed | CD2: Thu | CE2: Fri | CF2: Sat | CG2: Sun | CH2: Mon | CI2: Tue | CJ2: Wed | CK2: Thu | CL2: Fri | CM2: Sat | CN2: Sun | CO2: Mon | CP2: Tue | CQ2: Wed | CR2: Thu | CS2: Fri | CT2: Sat | CU2: Sun | CV2: Mon | CW2: Tue | CX2: Wed | CY2: Thu | CZ2: Fri | DA2: Sat | DB2: Sun | DC2: Mon | DD2: Tue | DE2: Wed | DF2: Thu | DG2: Fri | DH2: Sat | DI2: Sun | DJ2: Mon | DK2: Tue | DL2: Wed | DM2: Thu | DN2: Fri | DO2: Sat | DP2: Sun | DQ2: Mon | DR2: Tue | DS2: Wed | DT2: Thu | DU2: Fri | DV2: Sat | DW2: Sun | DX2: Mon | DY2: Tue | DZ2: Wed | EA2: Thu | EB2: Fri | EC2: Sat | ED2: Sun | EE2: Mon | EF2: Tue | EG2: Wed | EH2: Thu | EI2: Fri | EJ2: Sat | EK2: Sun | EL2: =TEXT(EL3,"ddd") -> Mon | EM2: Tue | EN2: Wed | EO2: Thu | EP2: Fri | EQ2: Sat | ER2: Sun | ES2: Mon | ET2: Tue | EU2: Wed | EV2: Thu | EW2: Fri | EX2: Sat | EY2: Sun | EZ2: Mon | FA2: Tue | FB2: Wed | FC2: Thu | FD2: Fri | FE2: Sat | FF2: Sun | FG2: Mon | FH2: Tue | FI2: Wed | FJ2: Thu | FK2: Fri | FL2: Sat | FM2: Sun | FN2: Mon | FO2: Tue | FP2: Wed | FQ2: Thu | FR2: Fri | FS2: Sat | FT2: Sun | FU2: Mon | FV2: Tue | FW2: Wed | FX2: Thu | FY2: Fri | FZ2: Sat | GA2: Sun | GB2: Mon | GC2: Tue | GD2: Wed | GE2: Thu | GF2: Fri | GG2: Sat | GH2: Sun | GI2: Mon | GJ2: Tue | GK2: Wed | GL2: Thu | GM2: Fri | GN2: Sat | GO2: Sun | GP2: Mon | GQ2: Tue | GR2: Wed | GS2: Thu | GT2: Fri | GU2: Sat | GV2: Sun | GW2: Mon | GX2: =TEXT(GX3,"ddd") -> Tue | GY2: Wed | GZ2: Thu | HA2: Fri | HB2: Sat | HC2: Sun | HD2: Mon | HE2: Tue | HF2: Wed | HG2: Thu | HH2: Fri | HI2: Sat | HJ2: Sun | HK2: Mon | HL2: Tue | HM2: Wed | HN2: Thu | HO2: Fri | HP2: Sat | HQ2: Sun | HR2: Mon | HS2: Tue | HT2: Wed | HU2: Thu | HV2: Fri | HW2: Sat | HX2: Sun | HY2: Mon | HZ2: Tue | IA2: Wed | IB2: Thu | IC2: Fri | ID2: Sat | IE2: Sun | IF2: Mon | IG2: Tue | IH2: Wed | II2: Thu | IJ2: Fri | IK2: Sat | IL2: Sun | IM2: Mon | IN2: Tue | IO2: Wed | IP2: Thu | IQ2: Fri | IR2: Sat | IS2: Sun | IT2: Mon | IU2: Tue | IV2: Wed | IW2: Thu | IX2: Fri | IY2: Sat | IZ2: Sun | JA2: Mon | JB2: Tue | JC2: Wed | JD2: Thu | JE2: Fri | JF2: Sat | JG2: Sun | JH2: Mon | JI2: Tue | JJ2: =TEXT(JJ3,"ddd") -> Wed | JK2: Thu | JL2: Fri | JM2: Sat | JN2: Sun | JO2: Mon | JP2: Tue | JQ2: Wed | JR2: Thu | JS2: Fri | JT2: Sat | JU2: Sun | JV2: Mon | JW2: Tue | JX2: Wed | JY2: Thu | JZ2: Fri | KA2: Sat | KB2: Sun | KC2: Mon | KD2: Tue | KE2: Wed | KF2: Thu | KG2: Fri | KH2: Sat | KI2: Sun | KJ2: Mon | KK2: Tue | KL2: Wed | KM2: Thu | KN2: Fri | KO2: Sat | KP2: Sun | KQ2: Mon | KR2: Tue | KS2: Wed | KT2: Thu | KU2: Fri | KV2: Sat | KW2: Sun | KX2: Mon | KY2: Tue | KZ2: Wed | LA2: Thu | LB2: Fri | LC2: Sat | LD2: Sun | LE2: Mon | LF2: Tue | LG2: Wed | LH2: Thu | LI2: Fri | LJ2: Sat | LK2: Sun | LL2: Mon | LM2: Tue | LN2: Wed | LO2: Thu | LP2: Fri | LQ2: Sat | LR2: Sun | LS2: Mon | LT2: Tue | LU2: Wed | LV2: =TEXT(LV3,"ddd") -> Thu | LW2: Fri | LX2: Sat | LY2: Sun | LZ2: Mon | MA2: Tue | MB2: Wed | MC2: Thu | MD2: Fri | ME2: Sat | MF2: Sun | MG2: Mon | MH2: Tue | MI2: Wed | MJ2: Thu | MK2: Fri | ML2: Sat | MM2: Sun | MN2: Mon | MO2: Tue | MP2: Wed | MQ2: Thu | MR2: Fri | MS2: Sat | MT2: Sun | MU2: Mon | MV2: Tue | MW2: Wed | MX2: Thu | MY2: Fri | MZ2: Sat | NA2: Sun | NB2: Mon | NC2: Tue | ND2: Wed | NE2: Thu | NF2: Fri | NG2: Sat
D3: Código | E3: Regional | F3: Centro | G3: 4456200.00% | H3: =1+G3 -> 4456300.00% | I3: =1+H3 -> 4456400.00% | J3: =1+I3 -> 4456500.00% | K3: =1+J3 -> 4456600.00% | L3: =1+K3 -> 4456700.00% | M3: =1+L3 -> 4456800.00% | N3: =1+M3 -> 4456900.00% | O3: =1+N3 -> 4457000.00% | P3: =1+O3 -> 4457100.00% | Q3: =1+P3 -> 4457200.00% | R3: =1+Q3 -> 4457300.00% | S3: =1+R3 -> 4457400.00% | T3: =1+S3 -> 4457500.00% | U3: =1+T3 -> 4457600.00% | V3: =1+U3 -> 4457700.00% | W3: =1+V3 -> 4457800.00% | X3: =1+W3 -> 4457900.00% | Y3: =1+X3 -> 4458000.00% | Z3: =1+Y3 -> 4458100.00% | AA3: =1+Z3 -> 4458200.00% | AB3: =1+AA3 -> 4458300.00% | AC3: =1+AB3 -> 4458400.00% | AD3: =1+AC3 -> 4458500.00% | AE3: =1+AD3 -> 4458600.00% | AF3: =1+AE3 -> 4458700.00% | AG3: =1+AF3 -> 4458800.00% | AH3: =1+AG3 -> 4458900.00% | AI3: =1+AH3 -> 4459000.00% | AJ3: =1+AI3 -> 4459100.00% | AK3: =1+AJ3 -> 4459200.00% | AL3: =1+AK3 -> 4459300.00% | AM3: =1+AL3 -> 4459400.00% | AN3: =1+AM3 -> 4459500.00% | AO3: =1+AN3 -> 4459600.00% | AP3: =1+AO3 -> 4459700.00% | AQ3: =1+AP3 -> 4459800.00% | AR3: =1+AQ3 -> 4459900.00% | AS3: =1+AR3 -> 4460000.00% | AT3: =1+AS3 -> 4460100.00% | AU3: =1+AT3 -> 4460200.00% | AV3: =1+AU3 -> 4460300.00% | AW3: =1+AV3 -> 4460400.00% | AX3: =1+AW3 -> 4460500.00% | AY3: =1+AX3 -> 4460600.00% | AZ3: =1+AY3 -> 4460700.00% | BA3: =1+AZ3 -> 4460800.00% | BB3: =1+BA3 -> 4460900.00% | BC3: =1+BB3 -> 4461000.00% | BD3: =1+BC3 -> 4461100.00% | BE3: =1+BD3 -> 4461200.00% | BF3: =1+BE3 -> 4461300.00% | BG3: =1+BF3 -> 4461400.00% | BH3: =1+BG3 -> 4461500.00% | BI3: =1+BH3 -> 4461600.00% | BJ3: =1+BI3 -> 4461700.00% | BK3: =1+BJ3 -> 4461800.00% | BL3: =1+BK3 -> 4461900.00% | BM3: =1+BL3 -> 4462000.00% | BN3: =1+BM3 -> 4462100.00% | BO3: =1+BN3 -> 4462200.00% | BP3: =1+BO3 -> 4462300.00% | BQ3: =1+BP3 -> 4462400.00% | BR3: =1+BQ3 -> 4462500.00% | BS3: =1+BR3 -> 4462600.00% | BT3: =1+BS3 -> 4462700.00% | BU3: =1+BT3 -> 4462800.00% | BV3: =1+BU3 -> 4462900.00% | BW3: =1+BV3 -> 4463000.00% | BX3: =1+BW3 -> 4463100.00% | BY3: =1+BX3 -> 4463200.00% | BZ3: =1+BY3 -> 4463300.00% | CA3: =1+BZ3 -> 4463400.00% | CB3: =1+CA3 -> 4463500.00% | CC3: =1+CB3 -> 4463600.00% | CD3: =1+CC3 -> 4463700.00% | CE3: =1+CD3 -> 4463800.00% | CF3: =1+CE3 -> 4463900.00% | CG3: =1+CF3 -> 4464000.00% | CH3: =1+CG3 -> 4464100.00% | CI3: =1+CH3 -> 4464200.00% | CJ3: =1+CI3 -> 4464300.00% | CK3: =1+CJ3 -> 4464400.00% | CL3: =1+CK3 -> 4464500.00% | CM3: =1+CL3 -> 4464600.00% | CN3: =1+CM3 -> 4464700.00% | CO3: =1+CN3 -> 4464800.00% | CP3: =1+CO3 -> 4464900.00% | CQ3: =1+CP3 -> 4465000.00% | CR3: =1+CQ3 -> 4465100.00% | CS3: =1+CR3 -> 4465200.00% | CT3: =1+CS3 -> 4465300.00% | CU3: =1+CT3 -> 4465400.00% | CV3: =1+CU3 -> 4465500.00% | CW3: =1+CV3 -> 4465600.00% | CX3: =1+CW3 -> 4465700.00% | CY3: =1+CX3 -> 4465800.00% | CZ3: =1+CY3 -> 4465900.00% | DA3: =1+CZ3 -> 4466000.00% | DB3: =1+DA3 -> 4466100.00% | DC3: =1+DB3 -> 4466200.00% | DD3: =1+DC3 -> 4466300.00% | DE3: =1+DD3 -> 4466400.00% | DF3: =1+DE3 -> 4466500.00% | DG3: =1+DF3 -> 4466600.00% | DH3: =1+DG3 -> 4466700.00% | DI3: =1+DH3 -> 4466800.00% | DJ3: =1+DI3 -> 4466900.00% | DK3: =1+DJ3 -> 4467000.00% | DL3: =1+DK3 -> 4467100.00% | DM3: =1+DL3 -> 4467200.00% | DN3: =1+DM3 -> 4467300.00% | DO3: =1+DN3 -> 4467400.00% | DP3: =1+DO3 -> 4467500.00% | DQ3: =1+DP3 -> 4467600.00% | DR3: =1+DQ3 -> 4467700.00% | DS3: =1+DR3 -> 4467800.00% | DT3: =1+DS3 -> 4467900.00% | DU3: =1+DT3 -> 4468000.00% | DV3: =1+DU3 -> 4468100.00% | DW3: =1+DV3 -> 4468200.00% | DX3: =1+DW3 -> 4468300.00% | DY3: =1+DX3 -> 4468400.00% | DZ3: =1+DY3 -> 4468500.00% | EA3: =1+DZ3 -> 4468600.00% | EB3: =1+EA3 -> 4468700.00% | EC3: =1+EB3 -> 4468800.00% | ED3: =1+EC3 -> 4468900.00% | EE3: =1+ED3 -> 4469000.00% | EF3: =1+EE3 -> 4469100.00% | EG3: =1+EF3 -> 4469200.00% | EH3: =1+EG3 -> 4469300.00% | EI3: =1+EH3 -> 4469400.00% | EJ3: =1+EI3 -> 4469500.00% | EK3: =1+EJ3 -> 4469600.00% | EL3: =1+EK3 -> 4469700.00% | EM3: =1+EL3 -> 4469800.00% | EN3: =1+EM3 -> 4469900.00% | EO3: =1+EN3 -> 4470000.00% | EP3: =1+EO3 -> 4470100.00% | EQ3: =1+EP3 -> 4470200.00% | ER3: =1+EQ3 -> 4470300.00% | ES3: =1+ER3 -> 4470400.00% | ET3: =1+ES3 -> 4470500.00% | EU3: =1+ET3 -> 4470600.00% | EV3: =1+EU3 -> 4470700.00% | EW3: =1+EV3 -> 4470800.00% | EX3: =1+EW3 -> 4470900.00% | EY3: =1+EX3 -> 4471000.00% | EZ3: =1+EY3 -> 4471100.00% | FA3: =1+EZ3 -> 4471200.00% | FB3: =1+FA3 -> 4471300.00% | FC3: =1+FB3 -> 4471400.00% | FD3: =1+FC3 -> 4471500.00% | FE3: =1+FD3 -> 4471600.00% | FF3: =1+FE3 -> 4471700.00% | FG3: =1+FF3 -> 4471800.00% | FH3: =1+FG3 -> 4471900.00% | FI3: =1+FH3 -> 4472000.00% | FJ3: =1+FI3 -> 4472100.00% | FK3: =1+FJ3 -> 4472200.00% | FL3: =1+FK3 -> 4472300.00% | FM3: =1+FL3 -> 4472400.00% | FN3: =1+FM3 -> 4472500.00% | FO3: =1+FN3 -> 4472600.00% | FP3: =1+FO3 -> 4472700.00% | FQ3: =1+FP3 -> 4472800.00% | FR3: =1+FQ3 -> 4472900.00% | FS3: =1+FR3 -> 4473000.00% | FT3: =1+FS3 -> 4473100.00% | FU3: =1+FT3 -> 4473200.00% | FV3: =1+FU3 -> 4473300.00% | FW3: =1+FV3 -> 4473400.00% | FX3: =1+FW3 -> 4473500.00% | FY3: =1+FX3 -> 4473600.00% | FZ3: =1+FY3 -> 4473700.00% | GA3: =1+FZ3 -> 4473800.00% | GB3: =1+GA3 -> 4473900.00% | GC3: =1+GB3 -> 4474000.00% | GD3: =1+GC3 -> 4474100.00% | GE3: =1+GD3 -> 4474200.00% | GF3: =1+GE3 -> 4474300.00% | GG3: =1+GF3 -> 4474400.00% | GH3: =1+GG3 -> 4474500.00% | GI3: =1+GH3 -> 4474600.00% | GJ3: =1+GI3 -> 4474700.00% | GK3: =1+GJ3 -> 4474800.00% | GL3: =1+GK3 -> 4474900.00% | GM3: =1+GL3 -> 4475000.00% | GN3: =1+GM3 -> 4475100.00% | GO3: =1+GN3 -> 4475200.00% | GP3: =1+GO3 -> 4475300.00% | GQ3: =1+GP3 -> 4475400.00% | GR3: =1+GQ3 -> 4475500.00% | GS3: =1+GR3 -> 4475600.00% | GT3: =1+GS3 -> 4475700.00% | GU3: =1+GT3 -> 4475800.00% | GV3: =1+GU3 -> 4475900.00% | GW3: =1+GV3 -> 4476000.00% | GX3: =1+GW3 -> 4476100.00% | GY3: =1+GX3 -> 4476200.00% | GZ3: =1+GY3 -> 4476300.00% | HA3: =1+GZ3 -> 4476400.00% | HB3: =1+HA3 -> 4476500.00% | HC3: =1+HB3 -> 4476600.00% | HD3: =1+HC3 -> 4476700.00% | HE3: =1+HD3 -> 4476800.00% | HF3: =1+HE3 -> 4476900.00% | HG3: =1+HF3 -> 4477000.00% | HH3: =1+HG3 -> 4477100.00% | HI3: =1+HH3 -> 4477200.00% | HJ3: =1+HI3 -> 4477300.00% | HK3: =1+HJ3 -> 4477400.00% | HL3: =1+HK3 -> 4477500.00% | HM3: =1+HL3 -> 4477600.00% | HN3: =1+HM3 -> 4477700.00% | HO3: =1+HN3 -> 4477800.00% | HP3: =1+HO3 -> 4477900.00% | HQ3: =1+HP3 -> 4478000.00% | HR3: =1+HQ3 -> 4478100.00% | HS3: =1+HR3 -> 4478200.00% | HT3: =1+HS3 -> 4478300.00% | HU3: =1+HT3 -> 4478400.00% | HV3: =1+HU3 -> 4478500.00% | HW3: =1+HV3 -> 4478600.00% | HX3: =1+HW3 -> 4478700.00% | HY3: =1+HX3 -> 4478800.00% | HZ3: =1+HY3 -> 4478900.00% | IA3: =1+HZ3 -> 4479000.00% | IB3: =1+IA3 -> 4479100.00% | IC3: =1+IB3 -> 4479200.00% | ID3: =1+IC3 -> 4479300.00% | IE3: =1+ID3 -> 4479400.00% | IF3: =1+IE3 -> 4479500.00% | IG3: =1+IF3 -> 4479600.00% | IH3: =1+IG3 -> 4479700.00% | II3: =1+IH3 -> 4479800.00% | IJ3: =1+II3 -> 4479900.00% | IK3: =1+IJ3 -> 4480000.00% | IL3: =1+IK3 -> 4480100.00% | IM3: =1+IL3 -> 4480200.00% | IN3: =1+IM3 -> 4480300.00% | IO3: =1+IN3 -> 4480400.00% | IP3: =1+IO3 -> 4480500.00% | IQ3: =1+IP3 -> 4480600.00% | IR3: =1+IQ3 -> 4480700.00% | IS3: =1+IR3 -> 4480800.00% | IT3: =1+IS3 -> 4480900.00% | IU3: =1+IT3 -> 4481000.00% | IV3: =1+IU3 -> 4481100.00% | IW3: =1+IV3 -> 4481200.00% | IX3: =1+IW3 -> 4481300.00% | IY3: =1+IX3 -> 4481400.00% | IZ3: =1+IY3 -> 4481500.00% | JA3: =1+IZ3 -> 4481600.00% | JB3: =1+JA3 -> 4481700.00% | JC3: =1+JB3 -> 4481800.00% | JD3: =1+JC3 -> 4481900.00% | JE3: =1+JD3 -> 4482000.00% | JF3: =1+JE3 -> 4482100.00% | JG3: =1+JF3 -> 4482200.00% | JH3: =1+JG3 -> 4482300.00% | JI3: =1+JH3 -> 4482400.00% | JJ3: =1+JI3 -> 4482500.00% | JK3: =1+JJ3 -> 4482600.00% | JL3: =1+JK3 -> 4482700.00% | JM3: =1+JL3 -> 4482800.00% | JN3: =1+JM3 -> 4482900.00% | JO3: =1+JN3 -> 4483000.00% | JP3: =1+JO3 -> 4483100.00% | JQ3: =1+JP3 -> 4483200.00% | JR3: =1+JQ3 -> 4483300.00% | JS3: =1+JR3 -> 4483400.00% | JT3: =1+JS3 -> 4483500.00% | JU3: =1+JT3 -> 4483600.00% | JV3: =1+JU3 -> 4483700.00% | JW3: =1+JV3 -> 4483800.00% | JX3: =1+JW3 -> 4483900.00% | JY3: =1+JX3 -> 4484000.00% | JZ3: =1+JY3 -> 4484100.00% | KA3: =1+JZ3 -> 4484200.00% | KB3: =1+KA3 -> 4484300.00% | KC3: =1+KB3 -> 4484400.00% | KD3: =1+KC3 -> 4484500.00% | KE3: =1+KD3 -> 4484600.00% | KF3: =1+KE3 -> 4484700.00% | KG3: =1+KF3 -> 4484800.00% | KH3: =1+KG3 -> 4484900.00% | KI3: =1+KH3 -> 4485000.00% | KJ3: =1+KI3 -> 4485100.00% | KK3: =1+KJ3 -> 4485200.00% | KL3: =1+KK3 -> 4485300.00% | KM3: =1+KL3 -> 4485400.00% | KN3: =1+KM3 -> 4485500.00% | KO3: =1+KN3 -> 4485600.00% | KP3: =1+KO3 -> 4485700.00% | KQ3: =1+KP3 -> 4485800.00% | KR3: =1+KQ3 -> 4485900.00% | KS3: =1+KR3 -> 4486000.00% | KT3: =1+KS3 -> 4486100.00% | KU3: =1+KT3 -> 4486200.00% | KV3: =1+KU3 -> 4486300.00% | KW3: =1+KV3 -> 4486400.00% | KX3: =1+KW3 -> 4486500.00% | KY3: =1+KX3 -> 4486600.00% | KZ3: =1+KY3 -> 4486700.00% | LA3: =1+KZ3 -> 4486800.00% | LB3: =1+LA3 -> 4486900.00% | LC3: =1+LB3 -> 4487000.00% | LD3: =1+LC3 -> 4487100.00% | LE3: =1+LD3 -> 4487200.00% | LF3: =1+LE3 -> 4487300.00% | LG3: =1+LF3 -> 4487400.00% | LH3: =1+LG3 -> 4487500.00% | LI3: =1+LH3 -> 4487600.00% | LJ3: =1+LI3 -> 4487700.00% | LK3: =1+LJ3 -> 4487800.00% | LL3: =1+LK3 -> 4487900.00% | LM3: =1+LL3 -> 4488000.00% | LN3: =1+LM3 -> 4488100.00% | LO3: =1+LN3 -> 4488200.00% | LP3: =1+LO3 -> 4488300.00% | LQ3: =1+LP3 -> 4488400.00% | LR3: =1+LQ3 -> 4488500.00% | LS3: =1+LR3 -> 4488600.00% | LT3: =1+LS3 -> 4488700.00% | LU3: =1+LT3 -> 4488800.00% | LV3: =1+LU3 -> 4488900.00% | LW3: =1+LV3 -> 4489000.00% | LX3: =1+LW3 -> 4489100.00% | LY3: =1+LX3 -> 4489200.00% | LZ3: =1+LY3 -> 4489300.00% | MA3: =1+LZ3 -> 4489400.00% | MB3: =1+MA3 -> 4489500.00% | MC3: =1+MB3 -> 4489600.00% | MD3: =1+MC3 -> 4489700.00% | ME3: =1+MD3 -> 4489800.00% | MF3: =1+ME3 -> 4489900.00% | MG3: =1+MF3 -> 4490000.00% | MH3: =1+MG3 -> 4490100.00% | MI3: =1+MH3 -> 4490200.00% | MJ3: =1+MI3 -> 4490300.00% | MK3: =1+MJ3 -> 4490400.00% | ML3: =1+MK3 -> 4490500.00% | MM3: =1+ML3 -> 4490600.00% | MN3: =1+MM3 -> 4490700.00% | MO3: =1+MN3 -> 4490800.00% | MP3: =1+MO3 -> 4490900.00% | MQ3: =1+MP3 -> 4491000.00% | MR3: =1+MQ3 -> 4491100.00% | MS3: =1+MR3 -> 4491200.00% | MT3: =1+MS3 -> 4491300.00% | MU3: =1+MT3 -> 4491400.00% | MV3: =1+MU3 -> 4491500.00% | MW3: =1+MV3 -> 4491600.00% | MX3: =1+MW3 -> 4491700.00% | MY3: =1+MX3 -> 4491800.00% | MZ3: =1+MY3 -> 4491900.00% | NA3: =1+MZ3 -> 4492000.00% | NB3: =1+NA3 -> 4492100.00% | NC3: =1+NB3 -> 4492200.00% | ND3: =1+NC3 -> 4492300.00% | NE3: =1+ND3 -> 4492400.00% | NF3: =1+NE3 -> 4492500.00% | NG3: =1+NF3 -> 4492600.00%
D4: AV06 | E4: Centro | F4: Tocancipá | DW4: 15 | DX4: 8,181 | DY4: 8,484 | DZ4: 8,142 | EA4: 11,119 | EB4: 9,185 | EC4: 8,173 | ED4: 460 | EE4: 9,291 | EF4: 10,345 | EG4: 9,267 | EH4: 10,209 | EI4: 12,952 | EJ4: 11,572 | EK4: 1,139 | EL4: 10,567 | EM4: 16,592 | EN4: 9,710 | EO4: 10,048 | EP4: 7,929 | EQ4: 9,409 | ER4: 0 | ES4: 10,459 | ET4: 14,560 | EU4: 11,411 | EV4: 12,254 | EW4: 11,215 | EX4: 7,656 | EY4: 400 | EZ4: 6,845 | FA4: 8,514 | FB4: 8,531 | FC4: 9,879 | FD4: 10,428 | FE4: 8,600 | FF4: 37 | FG4: 9,426 | FH4: 9,290 | FI4: 10,382 | FJ4: 10,817 | FK4: 12,648 | FL4: 10,724 | FM4: 3,023 | FN4: 9,176 | FO4: 10,849 | FP4: 9,380 | FQ4: 9,799
D5: AV50 | E5: Centro | F5: Siberia | DW5: 11 | DX5: 6,737 | DY5: 9,731 | DZ5: 9,482 | EA5: 8,897 | EB5: 6,460 | EC5: 7,165 | ED5: 0 | EE5: 7,098 | EF5: 9,623 | EG5: 8,372 | EH5: 9,392 | EI5: 8,683 | EJ5: 9,129 | EK5: 0 | EL5: 8,077 | EM5: 8,943 | EN5: 8,325 | EO5: 8,666 | EP5: 5,655 | EQ5: 5,622 | ER5: 0 | ES5: 5,007 | ET5: 7,851 | EU5: 8,251 | EV5: 7,494 | EW5: 4,619 | EX5: 3,847 | EY5: 0 | EZ5: 3,778 | FA5: 5,789 | FB5: 6,198 | FC5: 7,185 | FD5: 6,497 | FE5: 5,558 | FF5: 0 | FG5: 5,320 | FH5: 6,973 | FI5: 6,067 | FJ5: 6,480 | FK5: 4,889 | FL5: 5,441 | FM5: 0 | FN5: 5,139 | FO5: 7,144 | FP5: 6,836 | FQ5: 6,830
D6: AV78 | E6: Centro | F6: Montevideo | DW6: 79 | DX6: 3,420 | DY6: 5,302 | DZ6: 6,161 | EA6: 5,350 | EB6: 5,805 | EC6: 4,772 | ED6: 0 | EE6: 3,788 | EF6: 5,820 | EG6: 5,505 | EH6: 6,005 | EI6: 5,599 | EJ6: 5,840 | EK6: 0 | EL6: 6,681 | EM6: 6,816 | EN6: 6,918 | EO6: 6,722 | EP6: 5,066 | EQ6: 6,071 | ER6: 3,148 | ES6: 2,107 | ET6: 6,056 | EU6: 6,405 | EV6: 5,772 | EW6: 3,506 | EX6: 3,337 | EY6: 0 | EZ6: 3,424 | FA6: 4,086 | FB6: 5,012 | FC6: 5,394 | FD6: 4,950 | FE6: 3,808 | FF6: 71 | FG6: 3,913 | FH6: 4,728 | FI6: 4,949 | FJ6: 5,352 | FK6: 4,855 | FL6: 3,864 | FM6: 0 | FN6: 4,366 | FO6: 6,324 | FP6: 6,199 | FQ6: 6,264
D7: AV04 | E7: Centro | F7: Montevideo | DW7: 0 | DX7: 1,833 | DY7: 2,313 | DZ7: 2,831 | EA7: 2,886 | EB7: 2,146 | EC7: 2,404 | ED7: 0 | EE7: 1,649 | EF7: 2,504 | EG7: 2,190 | EH7: 2,721 | EI7: 2,151 | EJ7: 2,142 | EK7: 0 | EL7: 1,848 | EM7: 2,483 | EN7: 2,077 | EO7: 2,829 | EP7: 2,044 | EQ7: 1,955 | ER7: 0 | ES7: 2,080 | ET7: 2,800 | EU7: 3,054 | EV7: 2,293 | EW7: 1,994 | EX7: 2,021 | EY7: 0 | EZ7: 1,526 | FA7: 2,288 | FB7: 2,397 | FC7: 2,437 | FD7: 2,503 | FE7: 2,703 | FF7: 0 | FG7: 937 | FH7: 1,870 | FI7: 2,399 | FJ7: 2,756 | FK7: 1,949 | FL7: 2,485 | FM7: 0 | FN7: 1,946 | FO7: 2,328 | FP7: 2,734 | FQ7: 2,691
D8: AV47 | E8: Centro | F8: Sibate | DW8: 8 | DX8: 2,810 | DY8: 4,506 | DZ8: 3,801 | EA8: 4,964 | EB8: 4,975 | EC8: 4,800 | ED8: 0 | EE8: 4,006 | EF8: 4,700 | EG8: 7,013 | EH8: 4,330 | EI8: 4,818 | EJ8: 3,926 | EK8: 0 | EL8: 7,087 | EM8: 7,503 | EN8: 6,055 | EO8: 5,191 | EP8: 4,097 | EQ8: 4,891 | ER8: 0 | ES8: 4,281 | ET8: 5,897 | EU8: 5,215 | EV8: 4,893 | EW8: 3,538 | EX8: 3,742 | EY8: 0 | EZ8: 3,008 | FA8: 3,769 | FB8: 3,728 | FC8: 3,899 | FD8: 4,996 | FE8: 5,941 | FF8: 0 | FG8: 4,007 | FH8: 4,360 | FI8: 4,265 | FJ8: 4,105 | FK8: 4,256 | FL8: 3,948 | FM8: 0 | FN8: 4,675 | FO8: 4,433 | FP8: 4,086 | FQ8: 4,887
D9: AV42 | E9: Centro | F9: Tunja | DW9: 1 | DX9: 1,015 | DY9: 1,631 | DZ9: 1,688 | EA9: 1,775 | EB9: 1,482 | EC9: 1,519 | ED9: 0 | EE9: 1,149 | EF9: 1,610 | EG9: 1,746 | EH9: 1,662 | EI9: 1,668 | EJ9: 1,472 | EK9: 0 | EL9: 1,412 | EM9: 1,765 | EN9: 1,644 | EO9: 1,675 | EP9: 1,486 | EQ9: 1,277 | ER9: 0 | ES9: 1,264 | ET9: 1,842 | EU9: 1,901 | EV9: 1,955 | EW9: 1,415 | EX9: 1,072 | EY9: 0 | EZ9: 940 | FA9: 1,431 | FB9: 1,623 | FC9: 1,681 | FD9: 1,493 | FE9: 1,433 | FF9: 0 | FG9: 822 | FH9: 1,387 | FI9: 1,616 | FJ9: 1,777 | FK9: 1,781 | FL9: 1,175 | FM9: 0 | FN9: 1,720 | FO9: 1,987 | FP9: 1,513 | FQ9: 2,028
A12: 0.0% | F12: Phasing LY | G12: 0% | H12: 4% | I12: 3% | J12: 3% | K12: 0% | L12: 2% | M12: 5% | N12: 4% | O12: 5% | P12: 3% | Q12: 3% | R12: 0% | S12: 3% | T12: 3% | U12: 5% | V12: 5% | W12: 4% | X12: 4% | Y12: 0% | Z12: 3% | AA12: 3% | AB12: 5% | AC12: 5% | AD12: 4% | AE12: 4% | AF12: 0% | AG12: 3% | AH12: 3% | AI12: 6% | AJ12: 5% | AK12: 3% | AL12: 3% | AM12: 0% | AN12: 3% | AO12: 3% | AP12: 6% | AQ12: 5% | AR12: 4% | AS12: 4% | AT12: 0% | AU12: 4% | AV12: 3% | AW12: 5% | AX12: 5% | AY12: 4% | AZ12: 4% | BA12: 0% | BB12: 4% | BC12: 3% | BD12: 5% | BE12: 4% | BF12: 4% | BG12: 4% | BH12: 0% | BI12: 4% | BJ12: 3% | BK12: 6% | BL12: 5% | BM12: 4% | BN12: 4% | BO12: 0% | BP12: 3% | BQ12: 3% | BR12: 5% | BS12: 4% | BT12: 4% | BU12: 4% | BV12: 0% | BW12: 3% | BX12: 3% | BY12: 5% | BZ12: 4% | CA12: 3% | CB12: 3% | CC12: 0% | CD12: 3% | CE12: 3% | CF12: 4% | CG12: 5% | CH12: 4% | CI12: 4% | CJ12: 0% | CK12: 4% | CL12: 3% | CM12: 5% | CN12: 4% | CO12: 4% | CP12: 4% | CQ12: 0% | CR12: 3% | CS12: 3% | CT12: 5% | CU12: 5% | CV12: 4% | CW12: 4% | CX12: 0% | CY12: 2% | CZ12: 3% | DA12: 5% | DB12: 6% | DC12: 4% | DD12: 4% | DE12: 0% | DF12: 3% | DG12: 3% | DH12: 5% | DI12: 4% | DJ12: 5% | DK12: 5% | DL12: 0% | DM12: 3% | DN12: 3% | DO12: 5% | DP12: 5% | DQ12: 4% | DR12: 4% | DS12: 0% | DT12: 3% | DU12: 3% | DV12: 3% | DW12: 4% | DX12: 3% | DY12: 3% | DZ12: 0% | EA12: 3% | EB12: 3% | EC12: 5% | ED12: 4% | EE12: 4% | EF12: 4% | EG12: 0% | EH12: 4% | EI12: 3% | EJ12: 6% | EK12: 4% | EL12: 3% | EM12: 3% | EN12: 0% | EO12: 3% | EP12: 3% | EQ12: 2% | ER12: 5% | ES12: 3% | ET12: 3% | EU12: 0% | EV12: 3% | EW12: 3% | EX12: 5% | EY12: 4% | EZ12: 4% | FA12: 4% | FB12: 0% | FC12: 3% | FD12: 3% | FE12: 5% | FF12: 4% | FG12: 4% | FH12: 4% | FI12: 0% | FJ12: 3% | FK12: 3% | FL12: 5% | FM12: 5% | FN12: 4% | FO12: 4% | FP12: 0% | FQ12: 3% | FR12: 3% | FS12: 5% | FT12: 5% | FU12: 4% | FV12: 4% | FW12: 0% | FX12: 3% | FY12: 3% | FZ12: 6% | GA12: 5% | GB12: 4% | GC12: 4% | GD12: 0% | GE12: 3% | GF12: 3% | GG12: 5% | GH12: 5% | GI12: 3% | GJ12: 3% | GK12: 0% | GL12: 4% | GM12: 3% | GN12: 6% | GO12: 5% | GP12: 4% | GQ12: 4% | GR12: 0% | GS12: 3% | GT12: 3% | GU12: 5% | GV12: 4% | GW12: 4% | GX12: 4% | GY12: 0% | GZ12: 3% | HA12: 3% | HB12: 5% | HC12: 4% | HD12: 4% | HE12: 4% | HF12: 0% | HG12: 3% | HH12: 3% | HI12: 6% | HJ12: 4% | HK12: 4% | HL12: 4% | HM12: 0% | HN12: 3% | HO12: 3% | HP12: 5% | HQ12: 5% | HR12: 4% | HS12: 4% | HT12: 0% | HU12: 3% | HV12: 3% | HW12: 7% | HX12: 1% | HY12: 3% | HZ12: 3% | IA12: 0% | IB12: 3% | IC12: 3% | ID12: 4% | IE12: 4% | IF12: 3% | IG12: 3% | IH12: 0% | II12: 4% | IJ12: 3% | IK12: 6% | IL12: 4% | IM12: 4% | IN12: 4% | IO12: 0% | IP12: 3% | IQ12: 3% | IR12: 5% | IS12: 5% | IT12: 4% | IU12: 4% | IV12: 0% | IW12: 3% | IX12: 3% | IY12: 6% | IZ12: 5% | JA12: 4% | JB12: 4% | JC12: 0% | JD12: 3% | JE12: 3% | JF12: 6% | JG12: 5% | JH12: 4% | JI12: 4% | JJ12: 0% | JK12: 3% | JL12: 3% | JM12: 5% | JN12: 4% | JO12: 4% | JP12: 4% | JQ12: 0% | JR12: 3% | JS12: 3% | JT12: 5% | JU12: 4% | JV12: 4% | JW12: 4% | JX12: 0% | JY12: 4% | JZ12: 3% | KA12: 6% | KB12: 4% | KC12: 3% | KD12: 3% | KE12: 0% | KF12: 3% | KG12: 3% | KH12: 4% | KI12: 4% | KJ12: 4% | KK12: 4% | KL12: 0% | KM12: 4% | KN12: 3% | KO12: 6% | KP12: 4% | KQ12: 3% | KR12: 3% | KS12: 0% | KT12: 3% | KU12: 2% | KV12: 5% | KW12: 3% | KX12: 3% | KY12: 3% | KZ12: 0% | LA12: 3% | LB12: 3% | LC12: 4% | LD12: 5% | LE12: 4% | LF12: 4% | LG12: 0% | LH12: 4% | LI12: 3% | LJ12: 4% | LK12: 5% | LL12: 4% | LM12: 4% | LN12: 0% | LO12: 4% | LP12: 3% | LQ12: 6% | LR12: 5% | LS12: 4% | LT12: 4% | LU12: 0% | LV12: 3% | LW12: 3% | LX12: 5% | LY12: 4% | LZ12: 4% | MA12: 4% | MB12: 0% | MC12: 3% | MD12: 3% | ME12: 5% | MF12: 5% | MG12: 4% | MH12: 4% | MI12: 0% | MJ12: 4% | MK12: 3% | ML12: 6% | MM12: 4% | MN12: 4% | MO12: 4% | MP12: 0% | MQ12: 3% | MR12: 2% | MS12: 5% | MT12: 4% | MU12: 4% | MV12: 4% | MW12: 0% | MX12: 3% | MY12: 3% | MZ12: 2% | NA12: 5% | NB12: 4% | NC12: 4% | ND12: 0% | NE12: 3% | NF12: 1% | NG12: 5%
B13: Ventas | D13: Venta Proyectada (Hl) | G13: =TEXT(G14,"ddd") -> Wed | H13: =TEXT(H14,"ddd") -> Thu | I13: Fri | J13: Sat | K13: Sun | L13: Mon | M13: Tue | N13: Wed | O13: Thu | P13: Fri | Q13: Sat | R13: Sun | S13: Mon | T13: Tue | U13: Wed | V13: Thu | W13: Fri | X13: Sat | Y13: Sun | Z13: Mon | AA13: Tue | AB13: Wed | AC13: Thu | AD13: Fri | AE13: Sat | AF13: Sun | AG13: Mon | AH13: Tue | AI13: Wed | AJ13: Thu | AK13: Fri | AL13: Sat | AM13: Sun | AN13: Mon | AO13: Tue | AP13: Wed | AQ13: Thu | AR13: Fri | AS13: Sat | AT13: Sun | AU13: Mon | AV13: Tue | AW13: Wed | AX13: Thu | AY13: Fri | AZ13: Sat | BA13: Sun | BB13: Mon | BC13: Tue | BD13: Wed | BE13: Thu | BF13: Fri | BG13: Sat | BH13: Sun | BI13: Mon | BJ13: Tue | BK13: Wed | BL13: Thu | BM13: Fri | BN13: Sat | BO13: Sun | BP13: Mon | BQ13: Tue | BR13: Wed | BS13: Thu | BT13: =TEXT(BT14,"ddd") -> Fri | BU13: Sat | BV13: Sun | BW13: Mon | BX13: Tue | BY13: Wed | BZ13: Thu | CA13: Fri | CB13: Sat | CC13: Sun | CD13: Mon | CE13: Tue | CF13: Wed | CG13: Thu | CH13: Fri | CI13: Sat | CJ13: Sun | CK13: Mon | CL13: Tue | CM13: Wed | CN13: Thu | CO13: Fri | CP13: Sat | CQ13: Sun | CR13: Mon | CS13: Tue | CT13: Wed | CU13: Thu | CV13: Fri | CW13: Sat | CX13: Sun | CY13: Mon | CZ13: Tue | DA13: Wed | DB13: Thu | DC13: Fri | DD13: Sat | DE13: Sun | DF13: Mon | DG13: Tue | DH13: Wed | DI13: Thu | DJ13: Fri | DK13: Sat | DL13: Sun | DM13: Mon | DN13: Tue | DO13: Wed | DP13: Thu | DQ13: Fri | DR13: Sat | DS13: Sun | DT13: Mon | DU13: Tue | DV13: Wed | DW13: Thu | DX13: Fri | DY13: Sat | DZ13: Sun | EA13: Mon | EB13: Tue | EC13: Wed | ED13: Thu | EE13: Fri | EF13: =TEXT(EF14,"ddd") -> Sat | EG13: Sun | EH13: Mon | EI13: Tue | EJ13: Wed | EK13: Thu | EL13: Fri | EM13: Sat | EN13: Sun | EO13: Mon | EP13: Tue | EQ13: Wed | ER13: Thu | ES13: Fri | ET13: Sat | EU13: Sun | EV13: Mon | EW13: Tue | EX13: Wed | EY13: Thu | EZ13: Fri | FA13: Sat | FB13: Sun | FC13: Mon | FD13: Tue | FE13: Wed | FF13: Thu | FG13: Fri | FH13: Sat | FI13: Sun | FJ13: Mon | FK13: Tue | FL13: Wed | FM13: Thu | FN13: Fri | FO13: Sat | FP13: Sun | FQ13: Mon | FR13: Tue | FS13: Wed | FT13: Thu | FU13: Fri | FV13: Sat | FW13: Sun | FX13: Mon | FY13: Tue | FZ13: Wed | GA13: Thu | GB13: Fri | GC13: Sat | GD13: Sun | GE13: Mon | GF13: Tue | GG13: Wed | GH13: Thu | GI13: Fri | GJ13: Sat | GK13: Sun | GL13: Mon | GM13: Tue | GN13: Wed | GO13: Thu | GP13: Fri | GQ13: Sat | GR13: =TEXT(GR14,"ddd") -> Sun | GS13: Mon | GT13: Tue | GU13: Wed | GV13: Thu | GW13: Fri | GX13: Sat | GY13: Sun | GZ13: Mon | HA13: Tue | HB13: Wed | HC13: Thu | HD13: Fri | HE13: Sat | HF13: Sun | HG13: Mon | HH13: Tue | HI13: Wed | HJ13: Thu | HK13: Fri | HL13: Sat | HM13: Sun | HN13: Mon | HO13: Tue | HP13: Wed | HQ13: Thu | HR13: Fri | HS13: Sat | HT13: Sun | HU13: Mon | HV13: Tue | HW13: Wed | HX13: Thu | HY13: Fri | HZ13: Sat | IA13: Sun | IB13: Mon | IC13: Tue | ID13: Wed | IE13: Thu | IF13: Fri | IG13: Sat | IH13: Sun | II13: Mon | IJ13: Tue | IK13: Wed | IL13: Thu | IM13: Fri | IN13: Sat | IO13: Sun | IP13: Mon | IQ13: Tue | IR13: Wed | IS13: Thu | IT13: Fri | IU13: Sat | IV13: Sun | IW13: Mon | IX13: Tue | IY13: Wed | IZ13: Thu | JA13: Fri | JB13: Sat | JC13: Sun | JD13: =TEXT(JD14,"ddd") -> Mon | JE13: Tue | JF13: Wed | JG13: Thu | JH13: Fri | JI13: Sat | JJ13: Sun | JK13: Mon | JL13: Tue | JM13: Wed | JN13: Thu | JO13: Fri | JP13: Sat | JQ13: Sun | JR13: Mon | JS13: Tue | JT13: Wed | JU13: Thu | JV13: Fri | JW13: Sat | JX13: Sun | JY13: Mon | JZ13: Tue | KA13: Wed | KB13: Thu | KC13: Fri | KD13: Sat | KE13: Sun | KF13: Mon | KG13: Tue | KH13: Wed | KI13: Thu | KJ13: Fri | KK13: Sat | KL13: Sun | KM13: Mon | KN13: Tue | KO13: Wed | KP13: Thu | KQ13: Fri | KR13: Sat | KS13: Sun | KT13: Mon | KU13: Tue | KV13: Wed | KW13: Thu | KX13: Fri | KY13: Sat | KZ13: Sun | LA13: Mon | LB13: Tue | LC13: Wed | LD13: Thu | LE13: Fri | LF13: Sat | LG13: Sun | LH13: Mon | LI13: Tue | LJ13: Wed | LK13: Thu | LL13: Fri | LM13: Sat | LN13: Sun | LO13: Mon | LP13: =TEXT(LP14,"ddd") -> Tue | LQ13: Wed | LR13: Thu | LS13: Fri | LT13: Sat | LU13: Sun | LV13: Mon | LW13: Tue | LX13: Wed | LY13: Thu | LZ13: Fri | MA13: Sat | MB13: Sun | MC13: Mon | MD13: Tue | ME13: Wed | MF13: Thu | MG13: Fri | MH13: Sat | MI13: Sun | MJ13: Mon | MK13: Tue | ML13: Wed | MM13: Thu | MN13: Fri | MO13: Sat | MP13: Sun | MQ13: Mon | MR13: Tue | MS13: Wed | MT13: Thu | MU13: Fri | MV13: Sat | MW13: Sun | MX13: Mon | MY13: Tue | MZ13: Wed | NA13: Thu | NB13: Fri | NC13: Sat | ND13: Sun | NE13: Mon | NF13: Tue | NG13: Wed
D14: Código | E14: Regional | F14: Centro | G14: 4565800.00% | H14: =1+G14 -> 4565900.00% | I14: =1+H14 -> 4566000.00% | J14: =1+I14 -> 4566100.00% | K14: =1+J14 -> 4566200.00% | L14: =1+K14 -> 4566300.00% | M14: =1+L14 -> 4566400.00% | N14: =1+M14 -> 4566500.00% | O14: =1+N14 -> 4566600.00% | P14: =1+O14 -> 4566700.00% | Q14: =1+P14 -> 4566800.00% | R14: =1+Q14 -> 4566900.00% | S14: =1+R14 -> 4567000.00% | T14: =1+S14 -> 4567100.00% | U14: =1+T14 -> 4567200.00% | V14: =1+U14 -> 4567300.00% | W14: =1+V14 -> 4567400.00% | X14: =1+W14 -> 4567500.00% | Y14: =1+X14 -> 4567600.00% | Z14: =1+Y14 -> 4567700.00% | AA14: =1+Z14 -> 4567800.00% | AB14: =1+AA14 -> 4567900.00% | AC14: =1+AB14 -> 4568000.00% | AD14: =1+AC14 -> 4568100.00% | AE14: =1+AD14 -> 4568200.00% | AF14: =1+AE14 -> 4568300.00% | AG14: =1+AF14 -> 4568400.00% | AH14: =1+AG14 -> 4568500.00% | AI14: =1+AH14 -> 4568600.00% | AJ14: =1+AI14 -> 4568700.00% | AK14: =1+AJ14 -> 4568800.00% | AL14: =1+AK14 -> 4568900.00% | AM14: =1+AL14 -> 4569000.00% | AN14: =1+AM14 -> 4569100.00% | AO14: =1+AN14 -> 4569200.00% | AP14: =1+AO14 -> 4569300.00% | AQ14: =1+AP14 -> 4569400.00% | AR14: =1+AQ14 -> 4569500.00% | AS14: =1+AR14 -> 4569600.00% | AT14: =1+AS14 -> 4569700.00% | AU14: =1+AT14 -> 4569800.00% | AV14: =1+AU14 -> 4569900.00% | AW14: =1+AV14 -> 4570000.00% | AX14: =1+AW14 -> 4570100.00% | AY14: =1+AX14 -> 4570200.00% | AZ14: =1+AY14 -> 4570300.00% | BA14: =1+AZ14 -> 4570400.00% | BB14: =1+BA14 -> 4570500.00% | BC14: =1+BB14 -> 4570600.00% | BD14: =1+BC14 -> 4570700.00% | BE14: =1+BD14 -> 4570800.00% | BF14: =1+BE14 -> 4570900.00% | BG14: =1+BF14 -> 4571000.00% | BH14: =1+BG14 -> 4571100.00% | BI14: =1+BH14 -> 4571200.00% | BJ14: =1+BI14 -> 4571300.00% | BK14: =1+BJ14 -> 4571400.00% | BL14: =1+BK14 -> 4571500.00% | BM14: =1+BL14 -> 4571600.00% | BN14: =1+BM14 -> 4571700.00% | BO14: =1+BN14 -> 4571800.00% | BP14: =1+BO14 -> 4571900.00% | BQ14: =1+BP14 -> 4572000.00% | BR14: =1+BQ14 -> 4572100.00% | BS14: =1+BR14 -> 4572200.00% | BT14: =1+BS14 -> 4572300.00% | BU14: =1+BT14 -> 4572400.00% | BV14: =1+BU14 -> 4572500.00% | BW14: =1+BV14 -> 4572600.00% | BX14: =1+BW14 -> 4572700.00% | BY14: =1+BX14 -> 4572800.00% | BZ14: =1+BY14 -> 4572900.00% | CA14: =1+BZ14 -> 4573000.00% | CB14: =1+CA14 -> 4573100.00% | CC14: =1+CB14 -> 4573200.00% | CD14: =1+CC14 -> 4573300.00% | CE14: =1+CD14 -> 4573400.00% | CF14: =1+CE14 -> 4573500.00% | CG14: =1+CF14 -> 4573600.00% | CH14: =1+CG14 -> 4573700.00% | CI14: =1+CH14 -> 4573800.00% | CJ14: =1+CI14 -> 4573900.00% | CK14: =1+CJ14 -> 4574000.00% | CL14: =1+CK14 -> 4574100.00% | CM14: =1+CL14 -> 4574200.00% | CN14: =1+CM14 -> 4574300.00% | CO14: =1+CN14 -> 4574400.00% | CP14: =1+CO14 -> 4574500.00% | CQ14: =1+CP14 -> 4574600.00% | CR14: =1+CQ14 -> 4574700.00% | CS14: =1+CR14 -> 4574800.00% | CT14: =1+CS14 -> 4574900.00% | CU14: =1+CT14 -> 4575000.00% | CV14: =1+CU14 -> 4575100.00% | CW14: =1+CV14 -> 4575200.00% | CX14: =1+CW14 -> 4575300.00% | CY14: =1+CX14 -> 4575400.00% | CZ14: =1+CY14 -> 4575500.00% | DA14: =1+CZ14 -> 4575600.00% | DB14: =1+DA14 -> 4575700.00% | DC14: =1+DB14 -> 4575800.00% | DD14: =1+DC14 -> 4575900.00% | DE14: =1+DD14 -> 4576000.00% | DF14: =1+DE14 -> 4576100.00% | DG14: =1+DF14 -> 4576200.00% | DH14: =1+DG14 -> 4576300.00% | DI14: =1+DH14 -> 4576400.00% | DJ14: =1+DI14 -> 4576500.00% | DK14: =1+DJ14 -> 4576600.00% | DL14: =1+DK14 -> 4576700.00% | DM14: =1+DL14 -> 4576800.00% | DN14: =1+DM14 -> 4576900.00% | DO14: =1+DN14 -> 4577000.00% | DP14: =1+DO14 -> 4577100.00% | DQ14: =1+DP14 -> 4577200.00% | DR14: =1+DQ14 -> 4577300.00% | DS14: =1+DR14 -> 4577400.00% | DT14: =1+DS14 -> 4577500.00% | DU14: =1+DT14 -> 4577600.00% | DV14: =1+DU14 -> 4577700.00% | DW14: =1+DV14 -> 4577800.00% | DX14: =1+DW14 -> 4577900.00% | DY14: =1+DX14 -> 4578000.00% | DZ14: =1+DY14 -> 4578100.00% | EA14: =1+DZ14 -> 4578200.00% | EB14: =1+EA14 -> 4578300.00% | EC14: =1+EB14 -> 4578400.00% | ED14: =1+EC14 -> 4578500.00% | EE14: =1+ED14 -> 4578600.00% | EF14: =1+EE14 -> 4578700.00% | EG14: =1+EF14 -> 4578800.00% | EH14: =1+EG14 -> 4578900.00% | EI14: =1+EH14 -> 4579000.00% | EJ14: =1+EI14 -> 4579100.00% | EK14: =1+EJ14 -> 4579200.00% | EL14: =1+EK14 -> 4579300.00% | EM14: =1+EL14 -> 4579400.00% | EN14: =1+EM14 -> 4579500.00% | EO14: =1+EN14 -> 4579600.00% | EP14: =1+EO14 -> 4579700.00% | EQ14: =1+EP14 -> 4579800.00% | ER14: =1+EQ14 -> 4579900.00% | ES14: =1+ER14 -> 4580000.00% | ET14: =1+ES14 -> 4580100.00% | EU14: =1+ET14 -> 4580200.00% | EV14: =1+EU14 -> 4580300.00% | EW14: =1+EV14 -> 4580400.00% | EX14: =1+EW14 -> 4580500.00% | EY14: =1+EX14 -> 4580600.00% | EZ14: =1+EY14 -> 4580700.00% | FA14: =1+EZ14 -> 4580800.00% | FB14: =1+FA14 -> 4580900.00% | FC14: =1+FB14 -> 4581000.00% | FD14: =1+FC14 -> 4581100.00% | FE14: =1+FD14 -> 4581200.00% | FF14: =1+FE14 -> 4581300.00% | FG14: =1+FF14 -> 4581400.00% | FH14: =1+FG14 -> 4581500.00% | FI14: =1+FH14 -> 4581600.00% | FJ14: =1+FI14 -> 4581700.00% | FK14: =1+FJ14 -> 4581800.00% | FL14: =1+FK14 -> 4581900.00% | FM14: =1+FL14 -> 4582000.00% | FN14: =1+FM14 -> 4582100.00% | FO14: =1+FN14 -> 4582200.00% | FP14: =1+FO14 -> 4582300.00% | FQ14: =1+FP14 -> 4582400.00% | FR14: =1+FQ14 -> 4582500.00% | FS14: =1+FR14 -> 4582600.00% | FT14: =1+FS14 -> 4582700.00% | FU14: =1+FT14 -> 4582800.00% | FV14: =1+FU14 -> 4582900.00% | FW14: =1+FV14 -> 4583000.00% | FX14: =1+FW14 -> 4583100.00% | FY14: =1+FX14 -> 4583200.00% | FZ14: =1+FY14 -> 4583300.00% | GA14: =1+FZ14 -> 4583400.00% | GB14: =1+GA14 -> 4583500.00% | GC14: =1+GB14 -> 4583600.00% | GD14: =1+GC14 -> 4583700.00% | GE14: =1+GD14 -> 4583800.00% | GF14: =1+GE14 -> 4583900.00% | GG14: =1+GF14 -> 4584000.00% | GH14: =1+GG14 -> 4584100.00% | GI14: =1+GH14 -> 4584200.00% | GJ14: =1+GI14 -> 4584300.00% | GK14: =1+GJ14 -> 4584400.00% | GL14: =1+GK14 -> 4584500.00% | GM14: =1+GL14 -> 4584600.00% | GN14: =1+GM14 -> 4584700.00% | GO14: =1+GN14 -> 4584800.00% | GP14: =1+GO14 -> 4584900.00% | GQ14: =1+GP14 -> 4585000.00% | GR14: =1+GQ14 -> 4585100.00% | GS14: =1+GR14 -> 4585200.00% | GT14: =1+GS14 -> 4585300.00% | GU14: =1+GT14 -> 4585400.00% | GV14: =1+GU14 -> 4585500.00% | GW14: =1+GV14 -> 4585600.00% | GX14: =1+GW14 -> 4585700.00% | GY14: =1+GX14 -> 4585800.00% | GZ14: =1+GY14 -> 4585900.00% | HA14: =1+GZ14 -> 4586000.00% | HB14: =1+HA14 -> 4586100.00% | HC14: =1+HB14 -> 4586200.00% | HD14: =1+HC14 -> 4586300.00% | HE14: =1+HD14 -> 4586400.00% | HF14: =1+HE14 -> 4586500.00% | HG14: =1+HF14 -> 4586600.00% | HH14: =1+HG14 -> 4586700.00% | HI14: =1+HH14 -> 4586800.00% | HJ14: =1+HI14 -> 4586900.00% | HK14: =1+HJ14 -> 4587000.00% | HL14: =1+HK14 -> 4587100.00% | HM14: =1+HL14 -> 4587200.00% | HN14: =1+HM14 -> 4587300.00% | HO14: =1+HN14 -> 4587400.00% | HP14: =1+HO14 -> 4587500.00% | HQ14: =1+HP14 -> 4587600.00% | HR14: =1+HQ14 -> 4587700.00% | HS14: =1+HR14 -> 4587800.00% | HT14: =1+HS14 -> 4587900.00% | HU14: =1+HT14 -> 4588000.00% | HV14: =1+HU14 -> 4588100.00% | HW14: =1+HV14 -> 4588200.00% | HX14: =1+HW14 -> 4588300.00% | HY14: =1+HX14 -> 4588400.00% | HZ14: =1+HY14 -> 4588500.00% | IA14: =1+HZ14 -> 4588600.00% | IB14: =1+IA14 -> 4588700.00% | IC14: =1+IB14 -> 4588800.00% | ID14: =1+IC14 -> 4588900.00% | IE14: =1+ID14 -> 4589000.00% | IF14: =1+IE14 -> 4589100.00% | IG14: =1+IF14 -> 4589200.00% | IH14: =1+IG14 -> 4589300.00% | II14: =1+IH14 -> 4589400.00% | IJ14: =1+II14 -> 4589500.00% | IK14: =1+IJ14 -> 4589600.00% | IL14: =1+IK14 -> 4589700.00% | IM14: =1+IL14 -> 4589800.00% | IN14: =1+IM14 -> 4589900.00% | IO14: =1+IN14 -> 4590000.00% | IP14: =1+IO14 -> 4590100.00% | IQ14: =1+IP14 -> 4590200.00% | IR14: =1+IQ14 -> 4590300.00% | IS14: =1+IR14 -> 4590400.00% | IT14: =1+IS14 -> 4590500.00% | IU14: =1+IT14 -> 4590600.00% | IV14: =1+IU14 -> 4590700.00% | IW14: =1+IV14 -> 4590800.00% | IX14: =1+IW14 -> 4590900.00% | IY14: =1+IX14 -> 4591000.00% | IZ14: =1+IY14 -> 4591100.00% | JA14: =1+IZ14 -> 4591200.00% | JB14: =1+JA14 -> 4591300.00% | JC14: =1+JB14 -> 4591400.00% | JD14: =1+JC14 -> 4591500.00% | JE14: =1+JD14 -> 4591600.00% | JF14: =1+JE14 -> 4591700.00% | JG14: =1+JF14 -> 4591800.00% | JH14: =1+JG14 -> 4591900.00% | JI14: =1+JH14 -> 4592000.00% | JJ14: =1+JI14 -> 4592100.00% | JK14: =1+JJ14 -> 4592200.00% | JL14: =1+JK14 -> 4592300.00% | JM14: =1+JL14 -> 4592400.00% | JN14: =1+JM14 -> 4592500.00% | JO14: =1+JN14 -> 4592600.00% | JP14: =1+JO14 -> 4592700.00% | JQ14: =1+JP14 -> 4592800.00% | JR14: =1+JQ14 -> 4592900.00% | JS14: =1+JR14 -> 4593000.00% | JT14: =1+JS14 -> 4593100.00% | JU14: =1+JT14 -> 4593200.00% | JV14: =1+JU14 -> 4593300.00% | JW14: =1+JV14 -> 4593400.00% | JX14: =1+JW14 -> 4593500.00% | JY14: =1+JX14 -> 4593600.00% | JZ14: =1+JY14 -> 4593700.00% | KA14: =1+JZ14 -> 4593800.00% | KB14: =1+KA14 -> 4593900.00% | KC14: =1+KB14 -> 4594000.00% | KD14: =1+KC14 -> 4594100.00% | KE14: =1+KD14 -> 4594200.00% | KF14: =1+KE14 -> 4594300.00% | KG14: =1+KF14 -> 4594400.00% | KH14: =1+KG14 -> 4594500.00% | KI14: =1+KH14 -> 4594600.00% | KJ14: =1+KI14 -> 4594700.00% | KK14: =1+KJ14 -> 4594800.00% | KL14: =1+KK14 -> 4594900.00% | KM14: =1+KL14 -> 4595000.00% | KN14: =1+KM14 -> 4595100.00% | KO14: =1+KN14 -> 4595200.00% | KP14: =1+KO14 -> 4595300.00% | KQ14: =1+KP14 -> 4595400.00% | KR14: =1+KQ14 -> 4595500.00% | KS14: =1+KR14 -> 4595600.00% | KT14: =1+KS14 -> 4595700.00% | KU14: =1+KT14 -> 4595800.00% | KV14: =1+KU14 -> 4595900.00% | KW14: =1+KV14 -> 4596000.00% | KX14: =1+KW14 -> 4596100.00% | KY14: =1+KX14 -> 4596200.00% | KZ14: =1+KY14 -> 4596300.00% | LA14: =1+KZ14 -> 4596400.00% | LB14: =1+LA14 -> 4596500.00% | LC14: =1+LB14 -> 4596600.00% | LD14: =1+LC14 -> 4596700.00% | LE14: =1+LD14 -> 4596800.00% | LF14: =1+LE14 -> 4596900.00% | LG14: =1+LF14 -> 4597000.00% | LH14: =1+LG14 -> 4597100.00% | LI14: =1+LH14 -> 4597200.00% | LJ14: =1+LI14 -> 4597300.00% | LK14: =1+LJ14 -> 4597400.00% | LL14: =1+LK14 -> 4597500.00% | LM14: =1+LL14 -> 4597600.00% | LN14: =1+LM14 -> 4597700.00% | LO14: =1+LN14 -> 4597800.00% | LP14: =1+LO14 -> 4597900.00% | LQ14: =1+LP14 -> 4598000.00% | LR14: =1+LQ14 -> 4598100.00% | LS14: =1+LR14 -> 4598200.00% | LT14: =1+LS14 -> 4598300.00% | LU14: =1+LT14 -> 4598400.00% | LV14: =1+LU14 -> 4598500.00% | LW14: =1+LV14 -> 4598600.00% | LX14: =1+LW14 -> 4598700.00% | LY14: =1+LX14 -> 4598800.00% | LZ14: =1+LY14 -> 4598900.00% | MA14: =1+LZ14 -> 4599000.00% | MB14: =1+MA14 -> 4599100.00% | MC14: =1+MB14 -> 4599200.00% | MD14: =1+MC14 -> 4599300.00% | ME14: =1+MD14 -> 4599400.00% | MF14: =1+ME14 -> 4599500.00% | MG14: =1+MF14 -> 4599600.00% | MH14: =1+MG14 -> 4599700.00% | MI14: =1+MH14 -> 4599800.00% | MJ14: =1+MI14 -> 4599900.00% | MK14: =1+MJ14 -> 4600000.00% | ML14: =1+MK14 -> 4600100.00% | MM14: =1+ML14 -> 4600200.00% | MN14: =1+MM14 -> 4600300.00% | MO14: =1+MN14 -> 4600400.00% | MP14: =1+MO14 -> 4600500.00% | MQ14: =1+MP14 -> 4600600.00% | MR14: =1+MQ14 -> 4600700.00% | MS14: =1+MR14 -> 4600800.00% | MT14: =1+MS14 -> 4600900.00% | MU14: =1+MT14 -> 4601000.00% | MV14: =1+MU14 -> 4601100.00% | MW14: =1+MV14 -> 4601200.00% | MX14: =1+MW14 -> 4601300.00% | MY14: =1+MX14 -> 4601400.00% | MZ14: =1+MY14 -> 4601500.00% | NA14: =1+MZ14 -> 4601600.00% | NB14: =1+NA14 -> 4601700.00% | NC14: =1+NB14 -> 4601800.00% | ND14: =1+NC14 -> 4601900.00% | NE14: =1+ND14 -> 4602000.00% | NF14: =1+NE14 -> 4602100.00% | NG14: =1+NF14 -> 4602200.00%
